Workbook

Sheet Титул.лист
A1: 0.1 | J1: ООО Форт г.Ульяновск | P1: Наценка
J2: 14 Инженерный проезд, д.7а | P2: 0
J3: тел./факс:8 (8422) 24-94-54, 24-94-41
J4: www.fort-mebel.ru
J5: Ваши предложения и пожелания sinerkin@yandex.ru | P5: =P2 -> 0
J6: 8 917-050-76-70 Линда egorova@fort-mebel.ru
E8: Базовая коплектация:
A9: ♦ Каркас из ламинированного ДСП оклеенный кромкой ПВХ 0,4 мм; (Белый, белое дерево,светло серый, венге светлый, | J9: ♦ Столешница постформинг матовая 26мм 1 кат
A10: венге линум, венге светлый, бук бавария, ноче экко, ясень шимо-темный, ясень шимо-светлый) | J10: ♦ Стекло фасадное 4мм.
A11: ♦ Фасад | J11: ♦ Столы рабочие по каркасу 500мм+16мм фасад, ящики глубиной на 400мм
A12: ♦ Облагороженное ДВП белого цвета; | J12: ♦ Ручки Скоба 96 мм (золото,хром) или рейлинг 96 пластик;
A13: ♦ Регулируемая опора пластиковая 100 мм (цоколь ЛДСП); | J13: ♦ Регулируемые навесы .
A14: ♦ Роликовые направляющие для выкатных ящиков или Meтабоксы; | J14: ♦ Шкафы навесные глубиной по каркасу 300мм+16мм фасад .
A15: ♦ Антресольные шкафы( Шкафы горизонтального открывания) комплектуются газлифтами;

Sheet Кухни
A1: ООО Форт г.Ульяновск
A2: 14 Инженерный проезд, д.7а
A3: тел./факс:8 (8422) 24-94-54, 24-94-41
A4: www.fort-mebel.ru
A5: =Титул.лист!J5 -> Ваши предложения и пожелания sinerkin@yandex.ru
A6: =Титул.лист!J6 -> 8 917-050-76-70 Линда egorova@fort-mebel.ru
F7: Кухонные гарнитуты НИКА
A8: Кухня | C8: Длина | E8: Размеры позиций | F8: ЛДСП ПВХ 0,45мм | G8: ЛДСП ПВХ 2мм | H8: Пластик 1к ПВХ 0,45мм | I8: Пластик 2к ПВХ 0,45мм | J8: Пластик 1к ПВХ 2мм | K8: Пластик 2к ПВХ 2мм | L8: МДФ матовый | M8: МДФ глянец | N8: МДФ металлик
A9: Ника-1 | C9: 1,1м | E9: 500+600 | F9: 5740 | G9: 6120 | H9: 7410 | I9: 8700 | J9: 7790 | K9: 9070 | L9: 7430 | M9: 7960 | N9: 8170
F10: =F9+F9*Титул.лист!A1 -> 6314 | G10: =G9+G9*Титул.лист!A1 -> 6732 | H10: =H9+H9*Титул.лист!A1 -> 8151 | I10: =I9+I9*Титул.лист!A1 -> 9570 | J10: =J9+J9*Титул.лист!A1 -> 8569 | K10: =K9+K9*Титул.лист!A1 -> 9977 | L10: =L9+L9*Титул.лист!A1 -> 8173 | M10: =M9+M9*Титул.лист!A1 -> 8756 | N10: =N9+N9*Титул.лист!A1 -> 8987
D11: =A9&", длина: "&C9 -> Ника-1, длина: 1,1м | F11: =F10+F10*Титул.лист!P2 -> 6314 | G11: =G10+G10*Титул.лист!P2 -> 6732 | H11: =H10+H10*Титул.лист!P2 -> 8151 | I11: =I10+I10*Титул.лист!P2 -> 9570 | J11: =J10+J10*Титул.лист!P2 -> 8569 | K11: =K10+K10*Титул.лист!P2 -> 9977 | L11: =L10+L10*Титул.лист!P2 -> 8173 | M11: =M10+M10*Титул.лист!P2 -> 8756 | N11: =N10+N10*Титул.лист!P2 -> 8987
F12: =ROUND(F11,-1) -> 6310 | G12: =ROUND(G11,-1) -> 6730 | H12: 8150 | I12: 9570 | J12: 8570 | K12: 9980 | L12: 8170 | M12: 8760 | N12: 8990
F13: 6890 | G13: 7330 | H13: 8880 | I13: 10410 | J13: 9320 | K13: 10850 | L13: 8920 | M13: 9550 | N13: 9800
F14: =F13+F13*Титул.лист!A1 -> 7579 | G14: =G13+G13*Титул.лист!A1 -> 8063 | H14: =H13+H13*Титул.лист!A1 -> 9768 | I14: =I13+I13*Титул.лист!A1 -> 11451 | J14: =J13+J13*Титул.лист!A1 -> 10252 | K14: =K13+K13*Титул.лист!A1 -> 11935 | L14: =L13+L13*Титул.лист!A1 -> 9812 | M14: =M13+M13*Титул.лист!A1 -> 10505 | N14: =N13+N13*Титул.лист!A1 -> 10780
F15: =F14+F14*Титул.лист!P2 -> 7579 | G15: =G14+G14*Титул.лист!P2 -> 8063 | H15: =H14+H14*Титул.лист!P2 -> 9768 | I15: =I14+I14*Титул.лист!P2 -> 11451 | J15: =J14+J14*Титул.лист!P2 -> 10252 | K15: =K14+K14*Титул.лист!P2 -> 11935 | L15: =L14+L14*Титул.лист!P2 -> 9812 | M15: =M14+M14*Титул.лист!P2 -> 10505 | N15: =N14+N14*Титул.лист!P2 -> 10780
A16: Ника-2 | C16: 1,3м | D16: =A16&", длина: "&C16 -> Ника-2, длина: 1,3м | E16: 500+800 | F16: =ROUND(F15,-1) -> 7580 | G16: =ROUND(G15,-1) -> 8060 | H16: 9770 | I16: 11450 | J16: 10250 | K16: 11940 | L16: 9810 | M16: 10510 | N16: 10780
F17: 8360 | G17: 8880 | H17: 10630 | I17: 12380 | J17: 11140 | K17: 12890 | L17: 10710 | M17: 11450 | N17: 11730
F18: =F17+F17*Титул.лист!A1 -> 9196 | G18: =G17+G17*Титул.лист!A1 -> 9768 | H18: =H17+H17*Титул.лист!A1 -> 11693 | I18: =I17+I17*Титул.лист!A1 -> 13618 | J18: =J17+J17*Титул.лист!A1 -> 12254 | K18: =K17+K17*Титул.лист!A1 -> 14179 | L18: =L17+L17*Титул.лист!A1 -> 11781 | M18: =M17+M17*Титул.лист!A1 -> 12595 | N18: =N17+N17*Титул.лист!A1 -> 12903
F19: =F18+F18*Титул.лист!P2 -> 9196 | G19: =G18+G18*Титул.лист!P2 -> 9768 | H19: =H18+H18*Титул.лист!P2 -> 11693 | I19: =I18+I18*Титул.лист!P2 -> 13618 | J19: =J18+J18*Титул.лист!P2 -> 12254 | K19: =K18+K18*Титул.лист!P2 -> 14179 | L19: =L18+L18*Титул.лист!P2 -> 11781 | M19: =M18+M18*Титул.лист!P2 -> 12595 | N19: =N18+N18*Титул.лист!P2 -> 12903
A20: Ника-3 | C20: 1,5м | D20: =A20&", длина: "&C20 -> Ника-3, длина: 1,5м | E20: 500+600+400 | F20: =ROUND(F19,-1) -> 9200 | G20: =ROUND(G19,-1) -> 9770 | H20: 11690 | I20: 13620 | J20: 12250 | K20: 14180 | L20: 11780 | M20: 12600 | N20: 12900
F21: 9500 | G21: 10090 | H21: 12090 | I21: 14080 | J21: 12670 | K21: 14660 | L21: 12210 | M21: 13040 | N21: 13350
F22: =F21+F21*Титул.лист!A1 -> 10450 | G22: =G21+G21*Титул.лист!A1 -> 11099 | H22: =H21+H21*Титул.лист!A1 -> 13299 | I22: =I21+I21*Титул.лист!A1 -> 15488 | J22: =J21+J21*Титул.лист!A1 -> 13937 | K22: =K21+K21*Титул.лист!A1 -> 16126 | L22: =L21+L21*Титул.лист!A1 -> 13431 | M22: =M21+M21*Титул.лист!A1 -> 14344 | N22: =N21+N21*Титул.лист!A1 -> 14685
F23: =F22+F22*Титул.лист!P2 -> 10450 | G23: =G22+G22*Титул.лист!P2 -> 11099 | H23: =H22+H22*Титул.лист!P2 -> 13299 | I23: =I22+I22*Титул.лист!P2 -> 15488 | J23: =J22+J22*Титул.лист!P2 -> 13937 | K23: =K22+K22*Титул.лист!P2 -> 16126 | L23: =L22+L22*Титул.лист!P2 -> 13431 | M23: =M22+M22*Титул.лист!P2 -> 14344 | N23: =N22+N22*Титул.лист!P2 -> 14685
A24: Ника-4 | C24: 1,7м | D24: =A24&", длина: "&C24 -> Ника-4, длина: 1,7м | E24: 500+800+400 | F24: =ROUND(F23,-1) -> 10450 | G24: =ROUND(G23,-1) -> 11100 | H24: 13300 | I24: 15490 | J24: 13940 | K24: 16130 | L24: 13430 | M24: 14340 | N24: 14690
F25: 5960 | G25: 6390 | H25: 7780 | I25: 9160 | J25: 8200 | K25: 9580 | L25: 7760 | M25: 8350 | N25: 8590
F26: =F25+F25*Титул.лист!A1 -> 6556 | G26: =G25+G25*Титул.лист!A1 -> 7029 | H26: =H25+H25*Титул.лист!A1 -> 8558 | I26: =I25+I25*Титул.лист!A1 -> 10076 | J26: =J25+J25*Титул.лист!A1 -> 9020 | K26: =K25+K25*Титул.лист!A1 -> 10538 | L26: =L25+L25*Титул.лист!A1 -> 8536 | M26: =M25+M25*Титул.лист!A1 -> 9185 | N26: =N25+N25*Титул.лист!A1 -> 9449
F27: =F26+F26*Титул.лист!P2 -> 6556 | G27: =G26+G26*Титул.лист!P2 -> 7029 | H27: =H26+H26*Титул.лист!P2 -> 8558 | I27: =I26+I26*Титул.лист!P2 -> 10076 | J27: =J26+J26*Титул.лист!P2 -> 9020 | K27: =K26+K26*Титул.лист!P2 -> 10538 | L27: =L26+L26*Титул.лист!P2 -> 8536 | M27: =M26+M26*Титул.лист!P2 -> 9185 | N27: =N26+N26*Титул.лист!P2 -> 9449
A28: Ника-5 | C28: 1,2м | D28: =A28&", длина: "&C28 -> Ника-5, длина: 1,2м | E28: 600+600 | F28: =ROUND(F27,-1) -> 6560 | G28: =ROUND(G27,-1) -> 7030 | H28: 8560 | I28: 10080 | J28: 9020 | K28: 10540 | L28: 8540 | M28: 9190 | N28: 9450
F29: 7160 | G29: 7689 | H29: 9295 | I29: 10920 | J29: 9810 | K29: 11440 | L29: 9300 | M29: 9980 | N29: 10260
F30: =F29+F29*Титул.лист!A1 -> 7876 | G30: =G29+G29*Титул.лист!A1 -> 8457.9 | H30: =H29+H29*Титул.лист!A1 -> 10224.5 | I30: =I29+I29*Титул.лист!A1 -> 12012 | J30: =J29+J29*Титул.лист!A1 -> 10791 | K30: =K29+K29*Титул.лист!A1 -> 12584 | L30: =L29+L29*Титул.лист!A1 -> 10230 | M30: =M29+M29*Титул.лист!A1 -> 10978 | N30: =N29+N29*Титул.лист!A1 -> 11286
F31: =F30+F30*Титул.лист!P2 -> 7876 | G31: =G30+G30*Титул.лист!P2 -> 8457.9 | H31: =H30+H30*Титул.лист!P2 -> 10224.5 | I31: =I30+I30*Титул.лист!P2 -> 12012 | J31: =J30+J30*Титул.лист!P2 -> 10791 | K31: =K30+K30*Титул.лист!P2 -> 12584 | L31: =L30+L30*Титул.лист!P2 -> 10230 | M31: =M30+M30*Титул.лист!P2 -> 10978 | N31: =N30+N30*Титул.лист!P2 -> 11286
A32: Ника-6 | C32: 1,4м | D32: =A32&", длина: "&C32 -> Ника-6, длина: 1,4м | E32: 600+800 | F32: =ROUND(F31,-1) -> 7880 | G32: =ROUND(G31,-1) -> 8460 | H32: 10220 | I32: 12010 | J32: 10790 | K32: 12580 | L32: 10230 | M32: 10980 | N32: 11290
F33: 8635 | G33: 9240 | H33: 11040 | I33: 12890 | J33: 11640 | K33: 13490 | L33: 11088 | M33: 11880 | N33: 12190
F34: =F33+F33*Титул.лист!A1 -> 9498.5 | G34: =G33+G33*Титул.лист!A1 -> 10164 | H34: =H33+H33*Титул.лист!A1 -> 12144 | I34: =I33+I33*Титул.лист!A1 -> 14179 | J34: =J33+J33*Титул.лист!A1 -> 12804 | K34: =K33+K33*Титул.лист!A1 -> 14839 | L34: =L33+L33*Титул.лист!A1 -> 12196.8 | M34: =M33+M33*Титул.лист!A1 -> 13068 | N34: =N33+N33*Титул.лист!A1 -> 13409
F35: =F34+F34*Титул.лист!P2 -> 9498.5 | G35: =G34+G34*Титул.лист!P2 -> 10164 | H35: =H34+H34*Титул.лист!P2 -> 12144 | I35: =I34+I34*Титул.лист!P2 -> 14179 | J35: =J34+J34*Титул.лист!P2 -> 12804 | K35: =K34+K34*Титул.лист!P2 -> 14839 | L35: =L34+L34*Титул.лист!P2 -> 12196.8 | M35: =M34+M34*Титул.лист!P2 -> 13068 | N35: =N34+N34*Титул.лист!P2 -> 13409
A36: Ника-7 | C36: 1,6м | D36: =A36&", длина: "&C36 -> Ника-7, длина: 1,6м | E36: 600+600+400 | F36: =ROUND(F35,-1) -> 9500 | G36: =ROUND(G35,-1) -> 10160 | H36: 12140 | I36: 14180 | J36: 12800 | K36: 14840 | L36: 12200 | M36: 13070 | N36: 13410
F37: 9779 | G37: 10450 | H37: 12510 | I37: 14600 | J37: 13170 | K37: 15260 | L37: 12580 | M37: 13460 | N37: 13820
F38: =F37+F37*Титул.лист!A1 -> 10756.9 | G38: =G37+G37*Титул.лист!A1 -> 11495 | H38: =H37+H37*Титул.лист!A1 -> 13761 | I38: =I37+I37*Титул.лист!A1 -> 16060 | J38: =J37+J37*Титул.лист!A1 -> 14487 | K38: =K37+K37*Титул.лист!A1 -> 16786 | L38: =L37+L37*Титул.лист!A1 -> 13838 | M38: =M37+M37*Титул.лист!A1 -> 14806 | N38: =N37+N37*Титул.лист!A1 -> 15202
F39: =F38+F38*Титул.лист!P2 -> 10756.9 | G39: =G38+G38*Титул.лист!P2 -> 11495 | H39: =H38+H38*Титул.лист!P2 -> 13761 | I39: =I38+I38*Титул.лист!P2 -> 16060 | J39: =J38+J38*Титул.лист!P2 -> 14487 | K39: =K38+K38*Титул.лист!P2 -> 16786 | L39: =L38+L38*Титул.лист!P2 -> 13838 | M39: =M38+M38*Титул.лист!P2 -> 14806 | N39: =N38+N38*Титул.лист!P2 -> 15202
A40: Ника-8 | C40: 1,8м | D40: =A40&", длина: "&C40 -> Ника-8, длина: 1,8м | E40: 600+800+400 | F40: =ROUND(F39,-1) -> 10760 | G40: =ROUND(G39,-1) -> 11500 | H40: 13760 | I40: 16060 | J40: 14490 | K40: 16790 | L40: 13840 | M40: 14810 | N40: 15200
F41: 6358 | G41: 6831 | H41: 8490 | I41: 10130 | J41: 8960 | K41: 10600 | L41: 8510 | M41: 9190 | N41: 9480
F42: =F41+F41*Титул.лист!A1 -> 6993.8 | G42: =G41+G41*Титул.лист!A1 -> 7514.1 | H42: =H41+H41*Титул.лист!A1 -> 9339 | I42: =I41+I41*Титул.лист!A1 -> 11143 | J42: =J41+J41*Титул.лист!A1 -> 9856 | K42: =K41+K41*Титул.лист!A1 -> 11660 | L42: =L41+L41*Титул.лист!A1 -> 9361 | M42: =M41+M41*Титул.лист!A1 -> 10109 | N42: =N41+N41*Титул.лист!A1 -> 10428
F43: =F42+F42*Титул.лист!P2 -> 6993.8 | G43: =G42+G42*Титул.лист!P2 -> 7514.1 | H43: =H42+H42*Титул.лист!P2 -> 9339 | I43: =I42+I42*Титул.лист!P2 -> 11143 | J43: =J42+J42*Титул.лист!P2 -> 9856 | K43: =K42+K42*Титул.лист!P2 -> 11660 | L43: =L42+L42*Титул.лист!P2 -> 9361 | M43: =M42+M42*Титул.лист!P2 -> 10109 | N43: =N42+N42*Титул.лист!P2 -> 10428
A44: Ника-9 | C44: 1,4м | D44: =A44&", длина: "&C44 -> Ника-9, длина: 1,4м | E44: 800+600 | F44: =ROUND(F43,-1) -> 6990 | G44: =ROUND(G43,-1) -> 7510 | H44: 9340 | I44: 11140 | J44: 9860 | K44: 11660 | L44: 9360 | M44: 10110 | N44: 10430
F45: 7500 | G45: 8040 | H45: 9950 | I45: 11840 | J45: 10490 | K45: 12380 | L45: 10010 | M45: 10770 | N45: 11110
F46: =F45+F45*Титул.лист!A1 -> 8250 | G46: =G45+G45*Титул.лист!A1 -> 8844 | H46: =H45+H45*Титул.лист!A1 -> 10945 | I46: =I45+I45*Титул.лист!A1 -> 13024 | J46: =J45+J45*Титул.лист!A1 -> 11539 | K46: =K45+K45*Титул.лист!A1 -> 13618 | L46: =L45+L45*Титул.лист!A1 -> 11011 | M46: =M45+M45*Титул.лист!A1 -> 11847 | N46: =N45+N45*Титул.лист!A1 -> 12221
F47: =F46+F46*Титул.лист!P2 -> 8250 | G47: =G46+G46*Титул.лист!P2 -> 8844 | H47: =H46+H46*Титул.лист!P2 -> 10945 | I47: =I46+I46*Титул.лист!P2 -> 13024 | J47: =J46+J46*Титул.лист!P2 -> 11539 | K47: =K46+K46*Титул.лист!P2 -> 13618 | L47: =L46+L46*Титул.лист!P2 -> 11011 | M47: =M46+M46*Титул.лист!P2 -> 11847 | N47: =N46+N46*Титул.лист!P2 -> 12221
A48: Ника-10 | C48: 1,6м | D48: =A48&", длина: "&C48 -> Ника-10, длина: 1,6м | E48: 800+800 | F48: =ROUND(F47,-1) -> 8250 | G48: =ROUND(G47,-1) -> 8840 | H48: 10950 | I48: 13020 | J48: 11540 | K48: 13620 | L48: 11010 | M48: 11850 | N48: 12220
F49: 8900 | G49: 9490 | H49: 11640 | I49: 13730 | J49: 12230 | K49: 14320 | L49: 11740 | M49: 12620 | N49: 12970
F50: =F49+F49*Титул.лист!A1 -> 9790 | G50: =G49+G49*Титул.лист!A1 -> 10439 | H50: =H49+H49*Титул.лист!A1 -> 12804 | I50: =I49+I49*Титул.лист!A1 -> 15103 | J50: =J49+J49*Титул.лист!A1 -> 13453 | K50: =K49+K49*Титул.лист!A1 -> 15752 | L50: =L49+L49*Титул.лист!A1 -> 12914 | M50: =M49+M49*Титул.лист!A1 -> 13882 | N50: =N49+N49*Титул.лист!A1 -> 14267
F51: =F50+F50*Титул.лист!P2 -> 9790 | G51: =G50+G50*Титул.лист!P2 -> 10439 | H51: =H50+H50*Титул.лист!P2 -> 12804 | I51: =I50+I50*Титул.лист!P2 -> 15103 | J51: =J50+J50*Титул.лист!P2 -> 13453 | K51: =K50+K50*Титул.лист!P2 -> 15752 | L51: =L50+L50*Титул.лист!P2 -> 12914 | M51: =M50+M50*Титул.лист!P2 -> 13882 | N51: =N50+N50*Титул.лист!P2 -> 14267
A52: Ника-11 | C52: 1,8м | D52: =A52&", длина: "&C52 -> Ника-11, длина: 1,8м | E52: 800+600+400 | F52: =ROUND(F51,-1) -> 9790 | G52: =ROUND(G51,-1) -> 10440 | H52: 12800 | I52: 15100 | J52: 13450 | K52: 15750 | L52: 12910 | M52: 13880 | N52: 14270
F53: 10120 | G53: 10800 | H53: 13170 | I53: 15510 | J53: 13850 | K53: 16190 | L53: 13300 | M53: 14260 | N53: 14660
F54: =F53+F53*Титул.лист!A1 -> 11132 | G54: =G53+G53*Титул.лист!A1 -> 11880 | H54: =H53+H53*Титул.лист!A1 -> 14487 | I54: =I53+I53*Титул.лист!A1 -> 17061 | J54: =J53+J53*Титул.лист!A1 -> 15235 | K54: =K53+K53*Титул.лист!A1 -> 17809 | L54: =L53+L53*Титул.лист!A1 -> 14630 | M54: =M53+M53*Титул.лист!A1 -> 15686 | N54: =N53+N53*Титул.лист!A1 -> 16126
F55: =F54+F54*Титул.лист!P2 -> 11132 | G55: =G54+G54*Титул.лист!P2 -> 11880 | H55: =H54+H54*Титул.лист!P2 -> 14487 | I55: =I54+I54*Титул.лист!P2 -> 17061 | J55: =J54+J54*Титул.лист!P2 -> 15235 | K55: =K54+K54*Титул.лист!P2 -> 17809 | L55: =L54+L54*Титул.лист!P2 -> 14630 | M55: =M54+M54*Титул.лист!P2 -> 15686 | N55: =N54+N54*Титул.лист!P2 -> 16126
A56: Ника-12 | C56: 2м | D56: =A56&", длина: "&C56 -> Ника-12, длина: 2м | E56: 800+800+400 | F56: =ROUND(F55,-1) -> 11130 | G56: =ROUND(G55,-1) -> 11880 | H56: 14490 | I56: 17060 | J56: 15240 | K56: 17810 | L56: 14630 | M56: 15690 | N56: 16130
F57: 11220 | G57: 12000 | H57: 14510 | I57: 17040 | J57: 15290 | K57: 17820 | L57: 14560 | M57: 15590 | N57: 16040
F58: =F57+F57*Титул.лист!A1 -> 12342 | G58: =G57+G57*Титул.лист!A1 -> 13200 | H58: =H57+H57*Титул.лист!A1 -> 15961 | I58: =I57+I57*Титул.лист!A1 -> 18744 | J58: =J57+J57*Титул.лист!A1 -> 16819 | K58: =K57+K57*Титул.лист!A1 -> 19602 | L58: =L57+L57*Титул.лист!A1 -> 16016 | M58: =M57+M57*Титул.лист!A1 -> 17149 | N58: =N57+N57*Титул.лист!A1 -> 17644
F59: =F58+F58*Титул.лист!P2 -> 12342 | G59: =G58+G58*Титул.лист!P2 -> 13200 | H59: =H58+H58*Титул.лист!P2 -> 15961 | I59: =I58+I58*Титул.лист!P2 -> 18744 | J59: =J58+J58*Титул.лист!P2 -> 16819 | K59: =K58+K58*Титул.лист!P2 -> 19602 | L59: =L58+L58*Титул.лист!P2 -> 16016 | M59: =M58+M58*Титул.лист!P2 -> 17149 | N59: =N58+N58*Титул.лист!P2 -> 17644
A60: Ника-13 | C60: 2м | D60: =A60&", длина: "&C60 -> Ника-13, длина: 2м | E60: 800+800+400 | F60: =ROUND(F59,-1) -> 12340 | G60: =ROUND(G59,-1) -> 13200 | H60: 15960 | I60: 18740 | J60: 16820 | K60: 19600 | L60: 16020 | M60: 17150 | N60: 17640
F61: 11140 | G61: 11920 | H61: 14450 | I61: 17000 | J61: 15240 | K61: 17780 | L61: 14450 | M61: 15490 | N61: 15940
F62: =F61+F61*Титул.лист!A1 -> 12254 | G62: =G61+G61*Титул.лист!A1 -> 13112 | H62: =H61+H61*Титул.лист!A1 -> 15895 | I62: =I61+I61*Титул.лист!A1 -> 18700 | J62: =J61+J61*Титул.лист!A1 -> 16764 | K62: =K61+K61*Титул.лист!A1 -> 19558 | L62: =L61+L61*Титул.лист!A1 -> 15895 | M62: =M61+M61*Титул.лист!A1 -> 17039 | N62: =N61+N61*Титул.лист!A1 -> 17534
F63: =F62+F62*Титул.лист!P2 -> 12254 | G63: =G62+G62*Титул.лист!P2 -> 13112 | H63: =H62+H62*Титул.лист!P2 -> 15895 | I63: =I62+I62*Титул.лист!P2 -> 18700 | J63: =J62+J62*Титул.лист!P2 -> 16764 | K63: =K62+K62*Титул.лист!P2 -> 19558 | L63: =L62+L62*Титул.лист!P2 -> 15895 | M63: =M62+M62*Титул.лист!P2 -> 17039 | N63: =N62+N62*Титул.лист!P2 -> 17534
A64: Ника-14 | C64: 2м | D64: =A64&", длина: "&C64 -> Ника-14, длина: 2м | E64: 800+800+400 | F64: =ROUND(F63,-1) -> 12250 | G64: =ROUND(G63,-1) -> 13110 | H64: 15900 | I64: 18700 | J64: 16760 | K64: 19560 | L64: 15900 | M64: 17040 | N64: 17530
F65: 11980 | G65: 12780 | H65: 15660 | I65: 18480 | J65: 16470 | K65: 19280 | L65: 15810 | M65: 16950 | N65: 17460
F66: =F65+F65*Титул.лист!A1 -> 13178 | G66: =G65+G65*Титул.лист!A1 -> 14058 | H66: =H65+H65*Титул.лист!A1 -> 17226 | I66: =I65+I65*Титул.лист!A1 -> 20328 | J66: =J65+J65*Титул.лист!A1 -> 18117 | K66: =K65+K65*Титул.лист!A1 -> 21208 | L66: =L65+L65*Титул.лист!A1 -> 17391 | M66: =M65+M65*Титул.лист!A1 -> 18645 | N66: =N65+N65*Титул.лист!A1 -> 19206
F67: =F66+F66*Титул.лист!P2 -> 13178 | G67: =G66+G66*Титул.лист!P2 -> 14058 | H67: =H66+H66*Титул.лист!P2 -> 17226 | I67: =I66+I66*Титул.лист!P2 -> 20328 | J67: =J66+J66*Титул.лист!P2 -> 18117 | K67: =K66+K66*Титул.лист!P2 -> 21208 | L67: =L66+L66*Титул.лист!P2 -> 17391 | M67: =M66+M66*Титул.лист!P2 -> 18645 | N67: =N66+N66*Титул.лист!P2 -> 19206
A68: Ника-15 | C68: 2,4м | D68: =A69&", длина: "&C68 -> , длина: 2,4м | E68: 800+800+800 | F68: =ROUND(F67,-1) -> 13180 | G68: =ROUND(G67,-1) -> 14060 | H68: 17230 | I68: 20330 | J68: 18120 | K68: 21210 | L68: 17390 | M68: 18650 | N68: 19210
F69: 12740 | G69: 13560 | H69: 16379 | I69: 19180 | J69: 17200 | K69: 20010 | L69: 16590 | M69: 17740 | N69: 18220
F70: =F69+F69*Титул.лист!A1 -> 14014 | G70: =G69+G69*Титул.лист!A1 -> 14916 | H70: =H69+H69*Титул.лист!A1 -> 18016.9 | I70: =I69+I69*Титул.лист!A1 -> 21098 | J70: =J69+J69*Титул.лист!A1 -> 18920 | K70: =K69+K69*Титул.лист!A1 -> 22011 | L70: =L69+L69*Титул.лист!A1 -> 18249 | M70: =M69+M69*Титул.лист!A1 -> 19514 | N70: =N69+N69*Титул.лист!A1 -> 20042
F71: =F70+F70*Титул.лист!P2 -> 14014 | G71: =G70+G70*Титул.лист!P2 -> 14916 | H71: =H70+H70*Титул.лист!P2 -> 18016.9 | I71: =I70+I70*Титул.лист!P2 -> 21098 | J71: =J70+J70*Титул.лист!P2 -> 18920 | K71: =K70+K70*Титул.лист!P2 -> 22011 | L71: =L70+L70*Титул.лист!P2 -> 18249 | M71: =M70+M70*Титул.лист!P2 -> 19514 | N71: =N70+N70*Титул.лист!P2 -> 20042
A72: Ника-16 | C72: 2,4м | D72: =A72&", длина: "&C72 -> Ника-16, длина: 2,4м | E72: 800+800+400+400 | F72: =ROUND(F71,-1) -> 14010 | G72: =ROUND(G71,-1) -> 14920 | H72: 18020 | I72: 21100 | J72: 18920 | K72: 22010 | L72: 18250 | M72: 19510 | N72: 20040
F73: 13840 | G73: 14760 | H73: 17720 | I73: 20710 | J73: 18650 | K73: 21640 | L73: 17850 | M73: 19070 | N73: 19590
F74: =F73+F73*Титул.лист!A1 -> 15224 | G74: =G73+G73*Титул.лист!A1 -> 16236 | H74: =H73+H73*Титул.лист!A1 -> 19492 | I74: =I73+I73*Титул.лист!A1 -> 22781 | J74: =J73+J73*Титул.лист!A1 -> 20515 | K74: =K73+K73*Титул.лист!A1 -> 23804 | L74: =L73+L73*Титул.лист!A1 -> 19635 | M74: =M73+M73*Титул.лист!A1 -> 20977 | N74: =N73+N73*Титул.лист!A1 -> 21549
F75: =F74+F74*Титул.лист!P2 -> 15224 | G75: =G74+G74*Титул.лист!P2 -> 16236 | H75: =H74+H74*Титул.лист!P2 -> 19492 | I75: =I74+I74*Титул.лист!P2 -> 22781 | J75: =J74+J74*Титул.лист!P2 -> 20515 | K75: =K74+K74*Титул.лист!P2 -> 23804 | L75: =L74+L74*Титул.лист!P2 -> 19635 | M75: =M74+M74*Титул.лист!P2 -> 20977 | N75: =N74+N74*Титул.лист!P2 -> 21549
A76: Ника-17 | C76: 2,4м | D76: =A76&", длина: "&C76 -> Ника-17, длина: 2,4м | E76: 800+800+400+400 | F76: =ROUND(F75,-1) -> 15220 | G76: =ROUND(G75,-1) -> 16240 | H76: 19490 | I76: 22780 | J76: 20520 | K76: 23800 | L76: 19640 | M76: 20980 | N76: 21550
F77: 13760 | G77: 14690 | H77: 17670 | I77: 20670 | J77: 18590 | K77: 21590 | L77: 17740 | M77: 18975 | N77: 19490
F78: =F77+F77*Титул.лист!A1 -> 15136 | G78: =G77+G77*Титул.лист!A1 -> 16159 | H78: =H77+H77*Титул.лист!A1 -> 19437 | I78: =I77+I77*Титул.лист!A1 -> 22737 | J78: =J77+J77*Титул.лист!A1 -> 20449 | K78: =K77+K77*Титул.лист!A1 -> 23749 | L78: =L77+L77*Титул.лист!A1 -> 19514 | M78: =M77+M77*Титул.лист!A1 -> 20872.5 | N78: =N77+N77*Титул.лист!A1 -> 21439
F79: =F78+F78*Титул.лист!P2 -> 15136 | G79: =G78+G78*Титул.лист!P2 -> 16159 | H79: =H78+H78*Титул.лист!P2 -> 19437 | I79: =I78+I78*Титул.лист!P2 -> 22737 | J79: =J78+J78*Титул.лист!P2 -> 20449 | K79: =K78+K78*Титул.лист!P2 -> 23749 | L79: =L78+L78*Титул.лист!P2 -> 19514 | M79: =M78+M78*Титул.лист!P2 -> 20872.5 | N79: =N78+N78*Титул.лист!P2 -> 21439
A80: Ника-18 | C80: 2,4м | D80: =A80&", длина: "&C80 -> Ника-18, длина: 2,4м | E80: 800+800+400+400 | F80: =ROUND(F79,-1) -> 15140 | G80: =ROUND(G79,-1) -> 16160 | H80: 19440 | I80: 22740 | J80: 20450 | K80: 23750 | L80: 19510 | M80: 20870 | N80: 21440
F81: 9170 | G81: 9830 | H81: 11910 | I81: 13980 | J81: 12560 | K81: 14630 | L81: 11920 | M81: 12830 | N81: 13180
F82: =F81+F81*Титул.лист!A1 -> 10087 | G82: =G81+G81*Титул.лист!A1 -> 10813 | H82: =H81+H81*Титул.лист!A1 -> 13101 | I82: =I81+I81*Титул.лист!A1 -> 15378 | J82: =J81+J81*Титул.лист!A1 -> 13816 | K82: =K81+K81*Титул.лист!A1 -> 16093 | L82: =L81+L81*Титул.лист!A1 -> 13112 | M82: =M81+M81*Титул.лист!A1 -> 14113 | N82: =N81+N81*Титул.лист!A1 -> 14498
F83: =F82+F82*Титул.лист!P2 -> 10087 | G83: =G82+G82*Титул.лист!P2 -> 10813 | H83: =H82+H82*Титул.лист!P2 -> 13101 | I83: =I82+I82*Титул.лист!P2 -> 15378 | J83: =J82+J82*Титул.лист!P2 -> 13816 | K83: =K82+K82*Титул.лист!P2 -> 16093 | L83: =L82+L82*Титул.лист!P2 -> 13112 | M83: =M82+M82*Титул.лист!P2 -> 14113 | N83: =N82+N82*Титул.лист!P2 -> 14498
A84: Ника-19 | C84: 1,8м | D84: =A84&", длина: "&C84 -> Ника-19, длина: 1,8м | E84: 600+600+600 | F84: =ROUND(F83,-1) -> 10090 | G84: =ROUND(G83,-1) -> 10810 | H84: 13100 | I84: 15380 | J84: 13820 | K84: 16090 | L84: 13110 | M84: 14110 | N84: 14500
F85: 10160 | G85: 10810 | H85: 13210 | I85: 15550 | J85: 13860 | K85: 16203 | L85: 13330 | M85: 14290 | N85: 14700
F86: =F85+F85*Титул.лист!A1 -> 11176 | G86: =G85+G85*Титул.лист!A1 -> 11891 | H86: =H85+H85*Титул.лист!A1 -> 14531 | I86: =I85+I85*Титул.лист!A1 -> 17105 | J86: =J85+J85*Титул.лист!A1 -> 15246 | K86: =K85+K85*Титул.лист!A1 -> 17823.3 | L86: =L85+L85*Титул.лист!A1 -> 14663 | M86: =M85+M85*Титул.лист!A1 -> 15719 | N86: =N85+N85*Титул.лист!A1 -> 16170
F87: =F86+F86*Титул.лист!P2 -> 11176 | G87: =G86+G86*Титул.лист!P2 -> 11891 | H87: =H86+H86*Титул.лист!P2 -> 14531 | I87: =I86+I86*Титул.лист!P2 -> 17105 | J87: =J86+J86*Титул.лист!P2 -> 15246 | K87: =K86+K86*Титул.лист!P2 -> 17823.3 | L87: =L86+L86*Титул.лист!P2 -> 14663 | M87: =M86+M86*Титул.лист!P2 -> 15719 | N87: =N86+N86*Титул.лист!P2 -> 16170
A88: Ника-20 | C88: 2м | D88: =A88&", длина: "&C88 -> Ника-20, длина: 2м | E88: 800+800+400 | F88: =ROUND(F87,-1) -> 11180 | G88: =ROUND(G87,-1) -> 11890 | H88: 14530 | I88: 17110 | J88: 15250 | K88: 17820 | L88: 14660 | M88: 15720 | N88: 16170
F89: 13240 | G89: 13730 | H89: 15320 | I89: 16930 | J89: 15810 | K89: 17410 | L89: 15400 | M89: 16080 | N89: 16350
F90: =F89+F89*Титул.лист!A1 -> 14564 | G90: =G89+G89*Титул.лист!A1 -> 15103 | H90: =H89+H89*Титул.лист!A1 -> 16852 | I90: =I89+I89*Титул.лист!A1 -> 18623 | J90: =J89+J89*Титул.лист!A1 -> 17391 | K90: =K89+K89*Титул.лист!A1 -> 19151 | L90: =L89+L89*Титул.лист!A1 -> 16940 | M90: =M89+M89*Титул.лист!A1 -> 17688 | N90: =N89+N89*Титул.лист!A1 -> 17985
F91: =F90+F90*Титул.лист!P2 -> 14564 | G91: =G90+G90*Титул.лист!P2 -> 15103 | H91: =H90+H90*Титул.лист!P2 -> 16852 | I91: =I90+I90*Титул.лист!P2 -> 18623 | J91: =J90+J90*Титул.лист!P2 -> 17391 | K91: =K90+K90*Титул.лист!P2 -> 19151 | L91: =L90+L90*Титул.лист!P2 -> 16940 | M91: =M90+M90*Титул.лист!P2 -> 17688 | N91: =N90+N90*Титул.лист!P2 -> 17985
A92: Ника-21 | C92: 1,5х1,4 | D92: =A92&", длина: "&C92 -> Ника-21, длина: 1,5х1,4 | E92: 300+400+800х800+600 (300+400+200+ 600х600+200+600) | F92: =ROUND(F91,-1) -> 14560 | G92: =ROUND(G91,-1) -> 15100 | H92: 16850 | I92: 18620 | J92: 17390 | K92: 19150 | L92: 16940 | M92: 17690 | N92: 17990
F93: 11670 | G93: 12150 | H93: 13750 | I93: 15360 | J93: 14230 | K93: 15840 | L93: 13830 | M93: 14509 | N93: 14770
F94: =F93+F93*Титул.лист!A1 -> 12837 | G94: =G93+G93*Титул.лист!A1 -> 13365 | H94: =H93+H93*Титул.лист!A1 -> 15125 | I94: =I93+I93*Титул.лист!A1 -> 16896 | J94: =J93+J93*Титул.лист!A1 -> 15653 | K94: =K93+K93*Титул.лист!A1 -> 17424 | L94: =L93+L93*Титул.лист!A1 -> 15213 | M94: =M93+M93*Титул.лист!A1 -> 15959.9 | N94: =N93+N93*Титул.лист!A1 -> 16247
F95: =F94+F94*Титул.лист!P2 -> 12837 | G95: =G94+G94*Титул.лист!P2 -> 13365 | H95: =H94+H94*Титул.лист!P2 -> 15125 | I95: =I94+I94*Титул.лист!P2 -> 16896 | J95: =J94+J94*Титул.лист!P2 -> 15653 | K95: =K94+K94*Титул.лист!P2 -> 17424 | L95: =L94+L94*Титул.лист!P2 -> 15213 | M95: =M94+M94*Титул.лист!P2 -> 15959.9 | N95: =N94+N94*Титул.лист!P2 -> 16247
A96: Ника-21/1 | C96: 1,2х1,4 | D96: =A96&", длина: "&C96 -> Ника-21/1, длина: 1,2х1,4 | E96: 400+800х800+600 (400+200+600х600 +200+600) | F96: =ROUND(F95,-1) -> 12840 | G96: =ROUND(G95,-1) -> 13370 | H96: 15130 | I96: 16900 | J96: 15650 | K96: 17420 | L96: 15210 | M96: 15960 | N96: 16250
F97: 13680 | G97: 14290 | H97: 16140 | I97: 18020 | J97: 16740 | K97: 18620 | L97: 16060 | M97: 16863 | N97: 17180
F98: =F97+F97*Титул.лист!A1 -> 15048 | G98: =G97+G97*Титул.лист!A1 -> 15719 | H98: =H97+H97*Титул.лист!A1 -> 17754 | I98: =I97+I97*Титул.лист!A1 -> 19822 | J98: =J97+J97*Титул.лист!A1 -> 18414 | K98: =K97+K97*Титул.лист!A1 -> 20482 | L98: =L97+L97*Титул.лист!A1 -> 17666 | M98: =M97+M97*Титул.лист!A1 -> 18549.3 | N98: =N97+N97*Титул.лист!A1 -> 18898
F99: =F98+F98*Титул.лист!P2 -> 15048 | G99: =G98+G98*Титул.лист!P2 -> 15719 | H99: =H98+H98*Титул.лист!P2 -> 17754 | I99: =I98+I98*Титул.лист!P2 -> 19822 | J99: =J98+J98*Титул.лист!P2 -> 18414 | K99: =K98+K98*Титул.лист!P2 -> 20482 | L99: =L98+L98*Титул.лист!P2 -> 17666 | M99: =M98+M98*Титул.лист!P2 -> 18549.3 | N99: =N98+N98*Титул.лист!P2 -> 18898
A100: Ника-22 | C100: 1,5х1,4 | D100: =A100&", длина: "&C100 -> Ника-22, длина: 1,5х1,4 | E100: 300+400+800х800+600 (300+400+300+ 500х500+300+600) | F100: =ROUND(F99,-1) -> 15050 | G100: =ROUND(G99,-1) -> 15720 | H100: 17750 | I100: 19820 | J100: 18410 | K100: 20480 | L100: 17670 | M100: 18550 | N100: 18900
F101: 12110 | G101: 12720 | H101: 14560 | I101: 16440 | J101: 15170 | K101: 17050 | L101: 14490 | M101: 15290 | N101: 15610
F102: =F101+F101*Титул.лист!A1 -> 13321 | G102: =G101+G101*Титул.лист!A1 -> 13992 | H102: =H101+H101*Титул.лист!A1 -> 16016 | I102: =I101+I101*Титул.лист!A1 -> 18084 | J102: =J101+J101*Титул.лист!A1 -> 16687 | K102: =K101+K101*Титул.лист!A1 -> 18755 | L102: =L101+L101*Титул.лист!A1 -> 15939 | M102: =M101+M101*Титул.лист!A1 -> 16819 | N102: =N101+N101*Титул.лист!A1 -> 17171
F103: =F102+F102*Титул.лист!P2 -> 13321 | G103: =G102+G102*Титул.лист!P2 -> 13992 | H103: =H102+H102*Титул.лист!P2 -> 16016 | I103: =I102+I102*Титул.лист!P2 -> 18084 | J103: =J102+J102*Титул.лист!P2 -> 16687 | K103: =K102+K102*Титул.лист!P2 -> 18755 | L103: =L102+L102*Титул.лист!P2 -> 15939 | M103: =M102+M102*Титул.лист!P2 -> 16819 | N103: =N102+N102*Титул.лист!P2 -> 17171
A104: Ника-22/1 | C104: 1,2х1,4 | D104: =A104&", длина: "&C104 -> Ника-22/1, длина: 1,2х1,4 | E104: 400+800х800+600 (400+300+500х500+ 300+600) | F104: =ROUND(F103,-1) -> 13320 | G104: =ROUND(G103,-1) -> 13990 | H104: 16020 | I104: 18080 | J104: 16690 | K104: 18760 | L104: 15940 | M104: 16820 | N104: 17170
F105: 13590 | G105: 14480 | H105: 17540 | I105: 20580 | J105: 18440 | K105: 21470 | L105: 17720 | M105: 18975 | N105: 19500
F106: =F105+F105*Титул.лист!A1 -> 14949 | G106: =G105+G105*Титул.лист!A1 -> 15928 | H106: =H105+H105*Титул.лист!A1 -> 19294 | I106: =I105+I105*Титул.лист!A1 -> 22638 | J106: =J105+J105*Титул.лист!A1 -> 20284 | K106: =K105+K105*Титул.лист!A1 -> 23617 | L106: =L105+L105*Титул.лист!A1 -> 19492 | M106: =M105+M105*Титул.лист!A1 -> 20872.5 | N106: =N105+N105*Титул.лист!A1 -> 21450
F107: =F106+F106*Титул.лист!P2 -> 14949 | G107: =G106+G106*Титул.лист!P2 -> 15928 | H107: =H106+H106*Титул.лист!P2 -> 19294 | I107: =I106+I106*Титул.лист!P2 -> 22638 | J107: =J106+J106*Титул.лист!P2 -> 20284 | K107: =K106+K106*Титул.лист!P2 -> 23617 | L107: =L106+L106*Титул.лист!P2 -> 19492 | M107: =M106+M106*Титул.лист!P2 -> 20872.5 | N107: =N106+N106*Титул.лист!P2 -> 21450
A108: Ника-26 | C108: 2,6м | D108: =A108&", длина: "&C108 -> Ника-26, длина: 2,6м | E108: 800+800+600+400 | F108: =ROUND(F107,-1) -> 14950 | G108: =ROUND(G107,-1) -> 15930 | H108: 19290 | I108: 22640 | J108: 20280 | K108: 23620 | L108: 19490 | M108: 20870 | N108: 21450
F109: Кухонные гарнитуры СИБЕРИЯ
A110: Кухня | C110: Длина | E110: Размеры позиций | F110: ЛДСП ПВХ 0,45мм | G110: ЛДСП ПВХ 2мм | H110: Пластик 1к ПВХ 0,45мм | I110: Пластик 2к ПВХ 0,45мм | J110: Пластик 1к ПВХ 2мм | K110: Пластик 2к ПВХ 2мм | L110: МДФ матовый | M110: МДФ глянец | N110: МДФ металлик
F111: 7280 | G111: 7630 | H111: 8950 | I111: 10220 | J111: 9310 | K111: 10770 | L111: 8910 | M111: 9450 | N111: 9660
F112: =F111+F111*Титул.лист!A1 -> 8008 | G112: =G111+G111*Титул.лист!A1 -> 8393 | H112: =H111+H111*Титул.лист!A1 -> 9845 | I112: =I111+I111*Титул.лист!A1 -> 11242 | J112: =J111+J111*Титул.лист!A1 -> 10241 | K112: =K111+K111*Титул.лист!A1 -> 11847 | L112: =L111+L111*Титул.лист!A1 -> 9801 | M112: =M111+M111*Титул.лист!A1 -> 10395 | N112: =N111+N111*Титул.лист!A1 -> 10626
F113: =F112+F112*Титул.лист!P2 -> 8008 | G113: =G112+G112*Титул.лист!P2 -> 8393 | H113: =H112+H112*Титул.лист!P2 -> 9845 | I113: =I112+I112*Титул.лист!P2 -> 11242 | J113: =J112+J112*Титул.лист!P2 -> 10241 | K113: =K112+K112*Титул.лист!P2 -> 11847 | L113: =L112+L112*Титул.лист!P2 -> 9801 | M113: =M112+M112*Титул.лист!P2 -> 10395 | N113: =N112+N112*Титул.лист!P2 -> 10626
A114: Сиберия-101 | C114: 1,1м | D114: =A114&", длина: "&C114 -> Сиберия-101, длина: 1,1м | E114: 500+400+200 | F114: =ROUND(F113,-1) -> 8010 | G114: =ROUND(G113,-1) -> 8390 | H114: 9850 | I114: 11240 | J114: 10240 | K114: 11850 | L114: 9800 | M114: 10400 | N114: 10630
F115: 7760 | G115: 8240 | H115: 9600 | I115: 11000 | J115: 10090 | K115: 11480 | L115: 9610 | M115: 10210 | N115: 10440
F116: =F115+F115*Титул.лист!A1 -> 8536 | G116: =G115+G115*Титул.лист!A1 -> 9064 | H116: =H115+H115*Титул.лист!A1 -> 10560 | I116: =I115+I115*Титул.лист!A1 -> 12100 | J116: =J115+J115*Титул.лист!A1 -> 11099 | K116: =K115+K115*Титул.лист!A1 -> 12628 | L116: =L115+L115*Титул.лист!A1 -> 10571 | M116: =M115+M115*Титул.лист!A1 -> 11231 | N116: =N115+N115*Титул.лист!A1 -> 11484
F117: =F116+F116*Титул.лист!P2 -> 8536 | G117: =G116+G116*Титул.лист!P2 -> 9064 | H117: =H116+H116*Титул.лист!P2 -> 10560 | I117: =I116+I116*Титул.лист!P2 -> 12100 | J117: =J116+J116*Титул.лист!P2 -> 11099 | K117: =K116+K116*Титул.лист!P2 -> 12628 | L117: =L116+L116*Титул.лист!P2 -> 10571 | M117: =M116+M116*Титул.лист!P2 -> 11231 | N117: =N116+N116*Титул.лист!P2 -> 11484
A118: Сиберия-102 | C118: 1,2м | D118: =A118&", длина: "&C118 -> Сиберия-102, длина: 1,2м | E118: 500+500+200 | F118: =ROUND(F117,-1) -> 8540 | G118: =ROUND(G117,-1) -> 9060 | H118: 10560 | I118: 12100 | J118: 11100 | K118: 12630 | L118: 10570 | M118: 11230 | N118: 11480
F119: 8100 | G119: 8590 | H119: 10080 | I119: 11610 | J119: 10570 | K119: 12100 | L119: 10100 | M119: 10740 | N119: 10990
F120: =F119+F119*Титул.лист!A1 -> 8910 | G120: =G119+G119*Титул.лист!A1 -> 9449 | H120: =H119+H119*Титул.лист!A1 -> 11088 | I120: =I119+I119*Титул.лист!A1 -> 12771 | J120: =J119+J119*Титул.лист!A1 -> 11627 | K120: =K119+K119*Титул.лист!A1 -> 13310 | L120: =L119+L119*Титул.лист!A1 -> 11110 | M120: =M119+M119*Титул.лист!A1 -> 11814 | N120: =N119+N119*Титул.лист!A1 -> 12089
F121: =F120+F120*Титул.лист!P2 -> 8910 | G121: =G120+G120*Титул.лист!P2 -> 9449 | H121: =H120+H120*Титул.лист!P2 -> 11088 | I121: =I120+I120*Титул.лист!P2 -> 12771 | J121: =J120+J120*Титул.лист!P2 -> 11627 | K121: =K120+K120*Титул.лист!P2 -> 13310 | L121: =L120+L120*Титул.лист!P2 -> 11110 | M121: =M120+M120*Титул.лист!P2 -> 11814 | N121: =N120+N120*Титул.лист!P2 -> 12089
A122: Сиберия-103 | C122: 1,3м | D122: =A122&", длина: "&C122 -> Сиберия-103, длина: 1,3м | E122: 500+500+300 | F122: =ROUND(F121,-1) -> 8910 | G122: =ROUND(G121,-1) -> 9450 | H122: 11090 | I122: 12770 | J122: 11630 | K122: 13310 | L122: 11110 | M122: 11810 | N122: 12090
F123: 8210 | G123: 8720 | H123: 10200 | I123: 11700 | J123: 10710 | K123: 12220 | L123: 10210 | M123: 10860 | N123: 11110
F124: =F123+F123*Титул.лист!A1 -> 9031 | G124: =G123+G123*Титул.лист!A1 -> 9592 | H124: =H123+H123*Титул.лист!A1 -> 11220 | I124: =I123+I123*Титул.лист!A1 -> 12870 | J124: =J123+J123*Титул.лист!A1 -> 11781 | K124: =K123+K123*Титул.лист!A1 -> 13442 | L124: =L123+L123*Титул.лист!A1 -> 11231 | M124: =M123+M123*Титул.лист!A1 -> 11946 | N124: =N123+N123*Титул.лист!A1 -> 12221
F125: =F124+F124*Титул.лист!P2 -> 9031 | G125: =G124+G124*Титул.лист!P2 -> 9592 | H125: =H124+H124*Титул.лист!P2 -> 11220 | I125: =I124+I124*Титул.лист!P2 -> 12870 | J125: =J124+J124*Титул.лист!P2 -> 11781 | K125: =K124+K124*Титул.лист!P2 -> 13442 | L125: =L124+L124*Титул.лист!P2 -> 11231 | M125: =M124+M124*Титул.лист!P2 -> 11946 | N125: =N124+N124*Титул.лист!P2 -> 12221
A126: Сиберия-104 | C126: 1,3м | D126: =A126&", длина: "&C126 -> Сиберия-104, длина: 1,3м | E126: 500+600+200 | F126: =ROUND(F125,-1) -> 9030 | G126: =ROUND(G125,-1) -> 9590 | H126: 11220 | I126: 12870 | J126: 11780 | K126: 13440 | L126: 11230 | M126: 11950 | N126: 12220
F127: 8550 | G127: 9080 | H127: 10670 | I127: 12310 | J127: 11200 | K127: 12840 | L127: 10690 | M127: 11390 | N127: 11660
F128: =F127+F127*Титул.лист!A1 -> 9405 | G128: =G127+G127*Титул.лист!A1 -> 9988 | H128: =H127+H127*Титул.лист!A1 -> 11737 | I128: =I127+I127*Титул.лист!A1 -> 13541 | J128: =J127+J127*Титул.лист!A1 -> 12320 | K128: =K127+K127*Титул.лист!A1 -> 14124 | L128: =L127+L127*Титул.лист!A1 -> 11759 | M128: =M127+M127*Титул.лист!A1 -> 12529 | N128: =N127+N127*Титул.лист!A1 -> 12826
F129: =F128+F128*Титул.лист!P2 -> 9405 | G129: =G128+G128*Титул.лист!P2 -> 9988 | H129: =H128+H128*Титул.лист!P2 -> 11737 | I129: =I128+I128*Титул.лист!P2 -> 13541 | J129: =J128+J128*Титул.лист!P2 -> 12320 | K129: =K128+K128*Титул.лист!P2 -> 14124 | L129: =L128+L128*Титул.лист!P2 -> 11759 | M129: =M128+M128*Титул.лист!P2 -> 12529 | N129: =N128+N128*Титул.лист!P2 -> 12826
A130: Сиберия-105 | C130: 1,4м | D130: =A130&", длина: "&C130 -> Сиберия-105, длина: 1,4м | E130: 500+600+300 | F130: =ROUND(F129,-1) -> 9410 | G130: =ROUND(G129,-1) -> 9990 | H130: 11740 | I130: 13540 | J130: 12320 | K130: 14120 | L130: 11760 | M130: 12530 | N130: 12830
F131: 8840 | G131: 9410 | H131: 10980 | I131: 12610 | J131: 11540 | K131: 13170 | L131: 11010 | M131: 11690 | N131: 11980
F132: =F131+F131*Титул.лист!A1 -> 9724 | G132: =G131+G131*Титул.лист!A1 -> 10351 | H132: =H131+H131*Титул.лист!A1 -> 12078 | I132: =I131+I131*Титул.лист!A1 -> 13871 | J132: =J131+J131*Титул.лист!A1 -> 12694 | K132: =K131+K131*Титул.лист!A1 -> 14487 | L132: =L131+L131*Титул.лист!A1 -> 12111 | M132: =M131+M131*Титул.лист!A1 -> 12859 | N132: =N131+N131*Титул.лист!A1 -> 13178
F133: =F132+F132*Титул.лист!P2 -> 9724 | G133: =G132+G132*Титул.лист!P2 -> 10351 | H133: =H132+H132*Титул.лист!P2 -> 12078 | I133: =I132+I132*Титул.лист!P2 -> 13871 | J133: =J132+J132*Титул.лист!P2 -> 12694 | K133: =K132+K132*Титул.лист!P2 -> 14487 | L133: =L132+L132*Титул.лист!P2 -> 12111 | M133: =M132+M132*Титул.лист!P2 -> 12859 | N133: =N132+N132*Титул.лист!P2 -> 13178
A134: Сиберия-106 | C134: 1,4м | D134: =A134&", длина: "&C134 -> Сиберия-106, длина: 1,4м | E134: 500+700+200 | F134: =ROUND(F133,-1) -> 9720 | G134: =ROUND(G133,-1) -> 10350 | H134: 12080 | I134: 13870 | J134: 12690 | K134: 14490 | L134: 12110 | M134: 12860 | N134: 13180
F135: 9190 | G135: 9760 | H135: 11450 | I135: 13210 | J135: 12020 | K135: 13780 | L135: 11500 | M135: 12220 | N135: 12530
F136: =F135+F135*Титул.лист!A1 -> 10109 | G136: =G135+G135*Титул.лист!A1 -> 10736 | H136: =H135+H135*Титул.лист!A1 -> 12595 | I136: =I135+I135*Титул.лист!A1 -> 14531 | J136: =J135+J135*Титул.лист!A1 -> 13222 | K136: =K135+K135*Титул.лист!A1 -> 15158 | L136: =L135+L135*Титул.лист!A1 -> 12650 | M136: =M135+M135*Титул.лист!A1 -> 13442 | N136: =N135+N135*Титул.лист!A1 -> 13783
F137: =F136+F136*Титул.лист!P2 -> 10109 | G137: =G136+G136*Титул.лист!P2 -> 10736 | H137: =H136+H136*Титул.лист!P2 -> 12595 | I137: =I136+I136*Титул.лист!P2 -> 14531 | J137: =J136+J136*Титул.лист!P2 -> 13222 | K137: =K136+K136*Титул.лист!P2 -> 15158 | L137: =L136+L136*Титул.лист!P2 -> 12650 | M137: =M136+M136*Титул.лист!P2 -> 13442 | N137: =N136+N136*Титул.лист!P2 -> 13783
A138: Сиберия-107 | C138: 1,5м | D138: =A138&", длина: "&C138 -> Сиберия-107, длина: 1,5м | E138: 500+700+300 | F138: =ROUND(F137,-1) -> 10110 | G138: =ROUND(G137,-1) -> 10740 | H138: 12600 | I138: 14530 | J138: 13220 | K138: 15160 | L138: 12650 | M138: 13440 | N138: 13780
F139: 9300 | G139: 9880 | H139: 11610 | I139: 13350 | J139: 12190 | K139: 13940 | L139: 11610 | M139: 12340 | N139: 12640
F140: =F139+F139*Титул.лист!A1 -> 10230 | G140: =G139+G139*Титул.лист!A1 -> 10868 | H140: =H139+H139*Титул.лист!A1 -> 12771 | I140: =I139+I139*Титул.лист!A1 -> 14685 | J140: =J139+J139*Титул.лист!A1 -> 13409 | K140: =K139+K139*Титул.лист!A1 -> 15334 | L140: =L139+L139*Титул.лист!A1 -> 12771 | M140: =M139+M139*Титул.лист!A1 -> 13574 | N140: =N139+N139*Титул.лист!A1 -> 13904
F141: =F140+F140*Титул.лист!P2 -> 10230 | G141: =G140+G140*Титул.лист!P2 -> 10868 | H141: =H140+H140*Титул.лист!P2 -> 12771 | I141: =I140+I140*Титул.лист!P2 -> 14685 | J141: =J140+J140*Титул.лист!P2 -> 13409 | K141: =K140+K140*Титул.лист!P2 -> 15334 | L141: =L140+L140*Титул.лист!P2 -> 12771 | M141: =M140+M140*Титул.лист!P2 -> 13574 | N141: =N140+N140*Титул.лист!P2 -> 13904
A142: Сиберия-108 | C142: 1,5м | D142: =A142&", длина: "&C142 -> Сиберия-108, длина: 1,5м | E142: 500+800+200 | F142: =ROUND(F141,-1) -> 10230 | G142: =ROUND(G141,-1) -> 10870 | H142: 12770 | I142: 14690 | J142: 13410 | K142: 15330 | L142: 12770 | M142: 13570 | N142: 13900
F143: 9640 | G143: 10230 | H143: 12080 | I143: 13960 | J143: 12670 | K143: 14550 | L143: 12090 | M143: 12870 | N143: 13190
F144: =F143+F143*Титул.лист!A1 -> 10604 | G144: =G143+G143*Титул.лист!A1 -> 11253 | H144: =H143+H143*Титул.лист!A1 -> 13288 | I144: =I143+I143*Титул.лист!A1 -> 15356 | J144: =J143+J143*Титул.лист!A1 -> 13937 | K144: =K143+K143*Титул.лист!A1 -> 16005 | L144: =L143+L143*Титул.лист!A1 -> 13299 | M144: =M143+M143*Титул.лист!A1 -> 14157 | N144: =N143+N143*Титул.лист!A1 -> 14509
F145: =F144+F144*Титул.лист!P2 -> 10604 | G145: =G144+G144*Титул.лист!P2 -> 11253 | H145: =H144+H144*Титул.лист!P2 -> 13288 | I145: =I144+I144*Титул.лист!P2 -> 15356 | J145: =J144+J144*Титул.лист!P2 -> 13937 | K145: =K144+K144*Титул.лист!P2 -> 16005 | L145: =L144+L144*Титул.лист!P2 -> 13299 | M145: =M144+M144*Титул.лист!P2 -> 14157 | N145: =N144+N144*Титул.лист!P2 -> 14509
A146: Сиберия-109 | C146: 1,6м | D146: =A146&", длина: "&C146 -> Сиберия-109, длина: 1,6м | E146: 500+800+300 | F146: =ROUND(F145,-1) -> 10600 | G146: =ROUND(G145,-1) -> 11250 | H146: 13290 | I146: 15360 | J146: 13940 | K146: 16010 | L146: 13300 | M146: 14160 | N146: 14510
F147: 9970 | G147: 10580 | H147: 12540 | I147: 14530 | J147: 13160 | K147: 15150 | L147: 12620 | M147: 13440 | N147: 13760
F148: =F147+F147*Титул.лист!A1 -> 10967 | G148: =G147+G147*Титул.лист!A1 -> 11638 | H148: =H147+H147*Титул.лист!A1 -> 13794 | I148: =I147+I147*Титул.лист!A1 -> 15983 | J148: =J147+J147*Титул.лист!A1 -> 14476 | K148: =K147+K147*Титул.лист!A1 -> 16665 | L148: =L147+L147*Титул.лист!A1 -> 13882 | M148: =M147+M147*Титул.лист!A1 -> 14784 | N148: =N147+N147*Титул.лист!A1 -> 15136
F149: =F148+F148*Титул.лист!P2 -> 10967 | G149: =G148+G148*Титул.лист!P2 -> 11638 | H149: =H148+H148*Титул.лист!P2 -> 13794 | I149: =I148+I148*Титул.лист!P2 -> 15983 | J149: =J148+J148*Титул.лист!P2 -> 14476 | K149: =K148+K148*Титул.лист!P2 -> 16665 | L149: =L148+L148*Титул.лист!P2 -> 13882 | M149: =M148+M148*Титул.лист!P2 -> 14784 | N149: =N148+N148*Титул.лист!P2 -> 15136
A150: Сиберия-110 | C150: 1,7м | D150: =A150&", длина: "&C150 -> Сиберия-110, длина: 1,7м | E150: 500+800+400 | F150: =ROUND(F149,-1) -> 10970 | G150: =ROUND(G149,-1) -> 11640 | H150: 13790 | I150: 15980 | J150: 14480 | K150: 16670 | L150: 13880 | M150: 14780 | N150: 15140
F151: 7450 | G151: 7820 | H151: 9270 | I151: 10640 | J151: 9640 | K151: 11200 | L151: 9200 | M151: 9790 | N151: 10030
F152: =F151+F151*Титул.лист!A1 -> 8195 | G152: =G151+G151*Титул.лист!A1 -> 8602 | H152: =H151+H151*Титул.лист!A1 -> 10197 | I152: =I151+I151*Титул.лист!A1 -> 11704 | J152: =J151+J151*Титул.лист!A1 -> 10604 | K152: =K151+K151*Титул.лист!A1 -> 12320 | L152: =L151+L151*Титул.лист!A1 -> 10120 | M152: =M151+M151*Титул.лист!A1 -> 10769 | N152: =N151+N151*Титул.лист!A1 -> 11033
F153: =F152+F152*Титул.лист!P2 -> 8195 | G153: =G152+G152*Титул.лист!P2 -> 8602 | H153: =H152+H152*Титул.лист!P2 -> 10197 | I153: =I152+I152*Титул.лист!P2 -> 11704 | J153: =J152+J152*Титул.лист!P2 -> 10604 | K153: =K152+K152*Титул.лист!P2 -> 12320 | L153: =L152+L152*Титул.лист!P2 -> 10120 | M153: =M152+M152*Титул.лист!P2 -> 10769 | N153: =N152+N152*Титул.лист!P2 -> 11033
A154: Сиберия-111 | C154: 1,2м | D154: =A154&", длина: "&C154 -> Сиберия-111, длина: 1,2м | E154: 600+400+200 | F154: =ROUND(F153,-1) -> 8200 | G154: =ROUND(G153,-1) -> 8600 | H154: 10200 | I154: 11700 | J154: 10600 | K154: 12320 | L154: 10120 | M154: 10770 | N154: 11030
F155: 7920 | G155: 8430 | H155: 9920 | I155: 11420 | J155: 10420 | K155: 11910 | L155: 9900 | M155: 10550 | N155: 10810
F156: =F155+F155*Титул.лист!A1 -> 8712 | G156: =G155+G155*Титул.лист!A1 -> 9273 | H156: =H155+H155*Титул.лист!A1 -> 10912 | I156: =I155+I155*Титул.лист!A1 -> 12562 | J156: =J155+J155*Титул.лист!A1 -> 11462 | K156: =K155+K155*Титул.лист!A1 -> 13101 | L156: =L155+L155*Титул.лист!A1 -> 10890 | M156: =M155+M155*Титул.лист!A1 -> 11605 | N156: =N155+N155*Титул.лист!A1 -> 11891
F157: =F156+F156*Титул.лист!P2 -> 8712 | G157: =G156+G156*Титул.лист!P2 -> 9273 | H157: =H156+H156*Титул.лист!P2 -> 10912 | I157: =I156+I156*Титул.лист!P2 -> 12562 | J157: =J156+J156*Титул.лист!P2 -> 11462 | K157: =K156+K156*Титул.лист!P2 -> 13101 | L157: =L156+L156*Титул.лист!P2 -> 10890 | M157: =M156+M156*Титул.лист!P2 -> 11605 | N157: =N156+N156*Титул.лист!P2 -> 11891
A158: Сиберия-112 | C158: 1,3м | D158: =A158&", длина: "&C158 -> Сиберия-112, длина: 1,3м | E158: 600+500+200 | F158: =ROUND(F157,-1) -> 8710 | G158: =ROUND(G157,-1) -> 9270 | H158: 10910 | I158: 12560 | J158: 11460 | K158: 13100 | L158: 10890 | M158: 11610 | N158: 11890
F159: 8260 | G159: 8780 | H159: 10400 | I159: 12020 | J159: 10900 | K159: 12530 | L159: 10380 | M159: 11080 | N159: 11360
F160: =F159+F159*Титул.лист!A1 -> 9086 | G160: =G159+G159*Титул.лист!A1 -> 9658 | H160: =H159+H159*Титул.лист!A1 -> 11440 | I160: =I159+I159*Титул.лист!A1 -> 13222 | J160: =J159+J159*Титул.лист!A1 -> 11990 | K160: =K159+K159*Титул.лист!A1 -> 13783 | L160: =L159+L159*Титул.лист!A1 -> 11418 | M160: =M159+M159*Титул.лист!A1 -> 12188 | N160: =N159+N159*Титул.лист!A1 -> 12496
F161: =F160+F160*Титул.лист!P2 -> 9086 | G161: =G160+G160*Титул.лист!P2 -> 9658 | H161: =H160+H160*Титул.лист!P2 -> 11440 | I161: =I160+I160*Титул.лист!P2 -> 13222 | J161: =J160+J160*Титул.лист!P2 -> 11990 | K161: =K160+K160*Титул.лист!P2 -> 13783 | L161: =L160+L160*Титул.лист!P2 -> 11418 | M161: =M160+M160*Титул.лист!P2 -> 12188 | N161: =N160+N160*Титул.лист!P2 -> 12496
A162: Сиберия-113 | C162: 1,4м | D162: =A162&", длина: "&C162 -> Сиберия-113, длина: 1,4м | E162: 600+500+300 | F162: =ROUND(F161,-1) -> 9090 | G162: =ROUND(G161,-1) -> 9660 | H162: 11440 | I162: 13220 | J162: 11990 | K162: 13780 | L162: 11420 | M162: 12190 | N162: 12500
F163: 8370 | G163: 8910 | H163: 10520 | I163: 12120 | J163: 11040 | K163: 12650 | L163: 10490 | M163: 11200 | N163: 11480
F164: =F163+F163*Титул.лист!A1 -> 9207 | G164: =G163+G163*Титул.лист!A1 -> 9801 | H164: =H163+H163*Титул.лист!A1 -> 11572 | I164: =I163+I163*Титул.лист!A1 -> 13332 | J164: =J163+J163*Титул.лист!A1 -> 12144 | K164: =K163+K163*Титул.лист!A1 -> 13915 | L164: =L163+L163*Титул.лист!A1 -> 11539 | M164: =M163+M163*Титул.лист!A1 -> 12320 | N164: =N163+N163*Титул.лист!A1 -> 12628
F165: =F164+F164*Титул.лист!P2 -> 9207 | G165: =G164+G164*Титул.лист!P2 -> 9801 | H165: =H164+H164*Титул.лист!P2 -> 11572 | I165: =I164+I164*Титул.лист!P2 -> 13332 | J165: =J164+J164*Титул.лист!P2 -> 12144 | K165: =K164+K164*Титул.лист!P2 -> 13915 | L165: =L164+L164*Титул.лист!P2 -> 11539 | M165: =M164+M164*Титул.лист!P2 -> 12320 | N165: =N164+N164*Титул.лист!P2 -> 12628
A166: Сиберия-114 | C166: 1,4м | D166: =A166&", длина: "&C166 -> Сиберия-114, длина: 1,4м | E166: 600+600+200 | F166: =ROUND(F165,-1) -> 9210 | G166: =ROUND(G165,-1) -> 9800 | H166: 11570 | I166: 13330 | J166: 12140 | K166: 13920 | L166: 11540 | M166: 12320 | N166: 12630
F167: 8710 | G167: 9260 | H167: 10990 | I167: 12730 | J167: 11530 | K167: 13270 | L167: 10980 | M167: 11730 | N167: 12030
F168: =F167+F167*Титул.лист!A1 -> 9581 | G168: =G167+G167*Титул.лист!A1 -> 10186 | H168: =H167+H167*Титул.лист!A1 -> 12089 | I168: =I167+I167*Титул.лист!A1 -> 14003 | J168: =J167+J167*Титул.лист!A1 -> 12683 | K168: =K167+K167*Титул.лист!A1 -> 14597 | L168: =L167+L167*Титул.лист!A1 -> 12078 | M168: =M167+M167*Титул.лист!A1 -> 12903 | N168: =N167+N167*Титул.лист!A1 -> 13233
F169: =F168+F168*Титул.лист!P2 -> 9581 | G169: =G168+G168*Титул.лист!P2 -> 10186 | H169: =H168+H168*Титул.лист!P2 -> 12089 | I169: =I168+I168*Титул.лист!P2 -> 14003 | J169: =J168+J168*Титул.лист!P2 -> 12683 | K169: =K168+K168*Титул.лист!P2 -> 14597 | L169: =L168+L168*Титул.лист!P2 -> 12078 | M169: =M168+M168*Титул.лист!P2 -> 12903 | N169: =N168+N168*Титул.лист!P2 -> 13233
A170: Сиберия-115 | C170: 1,5м | D170: =A170&", длина: "&C170 -> Сиберия-115, длина: 1,5м | E170: 600+600+300 | F170: =ROUND(F169,-1) -> 9580 | G170: =ROUND(G169,-1) -> 10190 | H170: 12090 | I170: 14000 | J170: 12680 | K170: 14600 | L170: 12080 | M170: 12900 | N170: 13230
F171: 9010 | G171: 9590 | H171: 11300 | I171: 13020 | J171: 11890 | K171: 13600 | L171: 11300 | M171: 12030 | N171: 12350
F172: =F171+F171*Титул.лист!A1 -> 9911 | G172: =G171+G171*Титул.лист!A1 -> 10549 | H172: =H171+H171*Титул.лист!A1 -> 12430 | I172: =I171+I171*Титул.лист!A1 -> 14322 | J172: =J171+J171*Титул.лист!A1 -> 13079 | K172: =K171+K171*Титул.лист!A1 -> 14960 | L172: =L171+L171*Титул.лист!A1 -> 12430 | M172: =M171+M171*Титул.лист!A1 -> 13233 | N172: =N171+N171*Титул.лист!A1 -> 13585
F173: =F172+F172*Титул.лист!P2 -> 9911 | G173: =G172+G172*Титул.лист!P2 -> 10549 | H173: =H172+H172*Титул.лист!P2 -> 12430 | I173: =I172+I172*Титул.лист!P2 -> 14322 | J173: =J172+J172*Титул.лист!P2 -> 13079 | K173: =K172+K172*Титул.лист!P2 -> 14960 | L173: =L172+L172*Титул.лист!P2 -> 12430 | M173: =M172+M172*Титул.лист!P2 -> 13233 | N173: =N172+N172*Титул.лист!P2 -> 13585
A174: Сиберия-116 | C174: 1,5м | D174: =A174&", длина: "&C174 -> Сиберия-116, длина: 1,5м | E174: 600+700+200 | F174: =ROUND(F173,-1) -> 9910 | G174: =ROUND(G173,-1) -> 10550 | H174: 12430 | I174: 14320 | J174: 13080 | K174: 14960 | L174: 12430 | M174: 13230 | N174: 13590
F175: 9350 | G175: 9940 | H175: 11770 | I175: 13630 | J175: 12350 | K175: 14210 | L175: 11780 | M175: 12560 | N175: 12900
F176: =F175+F175*Титул.лист!A1 -> 10285 | G176: =G175+G175*Титул.лист!A1 -> 10934 | H176: =H175+H175*Титул.лист!A1 -> 12947 | I176: =I175+I175*Титул.лист!A1 -> 14993 | J176: =J175+J175*Титул.лист!A1 -> 13585 | K176: =K175+K175*Титул.лист!A1 -> 15631 | L176: =L175+L175*Титул.лист!A1 -> 12958 | M176: =M175+M175*Титул.лист!A1 -> 13816 | N176: =N175+N175*Титул.лист!A1 -> 14190
F177: =F176+F176*Титул.лист!P2 -> 10285 | G177: =G176+G176*Титул.лист!P2 -> 10934 | H177: =H176+H176*Титул.лист!P2 -> 12947 | I177: =I176+I176*Титул.лист!P2 -> 14993 | J177: =J176+J176*Титул.лист!P2 -> 13585 | K177: =K176+K176*Титул.лист!P2 -> 15631 | L177: =L176+L176*Титул.лист!P2 -> 12958 | M177: =M176+M176*Титул.лист!P2 -> 13816 | N177: =N176+N176*Титул.лист!P2 -> 14190
A178: Сиберия-117 | C178: 1,6м | D178: =A178&", длина: "&C178 -> Сиберия-117, длина: 1,6м | E178: 600+700+300 | F178: =ROUND(F177,-1) -> 10290 | G178: =ROUND(G177,-1) -> 10930 | H178: 12950 | I178: 14990 | J178: 13590 | K178: 15630 | L178: 12960 | M178: 13820 | N178: 14190
F179: 9460 | G179: 10060 | H179: 11920 | I179: 13770 | J179: 12520 | K179: 14370 | L179: 11890 | M179: 12680 | N179: 13010
F180: =F179+F179*Титул.лист!A1 -> 10406 | G180: =G179+G179*Титул.лист!A1 -> 11066 | H180: =H179+H179*Титул.лист!A1 -> 13112 | I180: =I179+I179*Титул.лист!A1 -> 15147 | J180: =J179+J179*Титул.лист!A1 -> 13772 | K180: =K179+K179*Титул.лист!A1 -> 15807 | L180: =L179+L179*Титул.лист!A1 -> 13079 | M180: =M179+M179*Титул.лист!A1 -> 13948 | N180: =N179+N179*Титул.лист!A1 -> 14311
F181: =F180+F180*Титул.лист!P2 -> 10406 | G181: =G180+G180*Титул.лист!P2 -> 11066 | H181: =H180+H180*Титул.лист!P2 -> 13112 | I181: =I180+I180*Титул.лист!P2 -> 15147 | J181: =J180+J180*Титул.лист!P2 -> 13772 | K181: =K180+K180*Титул.лист!P2 -> 15807 | L181: =L180+L180*Титул.лист!P2 -> 13079 | M181: =M180+M180*Титул.лист!P2 -> 13948 | N181: =N180+N180*Титул.лист!P2 -> 14311
A182: Сиберия-118 | C182: 1,6м | D182: =A182&", длина: "&C182 -> Сиберия-118, длина: 1,6м | E182: 600+800+200 | F182: =ROUND(F181,-1) -> 10410 | G182: =ROUND(G181,-1) -> 11070 | H182: 13110 | I182: 15150 | J182: 13770 | K182: 15810 | L182: 13080 | M182: 13950 | N182: 14310
F183: 9800 | G183: 10420 | H183: 12400 | I183: 14380 | J183: 13000 | K183: 14980 | L183: 12370 | M183: 13210 | N183: 13560
F184: =F183+F183*Титул.лист!A1 -> 10780 | G184: =G183+G183*Титул.лист!A1 -> 11462 | H184: =H183+H183*Титул.лист!A1 -> 13640 | I184: =I183+I183*Титул.лист!A1 -> 15818 | J184: =J183+J183*Титул.лист!A1 -> 14300 | K184: =K183+K183*Титул.лист!A1 -> 16478 | L184: =L183+L183*Титул.лист!A1 -> 13607 | M184: =M183+M183*Титул.лист!A1 -> 14531 | N184: =N183+N183*Титул.лист!A1 -> 14916
F185: =F184+F184*Титул.лист!P2 -> 10780 | G185: =G184+G184*Титул.лист!P2 -> 11462 | H185: =H184+H184*Титул.лист!P2 -> 13640 | I185: =I184+I184*Титул.лист!P2 -> 15818 | J185: =J184+J184*Титул.лист!P2 -> 14300 | K185: =K184+K184*Титул.лист!P2 -> 16478 | L185: =L184+L184*Титул.лист!P2 -> 13607 | M185: =M184+M184*Титул.лист!P2 -> 14531 | N185: =N184+N184*Титул.лист!P2 -> 14916
A186: Сиберия-119 | C186: 1,7м | D186: =A186&", длина: "&C186 -> Сиберия-119, длина: 1,7м | E186: 600+800+300 | F186: =ROUND(F185,-1) -> 10780 | G186: =ROUND(G185,-1) -> 11460 | H186: 13640 | I186: 15820 | J186: 14300 | K186: 16480 | L186: 13610 | M186: 14530 | N186: 14920
F187: 10130 | G187: 10770 | H187: 12860 | I187: 14950 | J187: 13490 | K187: 15580 | L187: 12900 | M187: 13780 | N187: 14130
F188: =F187+F187*Титул.лист!A1 -> 11143 | G188: =G187+G187*Титул.лист!A1 -> 11847 | H188: =H187+H187*Титул.лист!A1 -> 14146 | I188: =I187+I187*Титул.лист!A1 -> 16445 | J188: =J187+J187*Титул.лист!A1 -> 14839 | K188: =K187+K187*Титул.лист!A1 -> 17138 | L188: =L187+L187*Титул.лист!A1 -> 14190 | M188: =M187+M187*Титул.лист!A1 -> 15158 | N188: =N187+N187*Титул.лист!A1 -> 15543
F189: =F188+F188*Титул.лист!P2 -> 11143 | G189: =G188+G188*Титул.лист!P2 -> 11847 | H189: =H188+H188*Титул.лист!P2 -> 14146 | I189: =I188+I188*Титул.лист!P2 -> 16445 | J189: =J188+J188*Титул.лист!P2 -> 14839 | K189: =K188+K188*Титул.лист!P2 -> 17138 | L189: =L188+L188*Титул.лист!P2 -> 14190 | M189: =M188+M188*Титул.лист!P2 -> 15158 | N189: =N188+N188*Титул.лист!P2 -> 15543
A190: Сиберия-120 | C190: 1,8м | D190: =A190&", длина: "&C190 -> Сиберия-120, длина: 1,8м | E190: 600+800+400 | F190: =ROUND(F189,-1) -> 11140 | G190: =ROUND(G189,-1) -> 11850 | H190: 14150 | I190: 16450 | J190: 14840 | K190: 17140 | L190: 14190 | M190: 15160 | N190: 15540
F191: 7790 | G191: 8170 | H191: 9930 | I191: 11550 | J191: 10320 | K191: 12130 | L191: 9910 | M191: 10580 | N191: 10880
F192: =F191+F191*Титул.лист!A1 -> 8569 | G192: =G191+G191*Титул.лист!A1 -> 8987 | H192: =H191+H191*Титул.лист!A1 -> 10923 | I192: =I191+I191*Титул.лист!A1 -> 12705 | J192: =J191+J191*Титул.лист!A1 -> 11352 | K192: =K191+K191*Титул.лист!A1 -> 13343 | L192: =L191+L191*Титул.лист!A1 -> 10901 | M192: =M191+M191*Титул.лист!A1 -> 11638 | N192: =N191+N191*Титул.лист!A1 -> 11968
F193: =F192+F192*Титул.лист!P2 -> 8569 | G193: =G192+G192*Титул.лист!P2 -> 8987 | H193: =H192+H192*Титул.лист!P2 -> 10923 | I193: =I192+I192*Титул.лист!P2 -> 12705 | J193: =J192+J192*Титул.лист!P2 -> 11352 | K193: =K192+K192*Титул.лист!P2 -> 13343 | L193: =L192+L192*Титул.лист!P2 -> 10901 | M193: =M192+M192*Титул.лист!P2 -> 11638 | N193: =N192+N192*Титул.лист!P2 -> 11968
A194: Сиберия-121 | C194: 1,4м | D194: =A194&", длина: "&C194 -> Сиберия-121, длина: 1,4м | E194: 800+400+200 | F194: =ROUND(F193,-1) -> 8570 | G194: =ROUND(G193,-1) -> 8990 | H194: 10920 | I194: 12710 | J194: 11350 | K194: 13340 | L194: 10900 | M194: 11640 | N194: 11970
F195: 8260 | G195: 8780 | H195: 10580 | I195: 12330 | J195: 11100 | K195: 12850 | L195: 10610 | M195: 11340 | N195: 11660
F196: =F195+F195*Титул.лист!A1 -> 9086 | G196: =G195+G195*Титул.лист!A1 -> 9658 | H196: =H195+H195*Титул.лист!A1 -> 11638 | I196: =I195+I195*Титул.лист!A1 -> 13563 | J196: =J195+J195*Титул.лист!A1 -> 12210 | K196: =K195+K195*Титул.лист!A1 -> 14135 | L196: =L195+L195*Титул.лист!A1 -> 11671 | M196: =M195+M195*Титул.лист!A1 -> 12474 | N196: =N195+N195*Титул.лист!A1 -> 12826
F197: =F196+F196*Титул.лист!P2 -> 9086 | G197: =G196+G196*Титул.лист!P2 -> 9658 | H197: =H196+H196*Титул.лист!P2 -> 11638 | I197: =I196+I196*Титул.лист!P2 -> 13563 | J197: =J196+J196*Титул.лист!P2 -> 12210 | K197: =K196+K196*Титул.лист!P2 -> 14135 | L197: =L196+L196*Титул.лист!P2 -> 11671 | M197: =M196+M196*Титул.лист!P2 -> 12474 | N197: =N196+N196*Титул.лист!P2 -> 12826
A198: Сиберия-122 | C198: 1,5м | D198: =A198&", длина: "&C198 -> Сиберия-122, длина: 1,5м | E198: 800+500+200 | F198: =ROUND(F197,-1) -> 9090 | G198: =ROUND(G197,-1) -> 9660 | H198: 11640 | I198: 13560 | J198: 12210 | K198: 14140 | L198: 11670 | M198: 12470 | N198: 12830
F199: 8600 | G199: 9130 | H199: 11050 | I199: 12940 | J199: 11580 | K199: 13460 | L199: 11100 | M199: 11870 | N199: 12210
F200: =F199+F199*Титул.лист!A1 -> 9460 | G200: =G199+G199*Титул.лист!A1 -> 10043 | H200: =H199+H199*Титул.лист!A1 -> 12155 | I200: =I199+I199*Титул.лист!A1 -> 14234 | J200: =J199+J199*Титул.лист!A1 -> 12738 | K200: =K199+K199*Титул.лист!A1 -> 14806 | L200: =L199+L199*Титул.лист!A1 -> 12210 | M200: =M199+M199*Титул.лист!A1 -> 13057 | N200: =N199+N199*Титул.лист!A1 -> 13431
... 153 more rows

Sheet Столы
C1: Размер | D1: Код изделия | E1: ЛДСП ПВХ 0,45 мм | I1: ЛДСП ПВХ 2мм | M1: Пластик 1к ПВХ 0,45мм | Q1: Пластик 1к ПВХ 2мм | U1: Пластик 2к ПВХ 0,45мм | Y1: Пластик 2к ПВХ 2мм | AC1: МДФ мат. | AG1: МДФ глян. | AK1: МДФ металл. | AO1: МДФ + ПАТИНА | AS1: БАГЕТНАЯ | AW1: БОСТОН ПВХ/фот.печ. | BA1: БОСТОН ЛАК | BE1: БОСТОН ЭМАЛЬ
A2: Столы под мойку
B3: Стол под мойку 1дв. | C3: 500 | D3: 1101-50 | E3: 1070 | F3: =E3+E3*Титул.лист!$A$1 -> 1177 | G3: =F3+F3*Титул.лист!$P$2 -> 1177 | H3: =ROUND(G3,-1) -> 1180 | I3: 1120 | J3: =I3+I3*Титул.лист!$A$1 -> 1232 | K3: =J3+J3*Титул.лист!$P$2 -> 1232 | L3: =ROUND(K3,-1) -> 1230 | M3: 1120 | N3: =M3+M3*Титул.лист!$A$1 -> 1232 | O3: =N3+N3*Титул.лист!$P$2 -> 1232 | P3: =ROUND(O3,-1) -> 1230 | Q3: 1510 | R3: =Q3+Q3*Титул.лист!$A$1 -> 1661 | S3: =R3+R3*Титул.лист!$P$2 -> 1661 | T3: =ROUND(S3,-1) -> 1660 | U3: 1750 | V3: =U3+U3*Титул.лист!$A$1 -> 1925 | W3: =V3+V3*Титул.лист!$P$2 -> 1925 | X3: =ROUND(W3,-1) -> 1930 | Y3: 1800 | Z3: =Y3+Y3*Титул.лист!$A$1 -> 1980 | AA3: =Z3+Z3*Титул.лист!$P$2 -> 1980 | AB3: =ROUND(AA3,-1) -> 1980 | AC3: 1500 | AD3: =AC3+AC3*Титул.лист!$A$1 -> 1650 | AE3: =AD3+AD3*Титул.лист!$P$2 -> 1650 | AF3: =ROUND(AE3,-1) -> 1650 | AG3: 1620 | AH3: =AG3+AG3*Титул.лист!$A$1 -> 1782 | AI3: =AH3+AH3*Титул.лист!$P$2 -> 1782 | AJ3: =ROUND(AI3,-1) -> 1780 | AK3: 1660 | AL3: =AK3+AK3*Титул.лист!$A$1 -> 1826 | AM3: =AL3+AL3*Титул.лист!$P$2 -> 1826 | AN3: =ROUND(AM3,-1) -> 1830 | AO3: 2899.78 | AP3: =AO3+AO3*Титул.лист!$A$1 -> 3189.758 | AQ3: =AP3+AP3*Титул.лист!$P$2 -> 3189.758 | AR3: =ROUND(AQ3,-1) -> 3190 | AS3: 3293.58 | AT3: =AS3+AS3*Титул.лист!$A$1 -> 3622.938 | AU3: =AT3+AT3*Титул.лист!$P$2 -> 3622.938 | AV3: =ROUND(AU3,-1) -> 3620 | AW3: 2620.54 | AX3: =AW3+AW3*Титул.лист!$A$1 -> 2882.594 | AY3: =AX3+AX3*Титул.лист!$P$2 -> 2882.594 | AZ3: =ROUND(AY3,-1) -> 2880 | BA3: 3339.6 | BB3: =BA3+BA3*Титул.лист!$A$1 -> 3673.56 | BC3: =BB3+BB3*Титул.лист!$P$2 -> 3673.56 | BD3: =ROUND(BC3,-1) -> 3670 | BE3: 4707.6 | BF3: =BE3+BE3*Титул.лист!$A$1 -> 5178.36 | BG3: =BF3+BF3*Титул.лист!$P$2 -> 5178.36 | BH3: =ROUND(BG3,-1) -> 5180
C4: 600 | D4: 1101-60 | E4: 1150 | F4: =E4+E4*Титул.лист!$A$1 -> 1265 | G4: =F4+F4*Титул.лист!$P$2 -> 1265 | H4: =ROUND(G4,-1) -> 1270 | I4: 1220 | J4: =I4+I4*Титул.лист!$A$1 -> 1342 | K4: =J4+J4*Титул.лист!$P$2 -> 1342 | L4: =ROUND(K4,-1) -> 1340 | M4: 1590 | N4: =M4+M4*Титул.лист!$A$1 -> 1749 | O4: =N4+N4*Титул.лист!$P$2 -> 1749 | P4: =ROUND(O4,-1) -> 1750 | Q4: 1650 | R4: =Q4+Q4*Титул.лист!$A$1 -> 1815 | S4: =R4+R4*Титул.лист!$P$2 -> 1815 | T4: =ROUND(S4,-1) -> 1820 | U4: 1950 | V4: =U4+U4*Титул.лист!$A$1 -> 2145 | W4: =V4+V4*Титул.лист!$P$2 -> 2145 | X4: =ROUND(W4,-1) -> 2150 | Y4: 2000 | Z4: =Y4+Y4*Титул.лист!$A$1 -> 2200 | AA4: =Z4+Z4*Титул.лист!$P$2 -> 2200 | AB4: =ROUND(AA4,-1) -> 2200 | AC4: 1590 | AD4: =AC4+AC4*Титул.лист!$A$1 -> 1749 | AE4: =AD4+AD4*Титул.лист!$P$2 -> 1749 | AF4: =ROUND(AE4,-1) -> 1750 | AG4: 1740 | AH4: =AG4+AG4*Титул.лист!$A$1 -> 1914 | AI4: =AH4+AH4*Титул.лист!$P$2 -> 1914 | AJ4: =ROUND(AI4,-1) -> 1910 | AK4: 1800 | AL4: =AK4+AK4*Титул.лист!$A$1 -> 1980 | AM4: =AL4+AL4*Титул.лист!$P$2 -> 1980 | AN4: =ROUND(AM4,-1) -> 1980 | AO4: 3269.736 | AP4: =AO4+AO4*Титул.лист!$A$1 -> 3596.7096 | AQ4: =AP4+AP4*Титул.лист!$P$2 -> 3596.7096 | AR4: =ROUND(AQ4,-1) -> 3600 | AS4: 3742.296 | AT4: =AS4+AS4*Титул.лист!$A$1 -> 4116.5256 | AU4: =AT4+AT4*Титул.лист!$P$2 -> 4116.5256 | AV4: =ROUND(AU4,-1) -> 4120 | AW4: 2934.648 | AX4: =AW4+AW4*Титул.лист!$A$1 -> 3228.1128 | AY4: =AX4+AX4*Титул.лист!$P$2 -> 3228.1128 | AZ4: =ROUND(AY4,-1) -> 3230 | BA4: 3797.52 | BB4: =BA4+BA4*Титул.лист!$A$1 -> 4177.272 | BC4: =BB4+BB4*Титул.лист!$P$2 -> 4177.272 | BD4: =ROUND(BC4,-1) -> 4180 | BE4: 5439.12 | BF4: =BE4+BE4*Титул.лист!$A$1 -> 5983.032 | BG4: =BF4+BF4*Титул.лист!$P$2 -> 5983.032 | BH4: =ROUND(BG4,-1) -> 5980
B5: Стол под мойку 2дв. | C5: 500 | D5: 1102-50 | E5: 1120 | F5: =E5+E5*Титул.лист!$A$1 -> 1232 | G5: =F5+F5*Титул.лист!$P$2 -> 1232 | H5: 1230 | I5: 1210 | J5: =I5+I5*Титул.лист!$A$1 -> 1331 | K5: =J5+J5*Титул.лист!$P$2 -> 1331 | L5: 1330 | M5: 1500 | N5: =M5+M5*Титул.лист!$A$1 -> 1650 | O5: =N5+N5*Титул.лист!$P$2 -> 1650 | P5: 1650 | Q5: 1580 | R5: =Q5+Q5*Титул.лист!$A$1 -> 1738 | S5: =R5+R5*Титул.лист!$P$2 -> 1738 | T5: 1740 | U5: 1790 | V5: =U5+U5*Титул.лист!$A$1 -> 1969 | W5: =V5+V5*Титул.лист!$P$2 -> 1969 | X5: 1970 | Y5: 1880 | Z5: =Y5+Y5*Титул.лист!$A$1 -> 2068 | AA5: =Z5+Z5*Титул.лист!$P$2 -> 2068 | AB5: 2070 | AC5: 1540 | AD5: =AC5+AC5*Титул.лист!$A$1 -> 1694 | AE5: =AD5+AD5*Титул.лист!$P$2 -> 1694 | AF5: 1690 | AG5: 1660 | AH5: =AG5+AG5*Титул.лист!$A$1 -> 1826 | AI5: =AH5+AH5*Титул.лист!$P$2 -> 1826 | AJ5: 1830 | AK5: 1700 | AL5: =AK5+AK5*Титул.лист!$A$1 -> 1870 | AM5: =AL5+AL5*Титул.лист!$P$2 -> 1870 | AN5: 1870 | AO5: 2939.78 | AP5: =AO5+AO5*Титул.лист!$A$1 -> 3233.758 | AQ5: =AP5+AP5*Титул.лист!$P$2 -> 3233.758 | AR5: 3230 | AS5: 3333.58 | AT5: =AS5+AS5*Титул.лист!$A$1 -> 3666.938 | AU5: =AT5+AT5*Титул.лист!$P$2 -> 3666.938 | AV5: 3670 | AW5: 2660.54 | AX5: =AW5+AW5*Титул.лист!$A$1 -> 2926.594 | AY5: =AX5+AX5*Титул.лист!$P$2 -> 2926.594 | AZ5: 2930 | BA5: 3379.6 | BB5: =BA5+BA5*Титул.лист!$A$1 -> 3717.56 | BC5: =BB5+BB5*Титул.лист!$P$2 -> 3717.56 | BD5: 3720 | BE5: 4747.6 | BF5: =BE5+BE5*Титул.лист!$A$1 -> 5222.36 | BG5: =BF5+BF5*Титул.лист!$P$2 -> 5222.36 | BH5: 5220
C6: 600 | D6: 1102-60 | E6: 1210 | F6: =E6+E6*Титул.лист!$A$1 -> 1331 | G6: =F6+F6*Титул.лист!$P$2 -> 1331 | H6: 1330 | I6: 1310 | J6: =I6+I6*Титул.лист!$A$1 -> 1441 | K6: =J6+J6*Титул.лист!$P$2 -> 1441 | L6: 1440 | M6: 1650 | N6: =M6+M6*Титул.лист!$A$1 -> 1815 | O6: =N6+N6*Титул.лист!$P$2 -> 1815 | P6: 1820 | Q6: 1740 | R6: =Q6+Q6*Титул.лист!$A$1 -> 1914 | S6: =R6+R6*Титул.лист!$P$2 -> 1914 | T6: 1910 | U6: 2000 | V6: =U6+U6*Титул.лист!$A$1 -> 2200 | W6: =V6+V6*Титул.лист!$P$2 -> 2200 | X6: 2200 | Y6: 2090 | Z6: =Y6+Y6*Титул.лист!$A$1 -> 2299 | AA6: =Z6+Z6*Титул.лист!$P$2 -> 2299 | AB6: 2300 | AC6: 1670 | AD6: =AC6+AC6*Титул.лист!$A$1 -> 1837 | AE6: =AD6+AD6*Титул.лист!$P$2 -> 1837 | AF6: 1840 | AG6: 1810 | AH6: =AG6+AG6*Титул.лист!$A$1 -> 1991 | AI6: =AH6+AH6*Титул.лист!$P$2 -> 1991 | AJ6: 1990 | AK6: 1880 | AL6: =AK6+AK6*Титул.лист!$A$1 -> 2068 | AM6: =AL6+AL6*Титул.лист!$P$2 -> 2068 | AN6: 2070 | AO6: 3349.736 | AP6: =AO6+AO6*Титул.лист!$A$1 -> 3684.7096 | AQ6: =AP6+AP6*Титул.лист!$P$2 -> 3684.7096 | AR6: 3680 | AS6: 3822.296 | AT6: =AS6+AS6*Титул.лист!$A$1 -> 4204.5256 | AU6: =AT6+AT6*Титул.лист!$P$2 -> 4204.5256 | AV6: 4200 | AW6: 3014.648 | AX6: =AW6+AW6*Титул.лист!$A$1 -> 3316.1128 | AY6: =AX6+AX6*Титул.лист!$P$2 -> 3316.1128 | AZ6: 3320 | BA6: 3877.52 | BB6: =BA6+BA6*Титул.лист!$A$1 -> 4265.272 | BC6: =BB6+BB6*Титул.лист!$P$2 -> 4265.272 | BD6: 4270 | BE6: 5519.12 | BF6: =BE6+BE6*Титул.лист!$A$1 -> 6071.032 | BG6: =BF6+BF6*Титул.лист!$P$2 -> 6071.032 | BH6: 6070
C7: 800 | D7: 1102-80 | E7: 1375 | F7: =E7+E7*Титул.лист!$A$1 -> 1512.5 | G7: =F7+F7*Титул.лист!$P$2 -> 1512.5 | H7: 1510 | I7: 1480 | J7: =I7+I7*Титул.лист!$A$1 -> 1628 | K7: =J7+J7*Титул.лист!$P$2 -> 1628 | L7: 1630 | M7: 1980 | N7: =M7+M7*Титул.лист!$A$1 -> 2178 | O7: =N7+N7*Титул.лист!$P$2 -> 2178 | P7: 2180 | Q7: 2090 | R7: =Q7+Q7*Титул.лист!$A$1 -> 2299 | S7: =R7+R7*Титул.лист!$P$2 -> 2299 | T7: 2300 | U7: 2450 | V7: =U7+U7*Титул.лист!$A$1 -> 2695 | W7: =V7+V7*Титул.лист!$P$2 -> 2695 | X7: 2700 | Y7: 2560 | Z7: =Y7+Y7*Титул.лист!$A$1 -> 2816 | AA7: =Z7+Z7*Титул.лист!$P$2 -> 2816 | AB7: 2820 | AC7: 2030 | AD7: =AC7+AC7*Титул.лист!$A$1 -> 2233 | AE7: =AD7+AD7*Титул.лист!$P$2 -> 2233 | AF7: 2230 | AG7: 2220 | AH7: =AG7+AG7*Титул.лист!$A$1 -> 2442 | AI7: =AH7+AH7*Титул.лист!$P$2 -> 2442 | AJ7: 2440 | AK7: 2310 | AL7: =AK7+AK7*Титул.лист!$A$1 -> 2541 | AM7: =AL7+AL7*Титул.лист!$P$2 -> 2541 | AN7: 2540 | AO7: 4269.648 | AP7: =AO7+AO7*Титул.лист!$A$1 -> 4696.6128 | AQ7: =AP7+AP7*Титул.лист!$P$2 -> 4696.6128 | AR7: 4700 | AS7: 4899.728 | AT7: =AS7+AS7*Титул.лист!$A$1 -> 5389.7008 | AU7: =AT7+AT7*Титул.лист!$P$2 -> 5389.7008 | AV7: 5390 | AW7: 3822.864 | AX7: =AW7+AW7*Титул.лист!$A$1 -> 4205.1504 | AY7: =AX7+AX7*Титул.лист!$P$2 -> 4205.1504 | AZ7: 4210 | BA7: 4973.36 | BB7: =BA7+BA7*Титул.лист!$A$1 -> 5470.696 | BC7: =BB7+BB7*Титул.лист!$P$2 -> 5470.696 | BD7: 5470 | BE7: 7162.16 | BF7: =BE7+BE7*Титул.лист!$A$1 -> 7878.376 | BG7: =BF7+BF7*Титул.лист!$P$2 -> 7878.376 | BH7: 7880
B8: Стол под врезную мойку 1дв. | C8: 500 | D8: 1105-50 | E8: 1800 | F8: =E8+E8*Титул.лист!$A$1 -> 1980 | G8: =F8+F8*Титул.лист!$P$2 -> 1980 | H8: 1980 | I8: 1880 | J8: =I8+I8*Титул.лист!$A$1 -> 2068 | K8: =J8+J8*Титул.лист!$P$2 -> 2068 | L8: 2070 | M8: 2260 | N8: =M8+M8*Титул.лист!$A$1 -> 2486 | O8: =N8+N8*Титул.лист!$P$2 -> 2486 | P8: 2490 | Q8: 2350 | R8: =Q8+Q8*Титул.лист!$A$1 -> 2585 | S8: =R8+R8*Титул.лист!$P$2 -> 2585 | T8: 2590 | U8: 2600 | V8: =U8+U8*Титул.лист!$A$1 -> 2860 | W8: =V8+V8*Титул.лист!$P$2 -> 2860 | X8: 2860 | Y8: 2690 | Z8: =Y8+Y8*Титул.лист!$A$1 -> 2959 | AA8: =Z8+Z8*Титул.лист!$P$2 -> 2959 | AB8: 2960 | AC8: 2270 | AD8: =AC8+AC8*Титул.лист!$A$1 -> 2497 | AE8: =AD8+AD8*Титул.лист!$P$2 -> 2497 | AF8: 2500 | AG8: 2400 | AH8: =AG8+AG8*Титул.лист!$A$1 -> 2640 | AI8: =AH8+AH8*Титул.лист!$P$2 -> 2640 | AJ8: 2640 | AK8: 2480 | AL8: =AK8+AK8*Титул.лист!$A$1 -> 2728 | AM8: =AL8+AL8*Титул.лист!$P$2 -> 2728 | AN8: 2730 | AO8: 3669.78 | AP8: =AO8+AO8*Титул.лист!$A$1 -> 4036.758 | AQ8: =AP8+AP8*Титул.лист!$P$2 -> 4036.758 | AR8: 4040 | AS8: 4063.58 | AT8: =AS8+AS8*Титул.лист!$A$1 -> 4469.938 | AU8: =AT8+AT8*Титул.лист!$P$2 -> 4469.938 | AV8: 4470 | AW8: 3390.54 | AX8: =AW8+AW8*Титул.лист!$A$1 -> 3729.594 | AY8: =AX8+AX8*Титул.лист!$P$2 -> 3729.594 | AZ8: 3730 | BA8: 4109.6 | BB8: =BA8+BA8*Титул.лист!$A$1 -> 4520.56 | BC8: =BB8+BB8*Титул.лист!$P$2 -> 4520.56 | BD8: 4520 | BE8: 5477.6 | BF8: =BE8+BE8*Титул.лист!$A$1 -> 6025.36 | BG8: =BF8+BF8*Титул.лист!$P$2 -> 6025.36 | BH8: 6030
C9: 600 | D9: 1105-60 | E9: 1820 | F9: =E9+E9*Титул.лист!$A$1 -> 2002 | G9: =F9+F9*Титул.лист!$P$2 -> 2002 | H9: 2000 | I9: 1900 | J9: =I9+I9*Титул.лист!$A$1 -> 2090 | K9: =J9+J9*Титул.лист!$P$2 -> 2090 | L9: 2090 | M9: 2280 | N9: =M9+M9*Титул.лист!$A$1 -> 2508 | O9: =N9+N9*Титул.лист!$P$2 -> 2508 | P9: 2510 | Q9: 2370 | R9: =Q9+Q9*Титул.лист!$A$1 -> 2607 | S9: =R9+R9*Титул.лист!$P$2 -> 2607 | T9: 2610 | U9: 2620 | V9: =U9+U9*Титул.лист!$A$1 -> 2882 | W9: =V9+V9*Титул.лист!$P$2 -> 2882 | X9: 2880 | Y9: 2710 | Z9: =Y9+Y9*Титул.лист!$A$1 -> 2981 | AA9: =Z9+Z9*Титул.лист!$P$2 -> 2981 | AB9: 2980 | AC9: 2290 | AD9: =AC9+AC9*Титул.лист!$A$1 -> 2519 | AE9: =AD9+AD9*Титул.лист!$P$2 -> 2519 | AF9: 2520 | AG9: 2420 | AH9: =AG9+AG9*Титул.лист!$A$1 -> 2662 | AI9: =AH9+AH9*Титул.лист!$P$2 -> 2662 | AJ9: 2660 | AK9: 2500 | AL9: =AK9+AK9*Титул.лист!$A$1 -> 2750 | AM9: =AL9+AL9*Титул.лист!$P$2 -> 2750 | AN9: 2750 | AO9: 3969.736 | AP9: =AO9+AO9*Титул.лист!$A$1 -> 4366.7096 | AQ9: =AP9+AP9*Титул.лист!$P$2 -> 4366.7096 | AR9: 4370 | AS9: 4442.296 | AT9: =AS9+AS9*Титул.лист!$A$1 -> 4886.5256 | AU9: =AT9+AT9*Титул.лист!$P$2 -> 4886.5256 | AV9: 4890 | AW9: 3634.648 | AX9: =AW9+AW9*Титул.лист!$A$1 -> 3998.1128 | AY9: =AX9+AX9*Титул.лист!$P$2 -> 3998.1128 | AZ9: 4000 | BA9: 4497.52 | BB9: =BA9+BA9*Титул.лист!$A$1 -> 4947.272 | BC9: =BB9+BB9*Титул.лист!$P$2 -> 4947.272 | BD9: 4950 | BE9: 6139.12 | BF9: =BE9+BE9*Титул.лист!$A$1 -> 6753.032 | BG9: =BF9+BF9*Титул.лист!$P$2 -> 6753.032 | BH9: 6750
B10: Стол под врезную мойку 2дв. | C10: 600 | D10: 1106-60 | E10: 1826 | F10: =E10+E10*Титул.лист!$A$1 -> 2008.6 | G10: =F10+F10*Титул.лист!$P$2 -> 2008.6 | H10: 2010 | I10: 1920 | J10: =I10+I10*Титул.лист!$A$1 -> 2112 | K10: =J10+J10*Титул.лист!$P$2 -> 2112 | L10: 2110 | M10: 2300 | N10: =M10+M10*Титул.лист!$A$1 -> 2530 | O10: =N10+N10*Титул.лист!$P$2 -> 2530 | P10: 2530 | Q10: 2390 | R10: =Q10+Q10*Титул.лист!$A$1 -> 2629 | S10: =R10+R10*Титул.лист!$P$2 -> 2629 | T10: 2630 | U10: 2640 | V10: =U10+U10*Титул.лист!$A$1 -> 2904 | W10: =V10+V10*Титул.лист!$P$2 -> 2904 | X10: 2900 | Y10: 2730 | Z10: =Y10+Y10*Титул.лист!$A$1 -> 3003 | AA10: =Z10+Z10*Титул.лист!$P$2 -> 3003 | AB10: 3000 | AC10: 2310 | AD10: =AC10+AC10*Титул.лист!$A$1 -> 2541 | AE10: =AD10+AD10*Титул.лист!$P$2 -> 2541 | AF10: 2540 | AG10: 2460 | AH10: =AG10+AG10*Титул.лист!$A$1 -> 2706 | AI10: =AH10+AH10*Титул.лист!$P$2 -> 2706 | AJ10: 2710 | AK10: 2520 | AL10: =AK10+AK10*Титул.лист!$A$1 -> 2772 | AM10: =AL10+AL10*Титул.лист!$P$2 -> 2772 | AN10: 2770 | AO10: 3989.736 | AP10: =AO10+AO10*Титул.лист!$A$1 -> 4388.7096 | AQ10: =AP10+AP10*Титул.лист!$P$2 -> 4388.7096 | AR10: 4390 | AS10: 4462.296 | AT10: =AS10+AS10*Титул.лист!$A$1 -> 4908.5256 | AU10: =AT10+AT10*Титул.лист!$P$2 -> 4908.5256 | AV10: 4910 | AW10: 3654.648 | AX10: =AW10+AW10*Титул.лист!$A$1 -> 4020.1128 | AY10: =AX10+AX10*Титул.лист!$P$2 -> 4020.1128 | AZ10: 4020 | BA10: 4517.52 | BB10: =BA10+BA10*Титул.лист!$A$1 -> 4969.272 | BC10: =BB10+BB10*Титул.лист!$P$2 -> 4969.272 | BD10: 4970 | BE10: 6159.12 | BF10: =BE10+BE10*Титул.лист!$A$1 -> 6775.032 | BG10: =BF10+BF10*Титул.лист!$P$2 -> 6775.032 | BH10: 6780
C11: 700 | D11: 1106-70 | E11: 2024 | F11: =E11+E11*Титул.лист!$A$1 -> 2226.4 | G11: =F11+F11*Титул.лист!$P$2 -> 2226.4 | H11: 2230 | I11: 2130 | J11: =I11+I11*Титул.лист!$A$1 -> 2343 | K11: =J11+J11*Титул.лист!$P$2 -> 2343 | L11: 2340 | M11: 2550 | N11: =M11+M11*Титул.лист!$A$1 -> 2805 | O11: =N11+N11*Титул.лист!$P$2 -> 2805 | P11: 2810 | Q11: 2660 | R11: =Q11+Q11*Титул.лист!$A$1 -> 2926 | S11: =R11+R11*Титул.лист!$P$2 -> 2926 | T11: 2930 | U11: 2960 | V11: =U11+U11*Титул.лист!$A$1 -> 3256 | W11: =V11+V11*Титул.лист!$P$2 -> 3256 | X11: 3260 | Y11: 3070 | Z11: =Y11+Y11*Титул.лист!$A$1 -> 3377 | AA11: =Z11+Z11*Титул.лист!$P$2 -> 3377 | AB11: 3380 | AC11: 2607 | AD11: =AC11+AC11*Титул.лист!$A$1 -> 2867.7 | AE11: =AD11+AD11*Титул.лист!$P$2 -> 2867.7 | AF11: 2870 | AG11: 2770 | AH11: =AG11+AG11*Титул.лист!$A$1 -> 3047 | AI11: =AH11+AH11*Титул.лист!$P$2 -> 3047 | AJ11: 3050 | AK11: 2850 | AL11: =AK11+AK11*Титул.лист!$A$1 -> 3135 | AM11: =AL11+AL11*Титул.лист!$P$2 -> 3135 | AN11: 3140 | AO11: 4566.692 | AP11: =AO11+AO11*Титул.лист!$A$1 -> 5023.3612 | AQ11: =AP11+AP11*Титул.лист!$P$2 -> 5023.3612 | AR11: 5020 | AS11: 5118.012 | AT11: =AS11+AS11*Титул.лист!$A$1 -> 5629.8132 | AU11: =AT11+AT11*Титул.лист!$P$2 -> 5629.8132 | AV11: 5630 | AW11: 4175.756 | AX11: =AW11+AW11*Титул.лист!$A$1 -> 4593.3316 | AY11: =AX11+AX11*Титул.лист!$P$2 -> 4593.3316 | AZ11: 4590 | BA11: 5182.44 | BB11: =BA11+BA11*Титул.лист!$A$1 -> 5700.684 | BC11: =BB11+BB11*Титул.лист!$P$2 -> 5700.684 | BD11: 5700 | BE11: 7097.64 | BF11: =BE11+BE11*Титул.лист!$A$1 -> 7807.404 | BG11: =BF11+BF11*Титул.лист!$P$2 -> 7807.404 | BH11: 7810
C12: 800 | D12: 1106-80 | E12: 2200 | F12: =E12+E12*Титул.лист!$A$1 -> 2420 | G12: =F12+F12*Титул.лист!$P$2 -> 2420 | H12: 2420 | I12: 2310 | J12: =I12+I12*Титул.лист!$A$1 -> 2541 | K12: =J12+J12*Титул.лист!$P$2 -> 2541 | L12: 2540 | M12: 2830 | N12: =M12+M12*Титул.лист!$A$1 -> 3113 | O12: =N12+N12*Титул.лист!$P$2 -> 3113 | P12: 3110 | Q12: 2930 | R12: =Q12+Q12*Титул.лист!$A$1 -> 3223 | S12: =R12+R12*Титул.лист!$P$2 -> 3223 | T12: 3220 | U12: 3300 | V12: =U12+U12*Титул.лист!$A$1 -> 3630 | W12: =V12+V12*Титул.лист!$P$2 -> 3630 | X12: 3630 | Y12: 3400 | Z12: =Y12+Y12*Титул.лист!$A$1 -> 3740 | AA12: =Z12+Z12*Титул.лист!$P$2 -> 3740 | AB12: 3740 | AC12: 2870 | AD12: =AC12+AC12*Титул.лист!$A$1 -> 3157 | AE12: =AD12+AD12*Титул.лист!$P$2 -> 3157 | AF12: 3160 | AG12: 3060 | AH12: =AG12+AG12*Титул.лист!$A$1 -> 3366 | AI12: =AH12+AH12*Титул.лист!$P$2 -> 3366 | AJ12: 3370 | AK12: 3150 | AL12: =AK12+AK12*Титул.лист!$A$1 -> 3465 | AM12: =AL12+AL12*Титул.лист!$P$2 -> 3465 | AN12: 3470 | AO12: 5109.648 | AP12: =AO12+AO12*Титул.лист!$A$1 -> 5620.6128 | AQ12: =AP12+AP12*Титул.лист!$P$2 -> 5620.6128 | AR12: 5620 | AS12: 5739.728 | AT12: =AS12+AS12*Титул.лист!$A$1 -> 6313.7008 | AU12: =AT12+AT12*Титул.лист!$P$2 -> 6313.7008 | AV12: 6310 | AW12: 4662.864 | AX12: =AW12+AW12*Титул.лист!$A$1 -> 5129.1504 | AY12: =AX12+AX12*Титул.лист!$P$2 -> 5129.1504 | AZ12: 5130 | BA12: 5813.36 | BB12: =BA12+BA12*Титул.лист!$A$1 -> 6394.696 | BC12: =BB12+BB12*Титул.лист!$P$2 -> 6394.696 | BD12: 6390 | BE12: 8002.16 | BF12: =BE12+BE12*Титул.лист!$A$1 -> 8802.376 | BG12: =BF12+BF12*Титул.лист!$P$2 -> 8802.376 | BH12: 8800
C13: 900 | D13: 1106-90 | E13: 2398 | F13: =E13+E13*Титул.лист!$A$1 -> 2637.8 | G13: =F13+F13*Титул.лист!$P$2 -> 2637.8 | H13: 2640 | I13: 2510 | J13: =I13+I13*Титул.лист!$A$1 -> 2761 | K13: =J13+J13*Титул.лист!$P$2 -> 2761 | L13: 2760 | M13: 3080 | N13: =M13+M13*Титул.лист!$A$1 -> 3388 | O13: =N13+N13*Титул.лист!$P$2 -> 3388 | P13: 3390 | Q13: 3200 | R13: =Q13+Q13*Титул.лист!$A$1 -> 3520 | S13: =R13+R13*Титул.лист!$P$2 -> 3520 | T13: 3520 | U13: 3610 | V13: =U13+U13*Титул.лист!$A$1 -> 3971 | W13: =V13+V13*Титул.лист!$P$2 -> 3971 | X13: 3970 | Y13: 3730 | Z13: =Y13+Y13*Титул.лист!$A$1 -> 4103 | AA13: =Z13+Z13*Титул.лист!$P$2 -> 4103 | AB13: 4100 | AC13: 3150 | AD13: =AC13+AC13*Титул.лист!$A$1 -> 3465 | AE13: =AD13+AD13*Титул.лист!$P$2 -> 3465 | AF13: 3470 | AG13: 3370 | AH13: =AG13+AG13*Титул.лист!$A$1 -> 3707 | AI13: =AH13+AH13*Титул.лист!$P$2 -> 3707 | AJ13: 3710 | AK13: 3460 | AL13: =AK13+AK13*Титул.лист!$A$1 -> 3806 | AM13: =AL13+AL13*Титул.лист!$P$2 -> 3806 | AN13: 3810 | AO13: 5669.604 | AP13: =AO13+AO13*Титул.лист!$A$1 -> 6236.5644 | AQ13: =AP13+AP13*Титул.лист!$P$2 -> 6236.5644 | AR13: 6240 | AS13: 6378.444 | AT13: =AS13+AS13*Титул.лист!$A$1 -> 7016.2884 | AU13: =AT13+AT13*Титул.лист!$P$2 -> 7016.2884 | AV13: 7020 | AW13: 5166.972 | AX13: =AW13+AW13*Титул.лист!$A$1 -> 5683.6692 | AY13: =AX13+AX13*Титул.лист!$P$2 -> 5683.6692 | AZ13: 5680 | BA13: 6461.28 | BB13: =BA13+BA13*Титул.лист!$A$1 -> 7107.408 | BC13: =BB13+BB13*Титул.лист!$P$2 -> 7107.408 | BD13: 7110 | BE13: 8923.68 | BF13: =BE13+BE13*Титул.лист!$A$1 -> 9816.048 | BG13: =BF13+BF13*Титул.лист!$P$2 -> 9816.048 | BH13: 9820
C14: 1000 | D14: 1106-100 | E14: 2596 | F14: =E14+E14*Титул.лист!$A$1 -> 2855.6 | G14: =F14+F14*Титул.лист!$P$2 -> 2855.6 | H14: 2860 | I14: 2710 | J14: =I14+I14*Титул.лист!$A$1 -> 2981 | K14: =J14+J14*Титул.лист!$P$2 -> 2981 | L14: 2980 | M14: 3350 | N14: =M14+M14*Титул.лист!$A$1 -> 3685 | O14: =N14+N14*Титул.лист!$P$2 -> 3685 | P14: 3690 | Q14: 3460 | R14: =Q14+Q14*Титул.лист!$A$1 -> 3806 | S14: =R14+R14*Титул.лист!$P$2 -> 3806 | T14: 3810 | U14: 3940 | V14: =U14+U14*Титул.лист!$A$1 -> 4334 | W14: =V14+V14*Титул.лист!$P$2 -> 4334 | X14: 4330 | Y14: 4050 | Z14: =Y14+Y14*Титул.лист!$A$1 -> 4455 | AA14: =Z14+Z14*Титул.лист!$P$2 -> 4455 | AB14: 4460 | AC14: 3420 | AD14: =AC14+AC14*Титул.лист!$A$1 -> 3762 | AE14: =AD14+AD14*Титул.лист!$P$2 -> 3762 | AF14: 3760 | AG14: 3670 | AH14: =AG14+AG14*Титул.лист!$A$1 -> 4037 | AI14: =AH14+AH14*Титул.лист!$P$2 -> 4037 | AJ14: 4040 | AK14: 3770 | AL14: =AK14+AK14*Титул.лист!$A$1 -> 4147 | AM14: =AL14+AL14*Титул.лист!$P$2 -> 4147 | AN14: 4150 | AO14: 6219.56 | AP14: =AO14+AO14*Титул.лист!$A$1 -> 6841.516 | AQ14: =AP14+AP14*Титул.лист!$P$2 -> 6841.516 | AR14: 6840 | AS14: 7007.16 | AT14: =AS14+AS14*Титул.лист!$A$1 -> 7707.876 | AU14: =AT14+AT14*Титул.лист!$P$2 -> 7707.876 | AV14: 7710 | AW14: 5661.08 | AX14: =AW14+AW14*Титул.лист!$A$1 -> 6227.188 | AY14: =AX14+AX14*Титул.лист!$P$2 -> 6227.188 | AZ14: 6230 | BA14: 7099.2 | BB14: =BA14+BA14*Титул.лист!$A$1 -> 7809.12 | BC14: =BB14+BB14*Титул.лист!$P$2 -> 7809.12 | BD14: 7810 | BE14: 9835.2 | BF14: =BE14+BE14*Титул.лист!$A$1 -> 10818.72 | BG14: =BF14+BF14*Титул.лист!$P$2 -> 10818.72 | BH14: 10820
B15: Стол угловой под мойку врезную 1дв. | C15: 800х800 | D15: 1109-80 | E15: 4060 | F15: =E15+E15*Титул.лист!$A$1 -> 4466 | G15: =F15+F15*Титул.лист!$P$2 -> 4466 | H15: 4470 | I15: 4120 | J15: =I15+I15*Титул.лист!$A$1 -> 4532 | K15: =J15+J15*Титул.лист!$P$2 -> 4532 | L15: 4530 | M15: 4320 | N15: =M15+M15*Титул.лист!$A$1 -> 4752 | O15: =N15+N15*Титул.лист!$P$2 -> 4752 | P15: 4750 | Q15: 4370 | R15: =Q15+Q15*Титул.лист!$A$1 -> 4807 | S15: =R15+R15*Титул.лист!$P$2 -> 4807 | T15: 4810 | U15: 4520 | V15: =U15+U15*Титул.лист!$A$1 -> 4972 | W15: =V15+V15*Титул.лист!$P$2 -> 4972 | X15: 4970 | Y15: 4600 | Z15: =Y15+Y15*Титул.лист!$A$1 -> 5060 | AA15: =Z15+Z15*Титул.лист!$P$2 -> 5060 | AB15: 5060 | AC15: 4300 | AD15: =AC15+AC15*Титул.лист!$A$1 -> 4730 | AE15: =AD15+AD15*Титул.лист!$P$2 -> 4730 | AF15: 4730 | AG15: 4400 | AH15: =AG15+AG15*Титул.лист!$A$1 -> 4840 | AI15: =AH15+AH15*Титул.лист!$P$2 -> 4840 | AJ15: 4840 | AK15: 4450 | AL15: =AK15+AK15*Титул.лист!$A$1 -> 4895 | AM15: =AL15+AL15*Титул.лист!$P$2 -> 4895 | AN15: 4900 | AO15: 5230 | AP15: =AO15+AO15*Титул.лист!$A$1 -> 5753 | AQ15: =AP15+AP15*Титул.лист!$P$2 -> 5753 | AR15: 5750 | AS15: 5490 | AT15: =AS15+AS15*Титул.лист!$A$1 -> 6039 | AU15: =AT15+AT15*Титул.лист!$P$2 -> 6039 | AV15: 6040 | AW15: 5051.2 | AX15: =AW15+AW15*Титул.лист!$A$1 -> 5556.32 | AY15: =AX15+AX15*Титул.лист!$P$2 -> 5556.32 | AZ15: 5560 | BA15: 5526.4 | BB15: =BA15+BA15*Титул.лист!$A$1 -> 6079.04 | BC15: =BB15+BB15*Титул.лист!$P$2 -> 6079.04 | BD15: 6080 | BE15: 6438.4 | BF15: =BE15+BE15*Титул.лист!$A$1 -> 7082.24 | BG15: =BF15+BF15*Титул.лист!$P$2 -> 7082.24 | BH15: 7080
B16: Стол под мойку врез угл трапеция Л/ПР | C16: L=600х800*(глубина) | D16: 1112-80 | E16: 3780 | F16: =E16+E16*Титул.лист!$A$1 -> 4158 | G16: =F16+F16*Титул.лист!$P$2 -> 4158 | H16: 4160 | I16: 3840 | J16: =I16+I16*Титул.лист!$A$1 -> 4224 | K16: =J16+J16*Титул.лист!$P$2 -> 4224 | L16: 4220 | M16: 4040 | N16: =M16+M16*Титул.лист!$A$1 -> 4444 | O16: =N16+N16*Титул.лист!$P$2 -> 4444 | P16: 4440 | Q16: 4090 | R16: =Q16+Q16*Титул.лист!$A$1 -> 4499 | S16: =R16+R16*Титул.лист!$P$2 -> 4499 | T16: 4500 | U16: 4240 | V16: =U16+U16*Титул.лист!$A$1 -> 4664 | W16: =V16+V16*Титул.лист!$P$2 -> 4664 | X16: 4660 | Y16: 4320 | Z16: =Y16+Y16*Титул.лист!$A$1 -> 4752 | AA16: =Z16+Z16*Титул.лист!$P$2 -> 4752 | AB16: 4750 | AC16: 4020 | AD16: =AC16+AC16*Титул.лист!$A$1 -> 4422 | AE16: =AD16+AD16*Титул.лист!$P$2 -> 4422 | AF16: 4420 | AG16: 4120 | AH16: =AG16+AG16*Титул.лист!$A$1 -> 4532 | AI16: =AH16+AH16*Титул.лист!$P$2 -> 4532 | AJ16: 4530 | AK16: 4170 | AL16: =AK16+AK16*Титул.лист!$A$1 -> 4587 | AM16: =AL16+AL16*Титул.лист!$P$2 -> 4587 | AN16: 4590 | AO16: 4950 | AP16: =AO16+AO16*Титул.лист!$A$1 -> 5445 | AQ16: =AP16+AP16*Титул.лист!$P$2 -> 5445 | AR16: 5450 | AS16: 5200 | AT16: =AS16+AS16*Титул.лист!$A$1 -> 5720 | AU16: =AT16+AT16*Титул.лист!$P$2 -> 5720 | AV16: 5720 | AW16: 4771.2 | AX16: =AW16+AW16*Титул.лист!$A$1 -> 5248.32 | AY16: =AX16+AX16*Титул.лист!$P$2 -> 5248.32 | AZ16: 5250 | BA16: 5246.4 | BB16: =BA16+BA16*Титул.лист!$A$1 -> 5771.04 | BC16: =BB16+BB16*Титул.лист!$P$2 -> 5771.04 | BD16: 5770 | BE16: 6158.4 | BF16: =BE16+BE16*Титул.лист!$A$1 -> 6774.24 | BG16: =BF16+BF16*Титул.лист!$P$2 -> 6774.24 | BH16: 6770
B17: Стол под мойку врез угл трапеция радиусный Л/ПР | C17: L=800х800*(глубина) | D17: 1114-80 | F17: =E17+E17*Титул.лист!$A$1 -> 0 | G17: =F17+F17*Титул.лист!$P$2 -> 0 | H17: 0 | J17: =I17+I17*Титул.лист!$A$1 -> 0 | K17: =J17+J17*Титул.лист!$P$2 -> 0 | L17: 0 | N17: =M17+M17*Титул.лист!$A$1 -> 0 | O17: =N17+N17*Титул.лист!$P$2 -> 0 | P17: 0 | R17: =Q17+Q17*Титул.лист!$A$1 -> 0 | S17: =R17+R17*Титул.лист!$P$2 -> 0 | T17: 0 | V17: =U17+U17*Титул.лист!$A$1 -> 0 | W17: =V17+V17*Титул.лист!$P$2 -> 0 | X17: 0 | Z17: =Y17+Y17*Титул.лист!$A$1 -> 0 | AA17: =Z17+Z17*Титул.лист!$P$2 -> 0 | AB17: 0 | AC17: 4300 | AD17: =AC17+AC17*Титул.лист!$A$1 -> 4730 | AE17: =AD17+AD17*Титул.лист!$P$2 -> 4730 | AF17: 4730 | AG17: 4400 | AH17: =AG17+AG17*Титул.лист!$A$1 -> 4840 | AI17: =AH17+AH17*Титул.лист!$P$2 -> 4840 | AJ17: 4840 | AK17: 4450 | AL17: =AK17+AK17*Титул.лист!$A$1 -> 4895 | AM17: =AL17+AL17*Титул.лист!$P$2 -> 4895 | AN17: 4900 | AO17: 8800 | AP17: =AO17+AO17*Титул.лист!$A$1 -> 9680 | AQ17: =AP17+AP17*Титул.лист!$P$2 -> 9680 | AR17: 9680 | AS17: 8900 | AT17: =AS17+AS17*Титул.лист!$A$1 -> 9790 | AU17: =AT17+AT17*Титул.лист!$P$2 -> 9790 | AV17: 9790 | AW17: нет | AX17: =AW17+AW17*Титул.лист!$A$1 ->  | AY17: =AX17+AX17*Титул.лист!$P$2 ->  | BA17: нет | BB17: =BA17+BA17*Титул.лист!$A$1 ->  | BC17: =BB17+BB17*Титул.лист!$P$2 ->  | BE17: 12100 | BF17: =BE17+BE17*Титул.лист!$A$1 -> 13310 | BG17: =BF17+BF17*Титул.лист!$P$2 -> 13310 | BH17: 13310
B18: Стол под мойку врез угл трапеция радиусный Л/ПР | C18: L=800х600*(глубина) | D18: 1115-80(60) | F18: =E18+E18*Титул.лист!$A$1 -> 0 | G18: =F18+F18*Титул.лист!$P$2 -> 0 | H18: 0 | J18: =I18+I18*Титул.лист!$A$1 -> 0 | K18: =J18+J18*Титул.лист!$P$2 -> 0 | L18: 0 | N18: =M18+M18*Титул.лист!$A$1 -> 0 | O18: =N18+N18*Титул.лист!$P$2 -> 0 | P18: 0 | R18: =Q18+Q18*Титул.лист!$A$1 -> 0 | S18: =R18+R18*Титул.лист!$P$2 -> 0 | T18: 0 | V18: =U18+U18*Титул.лист!$A$1 -> 0 | W18: =V18+V18*Титул.лист!$P$2 -> 0 | X18: 0 | Z18: =Y18+Y18*Титул.лист!$A$1 -> 0 | AA18: =Z18+Z18*Титул.лист!$P$2 -> 0 | AB18: 0 | AC18: 4020 | AD18: =AC18+AC18*Титул.лист!$A$1 -> 4422 | AE18: =AD18+AD18*Титул.лист!$P$2 -> 4422 | AF18: 4420 | AG18: 4120 | AH18: =AG18+AG18*Титул.лист!$A$1 -> 4532 | AI18: =AH18+AH18*Титул.лист!$P$2 -> 4532 | AJ18: 4530 | AK18: 4170 | AL18: =AK18+AK18*Титул.лист!$A$1 -> 4587 | AM18: =AL18+AL18*Титул.лист!$P$2 -> 4587 | AN18: 4590 | AO18: 8600 | AP18: =AO18+AO18*Титул.лист!$A$1 -> 9460 | AQ18: =AP18+AP18*Титул.лист!$P$2 -> 9460 | AR18: 9460 | AS18: 8700 | AT18: =AS18+AS18*Титул.лист!$A$1 -> 9570 | AU18: =AT18+AT18*Титул.лист!$P$2 -> 9570 | AV18: 9570 | AW18: нет | AX18: =AW18+AW18*Титул.лист!$A$1 ->  | AY18: =AX18+AX18*Титул.лист!$P$2 ->  | BA18: нет | BB18: =BA18+BA18*Титул.лист!$A$1 ->  | BC18: =BB18+BB18*Титул.лист!$P$2 ->  | BE18: 11800 | BF18: =BE18+BE18*Титул.лист!$A$1 -> 12980 | BG18: =BF18+BF18*Титул.лист!$P$2 -> 12980 | BH18: 12980
B19: Стол под мойку прямой уг 1дв.(гл.400) | C19: 800 | D19: 1113-80 | E19: 2244 | F19: =E19+E19*Титул.лист!$A$1 -> 2468.4 | G19: =F19+F19*Титул.лист!$P$2 -> 2468.4 | H19: 2470 | I19: 2290 | J19: =I19+I19*Титул.лист!$A$1 -> 2519 | K19: =J19+J19*Титул.лист!$P$2 -> 2519 | L19: 2520 | M19: 2490 | N19: =M19+M19*Титул.лист!$A$1 -> 2739 | O19: =N19+N19*Титул.лист!$P$2 -> 2739 | P19: 2740 | Q19: 2530 | R19: =Q19+Q19*Титул.лист!$A$1 -> 2783 | S19: =R19+R19*Титул.лист!$P$2 -> 2783 | T19: 2780 | U19: 2660 | V19: =U19+U19*Титул.лист!$A$1 -> 2926 | W19: =V19+V19*Титул.лист!$P$2 -> 2926 | X19: 2930 | Y19: 2710 | Z19: =Y19+Y19*Титул.лист!$A$1 -> 2981 | AA19: =Z19+Z19*Титул.лист!$P$2 -> 2981 | AB19: 2980 | AC19: 2490 | AD19: =AC19+AC19*Титул.лист!$A$1 -> 2739 | AE19: =AD19+AD19*Титул.лист!$P$2 -> 2739 | AF19: 2740 | AG19: 2560 | AH19: =AG19+AG19*Титул.лист!$A$1 -> 2816 | AI19: =AH19+AH19*Титул.лист!$P$2 -> 2816 | AJ19: 2820 | AK19: 2600 | AL19: =AK19+AK19*Титул.лист!$A$1 -> 2860 | AM19: =AL19+AL19*Титул.лист!$P$2 -> 2860 | AN19: 2860 | AO19: 3609.824 | AP19: =AO19+AO19*Титул.лист!$A$1 -> 3970.8064 | AQ19: =AP19+AP19*Титул.лист!$P$2 -> 3970.8064 | AR19: 3970 | AS19: 3924.864 | AT19: =AS19+AS19*Титул.лист!$A$1 -> 4317.3504 | AU19: =AT19+AT19*Титул.лист!$P$2 -> 4317.3504 | AV19: 4320 | AW19: 3050 | AX19: =AW19+AW19*Титул.лист!$A$1 -> 3355 | AY19: =AX19+AX19*Титул.лист!$P$2 -> 3355 | AZ19: 3360 | BA19: 3961.68 | BB19: =BA19+BA19*Титул.лист!$A$1 -> 4357.848 | BC19: =BB19+BB19*Титул.лист!$P$2 -> 4357.848 | BD19: 4360 | BE19: 5056.08 | BF19: =BE19+BE19*Титул.лист!$A$1 -> 5561.688 | BG19: =BF19+BF19*Титул.лист!$P$2 -> 5561.688 | BH19: 5560
B20: Стол под мойку прямой угл. прямой | C20: 900 | D20: 1110-90 | E20: 2431 | F20: =E20+E20*Титул.лист!$A$1 -> 2674.1 | G20: =F20+F20*Титул.лист!$P$2 -> 2674.1 | H20: 2670 | I20: 2490 | J20: =I20+I20*Титул.лист!$A$1 -> 2739 | K20: =J20+J20*Титул.лист!$P$2 -> 2739 | L20: 2740 | M20: 2660 | N20: =M20+M20*Титул.лист!$A$1 -> 2926 | O20: =N20+N20*Титул.лист!$P$2 -> 2926 | P20: 2930 | Q20: 2720 | R20: =Q20+Q20*Титул.лист!$A$1 -> 2992 | S20: =R20+R20*Титул.лист!$P$2 -> 2992 | T20: 2990 | U20: 2840 | V20: =U20+U20*Титул.лист!$A$1 -> 3124 | W20: =V20+V20*Титул.лист!$P$2 -> 3124 | X20: 3120 | Y20: 2890 | Z20: =Y20+Y20*Титул.лист!$A$1 -> 3179 | AA20: =Z20+Z20*Титул.лист!$P$2 -> 3179 | AB20: 3180 | AC20: 2670 | AD20: =AC20+AC20*Титул.лист!$A$1 -> 2937 | AE20: =AD20+AD20*Титул.лист!$P$2 -> 2937 | AF20: 2940 | AG20: 2750 | AH20: =AG20+AG20*Титул.лист!$A$1 -> 3025 | AI20: =AH20+AH20*Титул.лист!$P$2 -> 3025 | AJ20: 3030 | AK20: 2780 | AL20: =AK20+AK20*Титул.лист!$A$1 -> 3058 | AM20: =AL20+AL20*Титул.лист!$P$2 -> 3058 | AN20: 3060 | AO20: 3509.868 | AP20: =AO20+AO20*Титул.лист!$A$1 -> 3860.8548 | AQ20: =AP20+AP20*Титул.лист!$P$2 -> 3860.8548 | AR20: 3860 | AS20: 4100 | AT20: =AS20+AS20*Титул.лист!$A$1 -> 4510 | AU20: =AT20+AT20*Титул.лист!$P$2 -> 4510 | AV20: 4510 | AW20: 3300 | AX20: =AW20+AW20*Титул.лист!$A$1 -> 3630 | AY20: =AX20+AX20*Титул.лист!$P$2 -> 3630 | AZ20: 3630 | BA20: 3773.76 | BB20: =BA20+BA20*Титул.лист!$A$1 -> 4151.136 | BC20: =BB20+BB20*Титул.лист!$P$2 -> 4151.136 | BD20: 4150 | BE20: 4594.56 | BF20: =BE20+BE20*Титул.лист!$A$1 -> 5054.016 | BG20: =BF20+BF20*Титул.лист!$P$2 -> 5054.016 | BH20: 5050
C21: 1000 | D21: 1110-100 | E21: 2629 | F21: =E21+E21*Титул.лист!$A$1 -> 2891.9 | G21: =F21+F21*Титул.лист!$P$2 -> 2891.9 | H21: 2890 | I21: 2680 | J21: =I21+I21*Титул.лист!$A$1 -> 2948 | K21: =J21+J21*Титул.лист!$P$2 -> 2948 | L21: 2950 | M21: 2930 | N21: =M21+M21*Титул.лист!$A$1 -> 3223 | O21: =N21+N21*Титул.лист!$P$2 -> 3223 | P21: 3220 | Q21: 2980 | R21: =Q21+Q21*Титул.лист!$A$1 -> 3278 | S21: =R21+R21*Титул.лист!$P$2 -> 3278 | T21: 3280 | U21: 3160 | V21: =U21+U21*Титул.лист!$A$1 -> 3476 | W21: =V21+V21*Титул.лист!$P$2 -> 3476 | X21: 3480 | Y21: 3210 | Z21: =Y21+Y21*Титул.лист!$A$1 -> 3531 | AA21: =Z21+Z21*Титул.лист!$P$2 -> 3531 | AB21: 3530 | AC21: 2960 | AD21: =AC21+AC21*Титул.лист!$A$1 -> 3256 | AE21: =AD21+AD21*Титул.лист!$P$2 -> 3256 | AF21: 3260 | AG21: 3060 | AH21: =AG21+AG21*Титул.лист!$A$1 -> 3366 | AI21: =AH21+AH21*Титул.лист!$P$2 -> 3366 | AJ21: 3370 | AK21: 3090 | AL21: =AK21+AK21*Титул.лист!$A$1 -> 3399 | AM21: =AL21+AL21*Титул.лист!$P$2 -> 3399 | AN21: 3400 | AO21: 4359.78 | AP21: =AO21+AO21*Титул.лист!$A$1 -> 4795.758 | AQ21: =AP21+AP21*Титул.лист!$P$2 -> 4795.758 | AR21: 4800 | AS21: 4394.864 | AT21: =AS21+AS21*Титул.лист!$A$1 -> 4834.3504 | AU21: =AT21+AT21*Титул.лист!$P$2 -> 4834.3504 | AV21: 4830 | AW21: 3700 | AX21: =AW21+AW21*Титул.лист!$A$1 -> 4070 | AY21: =AX21+AX21*Титул.лист!$P$2 -> 4070 | AZ21: 4070 | BA21: 4063.76 | BB21: =BA21+BA21*Титул.лист!$A$1 -> 4470.136 | BC21: =BB21+BB21*Титул.лист!$P$2 -> 4470.136 | BD21: 4470 | BE21: 4884.56 | BF21: =BE21+BE21*Титул.лист!$A$1 -> 5373.016 | BG21: =BF21+BF21*Титул.лист!$P$2 -> 5373.016 | BH21: 5370
A22: Столы рабочие
B23: Стол 1дв. | C23: 150 | D23: 1001-15 | E23: 1030 | F23: =E23+E23*Титул.лист!$A$1 -> 1133 | G23: =F23+F23*Титул.лист!$P$2 -> 1133 | H23: 1130 | I23: 1100 | J23: =I23+I23*Титул.лист!$A$1 -> 1210 | K23: =J23+J23*Титул.лист!$P$2 -> 1210 | L23: 1210 | M23: 1110 | N23: =M23+M23*Титул.лист!$A$1 -> 1221 | O23: =N23+N23*Титул.лист!$P$2 -> 1221 | P23: 1220 | Q23: 1240 | R23: =Q23+Q23*Титул.лист!$A$1 -> 1364 | S23: =R23+R23*Титул.лист!$P$2 -> 1364 | T23: 1360 | U23: 1300 | V23: =U23+U23*Титул.лист!$A$1 -> 1430 | W23: =V23+V23*Титул.лист!$P$2 -> 1430 | X23: 1430 | Y23: 1370 | Z23: =Y23+Y23*Титул.лист!$A$1 -> 1507 | AA23: =Z23+Z23*Титул.лист!$P$2 -> 1507 | AB23: 1510 | AC23: 1200 | AD23: =AC23+AC23*Титул.лист!$A$1 -> 1320 | AE23: =AD23+AD23*Титул.лист!$P$2 -> 1320 | AF23: 1320 | AG23: 1250 | AH23: =AG23+AG23*Титул.лист!$A$1 -> 1375 | AI23: =AH23+AH23*Титул.лист!$P$2 -> 1375 | AJ23: 1380 | AK23: 1290 | AL23: =AK23+AK23*Титул.лист!$A$1 -> 1419 | AM23: =AL23+AL23*Титул.лист!$P$2 -> 1419 | AN23: 1420 | AO23: 1619.934 | AP23: =AO23+AO23*Титул.лист!$A$1 -> 1781.9274 | AQ23: =AP23+AP23*Титул.лист!$P$2 -> 1781.9274 | AR23: 1780 | AS23: 1738.074 | AT23: =AS23+AS23*Титул.лист!$A$1 -> 1911.8814 | AU23: =AT23+AT23*Титул.лист!$P$2 -> 1911.8814 | AV23: 1910 | AW23: 1536.162 | AX23: =AW23+AW23*Титул.лист!$A$1 -> 1689.7782 | AY23: =AX23+AX23*Титул.лист!$P$2 -> 1689.7782 | AZ23: 1690 | BA23: 1751.88 | BB23: =BA23+BA23*Титул.лист!$A$1 -> 1927.068 | BC23: =BB23+BB23*Титул.лист!$P$2 -> 1927.068 | BD23: 1930 | BE23: 2162.28 | BF23: =BE23+BE23*Титул.лист!$A$1 -> 2378.508 | BG23: =BF23+BF23*Титул.лист!$P$2 -> 2378.508 | BH23: 2380
C24: 200 | D24: 1001-20 | E24: 1090 | F24: =E24+E24*Титул.лист!$A$1 -> 1199 | G24: =F24+F24*Титул.лист!$P$2 -> 1199 | H24: 1200 | I24: 1130 | J24: =I24+I24*Титул.лист!$A$1 -> 1243 | K24: =J24+J24*Титул.лист!$P$2 -> 1243 | L24: 1240 | M24: 1250 | N24: =M24+M24*Титул.лист!$A$1 -> 1375 | O24: =N24+N24*Титул.лист!$P$2 -> 1375 | P24: 1380 | Q24: 1300 | R24: =Q24+Q24*Титул.лист!$A$1 -> 1430 | S24: =R24+R24*Титул.лист!$P$2 -> 1430 | T24: 1430 | U24: 1360 | V24: =U24+U24*Титул.лист!$A$1 -> 1496 | W24: =V24+V24*Титул.лист!$P$2 -> 1496 | X24: 1500 | Y24: 1410 | Z24: =Y24+Y24*Титул.лист!$A$1 -> 1551 | AA24: =Z24+Z24*Титул.лист!$P$2 -> 1551 | AB24: 1550 | AC24: 1250 | AD24: =AC24+AC24*Титул.лист!$A$1 -> 1375 | AE24: =AD24+AD24*Титул.лист!$P$2 -> 1375 | AF24: 1380 | AG24: 1310 | AH24: =AG24+AG24*Титул.лист!$A$1 -> 1441 | AI24: =AH24+AH24*Титул.лист!$P$2 -> 1441 | AJ24: 1440 | AK24: 1330 | AL24: =AK24+AK24*Титул.лист!$A$1 -> 1463 | AM24: =AL24+AL24*Титул.лист!$P$2 -> 1463 | AN24: 1460 | AO24: 1809.912 | AP24: =AO24+AO24*Титул.лист!$A$1 -> 1990.9032 | AQ24: =AP24+AP24*Титул.лист!$P$2 -> 1990.9032 | AR24: 1990 | AS24: 1967.432 | AT24: =AS24+AS24*Титул.лист!$A$1 -> 2164.1752 | AU24: =AT24+AT24*Титул.лист!$P$2 -> 2164.1752 | AV24: 2160 | AW24: 1698.216 | AX24: =AW24+AW24*Титул.лист!$A$1 -> 1868.0376 | AY24: =AX24+AX24*Титул.лист!$P$2 -> 1868.0376 | AZ24: 1870 | BA24: 1985.84 | BB24: =BA24+BA24*Титул.лист!$A$1 -> 2184.424 | BC24: =BB24+BB24*Титул.лист!$P$2 -> 2184.424 | BD24: 2180 | BE24: 2533.04 | BF24: =BE24+BE24*Титул.лист!$A$1 -> 2786.344 | BG24: =BF24+BF24*Титул.лист!$P$2 -> 2786.344 | BH24: 2790
C25: 300 | D25: 1001-30 | E25: 1320 | F25: =E25+E25*Титул.лист!$A$1 -> 1452 | G25: =F25+F25*Титул.лист!$P$2 -> 1452 | H25: 1450 | I25: 1370 | J25: =I25+I25*Титул.лист!$A$1 -> 1507 | K25: =J25+J25*Титул.лист!$P$2 -> 1507 | L25: 1510 | M25: 1550 | N25: =M25+M25*Титул.лист!$A$1 -> 1705 | O25: =N25+N25*Титул.лист!$P$2 -> 1705 | P25: 1710 | Q25: 1610 | R25: =Q25+Q25*Титул.лист!$A$1 -> 1771 | S25: =R25+R25*Титул.лист!$P$2 -> 1771 | T25: 1770 | U25: 1730 | V25: =U25+U25*Титул.лист!$A$1 -> 1903 | W25: =V25+V25*Титул.лист!$P$2 -> 1903 | X25: 1900 | Y25: 1780 | Z25: =Y25+Y25*Титул.лист!$A$1 -> 1958 | AA25: =Z25+Z25*Титул.лист!$P$2 -> 1958 | AB25: 1960 | AC25: 1560 | AD25: =AC25+AC25*Титул.лист!$A$1 -> 1716 | AE25: =AD25+AD25*Титул.лист!$P$2 -> 1716 | AF25: 1720 | AG25: 1640 | AH25: =AG25+AG25*Титул.лист!$A$1 -> 1804 | AI25: =AH25+AH25*Титул.лист!$P$2 -> 1804 | AJ25: 1800 | AK25: 1670 | AL25: =AK25+AK25*Титул.лист!$A$1 -> 1837 | AM25: =AL25+AL25*Титул.лист!$P$2 -> 1837 | AN25: 1840 | AO25: 2399.868 | AP25: =AO25+AO25*Титул.лист!$A$1 -> 2639.8548 | AQ25: =AP25+AP25*Титул.лист!$P$2 -> 2639.8548 | AR25: 2640 | AS25: 2636.148 | AT25: =AS25+AS25*Титул.лист!$A$1 -> 2899.7628 | AU25: =AT25+AT25*Титул.лист!$P$2 -> 2899.7628 | AV25: 2900 | AW25: 2232.324 | AX25: =AW25+AW25*Титул.лист!$A$1 -> 2455.5564 | AY25: =AX25+AX25*Титул.лист!$P$2 -> 2455.5564 | AZ25: 2460 | BA25: 2663.76 | BB25: =BA25+BA25*Титул.лист!$A$1 -> 2930.136 | BC25: =BB25+BB25*Титул.лист!$P$2 -> 2930.136 | BD25: 2930 | BE25: 3484.56 | BF25: =BE25+BE25*Титул.лист!$A$1 -> 3833.016 | BG25: =BF25+BF25*Титул.лист!$P$2 -> 3833.016 | BH25: 3830
C26: 350 | D26: 1001-35 | E26: 1440 | F26: =E26+E26*Титул.лист!$A$1 -> 1584 | G26: =F26+F26*Титул.лист!$P$2 -> 1584 | H26: 1580 | I26: 1480 | J26: =I26+I26*Титул.лист!$A$1 -> 1628 | K26: =J26+J26*Титул.лист!$P$2 -> 1628 | L26: 1630 | M26: 1700 | N26: =M26+M26*Титул.лист!$A$1 -> 1870 | O26: =N26+N26*Титул.лист!$P$2 -> 1870 | P26: 1870 | Q26: 1750 | R26: =Q26+Q26*Титул.лист!$A$1 -> 1925 | S26: =R26+R26*Титул.лист!$P$2 -> 1925 | T26: 1930 | U26: 1910 | V26: =U26+U26*Титул.лист!$A$1 -> 2101 | W26: =V26+V26*Титул.лист!$P$2 -> 2101 | X26: 2100 | Y26: 1960 | Z26: =Y26+Y26*Титул.лист!$A$1 -> 2156 | AA26: =Z26+Z26*Титул.лист!$P$2 -> 2156 | AB26: 2160 | AC26: 1730 | AD26: =AC26+AC26*Титул.лист!$A$1 -> 1903 | AE26: =AD26+AD26*Титул.лист!$P$2 -> 1903 | AF26: 1900 | AG26: 1800 | AH26: =AG26+AG26*Титул.лист!$A$1 -> 1980 | AI26: =AH26+AH26*Титул.лист!$P$2 -> 1980 | AJ26: 1980 | AK26: 1850 | AL26: =AK26+AK26*Титул.лист!$A$1 -> 2035 | AM26: =AL26+AL26*Титул.лист!$P$2 -> 2035 | AN26: 2040 | AO26: 2709.846 | AP26: =AO26+AO26*Титул.лист!$A$1 -> 2980.8306 | AQ26: =AP26+AP26*Титул.лист!$P$2 -> 2980.8306 | AR26: 2980 | AS26: 2985.506 | AT26: =AS26+AS26*Титул.лист!$A$1 -> 3284.0566 | AU26: =AT26+AT26*Титул.лист!$P$2 -> 3284.0566 | AV26: 3280 | AW26: 2514.378 | AX26: =AW26+AW26*Титул.лист!$A$1 -> 2765.8158 | AY26: =AX26+AX26*Титул.лист!$P$2 -> 2765.8158 | AZ26: 2770 | BA26: 3017.72 | BB26: =BA26+BA26*Титул.лист!$A$1 -> 3319.492 | BC26: =BB26+BB26*Титул.лист!$P$2 -> 3319.492 | BD26: 3320 | BE26: 3975.32 | BF26: =BE26+BE26*Титул.лист!$A$1 -> 4372.852 | BG26: =BF26+BF26*Титул.лист!$P$2 -> 4372.852 | BH26: 4370
C27: 400 | D27: 1001-40 | E27: 1550 | F27: =E27+E27*Титул.лист!$A$1 -> 1705 | G27: =F27+F27*Титул.лист!$P$2 -> 1705 | H27: 1710 | I27: 1610 | J27: =I27+I27*Титул.лист!$A$1 -> 1771 | K27: =J27+J27*Титул.лист!$P$2 -> 1771 | L27: 1770 | M27: 1850 | N27: =M27+M27*Титул.лист!$A$1 -> 2035 | O27: =N27+N27*Титул.лист!$P$2 -> 2035 | P27: 2040 | Q27: 1900 | R27: =Q27+Q27*Титул.лист!$A$1 -> 2090 | S27: =R27+R27*Титул.лист!$P$2 -> 2090 | T27: 2090 | U27: 2080 | V27: =U27+U27*Титул.лист!$A$1 -> 2288 | W27: =V27+V27*Титул.лист!$P$2 -> 2288 | X27: 2290 | Y27: 2130 | Z27: =Y27+Y27*Титул.лист!$A$1 -> 2343 | AA27: =Z27+Z27*Титул.лист!$P$2 -> 2343 | AB27: 2340 | AC27: 1880 | AD27: =AC27+AC27*Титул.лист!$A$1 -> 2068 | AE27: =AD27+AD27*Титул.лист!$P$2 -> 2068 | AF27: 2070 | AG27: 1980 | AH27: =AG27+AG27*Титул.лист!$A$1 -> 2178 | AI27: =AH27+AH27*Титул.лист!$P$2 -> 2178 | AJ27: 2180 | AK27: 2010 | AL27: =AK27+AK27*Титул.лист!$A$1 -> 2211 | AM27: =AL27+AL27*Титул.лист!$P$2 -> 2211 | AN27: 2210 | AO27: 2999.824 | AP27: =AO27+AO27*Титул.лист!$A$1 -> 3299.8064 | AQ27: =AP27+AP27*Титул.лист!$P$2 -> 3299.8064 | AR27: 3300 | AS27: 3314.864 | AT27: =AS27+AS27*Титул.лист!$A$1 -> 3646.3504 | AU27: =AT27+AT27*Титул.лист!$P$2 -> 3646.3504 | AV27: 3650 | AW27: 2776.432 | AX27: =AW27+AW27*Титул.лист!$A$1 -> 3054.0752 | AY27: =AX27+AX27*Титул.лист!$P$2 -> 3054.0752 | AZ27: 3050 | BA27: 3351.68 | BB27: =BA27+BA27*Титул.лист!$A$1 -> 3686.848 | BC27: =BB27+BB27*Титул.лист!$P$2 -> 3686.848 | BD27: 3690 | BE27: 4446.08 | BF27: =BE27+BE27*Титул.лист!$A$1 -> 4890.688 | BG27: =BF27+BF27*Титул.лист!$P$2 -> 4890.688 | BH27: 4890
C28: 450 | D28: 1001-45 | E28: 1670 | F28: =E28+E28*Титул.лист!$A$1 -> 1837 | G28: =F28+F28*Титул.лист!$P$2 -> 1837 | H28: 1840 | I28: 1730 | J28: =I28+I28*Титул.лист!$A$1 -> 1903 | K28: =J28+J28*Титул.лист!$P$2 -> 1903 | L28: 1900 | M28: 2010 | N28: =M28+M28*Титул.лист!$A$1 -> 2211 | O28: =N28+N28*Титул.лист!$P$2 -> 2211 | P28: 2210 | Q28: 2070 | R28: =Q28+Q28*Титул.лист!$A$1 -> 2277 | S28: =R28+R28*Титул.лист!$P$2 -> 2277 | T28: 2280 | U28: 2280 | V28: =U28+U28*Титул.лист!$A$1 -> 2508 | W28: =V28+V28*Титул.лист!$P$2 -> 2508 | X28: 2510 | Y28: 2330 | Z28: =Y28+Y28*Титул.лист!$A$1 -> 2563 | AA28: =Z28+Z28*Титул.лист!$P$2 -> 2563 | AB28: 2560 | AC28: 2050 | AD28: =AC28+AC28*Титул.лист!$A$1 -> 2255 | AE28: =AD28+AD28*Титул.лист!$P$2 -> 2255 | AF28: 2260 | AG28: 2160 | AH28: =AG28+AG28*Титул.лист!$A$1 -> 2376 | AI28: =AH28+AH28*Титул.лист!$P$2 -> 2376 | AJ28: 2380 | AK28: 2210 | AL28: =AK28+AK28*Титул.лист!$A$1 -> 2431 | AM28: =AL28+AL28*Титул.лист!$P$2 -> 2431 | AN28: 2430 | AO28: 3309.802 | AP28: =AO28+AO28*Титул.лист!$A$1 -> 3640.7822 | AQ28: =AP28+AP28*Титул.лист!$P$2 -> 3640.7822 | AR28: 3640 | AS28: 3664.222 | AT28: =AS28+AS28*Титул.лист!$A$1 -> 4030.6442 | AU28: =AT28+AT28*Титул.лист!$P$2 -> 4030.6442 | AV28: 4030 | AW28: 3058.486 | AX28: =AW28+AW28*Титул.лист!$A$1 -> 3364.3346 | AY28: =AX28+AX28*Титул.лист!$P$2 -> 3364.3346 | AZ28: 3360 | BA28: 3705.64 | BB28: =BA28+BA28*Титул.лист!$A$1 -> 4076.204 | BC28: =BB28+BB28*Титул.лист!$P$2 -> 4076.204 | BD28: 4080 | BE28: 4936.84 | BF28: =BE28+BE28*Титул.лист!$A$1 -> 5430.524 | BG28: =BF28+BF28*Титул.лист!$P$2 -> 5430.524 | BH28: 5430
C29: 500 | D29: 1001-50 | E29: 1790 | F29: =E29+E29*Титул.лист!$A$1 -> 1969 | G29: =F29+F29*Титул.лист!$P$2 -> 1969 | H29: 1970 | I29: 1850 | J29: =I29+I29*Титул.лист!$A$1 -> 2035 | K29: =J29+J29*Титул.лист!$P$2 -> 2035 | L29: 2040 | M29: 2170 | N29: =M29+M29*Титул.лист!$A$1 -> 2387 | O29: =N29+N29*Титул.лист!$P$2 -> 2387 | P29: 2390 | Q29: 2220 | R29: =Q29+Q29*Титул.лист!$A$1 -> 2442 | S29: =R29+R29*Титул.лист!$P$2 -> 2442 | T29: 2440 | U29: 2460 | V29: =U29+U29*Титул.лист!$A$1 -> 2706 | W29: =V29+V29*Титул.лист!$P$2 -> 2706 | X29: 2710 | Y29: 2520 | Z29: =Y29+Y29*Титул.лист!$A$1 -> 2772 | AA29: =Z29+Z29*Титул.лист!$P$2 -> 2772 | AB29: 2770 | AC29: 2210 | AD29: =AC29+AC29*Титул.лист!$A$1 -> 2431 | AE29: =AD29+AD29*Титул.лист!$P$2 -> 2431 | AF29: 2430 | AG29: 2330 | AH29: =AG29+AG29*Титул.лист!$A$1 -> 2563 | AI29: =AH29+AH29*Титул.лист!$P$2 -> 2563 | AJ29: 2560 | AK29: 2380 | AL29: =AK29+AK29*Титул.лист!$A$1 -> 2618 | AM29: =AL29+AL29*Титул.лист!$P$2 -> 2618 | AN29: 2620 | AO29: 3609.78 | AP29: =AO29+AO29*Титул.лист!$A$1 -> 3970.758 | AQ29: =AP29+AP29*Титул.лист!$P$2 -> 3970.758 | AR29: 3970 | AS29: 4003.58 | AT29: =AS29+AS29*Титул.лист!$A$1 -> 4403.938 | AU29: =AT29+AT29*Титул.лист!$P$2 -> 4403.938 | AV29: 4400 | AW29: 3330.54 | AX29: =AW29+AW29*Титул.лист!$A$1 -> 3663.594 | AY29: =AX29+AX29*Титул.лист!$P$2 -> 3663.594 | AZ29: 3660 | BA29: 4049.6 | BB29: =BA29+BA29*Титул.лист!$A$1 -> 4454.56 | BC29: =BB29+BB29*Титул.лист!$P$2 -> 4454.56 | BD29: 4450 | BE29: 5417.6 | BF29: =BE29+BE29*Титул.лист!$A$1 -> 5959.36 | BG29: =BF29+BF29*Титул.лист!$P$2 -> 5959.36 | BH29: 5960
C30: 600 | D30: 1001-60 | E30: 2020 | F30: =E30+E30*Титул.лист!$A$1 -> 2222 | G30: =F30+F30*Титул.лист!$P$2 -> 2222 | H30: 2220 | I30: 2090 | J30: =I30+I30*Титул.лист!$A$1 -> 2299 | K30: =J30+J30*Титул.лист!$P$2 -> 2299 | L30: 2300 | M30: 2490 | N30: =M30+M30*Титул.лист!$A$1 -> 2739 | O30: =N30+N30*Титул.лист!$P$2 -> 2739 | P30: 2740 | Q30: 2552 | R30: =Q30+Q30*Титул.лист!$A$1 -> 2807.2 | S30: =R30+R30*Титул.лист!$P$2 -> 2807.2 | T30: 2810 | U30: 2830 | V30: =U30+U30*Титул.лист!$A$1 -> 3113 | W30: =V30+V30*Титул.лист!$P$2 -> 3113 | X30: 3110 | Y30: 2890 | Z30: =Y30+Y30*Титул.лист!$A$1 -> 3179 | AA30: =Z30+Z30*Титул.лист!$P$2 -> 3179 | AB30: 3180 | AC30: 2520 | AD30: =AC30+AC30*Титул.лист!$A$1 -> 2772 | AE30: =AD30+AD30*Титул.лист!$P$2 -> 2772 | AF30: 2770 | AG30: 2670 | AH30: =AG30+AG30*Титул.лист!$A$1 -> 2937 | AI30: =AH30+AH30*Титул.лист!$P$2 -> 2937 | AJ30: 2940 | AK30: 2730 | AL30: =AK30+AK30*Титул.лист!$A$1 -> 3003 | AM30: =AL30+AL30*Титул.лист!$P$2 -> 3003 | AN30: 3000 | AO30: 4199.736 | AP30: =AO30+AO30*Титул.лист!$A$1 -> 4619.7096 | AQ30: =AP30+AP30*Титул.лист!$P$2 -> 4619.7096 | AR30: 4620 | AS30: 4672.296 | AT30: =AS30+AS30*Титул.лист!$A$1 -> 5139.5256 | AU30: =AT30+AT30*Титул.лист!$P$2 -> 5139.5256 | AV30: 5140 | AW30: 3864.648 | AX30: =AW30+AW30*Титул.лист!$A$1 -> 4251.1128 | AY30: =AX30+AX30*Титул.лист!$P$2 -> 4251.1128 | AZ30: 4250 | BA30: 4727.52 | BB30: =BA30+BA30*Титул.лист!$A$1 -> 5200.272 | BC30: =BB30+BB30*Титул.лист!$P$2 -> 5200.272 | BD30: 5200 | BE30: 6369.12 | BF30: =BE30+BE30*Титул.лист!$A$1 -> 7006.032 | BG30: =BF30+BF30*Титул.лист!$P$2 -> 7006.032 | BH30: 7010
B31: Стол 2дв | C31: 500 | D31: 1002-50 | E31: 1830 | F31: =E31+E31*Титул.лист!$A$1 -> 2013 | G31: =F31+F31*Титул.лист!$P$2 -> 2013 | H31: 2010 | I31: 1920 | J31: =I31+I31*Титул.лист!$A$1 -> 2112 | K31: =J31+J31*Титул.лист!$P$2 -> 2112 | L31: 2110 | M31: 2210 | N31: =M31+M31*Титул.лист!$A$1 -> 2431 | O31: =N31+N31*Титул.лист!$P$2 -> 2431 | P31: 2430 | Q31: 2310 | R31: =Q31+Q31*Титул.лист!$A$1 -> 2541 | S31: =R31+R31*Титул.лист!$P$2 -> 2541 | T31: 2540 | U31: 2510 | V31: =U31+U31*Титул.лист!$A$1 -> 2761 | W31: =V31+V31*Титул.лист!$P$2 -> 2761 | X31: 2760 | Y31: 2610 | Z31: =Y31+Y31*Титул.лист!$A$1 -> 2871 | AA31: =Z31+Z31*Титул.лист!$P$2 -> 2871 | AB31: 2870 | AC31: 2240 | AD31: =AC31+AC31*Титул.лист!$A$1 -> 2464 | AE31: =AD31+AD31*Титул.лист!$P$2 -> 2464 | AF31: 2460 | AG31: 2360 | AH31: =AG31+AG31*Титул.лист!$A$1 -> 2596 | AI31: =AH31+AH31*Титул.лист!$P$2 -> 2596 | AJ31: 2600 | AK31: 2410 | AL31: =AK31+AK31*Титул.лист!$A$1 -> 2651 | AM31: =AL31+AL31*Титул.лист!$P$2 -> 2651 | AN31: 2650 | AO31: 3639.78 | AP31: =AO31+AO31*Титул.лист!$A$1 -> 4003.758 | AQ31: =AP31+AP31*Титул.лист!$P$2 -> 4003.758 | AR31: 4000 | AS31: 4033.58 | AT31: =AS31+AS31*Титул.лист!$A$1 -> 4436.938 | AU31: =AT31+AT31*Титул.лист!$P$2 -> 4436.938 | AV31: 4440 | AW31: 3360.54 | AX31: =AW31+AW31*Титул.лист!$A$1 -> 3696.594 | AY31: =AX31+AX31*Титул.лист!$P$2 -> 3696.594 | AZ31: 3700 | BA31: 4079.6 | BB31: =BA31+BA31*Титул.лист!$A$1 -> 4487.56 | BC31: =BB31+BB31*Титул.лист!$P$2 -> 4487.56 | BD31: 4490 | BE31: 5447.6 | BF31: =BE31+BE31*Титул.лист!$A$1 -> 5992.36 | BG31: =BF31+BF31*Титул.лист!$P$2 -> 5992.36 | BH31: 5990
C32: 600 | D32: 1002-60 | E32: 2080 | F32: =E32+E32*Титул.лист!$A$1 -> 2288 | G32: =F32+F32*Титул.лист!$P$2 -> 2288 | H32: 2290 | I32: 2180 | J32: =I32+I32*Титул.лист!$A$1 -> 2398 | K32: =J32+J32*Титул.лист!$P$2 -> 2398 | L32: 2400 | M32: 2540 | N32: =M32+M32*Титул.лист!$A$1 -> 2794 | O32: =N32+N32*Титул.лист!$P$2 -> 2794 | P32: 2790 | Q32: 2640 | R32: =Q32+Q32*Титул.лист!$A$1 -> 2904 | S32: =R32+R32*Титул.лист!$P$2 -> 2904 | T32: 2900 | U32: 2880 | V32: =U32+U32*Титул.лист!$A$1 -> 3168 | W32: =V32+V32*Титул.лист!$P$2 -> 3168 | X32: 3170 | Y32: 2980 | Z32: =Y32+Y32*Титул.лист!$A$1 -> 3278 | AA32: =Z32+Z32*Титул.лист!$P$2 -> 3278 | AB32: 3280 | AC32: 2560 | AD32: =AC32+AC32*Титул.лист!$A$1 -> 2816 | AE32: =AD32+AD32*Титул.лист!$P$2 -> 2816 | AF32: 2820 | AG32: 2720 | AH32: =AG32+AG32*Титул.лист!$A$1 -> 2992 | AI32: =AH32+AH32*Титул.лист!$P$2 -> 2992 | AJ32: 2990 | AK32: 2770 | AL32: =AK32+AK32*Титул.лист!$A$1 -> 3047 | AM32: =AL32+AL32*Титул.лист!$P$2 -> 3047 | AN32: 3050 | AO32: 4239.736 | AP32: =AO32+AO32*Титул.лист!$A$1 -> 4663.7096 | AQ32: =AP32+AP32*Титул.лист!$P$2 -> 4663.7096 | AR32: 4660 | AS32: 4712.296 | AT32: =AS32+AS32*Титул.лист!$A$1 -> 5183.5256 | AU32: =AT32+AT32*Титул.лист!$P$2 -> 5183.5256 | AV32: 5180 | AW32: 3904.648 | AX32: =AW32+AW32*Титул.лист!$A$1 -> 4295.1128 | AY32: =AX32+AX32*Титул.лист!$P$2 -> 4295.1128 | AZ32: 4300 | BA32: 4767.52 | BB32: =BA32+BA32*Титул.лист!$A$1 -> 5244.272 | BC32: =BB32+BB32*Титул.лист!$P$2 -> 5244.272 | BD32: 5240 | BE32: 6409.12 | BF32: =BE32+BE32*Титул.лист!$A$1 -> 7050.032 | BG32: =BF32+BF32*Титул.лист!$P$2 -> 7050.032 | BH32: 7050
C33: 700 | D33: 1002-70 | E33: 2330 | F33: =E33+E33*Титул.лист!$A$1 -> 2563 | G33: =F33+F33*Титул.лист!$P$2 -> 2563 | H33: 2560 | I33: 2440 | J33: =I33+I33*Титул.лист!$A$1 -> 2684 | K33: =J33+J33*Титул.лист!$P$2 -> 2684 | L33: 2680 | M33: 2860 | N33: =M33+M33*Титул.лист!$A$1 -> 3146 | O33: =N33+N33*Титул.лист!$P$2 -> 3146 | P33: 3150 | Q33: 2970 | R33: =Q33+Q33*Титул.лист!$A$1 -> 3267 | S33: =R33+R33*Титул.лист!$P$2 -> 3267 | T33: 3270 | U33: 3270 | V33: =U33+U33*Титул.лист!$A$1 -> 3597 | W33: =V33+V33*Титул.лист!$P$2 -> 3597 | X33: 3600 | Y33: 3380 | Z33: =Y33+Y33*Титул.лист!$A$1 -> 3718 | AA33: =Z33+Z33*Титул.лист!$P$2 -> 3718 | AB33: 3720 | AC33: 2910 | AD33: =AC33+AC33*Титул.лист!$A$1 -> 3201 | AE33: =AD33+AD33*Титул.лист!$P$2 -> 3201 | AF33: 3200 | AG33: 3080 | AH33: =AG33+AG33*Титул.лист!$A$1 -> 3388 | AI33: =AH33+AH33*Титул.лист!$P$2 -> 3388 | AJ33: 3390 | AK33: 3160 | AL33: =AK33+AK33*Титул.лист!$A$1 -> 3476 | AM33: =AL33+AL33*Титул.лист!$P$2 -> 3476 | AN33: 3480 | AO33: 4869.692 | AP33: =AO33+AO33*Титул.лист!$A$1 -> 5356.6612 | AQ33: =AP33+AP33*Титул.лист!$P$2 -> 5356.6612 | AR33: 5360 | AS33: 5421.012 | AT33: =AS33+AS33*Титул.лист!$A$1 -> 5963.1132 | AU33: =AT33+AT33*Титул.лист!$P$2 -> 5963.1132 | AV33: 5960 | AW33: 4478.756 | AX33: =AW33+AW33*Титул.лист!$A$1 -> 4926.6316 | AY33: =AX33+AX33*Титул.лист!$P$2 -> 4926.6316 | AZ33: 4930 | BA33: 5485.44 | BB33: =BA33+BA33*Титул.лист!$A$1 -> 6033.984 | BC33: =BB33+BB33*Титул.лист!$P$2 -> 6033.984 | BD33: 6030 | BE33: 7400.64 | BF33: =BE33+BE33*Титул.лист!$A$1 -> 8140.704 | BG33: =BF33+BF33*Титул.лист!$P$2 -> 8140.704 | BH33: 8140
C34: 800 | D34: 1002-80 | E34: 2550 | F34: =E34+E34*Титул.лист!$A$1 -> 2805 | G34: =F34+F34*Титул.лист!$P$2 -> 2805 | H34: 2810 | I34: 2650 | J34: =I34+I34*Титул.лист!$A$1 -> 2915 | K34: =J34+J34*Титул.лист!$P$2 -> 2915 | L34: 2920 | M34: 3170 | N34: =M34+M34*Титул.лист!$A$1 -> 3487 | O34: =N34+N34*Титул.лист!$P$2 -> 3487 | P34: 3490 | Q34: 3270 | R34: =Q34+Q34*Титул.лист!$A$1 -> 3597 | S34: =R34+R34*Титул.лист!$P$2 -> 3597 | T34: 3600 | U34: 3640 | V34: =U34+U34*Титул.лист!$A$1 -> 4004 | W34: =V34+V34*Титул.лист!$P$2 -> 4004 | X34: 4000 | Y34: 3740 | Z34: =Y34+Y34*Титул.лист!$A$1 -> 4114 | AA34: =Z34+Z34*Титул.лист!$P$2 -> 4114 | AB34: 4110 | AC34: 3210 | AD34: =AC34+AC34*Титул.лист!$A$1 -> 3531 | AE34: =AD34+AD34*Титул.лист!$P$2 -> 3531 | AF34: 3530 | AG34: 3400 | AH34: =AG34+AG34*Титул.лист!$A$1 -> 3740 | AI34: =AH34+AH34*Титул.лист!$P$2 -> 3740 | AJ34: 3740 | AK34: 3490 | AL34: =AK34+AK34*Титул.лист!$A$1 -> 3839 | AM34: =AL34+AL34*Титул.лист!$P$2 -> 3839 | AN34: 3840 | AO34: 5449.648 | AP34: =AO34+AO34*Титул.лист!$A$1 -> 5994.6128 | AQ34: =AP34+AP34*Титул.лист!$P$2 -> 5994.6128 | AR34: 5990 | AS34: 6079.728 | AT34: =AS34+AS34*Титул.лист!$A$1 -> 6687.7008 | AU34: =AT34+AT34*Титул.лист!$P$2 -> 6687.7008 | AV34: 6690 | AW34: 5002.864 | AX34: =AW34+AW34*Титул.лист!$A$1 -> 5503.1504 | AY34: =AX34+AX34*Титул.лист!$P$2 -> 5503.1504 | AZ34: 5500 | BA34: 6153.36 | BB34: =BA34+BA34*Титул.лист!$A$1 -> 6768.696 | BC34: =BB34+BB34*Титул.лист!$P$2 -> 6768.696 | BD34: 6770 | BE34: 8342.16 | BF34: =BE34+BE34*Титул.лист!$A$1 -> 9176.376 | BG34: =BF34+BF34*Титул.лист!$P$2 -> 9176.376 | BH34: 9180
C35: 900 | D35: 1002-90 | E35: 2800 | F35: =E35+E35*Титул.лист!$A$1 -> 3080 | G35: =F35+F35*Титул.лист!$P$2 -> 3080 | H35: 3080 | I35: 2910 | J35: =I35+I35*Титул.лист!$A$1 -> 3201 | K35: =J35+J35*Титул.лист!$P$2 -> 3201 | L35: 3200 | M35: 3490 | N35: =M35+M35*Титул.лист!$A$1 -> 3839 | O35: =N35+N35*Титул.лист!$P$2 -> 3839 | P35: 3840 | Q35: 3600 | R35: =Q35+Q35*Титул.лист!$A$1 -> 3960 | S35: =R35+R35*Титул.лист!$P$2 -> 3960 | T35: 3960 | U35: 4010 | V35: =U35+U35*Титул.лист!$A$1 -> 4411 | W35: =V35+V35*Титул.лист!$P$2 -> 4411 | X35: 4410 | Y35: 4120 | Z35: =Y35+Y35*Титул.лист!$A$1 -> 4532 | AA35: =Z35+Z35*Титул.лист!$P$2 -> 4532 | AB35: 4530 | AC35: 3540 | AD35: =AC35+AC35*Титул.лист!$A$1 -> 3894 | AE35: =AD35+AD35*Титул.лист!$P$2 -> 3894 | AF35: 3890 | AG35: 3760 | AH35: =AG35+AG35*Титул.лист!$A$1 -> 4136 | AI35: =AH35+AH35*Титул.лист!$P$2 -> 4136 | AJ35: 4140 | AK35: 3860 | AL35: =AK35+AK35*Титул.лист!$A$1 -> 4246 | AM35: =AL35+AL35*Титул.лист!$P$2 -> 4246 | AN35: 4250 | AO35: 6059.604 | AP35: =AO35+AO35*Титул.лист!$A$1 -> 6665.5644 | AQ35: =AP35+AP35*Титул.лист!$P$2 -> 6665.5644 | AR35: 6670 | AS35: 6768.444 | AT35: =AS35+AS35*Титул.лист!$A$1 -> 7445.2884 | AU35: =AT35+AT35*Титул.лист!$P$2 -> 7445.2884 | AV35: 7450 | AW35: 5556.972 | AX35: =AW35+AW35*Титул.лист!$A$1 -> 6112.6692 | AY35: =AX35+AX35*Титул.лист!$P$2 -> 6112.6692 | AZ35: 6110 | BA35: 6851.28 | BB35: =BA35+BA35*Титул.лист!$A$1 -> 7536.408 | BC35: =BB35+BB35*Титул.лист!$P$2 -> 7536.408 | BD35: 7540 | BE35: 9313.68 | BF35: =BE35+BE35*Титул.лист!$A$1 -> 10245.048 | BG35: =BF35+BF35*Титул.лист!$P$2 -> 10245.048 | BH35: 10250
B36: Стол 1ящ 1дв | C36: 300 | D36: 1003-30 | E36: 1550 | F36: =E36+E36*Титул.лист!$A$1 -> 1705 | G36: =F36+F36*Титул.лист!$P$2 -> 1705 | H36: 1710 | I36: 1620 | J36: =I36+I36*Титул.лист!$A$1 -> 1782 | K36: =J36+J36*Титул.лист!$P$2 -> 1782 | L36: 1780 | M36: 1780 | N36: =M36+M36*Титул.лист!$A$1 -> 1958 | O36: =N36+N36*Титул.лист!$P$2 -> 1958 | P36: 1960 | Q36: 1850 | R36: =Q36+Q36*Титул.лист!$A$1 -> 2035 | S36: =R36+R36*Титул.лист!$P$2 -> 2035 | T36: 2040 | U36: 1960 | V36: =U36+U36*Титул.лист!$A$1 -> 2156 | W36: =V36+V36*Титул.лист!$P$2 -> 2156 | X36: 2160 | Y36: 2020 | Z36: =Y36+Y36*Титул.лист!$A$1 -> 2222 | AA36: =Z36+Z36*Титул.лист!$P$2 -> 2222 | AB36: 2220 | AC36: 1780 | AD36: =AC36+AC36*Титул.лист!$A$1 -> 1958 | AE36: =AD36+AD36*Титул.лист!$P$2 -> 1958 | AF36: 1960 | AG36: 1860 | AH36: =AG36+AG36*Титул.лист!$A$1 -> 2046 | AI36: =AH36+AH36*Титул.лист!$P$2 -> 2046 | AJ36: 2050 | AK36: 1890 | AL36: =AK36+AK36*Титул.лист!$A$1 -> 2079 | AM36: =AL36+AL36*Титул.лист!$P$2 -> 2079 | AN36: 2080 | AO36: 2619.868 | AP36: =AO36+AO36*Титул.лист!$A$1 -> 2881.8548 | AQ36: =AP36+AP36*Титул.лист!$P$2 -> 2881.8548 | AR36: 2880 | AS36: 2856.148 | AT36: =AS36+AS36*Титул.лист!$A$1 -> 3141.7628 | AU36: =AT36+AT36*Титул.лист!$P$2 -> 3141.7628 | AV36: 3140 | AW36: 2452.324 | AX36: =AW36+AW36*Титул.лист!$A$1 -> 2697.5564 | AY36: =AX36+AX36*Титул.лист!$P$2 -> 2697.5564 | AZ36: 2700 | BA36: 2883.76 | BB36: =BA36+BA36*Титул.лист!$A$1 -> 3172.136 | BC36: =BB36+BB36*Титул.лист!$P$2 -> 3172.136 | BD36: 3170 | BE36: 3704.56 | BF36: =BE36+BE36*Титул.лист!$A$1 -> 4075.016 | BG36: =BF36+BF36*Титул.лист!$P$2 -> 4075.016 | BH36: 4080
C37: 350 | D37: 1003-35 | E37: 1670 | F37: =E37+E37*Титул.лист!$A$1 -> 1837 | G37: =F37+F37*Титул.лист!$P$2 -> 1837 | H37: 1840 | I37: 1730 | J37: =I37+I37*Титул.лист!$A$1 -> 1903 | K37: =J37+J37*Титул.лист!$P$2 -> 1903 | L37: 1900 | M37: 1940 | N37: =M37+M37*Титул.лист!$A$1 -> 2134 | O37: =N37+N37*Титул.лист!$P$2 -> 2134 | P37: 2130 | Q37: 1990 | R37: =Q37+Q37*Титул.лист!$A$1 -> 2189 | S37: =R37+R37*Титул.лист!$P$2 -> 2189 | T37: 2190 | U37: 2130 | V37: =U37+U37*Титул.лист!$A$1 -> 2343 | W37: =V37+V37*Титул.лист!$P$2 -> 2343 | X37: 2340 | Y37: 2190 | Z37: =Y37+Y37*Титул.лист!$A$1 -> 2409 | AA37: =Z37+Z37*Титул.лист!$P$2 -> 2409 | AB37: 2410 | AC37: 1940 | AD37: =AC37+AC37*Титул.лист!$A$1 -> 2134 | AE37: =AD37+AD37*Титул.лист!$P$2 -> 2134 | AF37: 2130 | AG37: 2020 | AH37: =AG37+AG37*Титул.лист!$A$1 -> 2222 | AI37: =AH37+AH37*Титул.лист!$P$2 -> 2222 | AJ37: 2220 | AK37: 2060 | AL37: =AK37+AK37*Титул.лист!$A$1 -> 2266 | AM37: =AL37+AL37*Титул.лист!$P$2 -> 2266 | AN37: 2270 | AO37: 2919.846 | AP37: =AO37+AO37*Титул.лист!$A$1 -> 3211.8306 | AQ37: =AP37+AP37*Титул.лист!$P$2 -> 3211.8306 | AR37: 3210 | AS37: 3195.506 | AT37: =AS37+AS37*Титул.лист!$A$1 -> 3515.0566 | AU37: =AT37+AT37*Титул.лист!$P$2 -> 3515.0566 | AV37: 3520 | AW37: 2724.378 | AX37: =AW37+AW37*Титул.лист!$A$1 -> 2996.8158 | AY37: =AX37+AX37*Титул.лист!$P$2 -> 2996.8158 | AZ37: 3000 | BA37: 3227.72 | BB37: =BA37+BA37*Титул.лист!$A$1 -> 3550.492 | BC37: =BB37+BB37*Титул.лист!$P$2 -> 3550.492 | BD37: 3550 | BE37: 4185.32 | BF37: =BE37+BE37*Титул.лист!$A$1 -> 4603.852 | BG37: =BF37+BF37*Титул.лист!$P$2 -> 4603.852 | BH37: 4600
C38: 400 | D38: 1003-40 | E38: 1790 | F38: =E38+E38*Титул.лист!$A$1 -> 1969 | G38: =F38+F38*Титул.лист!$P$2 -> 1969 | H38: 1970 | I38: 1870 | J38: =I38+I38*Титул.лист!$A$1 -> 2057 | K38: =J38+J38*Титул.лист!$P$2 -> 2057 | L38: 2060 | M38: 2090 | N38: =M38+M38*Титул.лист!$A$1 -> 2299 | O38: =N38+N38*Титул.лист!$P$2 -> 2299 | P38: 2300 | Q38: 2170 | R38: =Q38+Q38*Титул.лист!$A$1 -> 2387 | S38: =R38+R38*Титул.лист!$P$2 -> 2387 | T38: 2390 | U38: 2320 | V38: =U38+U38*Титул.лист!$A$1 -> 2552 | W38: =V38+V38*Титул.лист!$P$2 -> 2552 | X38: 2550 | Y38: 2400 | Z38: =Y38+Y38*Титул.лист!$A$1 -> 2640 | AA38: =Z38+Z38*Титул.лист!$P$2 -> 2640 | AB38: 2640 | AC38: 2120 | AD38: =AC38+AC38*Титул.лист!$A$1 -> 2332 | AE38: =AD38+AD38*Титул.лист!$P$2 -> 2332 | AF38: 2330 | AG38: 2220 | AH38: =AG38+AG38*Титул.лист!$A$1 -> 2442 | AI38: =AH38+AH38*Титул.лист!$P$2 -> 2442 | AJ38: 2440 | AK38: 2250 | AL38: =AK38+AK38*Титул.лист!$A$1 -> 2475 | AM38: =AL38+AL38*Титул.лист!$P$2 -> 2475 | AN38: 2480 | AO38: 3239.824 | AP38: =AO38+AO38*Титул.лист!$A$1 -> 3563.8064 | AQ38: =AP38+AP38*Титул.лист!$P$2 -> 3563.8064 | AR38: 3560 | AS38: 3554.864 | AT38: =AS38+AS38*Титул.лист!$A$1 -> 3910.3504 | AU38: =AT38+AT38*Титул.лист!$P$2 -> 3910.3504 | AV38: 3910 | AW38: 3016.432 | AX38: =AW38+AW38*Титул.лист!$A$1 -> 3318.0752 | AY38: =AX38+AX38*Титул.лист!$P$2 -> 3318.0752 | AZ38: 3320 | BA38: 3591.68 | BB38: =BA38+BA38*Титул.лист!$A$1 -> 3950.848 | BC38: =BB38+BB38*Титул.лист!$P$2 -> 3950.848 | BD38: 3950 | BE38: 4686.08 | BF38: =BE38+BE38*Титул.лист!$A$1 -> 5154.688 | BG38: =BF38+BF38*Титул.лист!$P$2 -> 5154.688 | BH38: 5150
C39: 450 | D39: 1003-45 | E39: 1920 | F39: =E39+E39*Титул.лист!$A$1 -> 2112 | G39: =F39+F39*Титул.лист!$P$2 -> 2112 | H39: 2110 | I39: 2000 | J39: =I39+I39*Титул.лист!$A$1 -> 2200 | K39: =J39+J39*Титул.лист!$P$2 -> 2200 | L39: 2200 | M39: 2270 | N39: =M39+M39*Титул.лист!$A$1 -> 2497 | O39: =N39+N39*Титул.лист!$P$2 -> 2497 | P39: 2500 | Q39: 2343 | R39: =Q39+Q39*Титул.лист!$A$1 -> 2577.3 | S39: =R39+R39*Титул.лист!$P$2 -> 2577.3 | T39: 2580 | U39: 2530 | V39: =U39+U39*Титул.лист!$A$1 -> 2783 | W39: =V39+V39*Титул.лист!$P$2 -> 2783 | X39: 2780 | Y39: 2610 | Z39: =Y39+Y39*Титул.лист!$A$1 -> 2871 | AA39: =Z39+Z39*Титул.лист!$P$2 -> 2871 | AB39: 2870 | AC39: 2290 | AD39: =AC39+AC39*Титул.лист!$A$1 -> 2519 | AE39: =AD39+AD39*Титул.лист!$P$2 -> 2519 | AF39: 2520 | AG39: 2400 | AH39: =AG39+AG39*Титул.лист!$A$1 -> 2640 | AI39: =AH39+AH39*Титул.лист!$P$2 -> 2640 | AJ39: 2640 | AK39: 2440 | AL39: =AK39+AK39*Титул.лист!$A$1 -> 2684 | AM39: =AL39+AL39*Титул.лист!$P$2 -> 2684 | AN39: 2680 | AO39: 3549.802 | AP39: =AO39+AO39*Титул.лист!$A$1 -> 3904.7822 | AQ39: =AP39+AP39*Титул.лист!$P$2 -> 3904.7822 | AR39: 3900 | AS39: 3904.222 | AT39: =AS39+AS39*Титул.лист!$A$1 -> 4294.6442 | AU39: =AT39+AT39*Титул.лист!$P$2 -> 4294.6442 | AV39: 4290 | AW39: 3298.486 | AX39: =AW39+AW39*Титул.лист!$A$1 -> 3628.3346 | AY39: =AX39+AX39*Титул.лист!$P$2 -> 3628.3346 | AZ39: 3630 | BA39: 3945.64 | BB39: =BA39+BA39*Титул.лист!$A$1 -> 4340.204 | BC39: =BB39+BB39*Титул.лист!$P$2 -> 4340.204 | BD39: 4340 | BE39: 5176.84 | BF39: =BE39+BE39*Титул.лист!$A$1 -> 5694.524 | BG39: =BF39+BF39*Титул.лист!$P$2 -> 5694.524 | BH39: 5690
C40: 500 | D40: 1003-50 | E40: 2060 | F40: =E40+E40*Титул.лист!$A$1 -> 2266 | G40: =F40+F40*Титул.лист!$P$2 -> 2266 | H40: 2270 | I40: 2140 | J40: =I40+I40*Титул.лист!$A$1 -> 2354 | K40: =J40+J40*Титул.лист!$P$2 -> 2354 | L40: 2350 | M40: 2440 | N40: =M40+M40*Титул.лист!$A$1 -> 2684 | O40: =N40+N40*Титул.лист!$P$2 -> 2684 | P40: 2680 | Q40: 2530 | R40: =Q40+Q40*Титул.лист!$A$1 -> 2783 | S40: =R40+R40*Титул.лист!$P$2 -> 2783 | T40: 2780 | U40: 2740 | V40: =U40+U40*Титул.лист!$A$1 -> 3014 | W40: =V40+V40*Титул.лист!$P$2 -> 3014 | X40: 3010 | Y40: 2830 | Z40: =Y40+Y40*Титул.лист!$A$1 -> 3113 | AA40: =Z40+Z40*Титул.лист!$P$2 -> 3113 | AB40: 3110 | AC40: 2480 | AD40: =AC40+AC40*Титул.лист!$A$1 -> 2728 | AE40: =AD40+AD40*Титул.лист!$P$2 -> 2728 | AF40: 2730 | AG40: 2600 | AH40: =AG40+AG40*Титул.лист!$A$1 -> 2860 | AI40: =AH40+AH40*Титул.лист!$P$2 -> 2860 | AJ40: 2860 | AK40: 2640 | AL40: =AK40+AK40*Титул.лист!$A$1 -> 2904 | AM40: =AL40+AL40*Титул.лист!$P$2 -> 2904 | AN40: 2900 | AO40: 3879.78 | AP40: =AO40+AO40*Титул.лист!$A$1 -> 4267.758 | AQ40: =AP40+AP40*Титул.лист!$P$2 -> 4267.758 | AR40: 4270 | AS40: 4273.58 | AT40: =AS40+AS40*Титул.лист!$A$1 -> 4700.938 | AU40: =AT40+AT40*Титул.лист!$P$2 -> 4700.938 | AV40: 4700 | AW40: 3600.54 | AX40: =AW40+AW40*Титул.лист!$A$1 -> 3960.594 | AY40: =AX40+AX40*Титул.лист!$P$2 -> 3960.594 | AZ40: 3960 | BA40: 4319.6 | BB40: =BA40+BA40*Титул.лист!$A$1 -> 4751.56 | BC40: =BB40+BB40*Титул.лист!$P$2 -> 4751.56 | BD40: 4750 | BE40: 5687.6 | BF40: =BE40+BE40*Титул.лист!$A$1 -> 6256.36 | BG40: =BF40+BF40*Титул.лист!$P$2 -> 6256.36 | BH40: 6260
C41: 600 | D41: 1003-60 | E41: 2310 | F41: =E41+E41*Титул.лист!$A$1 -> 2541 | G41: =F41+F41*Титул.лист!$P$2 -> 2541 | H41: 2540 | I41: 2400 | J41: =I41+I41*Титул.лист!$A$1 -> 2640 | K41: =J41+J41*Титул.лист!$P$2 -> 2640 | L41: 2640 | M41: 2770 | N41: =M41+M41*Титул.лист!$A$1 -> 3047 | O41: =N41+N41*Титул.лист!$P$2 -> 3047 | P41: 3050 | Q41: 2860 | R41: =Q41+Q41*Титул.лист!$A$1 -> 3146 | S41: =R41+R41*Титул.лист!$P$2 -> 3146 | T41: 3150 | U41: 3110 | V41: =U41+U41*Титул.лист!$A$1 -> 3421 | W41: =V41+V41*Титул.лист!$P$2 -> 3421 | X41: 3420 | Y41: 3200 | Z41: =Y41+Y41*Титул.лист!$A$1 -> 3520 | AA41: =Z41+Z41*Титул.лист!$P$2 -> 3520 | AB41: 3520 | AC41: 2790 | AD41: =AC41+AC41*Титул.лист!$A$1 -> 3069 | AE41: =AD41+AD41*Титул.лист!$P$2 -> 3069 | AF41: 3070 | AG41: 2950 | AH41: =AG41+AG41*Титул.лист!$A$1 -> 3245 | AI41: =AH41+AH41*Титул.лист!$P$2 -> 3245 | AJ41: 3250 | AK41: 3000 | AL41: =AK41+AK41*Титул.лист!$A$1 -> 3300 | AM41: =AL41+AL41*Титул.лист!$P$2 -> 3300 | AN41: 3300 | AO41: 4469.736 | AP41: =AO41+AO41*Титул.лист!$A$1 -> 4916.7096 | AQ41: =AP41+AP41*Титул.лист!$P$2 -> 4916.7096 | AR41: 4920 | AS41: 4942.296 | AT41: =AS41+AS41*Титул.лист!$A$1 -> 5436.5256 | AU41: =AT41+AT41*Титул.лист!$P$2 -> 5436.5256 | AV41: 5440 | AW41: 4134.648 | AX41: =AW41+AW41*Титул.лист!$A$1 -> 4548.1128 | AY41: =AX41+AX41*Титул.лист!$P$2 -> 4548.1128 | AZ41: 4550 | BA41: 4997.52 | BB41: =BA41+BA41*Титул.лист!$A$1 -> 5497.272 | BC41: =BB41+BB41*Титул.лист!$P$2 -> 5497.272 | BD41: 5500 | BE41: 6639.12 | BF41: =BE41+BE41*Титул.лист!$A$1 -> 7303.032 | BG41: =BF41+BF41*Титул.лист!$P$2 -> 7303.032 | BH41: 7300
B42: Стол 1ящ 1дв. Метабокс | C42: 300 | D42: 1003-30м | E42: =E36+250 -> 1800 | F42: =E42+E42*Титул.лист!$A$1 -> 1980 | G42: =F42+F42*Титул.лист!$P$2 -> 1980 | H42: 1980 | I42: =I36+250 -> 1870 | J42: =I42+I42*Титул.лист!$A$1 -> 2057 | K42: =J42+J42*Титул.лист!$P$2 -> 2057 | L42: 2060 | M42: =M36+250 -> 2030 | N42: =M42+M42*Титул.лист!$A$1 -> 2233 | O42: =N42+N42*Титул.лист!$P$2 -> 2233 | P42: 2230 | Q42: =Q36+250 -> 2100 | R42: =Q42+Q42*Титул.лист!$A$1 -> 2310 | S42: =R42+R42*Титул.лист!$P$2 -> 2310 | T42: 2310 | U42: =U36+250 -> 2210 | V42: =U42+U42*Титул.лист!$A$1 -> 2431 | W42: =V42+V42*Титул.лист!$P$2 -> 2431 | X42: 2430 | Y42: =Y36+250 -> 2270 | Z42: =Y42+Y42*Титул.лист!$A$1 -> 2497 | AA42: =Z42+Z42*Титул.лист!$P$2 -> 2497 | AB42: 2500 | AC42: =AC36+250 -> 2030 | AD42: =AC42+AC42*Титул.лист!$A$1 -> 2233 | AE42: =AD42+AD42*Титул.лист!$P$2 -> 2233 | AF42: 2230 | AG42: =AG36+250 -> 2110 | AH42: =AG42+AG42*Титул.лист!$A$1 -> 2321 | AI42: =AH42+AH42*Титул.лист!$P$2 -> 2321 | AJ42: 2320 | AK42: =AK36+250 -> 2140 | AL42: =AK42+AK42*Титул.лист!$A$1 -> 2354 | AM42: =AL42+AL42*Титул.лист!$P$2 -> 2354 | AN42: 2350 | AO42: 2869.868 | AP42: =AO42+AO42*Титул.лист!$A$1 -> 3156.8548 | AQ42: =AP42+AP42*Титул.лист!$P$2 -> 3156.8548 | AR42: 3160 | AS42: 3106.148 | AT42: =AS42+AS42*Титул.лист!$A$1 -> 3416.7628 | AU42: =AT42+AT42*Титул.лист!$P$2 -> 3416.7628 | AV42: 3420 | AW42: 2702.324 | AX42: =AW42+AW42*Титул.лист!$A$1 -> 2972.5564 | AY42: =AX42+AX42*Титул.лист!$P$2 -> 2972.5564 | AZ42: 2970 | BA42: 3133.76 | BB42: =BA42+BA42*Титул.лист!$A$1 -> 3447.136 | BC42: =BB42+BB42*Титул.лист!$P$2 -> 3447.136 | BD42: 3450 | BE42: 3954.56 | BF42: =BE42+BE42*Титул.лист!$A$1 -> 4350.016 | BG42: =BF42+BF42*Титул.лист!$P$2 -> 4350.016 | BH42: 4350
C43: 350 | D43: 1003-35м | E43: 1920 | F43: =E43+E43*Титул.лист!$A$1 -> 2112 | G43: =F43+F43*Титул.лист!$P$2 -> 2112 | H43: 2110 | I43: 1980 | J43: =I43+I43*Титул.лист!$A$1 -> 2178 | K43: =J43+J43*Титул.лист!$P$2 -> 2178 | L43: 2180 | M43: 2190 | N43: =M43+M43*Титул.лист!$A$1 -> 2409 | O43: =N43+N43*Титул.лист!$P$2 -> 2409 | P43: 2410 | Q43: 2240 | R43: =Q43+Q43*Титул.лист!$A$1 -> 2464 | S43: =R43+R43*Титул.лист!$P$2 -> 2464 | T43: 2460 | U43: 2380 | V43: =U43+U43*Титул.лист!$A$1 -> 2618 | W43: =V43+V43*Титул.лист!$P$2 -> 2618 | X43: 2620 | Y43: 2440 | Z43: =Y43+Y43*Титул.лист!$A$1 -> 2684 | AA43: =Z43+Z43*Титул.лист!$P$2 -> 2684 | AB43: 2680 | AC43: 2190 | AD43: =AC43+AC43*Титул.лист!$A$1 -> 2409 | AE43: =AD43+AD43*Титул.лист!$P$2 -> 2409 | AF43: 2410 | AG43: 2270 | AH43: =AG43+AG43*Титул.лист!$A$1 -> 2497 | AI43: =AH43+AH43*Титул.лист!$P$2 -> 2497 | AJ43: 2500 | AK43: 2310 | AL43: =AK43+AK43*Титул.лист!$A$1 -> 2541 | AM43: =AL43+AL43*Титул.лист!$P$2 -> 2541 | AN43: 2540 | AO43: 3169.846 | AP43: =AO43+AO43*Титул.лист!$A$1 -> 3486.8306 | AQ43: =AP43+AP43*Титул.лист!$P$2 -> 3486.8306 | AR43: 3490 | AS43: 3445.506 | AT43: =AS43+AS43*Титул.лист!$A$1 -> 3790.0566 | AU43: =AT43+AT43*Титул.лист!$P$2 -> 3790.0566 | AV43: 3790 | AW43: 2974.378 | AX43: =AW43+AW43*Титул.лист!$A$1 -> 3271.8158 | AY43: =AX43+AX43*Титул.лист!$P$2 -> 3271.8158 | AZ43: 3270 | BA43: 3477.72 | BB43: =BA43+BA43*Титул.лист!$A$1 -> 3825.492 | BC43: =BB43+BB43*Титул.лист!$P$2 -> 3825.492 | BD43: 3830 | BE43: 4435.32 | BF43: =BE43+BE43*Титул.лист!$A$1 -> 4878.852 | BG43: =BF43+BF43*Титул.лист!$P$2 -> 4878.852 | BH43: 4880
C44: 400 | D44: 1003-40м | E44: 2040 | F44: =E44+E44*Титул.лист!$A$1 -> 2244 | G44: =F44+F44*Титул.лист!$P$2 -> 2244 | H44: 2240 | I44: 2120 | J44: =I44+I44*Титул.лист!$A$1 -> 2332 | K44: =J44+J44*Титул.лист!$P$2 -> 2332 | L44: 2330 | M44: 2340 | N44: =M44+M44*Титул.лист!$A$1 -> 2574 | O44: =N44+N44*Титул.лист!$P$2 -> 2574 | P44: 2570 | Q44: 2420 | R44: =Q44+Q44*Титул.лист!$A$1 -> 2662 | S44: =R44+R44*Титул.лист!$P$2 -> 2662 | T44: 2660 | U44: 2570 | V44: =U44+U44*Титул.лист!$A$1 -> 2827 | W44: =V44+V44*Титул.лист!$P$2 -> 2827 | X44: 2830 | Y44: 2650 | Z44: =Y44+Y44*Титул.лист!$A$1 -> 2915 | AA44: =Z44+Z44*Титул.лист!$P$2 -> 2915 | AB44: 2920 | AC44: 2370 | AD44: =AC44+AC44*Титул.лист!$A$1 -> 2607 | AE44: =AD44+AD44*Титул.лист!$P$2 -> 2607 | AF44: 2610 | AG44: 2470 | AH44: =AG44+AG44*Титул.лист!$A$1 -> 2717 | AI44: =AH44+AH44*Титул.лист!$P$2 -> 2717 | AJ44: 2720 | AK44: 2500 | AL44: =AK44+AK44*Титул.лист!$A$1 -> 2750 | AM44: =AL44+AL44*Титул.лист!$P$2 -> 2750 | AN44: 2750 | AO44: 3489.824 | AP44: =AO44+AO44*Титул.лист!$A$1 -> 3838.8064 | AQ44: =AP44+AP44*Титул.лист!$P$2 -> 3838.8064 | AR44: 3840 | AS44: 3804.864 | AT44: =AS44+AS44*Титул.лист!$A$1 -> 4185.3504 | AU44: =AT44+AT44*Титул.лист!$P$2 -> 4185.3504 | AV44: 4190 | AW44: 3266.432 | AX44: =AW44+AW44*Титул.лист!$A$1 -> 3593.0752 | AY44: =AX44+AX44*Титул.лист!$P$2 -> 3593.0752 | AZ44: 3590 | BA44: 3841.68 | BB44: =BA44+BA44*Титул.лист!$A$1 -> 4225.848 | BC44: =BB44+BB44*Титул.лист!$P$2 -> 4225.848 | BD44: 4230 | BE44: 4936.08 | BF44: =BE44+BE44*Титул.лист!$A$1 -> 5429.688 | BG44: =BF44+BF44*Титул.лист!$P$2 -> 5429.688 | BH44: 5430
C45: 450 | D45: 1003-45м | E45: 2170 | F45: =E45+E45*Титул.лист!$A$1 -> 2387 | G45: =F45+F45*Титул.лист!$P$2 -> 2387 | H45: 2390 | I45: 2250 | J45: =I45+I45*Титул.лист!$A$1 -> 2475 | K45: =J45+J45*Титул.лист!$P$2 -> 2475 | L45: 2480 | M45: 2520 | N45: =M45+M45*Титул.лист!$A$1 -> 2772 | O45: =N45+N45*Титул.лист!$P$2 -> 2772 | P45: 2770 | Q45: 2593 | R45: =Q45+Q45*Титул.лист!$A$1 -> 2852.3 | S45: =R45+R45*Титул.лист!$P$2 -> 2852.3 | T45: 2850 | U45: 2780 | V45: =U45+U45*Титул.лист!$A$1 -> 3058 | W45: =V45+V45*Титул.лист!$P$2 -> 3058 | X45: 3060 | Y45: 2860 | Z45: =Y45+Y45*Титул.лист!$A$1 -> 3146 | AA45: =Z45+Z45*Титул.лист!$P$2 -> 3146 | AB45: 3150 | AC45: 2540 | AD45: =AC45+AC45*Титул.лист!$A$1 -> 2794 | AE45: =AD45+AD45*Титул.лист!$P$2 -> 2794 | AF45: 2790 | AG45: 2650 | AH45: =AG45+AG45*Титул.лист!$A$1 -> 2915 | AI45: =AH45+AH45*Титул.лист!$P$2 -> 2915 | AJ45: 2920 | AK45: 2690 | AL45: =AK45+AK45*Титул.лист!$A$1 -> 2959 | AM45: =AL45+AL45*Титул.лист!$P$2 -> 2959 | AN45: 2960 | AO45: 3799.802 | AP45: =AO45+AO45*Титул.лист!$A$1 -> 4179.7822 | AQ45: =AP45+AP45*Титул.лист!$P$2 -> 4179.7822 | AR45: 4180 | AS45: 4154.222 | AT45: =AS45+AS45*Титул.лист!$A$1 -> 4569.6442 | AU45: =AT45+AT45*Титул.лист!$P$2 -> 4569.6442 | AV45: 4570 | AW45: 3548.486 | AX45: =AW45+AW45*Титул.лист!$A$1 -> 3903.3346 | AY45: =AX45+AX45*Титул.лист!$P$2 -> 3903.3346 | AZ45: 3900 | BA45: 4195.64 | BB45: =BA45+BA45*Титул.лист!$A$1 -> 4615.204 | BC45: =BB45+BB45*Титул.лист!$P$2 -> 4615.204 | BD45: 4620 | BE45: 5426.84 | BF45: =BE45+BE45*Титул.лист!$A$1 -> 5969.524 | BG45: =BF45+BF45*Титул.лист!$P$2 -> 5969.524 | BH45: 5970
C46: 500 | D46: 1003-50м | E46: 2310 | F46: =E46+E46*Титул.лист!$A$1 -> 2541 | G46: =F46+F46*Титул.лист!$P$2 -> 2541 | H46: 2540 | I46: 2390 | J46: =I46+I46*Титул.лист!$A$1 -> 2629 | K46: =J46+J46*Титул.лист!$P$2 -> 2629 | L46: 2630 | M46: 2690 | N46: =M46+M46*Титул.лист!$A$1 -> 2959 | O46: =N46+N46*Титул.лист!$P$2 -> 2959 | P46: 2960 | Q46: 2780 | R46: =Q46+Q46*Титул.лист!$A$1 -> 3058 | S46: =R46+R46*Титул.лист!$P$2 -> 3058 | T46: 3060 | U46: 2990 | V46: =U46+U46*Титул.лист!$A$1 -> 3289 | W46: =V46+V46*Титул.лист!$P$2 -> 3289 | X46: 3290 | Y46: 3080 | Z46: =Y46+Y46*Титул.лист!$A$1 -> 3388 | AA46: =Z46+Z46*Титул.лист!$P$2 -> 3388 | AB46: 3390 | AC46: 2730 | AD46: =AC46+AC46*Титул.лист!$A$1 -> 3003 | AE46: =AD46+AD46*Титул.лист!$P$2 -> 3003 | AF46: 3000 | AG46: 2850 | AH46: =AG46+AG46*Титул.лист!$A$1 -> 3135 | AI46: =AH46+AH46*Титул.лист!$P$2 -> 3135 | AJ46: 3140 | AK46: 2890 | AL46: =AK46+AK46*Титул.лист!$A$1 -> 3179 | AM46: =AL46+AL46*Титул.лист!$P$2 -> 3179 | AN46: 3180 | AO46: 4129.78 | AP46: =AO46+AO46*Титул.лист!$A$1 -> 4542.758 | AQ46: =AP46+AP46*Титул.лист!$P$2 -> 4542.758 | AR46: 4540 | AS46: 4523.58 | AT46: =AS46+AS46*Титул.лист!$A$1 -> 4975.938 | AU46: =AT46+AT46*Титул.лист!$P$2 -> 4975.938 | AV46: 4980 | AW46: 3850.54 | AX46: =AW46+AW46*Титул.лист!$A$1 -> 4235.594 | AY46: =AX46+AX46*Титул.лист!$P$2 -> 4235.594 | AZ46: 4240 | BA46: 4569.6 | BB46: =BA46+BA46*Титул.лист!$A$1 -> 5026.56 | BC46: =BB46+BB46*Титул.лист!$P$2 -> 5026.56 | BD46: 5030 | BE46: 5937.6 | BF46: =BE46+BE46*Титул.лист!$A$1 -> 6531.36 | BG46: =BF46+BF46*Титул.лист!$P$2 -> 6531.36 | BH46: 6530
C47: 600 | D47: 1003-60м | E47: 2560 | F47: =E47+E47*Титул.лист!$A$1 -> 2816 | G47: =F47+F47*Титул.лист!$P$2 -> 2816 | H47: 2820 | I47: 2650 | J47: =I47+I47*Титул.лист!$A$1 -> 2915 | K47: =J47+J47*Титул.лист!$P$2 -> 2915 | L47: 2920 | M47: 3020 | N47: =M47+M47*Титул.лист!$A$1 -> 3322 | O47: =N47+N47*Титул.лист!$P$2 -> 3322 | P47: 3320 | Q47: 3110 | R47: =Q47+Q47*Титул.лист!$A$1 -> 3421 | S47: =R47+R47*Титул.лист!$P$2 -> 3421 | T47: 3420 | U47: 3360 | V47: =U47+U47*Титул.лист!$A$1 -> 3696 | W47: =V47+V47*Титул.лист!$P$2 -> 3696 | X47: 3700 | Y47: 3450 | Z47: =Y47+Y47*Титул.лист!$A$1 -> 3795 | AA47: =Z47+Z47*Титул.лист!$P$2 -> 3795 | AB47: 3800 | AC47: 3040 | AD47: =AC47+AC47*Титул.лист!$A$1 -> 3344 | AE47: =AD47+AD47*Титул.лист!$P$2 -> 3344 | AF47: 3340 | AG47: 3200 | AH47: =AG47+AG47*Титул.лист!$A$1 -> 3520 | AI47: =AH47+AH47*Титул.лист!$P$2 -> 3520 | AJ47: 3520 | AK47: 3250 | AL47: =AK47+AK47*Титул.лист!$A$1 -> 3575 | AM47: =AL47+AL47*Титул.лист!$P$2 -> 3575 | AN47: 3580 | AO47: 4719.736 | AP47: =AO47+AO47*Титул.лист!$A$1 -> 5191.7096 | AQ47: =AP47+AP47*Титул.лист!$P$2 -> 5191.7096 | AR47: 5190 | AS47: 5192.296 | AT47: =AS47+AS47*Титул.лист!$A$1 -> 5711.5256 | AU47: =AT47+AT47*Титул.лист!$P$2 -> 5711.5256 | AV47: 5710 | AW47: 4384.648 | AX47: =AW47+AW47*Титул.лист!$A$1 -> 4823.1128 | AY47: =AX47+AX47*Титул.лист!$P$2 -> 4823.1128 | AZ47: 4820 | BA47: 5247.52 | BB47: =BA47+BA47*Титул.лист!$A$1 -> 5772.272 | BC47: =BB47+BB47*Титул.лист!$P$2 -> 5772.272 | BD47: 5770 | BE47: 6889.12 | BF47: =BE47+BE47*Титул.лист!$A$1 -> 7578.032 | BG47: =BF47+BF47*Титул.лист!$P$2 -> 7578.032 | BH47: 7580
B48: Стол 1ящ 1дв. Тандембокс | C48: 300 | D48: 1003-30т | E48: 3800 | F48: =E48+E48*Титул.лист!$A$1 -> 4180 | G48: =F48+F48*Титул.лист!$P$2 -> 4180 | H48: 4180 | I48: 3870 | J48: =I48+I48*Титул.лист!$A$1 -> 4257 | K48: =J48+J48*Титул.лист!$P$2 -> 4257 | L48: 4260 | M48: 4030 | N48: =M48+M48*Титул.лист!$A$1 -> 4433 | O48: =N48+N48*Титул.лист!$P$2 -> 4433 | P48: 4430 | Q48: 4100 | R48: =Q48+Q48*Титул.лист!$A$1 -> 4510 | S48: =R48+R48*Титул.лист!$P$2 -> 4510 | T48: 4510 | U48: 4210 | V48: =U48+U48*Титул.лист!$A$1 -> 4631 | W48: =V48+V48*Титул.лист!$P$2 -> 4631 | X48: 4630 | Y48: 4270 | Z48: =Y48+Y48*Титул.лист!$A$1 -> 4697 | AA48: =Z48+Z48*Титул.лист!$P$2 -> 4697 | AB48: 4700 | AC48: 4030 | AD48: =AC48+AC48*Титул.лист!$A$1 -> 4433 | AE48: =AD48+AD48*Титул.лист!$P$2 -> 4433 | AF48: 4430 | AG48: 4110 | AH48: =AG48+AG48*Титул.лист!$A$1 -> 4521 | AI48: =AH48+AH48*Титул.лист!$P$2 -> 4521 | AJ48: 4520 | AK48: 4140 | AL48: =AK48+AK48*Титул.лист!$A$1 -> 4554 | AM48: =AL48+AL48*Титул.лист!$P$2 -> 4554 | AN48: 4550 | AO48: 4869.868 | AP48: =AO48+AO48*Титул.лист!$A$1 -> 5356.8548 | AQ48: =AP48+AP48*Титул.лист!$P$2 -> 5356.8548 | AR48: 5360 | AS48: 5106.148 | AT48: =AS48+AS48*Титул.лист!$A$1 -> 5616.7628 | AU48: =AT48+AT48*Титул.лист!$P$2 -> 5616.7628 | AV48: 5620 | AW48: 4702.324 | AX48: =AW48+AW48*Титул.лист!$A$1 -> 5172.5564 | AY48: =AX48+AX48*Титул.лист!$P$2 -> 5172.5564 | AZ48: 5170 | BA48: 5133.76 | BB48: =BA48+BA48*Титул.лист!$A$1 -> 5647.136 | BC48: =BB48+BB48*Титул.лист!$P$2 -> 5647.136 | BD48: 5650 | BE48: 5954.56 | BF48: =BE48+BE48*Титул.лист!$A$1 -> 6550.016 | BG48: =BF48+BF48*Титул.лист!$P$2 -> 6550.016 | BH48: 6550
C49: 350 | D49: 1003-35т | E49: 3920 | F49: =E49+E49*Титул.лист!$A$1 -> 4312 | G49: =F49+F49*Титул.лист!$P$2 -> 4312 | H49: 4310 | I49: 3980 | J49: =I49+I49*Титул.лист!$A$1 -> 4378 | K49: =J49+J49*Титул.лист!$P$2 -> 4378 | L49: 4380 | M49: 4190 | N49: =M49+M49*Титул.лист!$A$1 -> 4609 | O49: =N49+N49*Титул.лист!$P$2 -> 4609 | P49: 4610 | Q49: 4240 | R49: =Q49+Q49*Титул.лист!$A$1 -> 4664 | S49: =R49+R49*Титул.лист!$P$2 -> 4664 | T49: 4660 | U49: 4380 | V49: =U49+U49*Титул.лист!$A$1 -> 4818 | W49: =V49+V49*Титул.лист!$P$2 -> 4818 | X49: 4820 | Y49: 4440 | Z49: =Y49+Y49*Титул.лист!$A$1 -> 4884 | AA49: =Z49+Z49*Титул.лист!$P$2 -> 4884 | AB49: 4880 | AC49: 4190 | AD49: =AC49+AC49*Титул.лист!$A$1 -> 4609 | AE49: =AD49+AD49*Титул.лист!$P$2 -> 4609 | AF49: 4610 | AG49: 4270 | AH49: =AG49+AG49*Титул.лист!$A$1 -> 4697 | AI49: =AH49+AH49*Титул.лист!$P$2 -> 4697 | AJ49: 4700 | AK49: 4310 | AL49: =AK49+AK49*Титул.лист!$A$1 -> 4741 | AM49: =AL49+AL49*Титул.лист!$P$2 -> 4741 | AN49: 4740 | AO49: 5169.846 | AP49: =AO49+AO49*Титул.лист!$A$1 -> 5686.8306 | AQ49: =AP49+AP49*Титул.лист!$P$2 -> 5686.8306 | AR49: 5690 | AS49: 5445.506 | AT49: =AS49+AS49*Титул.лист!$A$1 -> 5990.0566 | AU49: =AT49+AT49*Титул.лист!$P$2 -> 5990.0566 | AV49: 5990 | AW49: 4974.378 | AX49: =AW49+AW49*Титул.лист!$A$1 -> 5471.8158 | AY49: =AX49+AX49*Титул.лист!$P$2 -> 5471.8158 | AZ49: 5470 | BA49: 5477.72 | BB49: =BA49+BA49*Титул.лист!$A$1 -> 6025.492 | BC49: =BB49+BB49*Титул.лист!$P$2 -> 6025.492 | BD49: 6030 | BE49: 6435.32 | BF49: =BE49+BE49*Титул.лист!$A$1 -> 7078.852 | BG49: =BF49+BF49*Титул.лист!$P$2 -> 7078.852 | BH49: 7080
C50: 400 | D50: 1003-40т | E50: 4040 | F50: =E50+E50*Титул.лист!$A$1 -> 4444 | G50: =F50+F50*Титул.лист!$P$2 -> 4444 | H50: 4440 | I50: 4120 | J50: =I50+I50*Титул.лист!$A$1 -> 4532 | K50: =J50+J50*Титул.лист!$P$2 -> 4532 | L50: 4530 | M50: 4340 | N50: =M50+M50*Титул.лист!$A$1 -> 4774 | O50: =N50+N50*Титул.лист!$P$2 -> 4774 | P50: 4770 | Q50: 4420 | R50: =Q50+Q50*Титул.лист!$A$1 -> 4862 | S50: =R50+R50*Титул.лист!$P$2 -> 4862 | T50: 4860 | U50: 4570 | V50: =U50+U50*Титул.лист!$A$1 -> 5027 | W50: =V50+V50*Титул.лист!$P$2 -> 5027 | X50: 5030 | Y50: 4650 | Z50: =Y50+Y50*Титул.лист!$A$1 -> 5115 | AA50: =Z50+Z50*Титул.лист!$P$2 -> 5115 | AB50: 5120 | AC50: 4370 | AD50: =AC50+AC50*Титул.лист!$A$1 -> 4807 | AE50: =AD50+AD50*Титул.лист!$P$2 -> 4807 | AF50: 4810 | AG50: 4470 | AH50: =AG50+AG50*Титул.лист!$A$1 -> 4917 | AI50: =AH50+AH50*Титул.лист!$P$2 -> 4917 | AJ50: 4920 | AK50: 4500 | AL50: =AK50+AK50*Титул.лист!$A$1 -> 4950 | AM50: =AL50+AL50*Титул.лист!$P$2 -> 4950 | AN50: 4950 | AO50: 5489.824 | AP50: =AO50+AO50*Титул.лист!$A$1 -> 6038.8064 | AQ50: =AP50+AP50*Титул.лист!$P$2 -> 6038.8064 | AR50: 6040 | AS50: 5804.864 | AT50: =AS50+AS50*Титул.лист!$A$1 -> 6385.3504 | AU50: =AT50+AT50*Титул.лист!$P$2 -> 6385.3504 | AV50: 6390 | AW50: 5266.432 | AX50: =AW50+AW50*Титул.лист!$A$1 -> 5793.0752 | AY50: =AX50+AX50*Титул.лист!$P$2 -> 5793.0752 | AZ50: 5790 | BA50: 5841.68 | BB50: =BA50+BA50*Титул.лист!$A$1 -> 6425.848 | BC50: =BB50+BB50*Титул.лист!$P$2 -> 6425.848 | BD50: 6430 | BE50: 6936.08 | BF50: =BE50+BE50*Титул.лист!$A$1 -> 7629.688 | BG50: =BF50+BF50*Титул.лист!$P$2 -> 7629.688 | BH50: 7630
C51: 450 | D51: 1003-45т | E51: 4170 | F51: =E51+E51*Титул.лист!$A$1 -> 4587 | G51: =F51+F51*Титул.лист!$P$2 -> 4587 | H51: 4590 | I51: 4250 | J51: =I51+I51*Титул.лист!$A$1 -> 4675 | K51: =J51+J51*Титул.лист!$P$2 -> 4675 | L51: 4680 | M51: 4520 | N51: =M51+M51*Титул.лист!$A$1 -> 4972 | O51: =N51+N51*Титул.лист!$P$2 -> 4972 | P51: 4970 | Q51: 4593 | R51: =Q51+Q51*Титул.лист!$A$1 -> 5052.3 | S51: =R51+R51*Титул.лист!$P$2 -> 5052.3 | T51: 5050 | U51: 4780 | V51: =U51+U51*Титул.лист!$A$1 -> 5258 | W51: =V51+V51*Титул.лист!$P$2 -> 5258 | X51: 5260 | Y51: 4860 | Z51: =Y51+Y51*Титул.лист!$A$1 -> 5346 | AA51: =Z51+Z51*Титул.лист!$P$2 -> 5346 | AB51: 5350 | AC51: 4540 | AD51: =AC51+AC51*Титул.лист!$A$1 -> 4994 | AE51: =AD51+AD51*Титул.лист!$P$2 -> 4994 | AF51: 4990 | AG51: 4650 | AH51: =AG51+AG51*Титул.лист!$A$1 -> 5115 | AI51: =AH51+AH51*Титул.лист!$P$2 -> 5115 | AJ51: 5120 | AK51: 4690 | AL51: =AK51+AK51*Титул.лист!$A$1 -> 5159 | AM51: =AL51+AL51*Титул.лист!$P$2 -> 5159 | AN51: 5160 | AO51: 5799.802 | AP51: =AO51+AO51*Титул.лист!$A$1 -> 6379.7822 | AQ51: =AP51+AP51*Титул.лист!$P$2 -> 6379.7822 | AR51: 6380 | AS51: 6154.222 | AT51: =AS51+AS51*Титул.лист!$A$1 -> 6769.6442 | AU51: =AT51+AT51*Титул.лист!$P$2 -> 6769.6442 | AV51: 6770 | AW51: 5548.486 | AX51: =AW51+AW51*Титул.лист!$A$1 -> 6103.3346 | AY51: =AX51+AX51*Титул.лист!$P$2 -> 6103.3346 | AZ51: 6100 | BA51: 6195.64 | BB51: =BA51+BA51*Титул.лист!$A$1 -> 6815.204 | BC51: =BB51+BB51*Титул.лист!$P$2 -> 6815.204 | BD51: 6820 | BE51: 7426.84 | BF51: =BE51+BE51*Титул.лист!$A$1 -> 8169.524 | BG51: =BF51+BF51*Титул.лист!$P$2 -> 8169.524 | BH51: 8170
C52: 500 | D52: 1003-50т | E52: 4310 | F52: =E52+E52*Титул.лист!$A$1 -> 4741 | G52: =F52+F52*Титул.лист!$P$2 -> 4741 | H52: 4740 | I52: 4390 | J52: =I52+I52*Титул.лист!$A$1 -> 4829 | K52: =J52+J52*Титул.лист!$P$2 -> 4829 | L52: 4830 | M52: 4690 | N52: =M52+M52*Титул.лист!$A$1 -> 5159 | O52: =N52+N52*Титул.лист!$P$2 -> 5159 | P52: 5160 | Q52: 4780 | R52: =Q52+Q52*Титул.лист!$A$1 -> 5258 | S52: =R52+R52*Титул.лист!$P$2 -> 5258 | T52: 5260 | U52: 4990 | V52: =U52+U52*Титул.лист!$A$1 -> 5489 | W52: =V52+V52*Титул.лист!$P$2 -> 5489 | X52: 5490 | Y52: 5080 | Z52: =Y52+Y52*Титул.лист!$A$1 -> 5588 | AA52: =Z52+Z52*Титул.лист!$P$2 -> 5588 | AB52: 5590 | AC52: 4730 | AD52: =AC52+AC52*Титул.лист!$A$1 -> 5203 | AE52: =AD52+AD52*Титул.лист!$P$2 -> 5203 | AF52: 5200 | AG52: 4850 | AH52: =AG52+AG52*Титул.лист!$A$1 -> 5335 | AI52: =AH52+AH52*Титул.лист!$P$2 -> 5335 | AJ52: 5340 | AK52: 4890 | AL52: =AK52+AK52*Титул.лист!$A$1 -> 5379 | AM52: =AL52+AL52*Титул.лист!$P$2 -> 5379 | AN52: 5380 | AO52: 6129.78 | AP52: =AO52+AO52*Титул.лист!$A$1 -> 6742.758 | AQ52: =AP52+AP52*Титул.лист!$P$2 -> 6742.758 | AR52: 6740 | AS52: 6523.58 | AT52: =AS52+AS52*Титул.лист!$A$1 -> 7175.938 | AU52: =AT52+AT52*Титул.лист!$P$2 -> 7175.938 | AV52: 7180 | AW52: 5850.54 | AX52: =AW52+AW52*Титул.лист!$A$1 -> 6435.594 | AY52: =AX52+AX52*Титул.лист!$P$2 -> 6435.594 | AZ52: 6440 | BA52: 6569.6 | BB52: =BA52+BA52*Титул.лист!$A$1 -> 7226.56 | BC52: =BB52+BB52*Титул.лист!$P$2 -> 7226.56 | BD52: 7230 | BE52: 7937.6 | BF52: =BE52+BE52*Титул.лист!$A$1 -> 8731.36 | BG52: =BF52+BF52*Титул.лист!$P$2 -> 8731.36 | BH52: 8730
C53: 600 | D53: 1003-60т | E53: 4560 | F53: =E53+E53*Титул.лист!$A$1 -> 5016 | G53: =F53+F53*Титул.лист!$P$2 -> 5016 | H53: 5020 | I53: 4650 | J53: =I53+I53*Титул.лист!$A$1 -> 5115 | K53: =J53+J53*Титул.лист!$P$2 -> 5115 | L53: 5120 | M53: 5020 | N53: =M53+M53*Титул.лист!$A$1 -> 5522 | O53: =N53+N53*Титул.лист!$P$2 -> 5522 | P53: 5520 | Q53: 5110 | R53: =Q53+Q53*Титул.лист!$A$1 -> 5621 | S53: =R53+R53*Титул.лист!$P$2 -> 5621 | T53: 5620 | U53: 5360 | V53: =U53+U53*Титул.лист!$A$1 -> 5896 | W53: =V53+V53*Титул.лист!$P$2 -> 5896 | X53: 5900 | Y53: 5450 | Z53: =Y53+Y53*Титул.лист!$A$1 -> 5995 | AA53: =Z53+Z53*Титул.лист!$P$2 -> 5995 | AB53: 6000 | AC53: 5040 | AD53: =AC53+AC53*Титул.лист!$A$1 -> 5544 | AE53: =AD53+AD53*Титул.лист!$P$2 -> 5544 | AF53: 5540 | AG53: 5200 | AH53: =AG53+AG53*Титул.лист!$A$1 -> 5720 | AI53: =AH53+AH53*Титул.лист!$P$2 -> 5720 | AJ53: 5720 | AK53: 5250 | AL53: =AK53+AK53*Титул.лист!$A$1 -> 5775 | AM53: =AL53+AL53*Титул.лист!$P$2 -> 5775 | AN53: 5780 | AO53: 6719.736 | AP53: =AO53+AO53*Титул.лист!$A$1 -> 7391.7096 | AQ53: =AP53+AP53*Титул.лист!$P$2 -> 7391.7096 | AR53: 7390 | AS53: 7192.296 | AT53: =AS53+AS53*Титул.лист!$A$1 -> 7911.5256 | AU53: =AT53+AT53*Титул.лист!$P$2 -> 7911.5256 | AV53: 7910 | AW53: 6384.648 | AX53: =AW53+AW53*Титул.лист!$A$1 -> 7023.1128 | AY53: =AX53+AX53*Титул.лист!$P$2 -> 7023.1128 | AZ53: 7020 | BA53: 7247.52 | BB53: =BA53+BA53*Титул.лист!$A$1 -> 7972.272 | BC53: =BB53+BB53*Титул.лист!$P$2 -> 7972.272 | BD53: 7970 | BE53: 8889.12 | BF53: =BE53+BE53*Титул.лист!$A$1 -> 9778.032 | BG53: =BF53+BF53*Титул.лист!$P$2 -> 9778.032 | BH53: 9780
B54: Стол 1ящ 2дв | C54: 500 | D54: 1004-50 | E54: 2120 | F54: =E54+E54*Титул.лист!$A$1 -> 2332 | G54: =F54+F54*Титул.лист!$P$2 -> 2332 | H54: 2330 | I54: 2230 | J54: =I54+I54*Титул.лист!$A$1 -> 2453 | K54: =J54+J54*Титул.лист!$P$2 -> 2453 | L54: 2450 | M54: 2510 | N54: =M54+M54*Титул.лист!$A$1 -> 2761 | O54: =N54+N54*Титул.лист!$P$2 -> 2761 | P54: 2760 | Q54: 2620 | R54: =Q54+Q54*Титул.лист!$A$1 -> 2882 | S54: =R54+R54*Титул.лист!$P$2 -> 2882 | T54: 2880 | U54: 2790 | V54: =U54+U54*Титул.лист!$A$1 -> 3069 | W54: =V54+V54*Титул.лист!$P$2 -> 3069 | X54: 3070 | Y54: 2900 | Z54: =Y54+Y54*Титул.лист!$A$1 -> 3190 | AA54: =Z54+Z54*Титул.лист!$P$2 -> 3190 | AB54: 3190 | AC54: 2520 | AD54: =AC54+AC54*Титул.лист!$A$1 -> 2772 | AE54: =AD54+AD54*Титул.лист!$P$2 -> 2772 | AF54: 2770 | AG54: 2640 | AH54: =AG54+AG54*Титул.лист!$A$1 -> 2904 | AI54: =AH54+AH54*Титул.лист!$P$2 -> 2904 | AJ54: 2900 | AK54: 2690 | AL54: =AK54+AK54*Титул.лист!$A$1 -> 2959 | AM54: =AL54+AL54*Титул.лист!$P$2 -> 2959 | AN54: 2960 | AO54: 3919.78 | AP54: =AO54+AO54*Титул.лист!$A$1 -> 4311.758 | AQ54: =AP54+AP54*Титул.лист!$P$2 -> 4311.758 | AR54: 4310 | AS54: 4313.58 | AT54: =AS54+AS54*Титул.лист!$A$1 -> 4744.938 | AU54: =AT54+AT54*Титул.лист!$P$2 -> 4744.938 | AV54: 4740 | AW54: 3640.54 | AX54: =AW54+AW54*Титул.лист!$A$1 -> 4004.594 | AY54: =AX54+AX54*Титул.лист!$P$2 -> 4004.594 | AZ54: 4000 | BA54: 4359.6 | BB54: =BA54+BA54*Титул.лист!$A$1 -> 4795.56 | BC54: =BB54+BB54*Титул.лист!$P$2 -> 4795.56 | BD54: 4800 | BE54: 5727.6 | BF54: =BE54+BE54*Титул.лист!$A$1 -> 6300.36 | BG54: =BF54+BF54*Титул.лист!$P$2 -> 6300.36 | BH54: 6300
C55: 600 | D55: 1004-60 | E55: 2390 | F55: =E55+E55*Титул.лист!$A$1 -> 2629 | G55: =F55+F55*Титул.лист!$P$2 -> 2629 | H55: 2630 | I55: 2500 | J55: =I55+I55*Титул.лист!$A$1 -> 2750 | K55: =J55+J55*Титул.лист!$P$2 -> 2750 | L55: 2750 | M55: 2840 | N55: =M55+M55*Титул.лист!$A$1 -> 3124 | O55: =N55+N55*Титул.лист!$P$2 -> 3124 | P55: 3120 | Q55: 2950 | R55: =Q55+Q55*Титул.лист!$A$1 -> 3245 | S55: =R55+R55*Титул.лист!$P$2 -> 3245 | T55: 3250 | U55: 3190 | V55: =U55+U55*Титул.лист!$A$1 -> 3509 | W55: =V55+V55*Титул.лист!$P$2 -> 3509 | X55: 3510 | Y55: 3300 | Z55: =Y55+Y55*Титул.лист!$A$1 -> 3630 | AA55: =Z55+Z55*Титул.лист!$P$2 -> 3630 | AB55: 3630 | AC55: 2860 | AD55: =AC55+AC55*Титул.лист!$A$1 -> 3146 | AE55: =AD55+AD55*Титул.лист!$P$2 -> 3146 | AF55: 3150 | AG55: 3000 | AH55: =AG55+AG55*Титул.лист!$A$1 -> 3300 | AI55: =AH55+AH55*Титул.лист!$P$2 -> 3300 | AJ55: 3300 | AK55: 3070 | AL55: =AK55+AK55*Титул.лист!$A$1 -> 3377 | AM55: =AL55+AL55*Титул.лист!$P$2 -> 3377 | AN55: 3380 | AO55: 4539.736 | AP55: =AO55+AO55*Титул.лист!$A$1 -> 4993.7096 | AQ55: =AP55+AP55*Титул.лист!$P$2 -> 4993.7096 | AR55: 4990 | AS55: 5012.296 | AT55: =AS55+AS55*Титул.лист!$A$1 -> 5513.5256 | AU55: =AT55+AT55*Титул.лист!$P$2 -> 5513.5256 | AV55: 5510 | AW55: 4204.648 | AX55: =AW55+AW55*Титул.лист!$A$1 -> 4625.1128 | AY55: =AX55+AX55*Титул.лист!$P$2 -> 4625.1128 | AZ55: 4630 | BA55: 5067.52 | BB55: =BA55+BA55*Титул.лист!$A$1 -> 5574.272 | BC55: =BB55+BB55*Титул.лист!$P$2 -> 5574.272 | BD55: 5570 | BE55: 6709.12 | BF55: =BE55+BE55*Титул.лист!$A$1 -> 7380.032 | BG55: =BF55+BF55*Титул.лист!$P$2 -> 7380.032 | BH55: 7380
C56: 700 | D56: 1004-70 | E56: 2650 | F56: =E56+E56*Титул.лист!$A$1 -> 2915 | G56: =F56+F56*Титул.лист!$P$2 -> 2915 | H56: 2920 | I56: 2780 | J56: =I56+I56*Титул.лист!$A$1 -> 3058 | K56: =J56+J56*Титул.лист!$P$2 -> 3058 | L56: 3060 | M56: 3180 | N56: =M56+M56*Титул.лист!$A$1 -> 3498 | O56: =N56+N56*Титул.лист!$P$2 -> 3498 | P56: 3500 | Q56: 3310 | R56: =Q56+Q56*Титул.лист!$A$1 -> 3641 | S56: =R56+R56*Титул.лист!$P$2 -> 3641 | T56: 3640 | U56: 3590 | V56: =U56+U56*Титул.лист!$A$1 -> 3949 | W56: =V56+V56*Титул.лист!$P$2 -> 3949 | X56: 3950 | Y56: 3720 | Z56: =Y56+Y56*Титул.лист!$A$1 -> 4092 | AA56: =Z56+Z56*Титул.лист!$P$2 -> 4092 | AB56: 4090 | AC56: 3220 | AD56: =AC56+AC56*Титул.лист!$A$1 -> 3542 | AE56: =AD56+AD56*Титул.лист!$P$2 -> 3542 | AF56: 3540 | AG56: 3390 | AH56: =AG56+AG56*Титул.лист!$A$1 -> 3729 | AI56: =AH56+AH56*Титул.лист!$P$2 -> 3729 | AJ56: 3730 | AK56: 3460 | AL56: =AK56+AK56*Титул.лист!$A$1 -> 3806 | AM56: =AL56+AL56*Титул.лист!$P$2 -> 3806 | AN56: 3810 | AO56: 5179.692 | AP56: =AO56+AO56*Титул.лист!$A$1 -> 5697.6612 | AQ56: =AP56+AP56*Титул.лист!$P$2 -> 5697.6612 | AR56: 5700 | AS56: 5731.012 | AT56: =AS56+AS56*Титул.лист!$A$1 -> 6304.1132 | AU56: =AT56+AT56*Титул.лист!$P$2 -> 6304.1132 | AV56: 6300 | AW56: 4788.756 | AX56: =AW56+AW56*Титул.лист!$A$1 -> 5267.6316 | AY56: =AX56+AX56*Титул.лист!$P$2 -> 5267.6316 | AZ56: 5270 | BA56: 5795.44 | BB56: =BA56+BA56*Титул.лист!$A$1 -> 6374.984 | BC56: =BB56+BB56*Титул.лист!$P$2 -> 6374.984 | BD56: 6370 | BE56: 7710.64 | BF56: =BE56+BE56*Титул.лист!$A$1 -> 8481.704 | BG56: =BF56+BF56*Титул.лист!$P$2 -> 8481.704 | BH56: 8480
C57: 800 | D57: 1004-80 | E57: 2900 | F57: =E57+E57*Титул.лист!$A$1 -> 3190 | G57: =F57+F57*Титул.лист!$P$2 -> 3190 | H57: 3190 | I57: 3030 | J57: =I57+I57*Титул.лист!$A$1 -> 3333 | K57: =J57+J57*Титул.лист!$P$2 -> 3333 | L57: 3330 | M57: 3520 | N57: =M57+M57*Титул.лист!$A$1 -> 3872 | O57: =N57+N57*Титул.лист!$P$2 -> 3872 | P57: 3870 | Q57: 3650 | R57: =Q57+Q57*Титул.лист!$A$1 -> 4015 | S57: =R57+R57*Титул.лист!$P$2 -> 4015 | T57: 4020 | U57: 3990 | V57: =U57+U57*Титул.лист!$A$1 -> 4389 | W57: =V57+V57*Титул.лист!$P$2 -> 4389 | X57: 4390 | Y57: 4120 | Z57: =Y57+Y57*Титул.лист!$A$1 -> 4532 | AA57: =Z57+Z57*Титул.лист!$P$2 -> 4532 | AB57: 4530 | AC57: 3550 | AD57: =AC57+AC57*Титул.лист!$A$1 -> 3905 | AE57: =AD57+AD57*Титул.лист!$P$2 -> 3905 | AF57: 3910 | AG57: 3740 | AH57: =AG57+AG57*Титул.лист!$A$1 -> 4114 | AI57: =AH57+AH57*Титул.лист!$P$2 -> 4114 | AJ57: 4110 | AK57: 3830 | AL57: =AK57+AK57*Титул.лист!$A$1 -> 4213 | AM57: =AL57+AL57*Титул.лист!$P$2 -> 4213 | AN57: 4210 | AO57: 5789.648 | AP57: =AO57+AO57*Титул.лист!$A$1 -> 6368.6128 | AQ57: =AP57+AP57*Титул.лист!$P$2 -> 6368.6128 | AR57: 6370 | AS57: 6419.728 | AT57: =AS57+AS57*Титул.лист!$A$1 -> 7061.7008 | AU57: =AT57+AT57*Титул.лист!$P$2 -> 7061.7008 | AV57: 7060 | AW57: 5342.864 | AX57: =AW57+AW57*Титул.лист!$A$1 -> 5877.1504 | AY57: =AX57+AX57*Титул.лист!$P$2 -> 5877.1504 | AZ57: 5880 | BA57: 6493.36 | BB57: =BA57+BA57*Титул.лист!$A$1 -> 7142.696 | BC57: =BB57+BB57*Титул.лист!$P$2 -> 7142.696 | BD57: 7140 | BE57: 8682.16 | BF57: =BE57+BE57*Титул.лист!$A$1 -> 9550.376 | BG57: =BF57+BF57*Титул.лист!$P$2 -> 9550.376 | BH57: 9550
B58: Стол 1ящ 2дв метабокс | C58: 500 | D58: 1004-50м | E58: =E54+250 -> 2370 | F58: =E58+E58*Титул.лист!$A$1 -> 2607 | G58: =F58+F58*Титул.лист!$P$2 -> 2607 | H58: 2610 | I58: =I54+250 -> 2480 | J58: =I58+I58*Титул.лист!$A$1 -> 2728 | K58: =J58+J58*Титул.лист!$P$2 -> 2728 | L58: 2730 | M58: =M54+250 -> 2760 | N58: =M58+M58*Титул.лист!$A$1 -> 3036 | O58: =N58+N58*Титул.лист!$P$2 -> 3036 | P58: 3040 | Q58: =Q54+250 -> 2870 | R58: =Q58+Q58*Титул.лист!$A$1 -> 3157 | S58: =R58+R58*Титул.лист!$P$2 -> 3157 | T58: 3160 | U58: =U54+250 -> 3040 | V58: =U58+U58*Титул.лист!$A$1 -> 3344 | W58: =V58+V58*Титул.лист!$P$2 -> 3344 | X58: 3340 | Y58: =Y54+250 -> 3150 | Z58: =Y58+Y58*Титул.лист!$A$1 -> 3465 | AA58: =Z58+Z58*Титул.лист!$P$2 -> 3465 | AB58: 3470 | AC58: =AC54+250 -> 2770 | AD58: =AC58+AC58*Титул.лист!$A$1 -> 3047 | AE58: =AD58+AD58*Титул.лист!$P$2 -> 3047 | AF58: 3050 | AG58: =AG54+250 -> 2890 | AH58: =AG58+AG58*Титул.лист!$A$1 -> 3179 | AI58: =AH58+AH58*Титул.лист!$P$2 -> 3179 | AJ58: 3180 | AK58: =AK54+250 -> 2940 | AL58: =AK58+AK58*Титул.лист!$A$1 -> 3234 | AM58: =AL58+AL58*Титул.лист!$P$2 -> 3234 | AN58: 3230 | AO58: 4169.78 | AP58: =AO58+AO58*Титул.лист!$A$1 -> 4586.758 | AQ58: =AP58+AP58*Титул.лист!$P$2 -> 4586.758 | AR58: 4590 | AS58: 4563.58 | AT58: =AS58+AS58*Титул.лист!$A$1 -> 5019.938 | AU58: =AT58+AT58*Титул.лист!$P$2 -> 5019.938 | AV58: 5020 | AW58: 3890.54 | AX58: =AW58+AW58*Титул.лист!$A$1 -> 4279.594 | AY58: =AX58+AX58*Титул.лист!$P$2 -> 4279.594 | AZ58: 4280 | BA58: 4609.6 | BB58: =BA58+BA58*Титул.лист!$A$1 -> 5070.56 | BC58: =BB58+BB58*Титул.лист!$P$2 -> 5070.56 | BD58: 5070 | BE58: 5977.6 | BF58: =BE58+BE58*Титул.лист!$A$1 -> 6575.36 | BG58: =BF58+BF58*Титул.лист!$P$2 -> 6575.36 | BH58: 6580
C59: 600 | D59: 1004-60м | E59: =E55+250 -> 2640 | F59: =E59+E59*Титул.лист!$A$1 -> 2904 | G59: =F59+F59*Титул.лист!$P$2 -> 2904 | H59: 2900 | I59: =I55+250 -> 2750 | J59: =I59+I59*Титул.лист!$A$1 -> 3025 | K59: =J59+J59*Титул.лист!$P$2 -> 3025 | L59: 3030 | M59: =M55+250 -> 3090 | N59: =M59+M59*Титул.лист!$A$1 -> 3399 | O59: =N59+N59*Титул.лист!$P$2 -> 3399 | P59: 3400 | Q59: =Q55+250 -> 3200 | R59: =Q59+Q59*Титул.лист!$A$1 -> 3520 | S59: =R59+R59*Титул.лист!$P$2 -> 3520 | T59: 3520 | U59: =U55+250 -> 3440 | V59: =U59+U59*Титул.лист!$A$1 -> 3784 | W59: =V59+V59*Титул.лист!$P$2 -> 3784 | X59: 3780 | Y59: =Y55+250 -> 3550 | Z59: =Y59+Y59*Титул.лист!$A$1 -> 3905 | AA59: =Z59+Z59*Титул.лист!$P$2 -> 3905 | AB59: 3910 | AC59: =AC55+250 -> 3110 | AD59: =AC59+AC59*Титул.лист!$A$1 -> 3421 | AE59: =AD59+AD59*Титул.лист!$P$2 -> 3421 | AF59: 3420 | AG59: =AG55+250 -> 3250 | AH59: =AG59+AG59*Титул.лист!$A$1 -> 3575 | AI59: =AH59+AH59*Титул.лист!$P$2 -> 3575 | AJ59: 3580 | AK59: =AK55+250 -> 3320 | AL59: =AK59+AK59*Титул.лист!$A$1 -> 3652 | AM59: =AL59+AL59*Титул.лист!$P$2 -> 3652 | AN59: 3650 | AO59: 4789.736 | AP59: =AO59+AO59*Титул.лист!$A$1 -> 5268.7096 | AQ59: =AP59+AP59*Титул.лист!$P$2 -> 5268.7096 | AR59: 5270 | AS59: 5262.296 | AT59: =AS59+AS59*Титул.лист!$A$1 -> 5788.5256 | AU59: =AT59+AT59*Титул.лист!$P$2 -> 5788.5256 | AV59: 5790 | AW59: 4454.648 | AX59: =AW59+AW59*Титул.лист!$A$1 -> 4900.1128 | AY59: =AX59+AX59*Титул.лист!$P$2 -> 4900.1128 | AZ59: 4900 | BA59: 5317.52 | BB59: =BA59+BA59*Титул.лист!$A$1 -> 5849.272 | BC59: =BB59+BB59*Титул.лист!$P$2 -> 5849.272 | BD59: 5850 | BE59: 6959.12 | BF59: =BE59+BE59*Титул.лист!$A$1 -> 7655.032 | BG59: =BF59+BF59*Титул.лист!$P$2 -> 7655.032 | BH59: 7660
C60: 700 | D60: 1004-70м | E60: =E56+250 -> 2900 | F60: =E60+E60*Титул.лист!$A$1 -> 3190 | G60: =F60+F60*Титул.лист!$P$2 -> 3190 | H60: 3190 | I60: =I56+250 -> 3030 | J60: =I60+I60*Титул.лист!$A$1 -> 3333 | K60: =J60+J60*Титул.лист!$P$2 -> 3333 | L60: 3330 | M60: =M56+250 -> 3430 | N60: =M60+M60*Титул.лист!$A$1 -> 3773 | O60: =N60+N60*Титул.лист!$P$2 -> 3773 | P60: 3770 | Q60: =Q56+250 -> 3560 | R60: =Q60+Q60*Титул.лист!$A$1 -> 3916 | S60: =R60+R60*Титул.лист!$P$2 -> 3916 | T60: 3920 | U60: =U56+250 -> 3840 | V60: =U60+U60*Титул.лист!$A$1 -> 4224 | W60: =V60+V60*Титул.лист!$P$2 -> 4224 | X60: 4220 | Y60: =Y56+250 -> 3970 | Z60: =Y60+Y60*Титул.лист!$A$1 -> 4367 | AA60: =Z60+Z60*Титул.лист!$P$2 -> 4367 | AB60: 4370 | AC60: =AC56+250 -> 3470 | AD60: =AC60+AC60*Титул.лист!$A$1 -> 3817 | AE60: =AD60+AD60*Титул.лист!$P$2 -> 3817 | AF60: 3820 | AG60: =AG56+250 -> 3640 | AH60: =AG60+AG60*Титул.лист!$A$1 -> 4004 | AI60: =AH60+AH60*Титул.лист!$P$2 -> 4004 | AJ60: 4000 | AK60: =AK56+250 -> 3710 | AL60: =AK60+AK60*Титул.лист!$A$1 -> 4081 | AM60: =AL60+AL60*Титул.лист!$P$2 -> 4081 | AN60: 4080 | AO60: 5429.692 | AP60: =AO60+AO60*Титул.лист!$A$1 -> 5972.6612 | AQ60: =AP60+AP60*Титул.лист!$P$2 -> 5972.6612 | AR60: 5970 | AS60: 5981.012 | AT60: =AS60+AS60*Титул.лист!$A$1 -> 6579.1132 | AU60: =AT60+AT60*Титул.лист!$P$2 -> 6579.1132 | AV60: 6580 | AW60: 5038.756 | AX60: =AW60+AW60*Титул.лист!$A$1 -> 5542.6316 | AY60: =AX60+AX60*Титул.лист!$P$2 -> 5542.6316 | AZ60: 5540 | BA60: 6045.44 | BB60: =BA60+BA60*Титул.лист!$A$1 -> 6649.984 | BC60: =BB60+BB60*Титул.лист!$P$2 -> 6649.984 | BD60: 6650 | BE60: 7960.64 | BF60: =BE60+BE60*Титул.лист!$A$1 -> 8756.704 | BG60: =BF60+BF60*Титул.лист!$P$2 -> 8756.704 | BH60: 8760
C61: 800 | D61: 1004-80м | E61: =E57+250 -> 3150 | F61: =E61+E61*Титул.лист!$A$1 -> 3465 | G61: =F61+F61*Титул.лист!$P$2 -> 3465 | H61: 3470 | I61: =I57+250 -> 3280 | J61: =I61+I61*Титул.лист!$A$1 -> 3608 | K61: =J61+J61*Титул.лист!$P$2 -> 3608 | L61: 3610 | M61: =M57+250 -> 3770 | N61: =M61+M61*Титул.лист!$A$1 -> 4147 | O61: =N61+N61*Титул.лист!$P$2 -> 4147 | P61: 4150 | Q61: =Q57+250 -> 3900 | R61: =Q61+Q61*Титул.лист!$A$1 -> 4290 | S61: =R61+R61*Титул.лист!$P$2 -> 4290 | T61: 4290 | U61: =U57+250 -> 4240 | V61: =U61+U61*Титул.лист!$A$1 -> 4664 | W61: =V61+V61*Титул.лист!$P$2 -> 4664 | X61: 4660 | Y61: =Y57+250 -> 4370 | Z61: =Y61+Y61*Титул.лист!$A$1 -> 4807 | AA61: =Z61+Z61*Титул.лист!$P$2 -> 4807 | AB61: 4810 | AC61: =AC57+250 -> 3800 | AD61: =AC61+AC61*Титул.лист!$A$1 -> 4180 | AE61: =AD61+AD61*Титул.лист!$P$2 -> 4180 | AF61: 4180 | AG61: =AG57+250 -> 3990 | AH61: =AG61+AG61*Титул.лист!$A$1 -> 4389 | AI61: =AH61+AH61*Титул.лист!$P$2 -> 4389 | AJ61: 4390 | AK61: =AK57+250 -> 4080 | AL61: =AK61+AK61*Титул.лист!$A$1 -> 4488 | AM61: =AL61+AL61*Титул.лист!$P$2 -> 4488 | AN61: 4490 | AO61: 6039.648 | AP61: =AO61+AO61*Титул.лист!$A$1 -> 6643.6128 | AQ61: =AP61+AP61*Титул.лист!$P$2 -> 6643.6128 | AR61: 6640 | AS61: 6669.728 | AT61: =AS61+AS61*Титул.лист!$A$1 -> 7336.7008 | AU61: =AT61+AT61*Титул.лист!$P$2 -> 7336.7008 | AV61: 7340 | AW61: 5592.864 | AX61: =AW61+AW61*Титул.лист!$A$1 -> 6152.1504 | AY61: =AX61+AX61*Титул.лист!$P$2 -> 6152.1504 | AZ61: 6150 | BA61: 6743.36 | BB61: =BA61+BA61*Титул.лист!$A$1 -> 7417.696 | BC61: =BB61+BB61*Титул.лист!$P$2 -> 7417.696 | BD61: 7420 | BE61: 8932.16 | BF61: =BE61+BE61*Титул.лист!$A$1 -> 9825.376 | BG61: =BF61+BF61*Титул.лист!$P$2 -> 9825.376 | BH61: 9830
B62: Стол 1ящ 2дв тандембокс | C62: 500 | D62: 1004-50т | E62: 4370 | F62: =E62+E62*Титул.лист!$A$1 -> 4807 | G62: =F62+F62*Титул.лист!$P$2 -> 4807 | H62: 4810 | I62: 4480 | J62: =I62+I62*Титул.лист!$A$1 -> 4928 | K62: =J62+J62*Титул.лист!$P$2 -> 4928 | L62: 4930 | M62: 4760 | N62: =M62+M62*Титул.лист!$A$1 -> 5236 | O62: =N62+N62*Титул.лист!$P$2 -> 5236 | P62: 5240 | Q62: 4870 | R62: =Q62+Q62*Титул.лист!$A$1 -> 5357 | S62: =R62+R62*Титул.лист!$P$2 -> 5357 | T62: 5360 | U62: 5040 | V62: =U62+U62*Титул.лист!$A$1 -> 5544 | W62: =V62+V62*Титул.лист!$P$2 -> 5544 | X62: 5540 | Y62: 5150 | Z62: =Y62+Y62*Титул.лист!$A$1 -> 5665 | AA62: =Z62+Z62*Титул.лист!$P$2 -> 5665 | AB62: 5670 | AC62: 4770 | AD62: =AC62+AC62*Титул.лист!$A$1 -> 5247 | AE62: =AD62+AD62*Титул.лист!$P$2 -> 5247 | AF62: 5250 | AG62: 4890 | AH62: =AG62+AG62*Титул.лист!$A$1 -> 5379 | AI62: =AH62+AH62*Титул.лист!$P$2 -> 5379 | AJ62: 5380 | AK62: 4940 | AL62: =AK62+AK62*Титул.лист!$A$1 -> 5434 | AM62: =AL62+AL62*Титул.лист!$P$2 -> 5434 | AN62: 5430 | AO62: 6169.78 | AP62: =AO62+AO62*Титул.лист!$A$1 -> 6786.758 | AQ62: =AP62+AP62*Титул.лист!$P$2 -> 6786.758 | AR62: 6790 | AS62: 6563.58 | AT62: =AS62+AS62*Титул.лист!$A$1 -> 7219.938 | AU62: =AT62+AT62*Титул.лист!$P$2 -> 7219.938 | AV62: 7220 | AW62: 5890.54 | AX62: =AW62+AW62*Титул.лист!$A$1 -> 6479.594 | AY62: =AX62+AX62*Титул.лист!$P$2 -> 6479.594 | AZ62: 6480 | BA62: 6609.6 | BB62: =BA62+BA62*Титул.лист!$A$1 -> 7270.56 | BC62: =BB62+BB62*Титул.лист!$P$2 -> 7270.56 | BD62: 7270 | BE62: 7977.6 | BF62: =BE62+BE62*Титул.лист!$A$1 -> 8775.36 | BG62: =BF62+BF62*Титул.лист!$P$2 -> 8775.36 | BH62: 8780
C63: 600 | D63: 1004-60т | E63: 4640 | F63: =E63+E63*Титул.лист!$A$1 -> 5104 | G63: =F63+F63*Титул.лист!$P$2 -> 5104 | H63: 5100 | I63: 4750 | J63: =I63+I63*Титул.лист!$A$1 -> 5225 | K63: =J63+J63*Титул.лист!$P$2 -> 5225 | L63: 5230 | M63: 5090 | N63: =M63+M63*Титул.лист!$A$1 -> 5599 | O63: =N63+N63*Титул.лист!$P$2 -> 5599 | P63: 5600 | Q63: 5200 | R63: =Q63+Q63*Титул.лист!$A$1 -> 5720 | S63: =R63+R63*Титул.лист!$P$2 -> 5720 | T63: 5720 | U63: 5440 | V63: =U63+U63*Титул.лист!$A$1 -> 5984 | W63: =V63+V63*Титул.лист!$P$2 -> 5984 | X63: 5980 | Y63: 5550 | Z63: =Y63+Y63*Титул.лист!$A$1 -> 6105 | AA63: =Z63+Z63*Титул.лист!$P$2 -> 6105 | AB63: 6110 | AC63: 5110 | AD63: =AC63+AC63*Титул.лист!$A$1 -> 5621 | AE63: =AD63+AD63*Титул.лист!$P$2 -> 5621 | AF63: 5620 | AG63: 5250 | AH63: =AG63+AG63*Титул.лист!$A$1 -> 5775 | AI63: =AH63+AH63*Титул.лист!$P$2 -> 5775 | AJ63: 5780 | AK63: 5320 | AL63: =AK63+AK63*Титул.лист!$A$1 -> 5852 | AM63: =AL63+AL63*Титул.лист!$P$2 -> 5852 | AN63: 5850 | AO63: 6789.736 | AP63: =AO63+AO63*Титул.лист!$A$1 -> 7468.7096 | AQ63: =AP63+AP63*Титул.лист!$P$2 -> 7468.7096 | AR63: 7470 | AS63: 7262.296 | AT63: =AS63+AS63*Титул.лист!$A$1 -> 7988.5256 | AU63: =AT63+AT63*Титул.лист!$P$2 -> 7988.5256 | AV63: 7990 | AW63: 6454.648 | AX63: =AW63+AW63*Титул.лист!$A$1 -> 7100.1128 | AY63: =AX63+AX63*Титул.лист!$P$2 -> 7100.1128 | AZ63: 7100 | BA63: 7317.52 | BB63: =BA63+BA63*Титул.лист!$A$1 -> 8049.272 | BC63: =BB63+BB63*Титул.лист!$P$2 -> 8049.272 | BD63: 8050 | BE63: 8959.12 | BF63: =BE63+BE63*Титул.лист!$A$1 -> 9855.032 | BG63: =BF63+BF63*Титул.лист!$P$2 -> 9855.032 | BH63: 9860
C64: 700 | D64: 1004-70т | E64: 4900 | F64: =E64+E64*Титул.лист!$A$1 -> 5390 | G64: =F64+F64*Титул.лист!$P$2 -> 5390 | H64: 5390 | I64: 5030 | J64: =I64+I64*Титул.лист!$A$1 -> 5533 | K64: =J64+J64*Титул.лист!$P$2 -> 5533 | L64: 5530 | M64: 5430 | N64: =M64+M64*Титул.лист!$A$1 -> 5973 | O64: =N64+N64*Титул.лист!$P$2 -> 5973 | P64: 5970 | Q64: 5560 | R64: =Q64+Q64*Титул.лист!$A$1 -> 6116 | S64: =R64+R64*Титул.лист!$P$2 -> 6116 | T64: 6120 | U64: 5840 | V64: =U64+U64*Титул.лист!$A$1 -> 6424 | W64: =V64+V64*Титул.лист!$P$2 -> 6424 | X64: 6420 | Y64: 5970 | Z64: =Y64+Y64*Титул.лист!$A$1 -> 6567 | AA64: =Z64+Z64*Титул.лист!$P$2 -> 6567 | AB64: 6570 | AC64: 5470 | AD64: =AC64+AC64*Титул.лист!$A$1 -> 6017 | AE64: =AD64+AD64*Титул.лист!$P$2 -> 6017 | AF64: 6020 | AG64: 5640 | AH64: =AG64+AG64*Титул.лист!$A$1 -> 6204 | AI64: =AH64+AH64*Титул.лист!$P$2 -> 6204 | AJ64: 6200 | AK64: 5710 | AL64: =AK64+AK64*Титул.лист!$A$1 -> 6281 | AM64: =AL64+AL64*Титул.лист!$P$2 -> 6281 | AN64: 6280 | AO64: 7429.692 | AP64: =AO64+AO64*Титул.лист!$A$1 -> 8172.6612 | AQ64: =AP64+AP64*Титул.лист!$P$2 -> 8172.6612 | AR64: 8170 | AS64: 7981.012 | AT64: =AS64+AS64*Титул.лист!$A$1 -> 8779.1132 | AU64: =AT64+AT64*Титул.лист!$P$2 -> 8779.1132 | AV64: 8780 | AW64: 7038.756 | AX64: =AW64+AW64*Титул.лист!$A$1 -> 7742.6316 | AY64: =AX64+AX64*Титул.лист!$P$2 -> 7742.6316 | AZ64: 7740 | BA64: 8045.44 | BB64: =BA64+BA64*Титул.лист!$A$1 -> 8849.984 | BC64: =BB64+BB64*Титул.лист!$P$2 -> 8849.984 | BD64: 8850 | BE64: 9960.64 | BF64: =BE64+BE64*Титул.лист!$A$1 -> 10956.704 | BG64: =BF64+BF64*Титул.лист!$P$2 -> 10956.704 | BH64: 10960
C65: 800 | D65: 1004-80т | E65: 5150 | F65: =E65+E65*Титул.лист!$A$1 -> 5665 | G65: =F65+F65*Титул.лист!$P$2 -> 5665 | H65: 5670 | I65: 5280 | J65: =I65+I65*Титул.лист!$A$1 -> 5808 | K65: =J65+J65*Титул.лист!$P$2 -> 5808 | L65: 5810 | M65: 5770 | N65: =M65+M65*Титул.лист!$A$1 -> 6347 | O65: =N65+N65*Титул.лист!$P$2 -> 6347 | P65: 6350 | Q65: 5900 | R65: =Q65+Q65*Титул.лист!$A$1 -> 6490 | S65: =R65+R65*Титул.лист!$P$2 -> 6490 | T65: 6490 | U65: 6240 | V65: =U65+U65*Титул.лист!$A$1 -> 6864 | W65: =V65+V65*Титул.лист!$P$2 -> 6864 | X65: 6860 | Y65: 6370 | Z65: =Y65+Y65*Титул.лист!$A$1 -> 7007 | AA65: =Z65+Z65*Титул.лист!$P$2 -> 7007 | AB65: 7010 | AC65: 5800 | AD65: =AC65+AC65*Титул.лист!$A$1 -> 6380 | AE65: =AD65+AD65*Титул.лист!$P$2 -> 6380 | AF65: 6380 | AG65: 5990 | AH65: =AG65+AG65*Титул.лист!$A$1 -> 6589 | AI65: =AH65+AH65*Титул.лист!$P$2 -> 6589 | AJ65: 6590 | AK65: 6080 | AL65: =AK65+AK65*Титул.лист!$A$1 -> 6688 | AM65: =AL65+AL65*Титул.лист!$P$2 -> 6688 | AN65: 6690 | AO65: 8039.648 | AP65: =AO65+AO65*Титул.лист!$A$1 -> 8843.6128 | AQ65: =AP65+AP65*Титул.лист!$P$2 -> 8843.6128 | AR65: 8840 | AS65: 8669.728 | AT65: =AS65+AS65*Титул.лист!$A$1 -> 9536.7008 | AU65: =AT65+AT65*Титул.лист!$P$2 -> 9536.7008 | AV65: 9540 | AW65: 7592.864 | AX65: =AW65+AW65*Титул.лист!$A$1 -> 8352.1504 | AY65: =AX65+AX65*Титул.лист!$P$2 -> 8352.1504 | AZ65: 8350 | BA65: 8743.36 | BB65: =BA65+BA65*Титул.лист!$A$1 -> 9617.696 | BC65: =BB65+BB65*Титул.лист!$P$2 -> 9617.696 | BD65: 9620 | BE65: 10932.16 | BF65: =BE65+BE65*Титул.лист!$A$1 -> 12025.376 | BG65: =BF65+BF65*Титул.лист!$P$2 -> 12025.376 | BH65: 12030
B66: Стол 2ящ | C66: 300 | D66: 1006-30 | E66: 2100 | F66: =E66+E66*Титул.лист!$A$1 -> 2310 | G66: =F66+F66*Титул.лист!$P$2 -> 2310 | H66: 2310 | I66: 2200 | J66: =I66+I66*Титул.лист!$A$1 -> 2420 | K66: =J66+J66*Титул.лист!$P$2 -> 2420 | L66: 2420 | M66: 2400 | N66: =M66+M66*Титул.лист!$A$1 -> 2640 | O66: =N66+N66*Титул.лист!$P$2 -> 2640 | P66: 2640 | Q66: 2500 | R66: =Q66+Q66*Титул.лист!$A$1 -> 2750 | S66: =R66+R66*Титул.лист!$P$2 -> 2750 | T66: 2750 | U66: 2600 | V66: =U66+U66*Титул.лист!$A$1 -> 2860 | W66: =V66+V66*Титул.лист!$P$2 -> 2860 | X66: 2860 | Y66: 2700 | Z66: =Y66+Y66*Титул.лист!$A$1 -> 2970 | AA66: =Z66+Z66*Титул.лист!$P$2 -> 2970 | AB66: 2970 | AC66: 2450 | AD66: =AC66+AC66*Титул.лист!$A$1 -> 2695 | AE66: =AD66+AD66*Титул.лист!$P$2 -> 2695 | AF66: 2700 | AG66: 2550 | AH66: =AG66+AG66*Титул.лист!$A$1 -> 2805 | AI66: =AH66+AH66*Титул.лист!$P$2 -> 2805 | AJ66: 2810 | AK66: 2600 | AL66: =AK66+AK66*Титул.лист!$A$1 -> 2860 | AM66: =AL66+AL66*Титул.лист!$P$2 -> 2860 | AN66: 2860 | AO66: 3289.868 | AP66: =AO66+AO66*Титул.лист!$A$1 -> 3618.8548 | AQ66: =AP66+AP66*Титул.лист!$P$2 -> 3618.8548 | AR66: 3620 | AS66: 3526.148 | AT66: =AS66+AS66*Титул.лист!$A$1 -> 3878.7628 | AU66: =AT66+AT66*Титул.лист!$P$2 -> 3878.7628 | AV66: 3880 | AW66: 3122.324 | AX66: =AW66+AW66*Титул.лист!$A$1 -> 3434.5564 | AY66: =AX66+AX66*Титул.лист!$P$2 -> 3434.5564 | AZ66: 3430 | BA66: 3553.76 | BB66: =BA66+BA66*Титул.лист!$A$1 -> 3909.136 | BC66: =BB66+BB66*Титул.лист!$P$2 -> 3909.136 | BD66: 3910 | BE66: 4374.56 | BF66: =BE66+BE66*Титул.лист!$A$1 -> 4812.016 | BG66: =BF66+BF66*Титул.лист!$P$2 -> 4812.016 | BH66: 4810
C67: 400 | D67: 1006-40 | E67: 2140 | F67: =E67+E67*Титул.лист!$A$1 -> 2354 | G67: =F67+F67*Титул.лист!$P$2 -> 2354 | H67: 2350 | I67: 2220 | J67: =I67+I67*Титул.лист!$A$1 -> 2442 | K67: =J67+J67*Титул.лист!$P$2 -> 2442 | L67: 2440 | M67: 2440 | N67: =M67+M67*Титул.лист!$A$1 -> 2684 | O67: =N67+N67*Титул.лист!$P$2 -> 2684 | P67: 2680 | Q67: 2520 | R67: =Q67+Q67*Титул.лист!$A$1 -> 2772 | S67: =R67+R67*Титул.лист!$P$2 -> 2772 | T67: 2770 | U67: 2670 | V67: =U67+U67*Титул.лист!$A$1 -> 2937 | W67: =V67+V67*Титул.лист!$P$2 -> 2937 | X67: 2940 | Y67: 2750 | Z67: =Y67+Y67*Титул.лист!$A$1 -> 3025 | AA67: =Z67+Z67*Титул.лист!$P$2 -> 3025 | AB67: 3030 | AC67: 2490 | AD67: =AC67+AC67*Титул.лист!$A$1 -> 2739 | AE67: =AD67+AD67*Титул.лист!$P$2 -> 2739 | AF67: 2740 | AG67: 2590 | AH67: =AG67+AG67*Титул.лист!$A$1 -> 2849 | AI67: =AH67+AH67*Титул.лист!$P$2 -> 2849 | AJ67: 2850 | AK67: 2620 | AL67: =AK67+AK67*Титул.лист!$A$1 -> 2882 | AM67: =AL67+AL67*Титул.лист!$P$2 -> 2882 | AN67: 2880 | AO67: 3609.824 | AP67: =AO67+AO67*Титул.лист!$A$1 -> 3970.8064 | AQ67: =AP67+AP67*Титул.лист!$P$2 -> 3970.8064 | AR67: 3970 | AS67: 3924.864 | AT67: =AS67+AS67*Титул.лист!$A$1 -> 4317.3504 | AU67: =AT67+AT67*Титул.лист!$P$2 -> 4317.3504 | AV67: 4320 | AW67: 3386.432 | AX67: =AW67+AW67*Титул.лист!$A$1 -> 3725.0752 | AY67: =AX67+AX67*Титул.лист!$P$2 -> 3725.0752 | AZ67: 3730 | BA67: 3961.68 | BB67: =BA67+BA67*Титул.лист!$A$1 -> 4357.848 | BC67: =BB67+BB67*Титул.лист!$P$2 -> 4357.848 | BD67: 4360 | BE67: 5056.08 | BF67: =BE67+BE67*Титул.лист!$A$1 -> 5561.688 | BG67: =BF67+BF67*Титул.лист!$P$2 -> 5561.688 | BH67: 5560
C68: 450 | D68: 1006-45 | E68: 2300 | F68: =E68+E68*Титул.лист!$A$1 -> 2530 | G68: =F68+F68*Титул.лист!$P$2 -> 2530 | H68: =ROUND(G68,-1) -> 2530 | I68: 2400 | J68: =I68+I68*Титул.лист!$A$1 -> 2640 | K68: =J68+J68*Титул.лист!$P$2 -> 2640 | L68: =ROUND(K68,-1) -> 2640 | M68: 2650 | N68: =M68+M68*Титул.лист!$A$1 -> 2915 | O68: =N68+N68*Титул.лист!$P$2 -> 2915 | P68: =ROUND(O68,-1) -> 2920 | Q68: 2700 | R68: =Q68+Q68*Титул.лист!$A$1 -> 2970 | S68: =R68+R68*Титул.лист!$P$2 -> 2970 | T68: =ROUND(S68,-1) -> 2970 | U68: 3050 | V68: =U68+U68*Титул.лист!$A$1 -> 3355 | W68: =V68+V68*Титул.лист!$P$2 -> 3355 | X68: =ROUND(W68,-1) -> 3360 | Y68: 3000 | Z68: =Y68+Y68*Титул.лист!$A$1 -> 3300 | AA68: =Z68+Z68*Титул.лист!$P$2 -> 3300 | AB68: =ROUND(AA68,-1) -> 3300 | AC68: 2700 | AD68: =AC68+AC68*Титул.лист!$A$1 -> 2970 | AE68: =AD68+AD68*Титул.лист!$P$2 -> 2970 | AF68: =ROUND(AE68,-1) -> 2970 | AG68: 2860 | AH68: =AG68+AG68*Титул.лист!$A$1 -> 3146 | AI68: =AH68+AH68*Титул.лист!$P$2 -> 3146 | AJ68: =ROUND(AI68,-1) -> 3150 | AK68: 2900 | AL68: =AK68+AK68*Титул.лист!$A$1 -> 3190 | AM68: =AL68+AL68*Титул.лист!$P$2 -> 3190 | AN68: =ROUND(AM68,-1) -> 3190 | AO68: 3959.802 | AP68: =AO68+AO68*Титул.лист!$A$1 -> 4355.7822 | AQ68: =AP68+AP68*Титул.лист!$P$2 -> 4355.7822 | AR68: =ROUND(AQ68,-1) -> 4360 | AS68: 4314.222 | AT68: =AS68+AS68*Титул.лист!$A$1 -> 4745.6442 | AU68: =AT68+AT68*Титул.лист!$P$2 -> 4745.6442 | AV68: =ROUND(AU68,-1) -> 4750 | AW68: 3708.486 | AX68: =AW68+AW68*Титул.лист!$A$1 -> 4079.3346 | AY68: =AX68+AX68*Титул.лист!$P$2 -> 4079.3346 | AZ68: =ROUND(AY68,-1) -> 4080 | BA68: 4355.64 | BB68: =BA68+BA68*Титул.лист!$A$1 -> 4791.204 | BC68: =BB68+BB68*Титул.лист!$P$2 -> 4791.204 | BD68: =ROUND(BC68,-1) -> 4790 | BE68: 5586.84 | BF68: =BE68+BE68*Титул.лист!$A$1 -> 6145.524 | BG68: =BF68+BF68*Титул.лист!$P$2 -> 6145.524 | BH68: =ROUND(BG68,-1) -> 6150
C69: 500 | D69: 1006-50 | E69: 2430 | F69: =E69+E69*Титул.лист!$A$1 -> 2673 | G69: =F69+F69*Титул.лист!$P$2 -> 2673 | H69: 2670 | I69: 2510 | J69: =I69+I69*Титул.лист!$A$1 -> 2761 | K69: =J69+J69*Титул.лист!$P$2 -> 2761 | L69: 2760 | M69: 2820 | N69: =M69+M69*Титул.лист!$A$1 -> 3102 | O69: =N69+N69*Титул.лист!$P$2 -> 3102 | P69: 3100 | Q69: 2890 | R69: =Q69+Q69*Титул.лист!$A$1 -> 3179 | S69: =R69+R69*Титул.лист!$P$2 -> 3179 | T69: 3180 | U69: 3110 | V69: =U69+U69*Титул.лист!$A$1 -> 3421 | W69: =V69+V69*Титул.лист!$P$2 -> 3421 | X69: 3420 | Y69: 3190 | Z69: =Y69+Y69*Титул.лист!$A$1 -> 3509 | AA69: =Z69+Z69*Титул.лист!$P$2 -> 3509 | AB69: 3510 | AC69: 2840 | AD69: =AC69+AC69*Титул.лист!$A$1 -> 3124 | AE69: =AD69+AD69*Титул.лист!$P$2 -> 3124 | AF69: 3120 | AG69: 2960 | AH69: =AG69+AG69*Титул.лист!$A$1 -> 3256 | AI69: =AH69+AH69*Титул.лист!$P$2 -> 3256 | AJ69: 3260 | AK69: 3000 | AL69: =AK69+AK69*Титул.лист!$A$1 -> 3300 | AM69: =AL69+AL69*Титул.лист!$P$2 -> 3300 | AN69: 3300 | AO69: 4239.78 | AP69: =AO69+AO69*Титул.лист!$A$1 -> 4663.758 | AQ69: =AP69+AP69*Титул.лист!$P$2 -> 4663.758 | AR69: 4660 | AS69: 4633.58 | AT69: =AS69+AS69*Титул.лист!$A$1 -> 5096.938 | AU69: =AT69+AT69*Титул.лист!$P$2 -> 5096.938 | AV69: 5100 | AW69: 3960.54 | AX69: =AW69+AW69*Титул.лист!$A$1 -> 4356.594 | AY69: =AX69+AX69*Титул.лист!$P$2 -> 4356.594 | AZ69: 4360 | BA69: 4679.6 | BB69: =BA69+BA69*Титул.лист!$A$1 -> 5147.56 | BC69: =BB69+BB69*Титул.лист!$P$2 -> 5147.56 | BD69: 5150 | BE69: 6047.6 | BF69: =BE69+BE69*Титул.лист!$A$1 -> 6652.36 | BG69: =BF69+BF69*Титул.лист!$P$2 -> 6652.36 | BH69: 6650
C70: 550 | D70: 1006-55 | E70: 2600 | F70: =E70+E70*Титул.лист!$A$1 -> 2860 | G70: =F70+F70*Титул.лист!$P$2 -> 2860 | H70: 2860 | I70: 2700 | J70: =I70+I70*Титул.лист!$A$1 -> 2970 | K70: =J70+J70*Титул.лист!$P$2 -> 2970 | L70: 2970 | M70: 3100 | N70: =M70+M70*Титул.лист!$A$1 -> 3410 | O70: =N70+N70*Титул.лист!$P$2 -> 3410 | P70: 3410 | Q70: 3200 | R70: =Q70+Q70*Титул.лист!$A$1 -> 3520 | S70: =R70+R70*Титул.лист!$P$2 -> 3520 | T70: 3520 | U70: 3400 | V70: =U70+U70*Титул.лист!$A$1 -> 3740 | W70: =V70+V70*Титул.лист!$P$2 -> 3740 | X70: 3740 | Y70: 3550 | Z70: =Y70+Y70*Титул.лист!$A$1 -> 3905 | AA70: =Z70+Z70*Титул.лист!$P$2 -> 3905 | AB70: 3910 | AC70: 3100 | AD70: =AC70+AC70*Титул.лист!$A$1 -> 3410 | AE70: =AD70+AD70*Титул.лист!$P$2 -> 3410 | AF70: 3410 | AG70: 3250 | AH70: =AG70+AG70*Титул.лист!$A$1 -> 3575 | AI70: =AH70+AH70*Титул.лист!$P$2 -> 3575 | AJ70: 3580 | AK70: 3300 | AL70: =AK70+AK70*Титул.лист!$A$1 -> 3630 | AM70: =AL70+AL70*Титул.лист!$P$2 -> 3630 | AN70: 3630 | AO70: 4639.758 | AP70: =AO70+AO70*Титул.лист!$A$1 -> 5103.7338 | AQ70: =AP70+AP70*Титул.лист!$P$2 -> 5103.7338 | AR70: 5100 | AS70: 5072.938 | AT70: =AS70+AS70*Титул.лист!$A$1 -> 5580.2318 | AU70: =AT70+AT70*Титул.лист!$P$2 -> 5580.2318 | AV70: 5580 | AW70: 4332.594 | AX70: =AW70+AW70*Титул.лист!$A$1 -> 4765.8534 | AY70: =AX70+AX70*Титул.лист!$P$2 -> 4765.8534 | AZ70: 4770 | BA70: 5123.56 | BB70: =BA70+BA70*Титул.лист!$A$1 -> 5635.916 | BC70: =BB70+BB70*Титул.лист!$P$2 -> 5635.916 | BD70: 5640 | BE70: 6628.36 | BF70: =BE70+BE70*Титул.лист!$A$1 -> 7291.196 | BG70: =BF70+BF70*Титул.лист!$P$2 -> 7291.196 | BH70: 7290
C71: 600 | D71: 1006-60 | E71: 2720 | F71: =E71+E71*Титул.лист!$A$1 -> 2992 | G71: =F71+F71*Титул.лист!$P$2 -> 2992 | H71: 2990 | I71: 2800 | J71: =I71+I71*Титул.лист!$A$1 -> 3080 | K71: =J71+J71*Титул.лист!$P$2 -> 3080 | L71: 3080 | M71: 3180 | N71: =M71+M71*Титул.лист!$A$1 -> 3498 | O71: =N71+N71*Титул.лист!$P$2 -> 3498 | P71: 3500 | Q71: 3270 | R71: =Q71+Q71*Титул.лист!$A$1 -> 3597 | S71: =R71+R71*Титул.лист!$P$2 -> 3597 | T71: 3600 | U71: 3520 | V71: =U71+U71*Титул.лист!$A$1 -> 3872 | W71: =V71+V71*Титул.лист!$P$2 -> 3872 | X71: 3870 | Y71: 3610 | Z71: =Y71+Y71*Титул.лист!$A$1 -> 3971 | AA71: =Z71+Z71*Титул.лист!$P$2 -> 3971 | AB71: 3970 | AC71: 3200 | AD71: =AC71+AC71*Титул.лист!$A$1 -> 3520 | AE71: =AD71+AD71*Титул.лист!$P$2 -> 3520 | AF71: 3520 | AG71: 3350 | AH71: =AG71+AG71*Титул.лист!$A$1 -> 3685 | AI71: =AH71+AH71*Титул.лист!$P$2 -> 3685 | AJ71: 3690 | AK71: 3410 | AL71: =AK71+AK71*Титул.лист!$A$1 -> 3751 | AM71: =AL71+AL71*Титул.лист!$P$2 -> 3751 | AN71: 3750 | AO71: 4879.736 | AP71: =AO71+AO71*Титул.лист!$A$1 -> 5367.7096 | AQ71: =AP71+AP71*Титул.лист!$P$2 -> 5367.7096 | AR71: 5370 | AS71: 5352.296 | AT71: =AS71+AS71*Титул.лист!$A$1 -> 5887.5256 | AU71: =AT71+AT71*Титул.лист!$P$2 -> 5887.5256 | AV71: 5890 | AW71: 4544.648 | AX71: =AW71+AW71*Титул.лист!$A$1 -> 4999.1128 | AY71: =AX71+AX71*Титул.лист!$P$2 -> 4999.1128 | AZ71: 5000 | BA71: 5407.52 | BB71: =BA71+BA71*Титул.лист!$A$1 -> 5948.272 | BC71: =BB71+BB71*Титул.лист!$P$2 -> 5948.272 | BD71: 5950 | BE71: 7049.12 | BF71: =BE71+BE71*Титул.лист!$A$1 -> 7754.032 | BG71: =BF71+BF71*Титул.лист!$P$2 -> 7754.032 | BH71: 7750
C72: 700 | D72: 1006-70 | E72: 3010 | F72: =E72+E72*Титул.лист!$A$1 -> 3311 | G72: =F72+F72*Титул.лист!$P$2 -> 3311 | H72: 3310 | I72: 3120 | J72: =I72+I72*Титул.лист!$A$1 -> 3432 | K72: =J72+J72*Титул.лист!$P$2 -> 3432 | L72: 3430 | M72: 3540 | N72: =M72+M72*Титул.лист!$A$1 -> 3894 | O72: =N72+N72*Титул.лист!$P$2 -> 3894 | P72: 3890 | Q72: 3650 | R72: =Q72+Q72*Титул.лист!$A$1 -> 4015 | S72: =R72+R72*Титул.лист!$P$2 -> 4015 | T72: 4020 | U72: 3950 | V72: =U72+U72*Титул.лист!$A$1 -> 4345 | W72: =V72+V72*Титул.лист!$P$2 -> 4345 | X72: 4350 | Y72: 4060 | Z72: =Y72+Y72*Титул.лист!$A$1 -> 4466 | AA72: =Z72+Z72*Титул.лист!$P$2 -> 4466 | AB72: 4470 | AC72: 3600 | AD72: =AC72+AC72*Титул.лист!$A$1 -> 3960 | AE72: =AD72+AD72*Титул.лист!$P$2 -> 3960 | AF72: 3960 | AG72: 3760 | AH72: =AG72+AG72*Титул.лист!$A$1 -> 4136 | AI72: =AH72+AH72*Титул.лист!$P$2 -> 4136 | AJ72: 4140 | AK72: 3840 | AL72: =AK72+AK72*Титул.лист!$A$1 -> 4224 | AM72: =AL72+AL72*Титул.лист!$P$2 -> 4224 | AN72: 4220 | AO72: 5559.692 | AP72: =AO72+AO72*Титул.лист!$A$1 -> 6115.6612 | AQ72: =AP72+AP72*Титул.лист!$P$2 -> 6115.6612 | AR72: 6120 | AS72: 6111.012 | AT72: =AS72+AS72*Титул.лист!$A$1 -> 6722.1132 | AU72: =AT72+AT72*Титул.лист!$P$2 -> 6722.1132 | AV72: 6720 | AW72: 5168.756 | AX72: =AW72+AW72*Титул.лист!$A$1 -> 5685.6316 | AY72: =AX72+AX72*Титул.лист!$P$2 -> 5685.6316 | AZ72: 5690 | BA72: 6175.44 | BB72: =BA72+BA72*Титул.лист!$A$1 -> 6792.984 | BC72: =BB72+BB72*Титул.лист!$P$2 -> 6792.984 | BD72: 6790 | BE72: 8090.64 | BF72: =BE72+BE72*Титул.лист!$A$1 -> 8899.704 | BG72: =BF72+BF72*Титул.лист!$P$2 -> 8899.704 | BH72: 8900
C73: 800 | D73: 1006-80 | E73: 3290 | F73: =E73+E73*Титул.лист!$A$1 -> 3619 | G73: =F73+F73*Титул.лист!$P$2 -> 3619 | H73: 3620 | I73: 3400 | J73: =I73+I73*Титул.лист!$A$1 -> 3740 | K73: =J73+J73*Титул.лист!$P$2 -> 3740 | L73: 3740 | M73: 3900 | N73: =M73+M73*Титул.лист!$A$1 -> 4290 | O73: =N73+N73*Титул.лист!$P$2 -> 4290 | P73: 4290 | Q73: 4010 | R73: =Q73+Q73*Титул.лист!$A$1 -> 4411 | S73: =R73+R73*Титул.лист!$P$2 -> 4411 | T73: 4410 | U73: 4380 | V73: =U73+U73*Титул.лист!$A$1 -> 4818 | W73: =V73+V73*Титул.лист!$P$2 -> 4818 | X73: 4820 | Y73: 4490 | Z73: =Y73+Y73*Титул.лист!$A$1 -> 4939 | AA73: =Z73+Z73*Титул.лист!$P$2 -> 4939 | AB73: 4940 | AC73: 3950 | AD73: =AC73+AC73*Титул.лист!$A$1 -> 4345 | AE73: =AD73+AD73*Титул.лист!$P$2 -> 4345 | AF73: 4350 | AG73: 4140 | AH73: =AG73+AG73*Титул.лист!$A$1 -> 4554 | AI73: =AH73+AH73*Титул.лист!$P$2 -> 4554 | AJ73: 4550 | AK73: 4220 | AL73: =AK73+AK73*Титул.лист!$A$1 -> 4642 | AM73: =AL73+AL73*Титул.лист!$P$2 -> 4642 | AN73: 4640 | AO73: 6189.648 | AP73: =AO73+AO73*Титул.лист!$A$1 -> 6808.6128 | AQ73: =AP73+AP73*Титул.лист!$P$2 -> 6808.6128 | AR73: 6810 | AS73: 6819.728 | AT73: =AS73+AS73*Титул.лист!$A$1 -> 7501.7008 | AU73: =AT73+AT73*Титул.лист!$P$2 -> 7501.7008 | AV73: 7500 | AW73: 5742.864 | AX73: =AW73+AW73*Титул.лист!$A$1 -> 6317.1504 | AY73: =AX73+AX73*Титул.лист!$P$2 -> 6317.1504 | AZ73: 6320 | BA73: 6893.36 | BB73: =BA73+BA73*Титул.лист!$A$1 -> 7582.696 | BC73: =BB73+BB73*Титул.лист!$P$2 -> 7582.696 | BD73: 7580 | BE73: 9082.16 | BF73: =BE73+BE73*Титул.лист!$A$1 -> 9990.376 | BG73: =BF73+BF73*Титул.лист!$P$2 -> 9990.376 | BH73: 9990
B74: Стол 2ящ метабокс | C74: 300 | D74: 1006-30м | E74: =E66+700 -> 2800 | F74: =E74+E74*Титул.лист!$A$1 -> 3080 | G74: =F74+F74*Титул.лист!$P$2 -> 3080 | H74: 3080 | I74: =I66+700 -> 2900 | J74: =I74+I74*Титул.лист!$A$1 -> 3190 | K74: =J74+J74*Титул.лист!$P$2 -> 3190 | L74: 3190 | M74: =M66+700 -> 3100 | N74: =M74+M74*Титул.лист!$A$1 -> 3410 | O74: =N74+N74*Титул.лист!$P$2 -> 3410 | P74: 3410 | Q74: =Q66+700 -> 3200 | R74: =Q74+Q74*Титул.лист!$A$1 -> 3520 | S74: =R74+R74*Титул.лист!$P$2 -> 3520 | T74: 3520 | U74: =U66+700 -> 3300 | V74: =U74+U74*Титул.лист!$A$1 -> 3630 | W74: =V74+V74*Титул.лист!$P$2 -> 3630 | X74: 3630 | Y74: =Y66+700 -> 3400 | Z74: =Y74+Y74*Титул.лист!$A$1 -> 3740 | AA74: =Z74+Z74*Титул.лист!$P$2 -> 3740 | AB74: 3740 | AC74: =AC66+700 -> 3150 | AD74: =AC74+AC74*Титул.лист!$A$1 -> 3465 | AE74: =AD74+AD74*Титул.лист!$P$2 -> 3465 | AF74: 3470 | AG74: =AG66+700 -> 3250 | AH74: =AG74+AG74*Титул.лист!$A$1 -> 3575 | AI74: =AH74+AH74*Титул.лист!$P$2 -> 3575 | AJ74: 3580 | AK74: =AK66+700 -> 3300 | AL74: =AK74+AK74*Титул.лист!$A$1 -> 3630 | AM74: =AL74+AL74*Титул.лист!$P$2 -> 3630 | AN74: 3630 | AO74: 3989.868 | AP74: =AO74+AO74*Титул.лист!$A$1 -> 4388.8548 | AQ74: =AP74+AP74*Титул.лист!$P$2 -> 4388.8548 | AR74: 4390 | AS74: 4226.148 | AT74: =AS74+AS74*Титул.лист!$A$1 -> 4648.7628 | AU74: =AT74+AT74*Титул.лист!$P$2 -> 4648.7628 | AV74: 4650 | AW74: 3822.324 | AX74: =AW74+AW74*Титул.лист!$A$1 -> 4204.5564 | AY74: =AX74+AX74*Титул.лист!$P$2 -> 4204.5564 | AZ74: 4200 | BA74: 4253.76 | BB74: =BA74+BA74*Титул.лист!$A$1 -> 4679.136 | BC74: =BB74+BB74*Титул.лист!$P$2 -> 4679.136 | BD74: 4680 | BE74: 5074.56 | BF74: =BE74+BE74*Титул.лист!$A$1 -> 5582.016 | BG74: =BF74+BF74*Титул.лист!$P$2 -> 5582.016 | BH74: 5580
C75: 400 | D75: 1006-40м | E75: 2840 | F75: =E75+E75*Титул.лист!$A$1 -> 3124 | G75: =F75+F75*Титул.лист!$P$2 -> 3124 | H75: 3120 | I75: 2920 | J75: =I75+I75*Титул.лист!$A$1 -> 3212 | K75: =J75+J75*Титул.лист!$P$2 -> 3212 | L75: 3210 | M75: 3140 | N75: =M75+M75*Титул.лист!$A$1 -> 3454 | O75: =N75+N75*Титул.лист!$P$2 -> 3454 | P75: 3450 | Q75: 3220 | R75: =Q75+Q75*Титул.лист!$A$1 -> 3542 | S75: =R75+R75*Титул.лист!$P$2 -> 3542 | T75: 3540 | U75: 3370 | V75: =U75+U75*Титул.лист!$A$1 -> 3707 | W75: =V75+V75*Титул.лист!$P$2 -> 3707 | X75: 3710 | Y75: 3450 | Z75: =Y75+Y75*Титул.лист!$A$1 -> 3795 | AA75: =Z75+Z75*Титул.лист!$P$2 -> 3795 | AB75: 3800 | AC75: 3190 | AD75: =AC75+AC75*Титул.лист!$A$1 -> 3509 | AE75: =AD75+AD75*Титул.лист!$P$2 -> 3509 | AF75: 3510 | AG75: 3290 | AH75: =AG75+AG75*Титул.лист!$A$1 -> 3619 | AI75: =AH75+AH75*Титул.лист!$P$2 -> 3619 | AJ75: 3620 | AK75: 3320 | AL75: =AK75+AK75*Титул.лист!$A$1 -> 3652 | AM75: =AL75+AL75*Титул.лист!$P$2 -> 3652 | AN75: 3650 | AO75: 4309.824 | AP75: =AO75+AO75*Титул.лист!$A$1 -> 4740.8064 | AQ75: =AP75+AP75*Титул.лист!$P$2 -> 4740.8064 | AR75: 4740 | AS75: 4624.864 | AT75: =AS75+AS75*Титул.лист!$A$1 -> 5087.3504 | AU75: =AT75+AT75*Титул.лист!$P$2 -> 5087.3504 | AV75: 5090 | AW75: 4086.432 | AX75: =AW75+AW75*Титул.лист!$A$1 -> 4495.0752 | AY75: =AX75+AX75*Титул.лист!$P$2 -> 4495.0752 | AZ75: 4500 | BA75: 4661.68 | BB75: =BA75+BA75*Титул.лист!$A$1 -> 5127.848 | BC75: =BB75+BB75*Титул.лист!$P$2 -> 5127.848 | BD75: 5130 | BE75: 5756.08 | BF75: =BE75+BE75*Титул.лист!$A$1 -> 6331.688 | BG75: =BF75+BF75*Титул.лист!$P$2 -> 6331.688 | BH75: 6330
C76: 450 | D76: 1006-45м | E76: 3000 | F76: =E76+E76*Титул.лист!$A$1 -> 3300 | G76: =F76+F76*Титул.лист!$P$2 -> 3300 | H76: 3300 | I76: 3100 | J76: =I76+I76*Титул.лист!$A$1 -> 3410 | K76: =J76+J76*Титул.лист!$P$2 -> 3410 | L76: 3410 | M76: 3350 | N76: =M76+M76*Титул.лист!$A$1 -> 3685 | O76: =N76+N76*Титул.лист!$P$2 -> 3685 | P76: 3690 | Q76: 3400 | R76: =Q76+Q76*Титул.лист!$A$1 -> 3740 | S76: =R76+R76*Титул.лист!$P$2 -> 3740 | T76: 3740 | U76: 3750 | V76: =U76+U76*Титул.лист!$A$1 -> 4125 | W76: =V76+V76*Титул.лист!$P$2 -> 4125 | X76: 4130 | Y76: 3700 | Z76: =Y76+Y76*Титул.лист!$A$1 -> 4070 | AA76: =Z76+Z76*Титул.лист!$P$2 -> 4070 | AB76: 4070 | AC76: 3400 | AD76: =AC76+AC76*Титул.лист!$A$1 -> 3740 | AE76: =AD76+AD76*Титул.лист!$P$2 -> 3740 | AF76: 3740 | AG76: 3560 | AH76: =AG76+AG76*Титул.лист!$A$1 -> 3916 | AI76: =AH76+AH76*Титул.лист!$P$2 -> 3916 | AJ76: 3920 | AK76: 3600 | AL76: =AK76+AK76*Титул.лист!$A$1 -> 3960 | AM76: =AL76+AL76*Титул.лист!$P$2 -> 3960 | AN76: 3960 | AO76: 4659.802 | AP76: =AO76+AO76*Титул.лист!$A$1 -> 5125.7822 | AQ76: =AP76+AP76*Титул.лист!$P$2 -> 5125.7822 | AR76: 5130 | AS76: 5014.222 | AT76: =AS76+AS76*Титул.лист!$A$1 -> 5515.6442 | AU76: =AT76+AT76*Титул.лист!$P$2 -> 5515.6442 | AV76: 5520 | AW76: 4408.486 | AX76: =AW76+AW76*Титул.лист!$A$1 -> 4849.3346 | AY76: =AX76+AX76*Титул.лист!$P$2 -> 4849.3346 | AZ76: 4850 | BA76: 5055.64 | BB76: =BA76+BA76*Титул.лист!$A$1 -> 5561.204 | BC76: =BB76+BB76*Титул.лист!$P$2 -> 5561.204 | BD76: 5560 | BE76: 6286.84 | BF76: =BE76+BE76*Титул.лист!$A$1 -> 6915.524 | BG76: =BF76+BF76*Титул.лист!$P$2 -> 6915.524 | BH76: 6920
C77: 500 | D77: 1006-50м | E77: 3130 | F77: =E77+E77*Титул.лист!$A$1 -> 3443 | G77: =F77+F77*Титул.лист!$P$2 -> 3443 | H77: 3440 | I77: 3210 | J77: =I77+I77*Титул.лист!$A$1 -> 3531 | K77: =J77+J77*Титул.лист!$P$2 -> 3531 | L77: 3530 | M77: 3520 | N77: =M77+M77*Титул.лист!$A$1 -> 3872 | O77: =N77+N77*Титул.лист!$P$2 -> 3872 | P77: 3870 | Q77: 3590 | R77: =Q77+Q77*Титул.лист!$A$1 -> 3949 | S77: =R77+R77*Титул.лист!$P$2 -> 3949 | T77: 3950 | U77: 3810 | V77: =U77+U77*Титул.лист!$A$1 -> 4191 | W77: =V77+V77*Титул.лист!$P$2 -> 4191 | X77: 4190 | Y77: 3890 | Z77: =Y77+Y77*Титул.лист!$A$1 -> 4279 | AA77: =Z77+Z77*Титул.лист!$P$2 -> 4279 | AB77: 4280 | AC77: 3540 | AD77: =AC77+AC77*Титул.лист!$A$1 -> 3894 | AE77: =AD77+AD77*Титул.лист!$P$2 -> 3894 | AF77: 3890 | AG77: 3660 | AH77: =AG77+AG77*Титул.лист!$A$1 -> 4026 | AI77: =AH77+AH77*Титул.лист!$P$2 -> 4026 | AJ77: 4030 | AK77: 3700 | AL77: =AK77+AK77*Титул.лист!$A$1 -> 4070 | AM77: =AL77+AL77*Титул.лист!$P$2 -> 4070 | AN77: 4070 | AO77: 4939.78 | AP77: =AO77+AO77*Титул.лист!$A$1 -> 5433.758 | AQ77: =AP77+AP77*Титул.лист!$P$2 -> 5433.758 | AR77: 5430 | AS77: 5333.58 | AT77: =AS77+AS77*Титул.лист!$A$1 -> 5866.938 | AU77: =AT77+AT77*Титул.лист!$P$2 -> 5866.938 | AV77: 5870 | AW77: 4660.54 | AX77: =AW77+AW77*Титул.лист!$A$1 -> 5126.594 | AY77: =AX77+AX77*Титул.лист!$P$2 -> 5126.594 | AZ77: 5130 | BA77: 5379.6 | BB77: =BA77+BA77*Титул.лист!$A$1 -> 5917.56 | BC77: =BB77+BB77*Титул.лист!$P$2 -> 5917.56 | BD77: 5920 | BE77: 6747.6 | BF77: =BE77+BE77*Титул.лист!$A$1 -> 7422.36 | BG77: =BF77+BF77*Титул.лист!$P$2 -> 7422.36 | BH77: 7420
C78: 550 | D78: 1006-55м | E78: 3300 | F78: =E78+E78*Титул.лист!$A$1 -> 3630 | G78: =F78+F78*Титул.лист!$P$2 -> 3630 | H78: 3630 | I78: 3400 | J78: =I78+I78*Титул.лист!$A$1 -> 3740 | K78: =J78+J78*Титул.лист!$P$2 -> 3740 | L78: 3740 | M78: 3800 | N78: =M78+M78*Титул.лист!$A$1 -> 4180 | O78: =N78+N78*Титул.лист!$P$2 -> 4180 | P78: 4180 | Q78: 3900 | R78: =Q78+Q78*Титул.лист!$A$1 -> 4290 | S78: =R78+R78*Титул.лист!$P$2 -> 4290 | T78: 4290 | U78: 4100 | V78: =U78+U78*Титул.лист!$A$1 -> 4510 | W78: =V78+V78*Титул.лист!$P$2 -> 4510 | X78: 4510 | Y78: 4250 | Z78: =Y78+Y78*Титул.лист!$A$1 -> 4675 | AA78: =Z78+Z78*Титул.лист!$P$2 -> 4675 | AB78: 4680 | AC78: 3800 | AD78: =AC78+AC78*Титул.лист!$A$1 -> 4180 | AE78: =AD78+AD78*Титул.лист!$P$2 -> 4180 | AF78: 4180 | AG78: 3950 | AH78: =AG78+AG78*Титул.лист!$A$1 -> 4345 | AI78: =AH78+AH78*Титул.лист!$P$2 -> 4345 | AJ78: 4350 | AK78: 4000 | AL78: =AK78+AK78*Титул.лист!$A$1 -> 4400 | AM78: =AL78+AL78*Титул.лист!$P$2 -> 4400 | AN78: 4400 | AO78: 5339.758 | AP78: =AO78+AO78*Титул.лист!$A$1 -> 5873.7338 | AQ78: =AP78+AP78*Титул.лист!$P$2 -> 5873.7338 | AR78: 5870 | AS78: 5772.938 | AT78: =AS78+AS78*Титул.лист!$A$1 -> 6350.2318 | AU78: =AT78+AT78*Титул.лист!$P$2 -> 6350.2318 | AV78: 6350 | AW78: 5032.594 | AX78: =AW78+AW78*Титул.лист!$A$1 -> 5535.8534 | AY78: =AX78+AX78*Титул.лист!$P$2 -> 5535.8534 | AZ78: 5540 | BA78: 5823.56 | BB78: =BA78+BA78*Титул.лист!$A$1 -> 6405.916 | BC78: =BB78+BB78*Титул.лист!$P$2 -> 6405.916 | BD78: 6410 | BE78: 7328.36 | BF78: =BE78+BE78*Титул.лист!$A$1 -> 8061.196 | BG78: =BF78+BF78*Титул.лист!$P$2 -> 8061.196 | BH78: 8060
C79: 600 | D79: 1006-60м | E79: 3420 | F79: =E79+E79*Титул.лист!$A$1 -> 3762 | G79: =F79+F79*Титул.лист!$P$2 -> 3762 | H79: 3760 | I79: 3500 | J79: =I79+I79*Титул.лист!$A$1 -> 3850 | K79: =J79+J79*Титул.лист!$P$2 -> 3850 | L79: 3850 | M79: 3880 | N79: =M79+M79*Титул.лист!$A$1 -> 4268 | O79: =N79+N79*Титул.лист!$P$2 -> 4268 | P79: 4270 | Q79: 3970 | R79: =Q79+Q79*Титул.лист!$A$1 -> 4367 | S79: =R79+R79*Титул.лист!$P$2 -> 4367 | T79: 4370 | U79: 4220 | V79: =U79+U79*Титул.лист!$A$1 -> 4642 | W79: =V79+V79*Титул.лист!$P$2 -> 4642 | X79: 4640 | Y79: 4310 | Z79: =Y79+Y79*Титул.лист!$A$1 -> 4741 | AA79: =Z79+Z79*Титул.лист!$P$2 -> 4741 | AB79: 4740 | AC79: 3900 | AD79: =AC79+AC79*Титул.лист!$A$1 -> 4290 | AE79: =AD79+AD79*Титул.лист!$P$2 -> 4290 | AF79: 4290 | AG79: 4050 | AH79: =AG79+AG79*Титул.лист!$A$1 -> 4455 | AI79: =AH79+AH79*Титул.лист!$P$2 -> 4455 | AJ79: 4460 | AK79: 4110 | AL79: =AK79+AK79*Титул.лист!$A$1 -> 4521 | AM79: =AL79+AL79*Титул.лист!$P$2 -> 4521 | AN79: 4520 | AO79: 5579.736 | AP79: =AO79+AO79*Титул.лист!$A$1 -> 6137.7096 | AQ79: =AP79+AP79*Титул.лист!$P$2 -> 6137.7096 | AR79: 6140 | AS79: 6052.296 | AT79: =AS79+AS79*Титул.лист!$A$1 -> 6657.5256 | AU79: =AT79+AT79*Титул.лист!$P$2 -> 6657.5256 | AV79: 6660 | AW79: 5244.648 | AX79: =AW79+AW79*Титул.лист!$A$1 -> 5769.1128 | AY79: =AX79+AX79*Титул.лист!$P$2 -> 5769.1128 | AZ79: 5770 | BA79: 6107.52 | BB79: =BA79+BA79*Титул.лист!$A$1 -> 6718.272 | BC79: =BB79+BB79*Титул.лист!$P$2 -> 6718.272 | BD79: 6720 | BE79: 7749.12 | BF79: =BE79+BE79*Титул.лист!$A$1 -> 8524.032 | BG79: =BF79+BF79*Титул.лист!$P$2 -> 8524.032 | BH79: 8520
C80: 700 | D80: 1006-70м | E80: 3710 | F80: =E80+E80*Титул.лист!$A$1 -> 4081 | G80: =F80+F80*Титул.лист!$P$2 -> 4081 | H80: 4080 | I80: 3820 | J80: =I80+I80*Титул.лист!$A$1 -> 4202 | K80: =J80+J80*Титул.лист!$P$2 -> 4202 | L80: 4200 | M80: 4240 | N80: =M80+M80*Титул.лист!$A$1 -> 4664 | O80: =N80+N80*Титул.лист!$P$2 -> 4664 | P80: 4660 | Q80: 4350 | R80: =Q80+Q80*Титул.лист!$A$1 -> 4785 | S80: =R80+R80*Титул.лист!$P$2 -> 4785 | T80: 4790 | U80: 4650 | V80: =U80+U80*Титул.лист!$A$1 -> 5115 | W80: =V80+V80*Титул.лист!$P$2 -> 5115 | X80: 5120 | Y80: 4760 | Z80: =Y80+Y80*Титул.лист!$A$1 -> 5236 | AA80: =Z80+Z80*Титул.лист!$P$2 -> 5236 | AB80: 5240 | AC80: 4300 | AD80: =AC80+AC80*Титул.лист!$A$1 -> 4730 | AE80: =AD80+AD80*Титул.лист!$P$2 -> 4730 | AF80: 4730 | AG80: 4460 | AH80: =AG80+AG80*Титул.лист!$A$1 -> 4906 | AI80: =AH80+AH80*Титул.лист!$P$2 -> 4906 | AJ80: 4910 | AK80: 4540 | AL80: =AK80+AK80*Титул.лист!$A$1 -> 4994 | AM80: =AL80+AL80*Титул.лист!$P$2 -> 4994 | AN80: 4990 | AO80: 6259.692 | AP80: =AO80+AO80*Титул.лист!$A$1 -> 6885.6612 | AQ80: =AP80+AP80*Титул.лист!$P$2 -> 6885.6612 | AR80: 6890 | AS80: 6811.012 | AT80: =AS80+AS80*Титул.лист!$A$1 -> 7492.1132 | AU80: =AT80+AT80*Титул.лист!$P$2 -> 7492.1132 | AV80: 7490 | AW80: 5868.756 | AX80: =AW80+AW80*Титул.лист!$A$1 -> 6455.6316 | AY80: =AX80+AX80*Титул.лист!$P$2 -> 6455.6316 | AZ80: 6460 | BA80: 6875.44 | BB80: =BA80+BA80*Титул.лист!$A$1 -> 7562.984 | BC80: =BB80+BB80*Титул.лист!$P$2 -> 7562.984 | BD80: 7560 | BE80: 8790.64 | BF80: =BE80+BE80*Титул.лист!$A$1 -> 9669.704 | BG80: =BF80+BF80*Титул.лист!$P$2 -> 9669.704 | BH80: 9670
C81: 800 | D81: 1006-80м | E81: 3990 | F81: =E81+E81*Титул.лист!$A$1 -> 4389 | G81: =F81+F81*Титул.лист!$P$2 -> 4389 | H81: 4390 | I81: 4100 | J81: =I81+I81*Титул.лист!$A$1 -> 4510 | K81: =J81+J81*Титул.лист!$P$2 -> 4510 | L81: 4510 | M81: 4600 | N81: =M81+M81*Титул.лист!$A$1 -> 5060 | O81: =N81+N81*Титул.лист!$P$2 -> 5060 | P81: 5060 | Q81: 4710 | R81: =Q81+Q81*Титул.лист!$A$1 -> 5181 | S81: =R81+R81*Титул.лист!$P$2 -> 5181 | T81: 5180 | U81: 5080 | V81: =U81+U81*Титул.лист!$A$1 -> 5588 | W81: =V81+V81*Титул.лист!$P$2 -> 5588 | X81: 5590 | Y81: 5190 | Z81: =Y81+Y81*Титул.лист!$A$1 -> 5709 | AA81: =Z81+Z81*Титул.лист!$P$2 -> 5709 | AB81: 5710 | AC81: 4650 | AD81: =AC81+AC81*Титул.лист!$A$1 -> 5115 | AE81: =AD81+AD81*Титул.лист!$P$2 -> 5115 | AF81: 5120 | AG81: 4840 | AH81: =AG81+AG81*Титул.лист!$A$1 -> 5324 | AI81: =AH81+AH81*Титул.лист!$P$2 -> 5324 | AJ81: 5320 | AK81: 4920 | AL81: =AK81+AK81*Титул.лист!$A$1 -> 5412 | AM81: =AL81+AL81*Титул.лист!$P$2 -> 5412 | AN81: 5410 | AO81: 6889.648 | AP81: =AO81+AO81*Титул.лист!$A$1 -> 7578.6128 | AQ81: =AP81+AP81*Титул.лист!$P$2 -> 7578.6128 | AR81: 7580 | AS81: 7519.728 | AT81: =AS81+AS81*Титул.лист!$A$1 -> 8271.7008 | AU81: =AT81+AT81*Титул.лист!$P$2 -> 8271.7008 | AV81: 8270 | AW81: 6442.864 | AX81: =AW81+AW81*Титул.лист!$A$1 -> 7087.1504 | AY81: =AX81+AX81*Титул.лист!$P$2 -> 7087.1504 | AZ81: 7090 | BA81: 7593.36 | BB81: =BA81+BA81*Титул.лист!$A$1 -> 8352.696 | BC81: =BB81+BB81*Титул.лист!$P$2 -> 8352.696 | BD81: 8350 | BE81: 9782.16 | BF81: =BE81+BE81*Титул.лист!$A$1 -> 10760.376 | BG81: =BF81+BF81*Титул.лист!$P$2 -> 10760.376 | BH81: 10760
B82: Стол 2ящ тандембокс | C82: 300 | D82: 1006-30т | E82: 6700 | F82: =E82+E82*Титул.лист!$A$1 -> 7370 | G82: =F82+F82*Титул.лист!$P$2 -> 7370 | H82: 7370 | I82: 6800 | J82: =I82+I82*Титул.лист!$A$1 -> 7480 | K82: =J82+J82*Титул.лист!$P$2 -> 7480 | L82: 7480 | M82: 7000 | N82: =M82+M82*Титул.лист!$A$1 -> 7700 | O82: =N82+N82*Титул.лист!$P$2 -> 7700 | P82: 7700 | Q82: 7100 | R82: =Q82+Q82*Титул.лист!$A$1 -> 7810 | S82: =R82+R82*Титул.лист!$P$2 -> 7810 | T82: 7810 | U82: 7200 | V82: =U82+U82*Титул.лист!$A$1 -> 7920 | W82: =V82+V82*Титул.лист!$P$2 -> 7920 | X82: 7920 | Y82: 7300 | Z82: =Y82+Y82*Титул.лист!$A$1 -> 8030 | AA82: =Z82+Z82*Титул.лист!$P$2 -> 8030 | AB82: 8030 | AC82: 7050 | AD82: =AC82+AC82*Титул.лист!$A$1 -> 7755 | AE82: =AD82+AD82*Титул.лист!$P$2 -> 7755 | AF82: 7760 | AG82: 7150 | AH82: =AG82+AG82*Титул.лист!$A$1 -> 7865 | AI82: =AH82+AH82*Титул.лист!$P$2 -> 7865 | AJ82: 7870 | AK82: 7200 | AL82: =AK82+AK82*Титул.лист!$A$1 -> 7920 | AM82: =AL82+AL82*Титул.лист!$P$2 -> 7920 | AN82: 7920 | AO82: 7889.868 | AP82: =AO82+AO82*Титул.лист!$A$1 -> 8678.8548 | AQ82: =AP82+AP82*Титул.лист!$P$2 -> 8678.8548 | AR82: 8680 | AS82: 8126.148 | AT82: =AS82+AS82*Титул.лист!$A$1 -> 8938.7628 | AU82: =AT82+AT82*Титул.лист!$P$2 -> 8938.7628 | AV82: 8940 | AW82: 7722.324 | AX82: =AW82+AW82*Титул.лист!$A$1 -> 8494.5564 | AY82: =AX82+AX82*Титул.лист!$P$2 -> 8494.5564 | AZ82: 8490 | BA82: 8153.76 | BB82: =BA82+BA82*Титул.лист!$A$1 -> 8969.136 | BC82: =BB82+BB82*Титул.лист!$P$2 -> 8969.136 | BD82: 8970 | BE82: 8974.56 | BF82: =BE82+BE82*Титул.лист!$A$1 -> 9872.016 | BG82: =BF82+BF82*Титул.лист!$P$2 -> 9872.016 | BH82: 9870
C83: 400 | D83: 1006-40т | E83: 6740 | F83: =E83+E83*Титул.лист!$A$1 -> 7414 | G83: =F83+F83*Титул.лист!$P$2 -> 7414 | H83: 7410 | I83: 6820 | J83: =I83+I83*Титул.лист!$A$1 -> 7502 | K83: =J83+J83*Титул.лист!$P$2 -> 7502 | L83: 7500 | M83: 7040 | N83: =M83+M83*Титул.лист!$A$1 -> 7744 | O83: =N83+N83*Титул.лист!$P$2 -> 7744 | P83: 7740 | Q83: 7120 | R83: =Q83+Q83*Титул.лист!$A$1 -> 7832 | S83: =R83+R83*Титул.лист!$P$2 -> 7832 | T83: 7830 | U83: 7270 | V83: =U83+U83*Титул.лист!$A$1 -> 7997 | W83: =V83+V83*Титул.лист!$P$2 -> 7997 | X83: 8000 | Y83: 7350 | Z83: =Y83+Y83*Титул.лист!$A$1 -> 8085 | AA83: =Z83+Z83*Титул.лист!$P$2 -> 8085 | AB83: 8090 | AC83: 7090 | AD83: =AC83+AC83*Титул.лист!$A$1 -> 7799 | AE83: =AD83+AD83*Титул.лист!$P$2 -> 7799 | AF83: 7800 | AG83: 7190 | AH83: =AG83+AG83*Титул.лист!$A$1 -> 7909 | AI83: =AH83+AH83*Титул.лист!$P$2 -> 7909 | AJ83: 7910 | AK83: 7220 | AL83: =AK83+AK83*Титул.лист!$A$1 -> 7942 | AM83: =AL83+AL83*Титул.лист!$P$2 -> 7942 | AN83: 7940 | AO83: 8209.824 | AP83: =AO83+AO83*Титул.лист!$A$1 -> 9030.8064 | AQ83: =AP83+AP83*Титул.лист!$P$2 -> 9030.8064 | AR83: 9030 | AS83: 8524.864 | AT83: =AS83+AS83*Титул.лист!$A$1 -> 9377.3504 | AU83: =AT83+AT83*Титул.лист!$P$2 -> 9377.3504 | AV83: 9380 | AW83: 7986.432 | AX83: =AW83+AW83*Титул.лист!$A$1 -> 8785.0752 | AY83: =AX83+AX83*Титул.лист!$P$2 -> 8785.0752 | AZ83: 8790 | BA83: 8561.68 | BB83: =BA83+BA83*Титул.лист!$A$1 -> 9417.848 | BC83: =BB83+BB83*Титул.лист!$P$2 -> 9417.848 | BD83: 9420 | BE83: 9656.08 | BF83: =BE83+BE83*Титул.лист!$A$1 -> 10621.688 | BG83: =BF83+BF83*Титул.лист!$P$2 -> 10621.688 | BH83: 10620
C84: 450 | D84: 1006-45т | E84: 6900 | F84: =E84+E84*Титул.лист!$A$1 -> 7590 | G84: =F84+F84*Титул.лист!$P$2 -> 7590 | H84: 7590 | I84: 7000 | J84: =I84+I84*Титул.лист!$A$1 -> 7700 | K84: =J84+J84*Титул.лист!$P$2 -> 7700 | L84: 7700 | M84: 7250 | N84: =M84+M84*Титул.лист!$A$1 -> 7975 | O84: =N84+N84*Титул.лист!$P$2 -> 7975 | P84: 7980 | Q84: 7300 | R84: =Q84+Q84*Титул.лист!$A$1 -> 8030 | S84: =R84+R84*Титул.лист!$P$2 -> 8030 | T84: 8030 | U84: 7650 | V84: =U84+U84*Титул.лист!$A$1 -> 8415 | W84: =V84+V84*Титул.лист!$P$2 -> 8415 | X84: 8420 | Y84: 7600 | Z84: =Y84+Y84*Титул.лист!$A$1 -> 8360 | AA84: =Z84+Z84*Титул.лист!$P$2 -> 8360 | AB84: 8360 | AC84: 7300 | AD84: =AC84+AC84*Титул.лист!$A$1 -> 8030 | AE84: =AD84+AD84*Титул.лист!$P$2 -> 8030 | AF84: 8030 | AG84: 7460 | AH84: =AG84+AG84*Титул.лист!$A$1 -> 8206 | AI84: =AH84+AH84*Титул.лист!$P$2 -> 8206 | AJ84: 8210 | AK84: 7500 | AL84: =AK84+AK84*Титул.лист!$A$1 -> 8250 | AM84: =AL84+AL84*Титул.лист!$P$2 -> 8250 | AN84: 8250 | AO84: 8559.802 | AP84: =AO84+AO84*Титул.лист!$A$1 -> 9415.7822 | AQ84: =AP84+AP84*Титул.лист!$P$2 -> 9415.7822 | AR84: 9420 | AS84: 8914.222 | AT84: =AS84+AS84*Титул.лист!$A$1 -> 9805.6442 | AU84: =AT84+AT84*Титул.лист!$P$2 -> 9805.6442 | AV84: 9810 | AW84: 8308.486 | AX84: =AW84+AW84*Титул.лист!$A$1 -> 9139.3346 | AY84: =AX84+AX84*Титул.лист!$P$2 -> 9139.3346 | AZ84: 9140 | BA84: 8955.64 | BB84: =BA84+BA84*Титул.лист!$A$1 -> 9851.204 | BC84: =BB84+BB84*Титул.лист!$P$2 -> 9851.204 | BD84: 9850 | BE84: 10186.84 | BF84: =BE84+BE84*Титул.лист!$A$1 -> 11205.524 | BG84: =BF84+BF84*Титул.лист!$P$2 -> 11205.524 | BH84: 11210
C85: 500 | D85: 1006-50т | E85: 7030 | F85: =E85+E85*Титул.лист!$A$1 -> 7733 | G85: =F85+F85*Титул.лист!$P$2 -> 7733 | H85: 7730 | I85: 7110 | J85: =I85+I85*Титул.лист!$A$1 -> 7821 | K85: =J85+J85*Титул.лист!$P$2 -> 7821 | L85: 7820 | M85: 7420 | N85: =M85+M85*Титул.лист!$A$1 -> 8162 | O85: =N85+N85*Титул.лист!$P$2 -> 8162 | P85: 8160 | Q85: 7490 | R85: =Q85+Q85*Титул.лист!$A$1 -> 8239 | S85: =R85+R85*Титул.лист!$P$2 -> 8239 | T85: 8240 | U85: 7710 | V85: =U85+U85*Титул.лист!$A$1 -> 8481 | W85: =V85+V85*Титул.лист!$P$2 -> 8481 | X85: 8480 | Y85: 7790 | Z85: =Y85+Y85*Титул.лист!$A$1 -> 8569 | AA85: =Z85+Z85*Титул.лист!$P$2 -> 8569 | AB85: 8570 | AC85: 7440 | AD85: =AC85+AC85*Титул.лист!$A$1 -> 8184 | AE85: =AD85+AD85*Титул.лист!$P$2 -> 8184 | AF85: 8180 | AG85: 7560 | AH85: =AG85+AG85*Титул.лист!$A$1 -> 8316 | AI85: =AH85+AH85*Титул.лист!$P$2 -> 8316 | AJ85: 8320 | AK85: 7600 | AL85: =AK85+AK85*Титул.лист!$A$1 -> 8360 | AM85: =AL85+AL85*Титул.лист!$P$2 -> 8360 | AN85: 8360 | AO85: 8839.78 | AP85: =AO85+AO85*Титул.лист!$A$1 -> 9723.758 | AQ85: =AP85+AP85*Титул.лист!$P$2 -> 9723.758 | AR85: 9720 | AS85: 9233.58 | AT85: =AS85+AS85*Титул.лист!$A$1 -> 10156.938 | AU85: =AT85+AT85*Титул.лист!$P$2 -> 10156.938 | AV85: 10160 | AW85: 8560.54 | AX85: =AW85+AW85*Титул.лист!$A$1 -> 9416.594 | AY85: =AX85+AX85*Титул.лист!$P$2 -> 9416.594 | AZ85: 9420 | BA85: 9279.6 | BB85: =BA85+BA85*Титул.лист!$A$1 -> 10207.56 | BC85: =BB85+BB85*Титул.лист!$P$2 -> 10207.56 | BD85: 10210 | BE85: 10647.6 | BF85: =BE85+BE85*Титул.лист!$A$1 -> 11712.36 | BG85: =BF85+BF85*Титул.лист!$P$2 -> 11712.36 | BH85: 11710
C86: 550 | D86: 1006-55т | E86: 7200 | F86: =E86+E86*Титул.лист!$A$1 -> 7920 | G86: =F86+F86*Титул.лист!$P$2 -> 7920 | H86: 7920 | I86: 7300 | J86: =I86+I86*Титул.лист!$A$1 -> 8030 | K86: =J86+J86*Титул.лист!$P$2 -> 8030 | L86: 8030 | M86: 7700 | N86: =M86+M86*Титул.лист!$A$1 -> 8470 | O86: =N86+N86*Титул.лист!$P$2 -> 8470 | P86: 8470 | Q86: 7800 | R86: =Q86+Q86*Титул.лист!$A$1 -> 8580 | S86: =R86+R86*Титул.лист!$P$2 -> 8580 | T86: 8580 | U86: 8000 | V86: =U86+U86*Титул.лист!$A$1 -> 8800 | W86: =V86+V86*Титул.лист!$P$2 -> 8800 | X86: 8800 | Y86: 8150 | Z86: =Y86+Y86*Титул.лист!$A$1 -> 8965 | AA86: =Z86+Z86*Титул.лист!$P$2 -> 8965 | AB86: 8970 | AC86: 7700 | AD86: =AC86+AC86*Титул.лист!$A$1 -> 8470 | AE86: =AD86+AD86*Титул.лист!$P$2 -> 8470 | AF86: 8470 | AG86: 7850 | AH86: =AG86+AG86*Титул.лист!$A$1 -> 8635 | AI86: =AH86+AH86*Титул.лист!$P$2 -> 8635 | AJ86: 8640 | AK86: 7900 | AL86: =AK86+AK86*Титул.лист!$A$1 -> 8690 | AM86: =AL86+AL86*Титул.лист!$P$2 -> 8690 | AN86: 8690 | AO86: 9239.758 | AP86: =AO86+AO86*Титул.лист!$A$1 -> 10163.7338 | AQ86: =AP86+AP86*Титул.лист!$P$2 -> 10163.7338 | AR86: 10160 | AS86: 9672.938 | AT86: =AS86+AS86*Титул.лист!$A$1 -> 10640.2318 | AU86: =AT86+AT86*Титул.лист!$P$2 -> 10640.2318 | AV86: 10640 | AW86: 8932.594 | AX86: =AW86+AW86*Титул.лист!$A$1 -> 9825.8534 | AY86: =AX86+AX86*Титул.лист!$P$2 -> 9825.8534 | AZ86: 9830 | BA86: 9723.56 | BB86: =BA86+BA86*Титул.лист!$A$1 -> 10695.916 | BC86: =BB86+BB86*Титул.лист!$P$2 -> 10695.916 | BD86: 10700 | BE86: 11228.36 | BF86: =BE86+BE86*Титул.лист!$A$1 -> 12351.196 | BG86: =BF86+BF86*Титул.лист!$P$2 -> 12351.196 | BH86: 12350
C87: 600 | D87: 1006-60т | E87: 7320 | F87: =E87+E87*Титул.лист!$A$1 -> 8052 | G87: =F87+F87*Титул.лист!$P$2 -> 8052 | H87: 8050 | I87: 7400 | J87: =I87+I87*Титул.лист!$A$1 -> 8140 | K87: =J87+J87*Титул.лист!$P$2 -> 8140 | L87: 8140 | M87: 7780 | N87: =M87+M87*Титул.лист!$A$1 -> 8558 | O87: =N87+N87*Титул.лист!$P$2 -> 8558 | P87: 8560 | Q87: 7870 | R87: =Q87+Q87*Титул.лист!$A$1 -> 8657 | S87: =R87+R87*Титул.лист!$P$2 -> 8657 | T87: 8660 | U87: 8120 | V87: =U87+U87*Титул.лист!$A$1 -> 8932 | W87: =V87+V87*Титул.лист!$P$2 -> 8932 | X87: 8930 | Y87: 8210 | Z87: =Y87+Y87*Титул.лист!$A$1 -> 9031 | AA87: =Z87+Z87*Титул.лист!$P$2 -> 9031 | AB87: 9030 | AC87: 7800 | AD87: =AC87+AC87*Титул.лист!$A$1 -> 8580 | AE87: =AD87+AD87*Титул.лист!$P$2 -> 8580 | AF87: 8580 | AG87: 7950 | AH87: =AG87+AG87*Титул.лист!$A$1 -> 8745 | AI87: =AH87+AH87*Титул.лист!$P$2 -> 8745 | AJ87: 8750 | AK87: 8010 | AL87: =AK87+AK87*Титул.лист!$A$1 -> 8811 | AM87: =AL87+AL87*Титул.лист!$P$2 -> 8811 | AN87: 8810 | AO87: 9479.736 | AP87: =AO87+AO87*Титул.лист!$A$1 -> 10427.7096 | AQ87: =AP87+AP87*Титул.лист!$P$2 -> 10427.7096 | AR87: 10430 | AS87: 9952.296 | AT87: =AS87+AS87*Титул.лист!$A$1 -> 10947.5256 | AU87: =AT87+AT87*Титул.лист!$P$2 -> 10947.5256 | AV87: 10950 | AW87: 9144.648 | AX87: =AW87+AW87*Титул.лист!$A$1 -> 10059.1128 | AY87: =AX87+AX87*Титул.лист!$P$2 -> 10059.1128 | AZ87: 10060 | BA87: 10007.52 | BB87: =BA87+BA87*Титул.лист!$A$1 -> 11008.272 | BC87: =BB87+BB87*Титул.лист!$P$2 -> 11008.272 | BD87: 11010 | BE87: 11649.12 | BF87: =BE87+BE87*Титул.лист!$A$1 -> 12814.032 | BG87: =BF87+BF87*Титул.лист!$P$2 -> 12814.032 | BH87: 12810
C88: 700 | D88: 1006-70т | E88: 7610 | F88: =E88+E88*Титул.лист!$A$1 -> 8371 | G88: =F88+F88*Титул.лист!$P$2 -> 8371 | H88: 8370 | I88: 7720 | J88: =I88+I88*Титул.лист!$A$1 -> 8492 | K88: =J88+J88*Титул.лист!$P$2 -> 8492 | L88: 8490 | M88: 8140 | N88: =M88+M88*Титул.лист!$A$1 -> 8954 | O88: =N88+N88*Титул.лист!$P$2 -> 8954 | P88: 8950 | Q88: 8250 | R88: =Q88+Q88*Титул.лист!$A$1 -> 9075 | S88: =R88+R88*Титул.лист!$P$2 -> 9075 | T88: 9080 | U88: 8550 | V88: =U88+U88*Титул.лист!$A$1 -> 9405 | W88: =V88+V88*Титул.лист!$P$2 -> 9405 | X88: 9410 | Y88: 8660 | Z88: =Y88+Y88*Титул.лист!$A$1 -> 9526 | AA88: =Z88+Z88*Титул.лист!$P$2 -> 9526 | AB88: 9530 | AC88: 8200 | AD88: =AC88+AC88*Титул.лист!$A$1 -> 9020 | AE88: =AD88+AD88*Титул.лист!$P$2 -> 9020 | AF88: 9020 | AG88: 8360 | AH88: =AG88+AG88*Титул.лист!$A$1 -> 9196 | AI88: =AH88+AH88*Титул.лист!$P$2 -> 9196 | AJ88: 9200 | AK88: 8440 | AL88: =AK88+AK88*Титул.лист!$A$1 -> 9284 | AM88: =AL88+AL88*Титул.лист!$P$2 -> 9284 | AN88: 9280 | AO88: 10159.692 | AP88: =AO88+AO88*Титул.лист!$A$1 -> 11175.6612 | AQ88: =AP88+AP88*Титул.лист!$P$2 -> 11175.6612 | AR88: 11180 | AS88: 10711.012 | AT88: =AS88+AS88*Титул.лист!$A$1 -> 11782.1132 | AU88: =AT88+AT88*Титул.лист!$P$2 -> 11782.1132 | AV88: 11780 | AW88: 9768.756 | AX88: =AW88+AW88*Титул.лист!$A$1 -> 10745.6316 | AY88: =AX88+AX88*Титул.лист!$P$2 -> 10745.6316 | AZ88: 10750 | BA88: 10775.44 | BB88: =BA88+BA88*Титул.лист!$A$1 -> 11852.984 | BC88: =BB88+BB88*Титул.лист!$P$2 -> 11852.984 | BD88: 11850 | BE88: 12690.64 | BF88: =BE88+BE88*Титул.лист!$A$1 -> 13959.704 | BG88: =BF88+BF88*Титул.лист!$P$2 -> 13959.704 | BH88: 13960
C89: 800 | D89: 1006-80т | E89: 7890 | F89: =E89+E89*Титул.лист!$A$1 -> 8679 | G89: =F89+F89*Титул.лист!$P$2 -> 8679 | H89: 8680 | I89: 8000 | J89: =I89+I89*Титул.лист!$A$1 -> 8800 | K89: =J89+J89*Титул.лист!$P$2 -> 8800 | L89: 8800 | M89: 8500 | N89: =M89+M89*Титул.лист!$A$1 -> 9350 | O89: =N89+N89*Титул.лист!$P$2 -> 9350 | P89: 9350 | Q89: 8610 | R89: =Q89+Q89*Титул.лист!$A$1 -> 9471 | S89: =R89+R89*Титул.лист!$P$2 -> 9471 | T89: 9470 | U89: 8980 | V89: =U89+U89*Титул.лист!$A$1 -> 9878 | W89: =V89+V89*Титул.лист!$P$2 -> 9878 | X89: 9880 | Y89: 9090 | Z89: =Y89+Y89*Титул.лист!$A$1 -> 9999 | AA89: =Z89+Z89*Титул.лист!$P$2 -> 9999 | AB89: 10000 | AC89: 8550 | AD89: =AC89+AC89*Титул.лист!$A$1 -> 9405 | AE89: =AD89+AD89*Титул.лист!$P$2 -> 9405 | AF89: 9410 | AG89: 8740 | AH89: =AG89+AG89*Титул.лист!$A$1 -> 9614 | AI89: =AH89+AH89*Титул.лист!$P$2 -> 9614 | AJ89: 9610 | AK89: 8820 | AL89: =AK89+AK89*Титул.лист!$A$1 -> 9702 | AM89: =AL89+AL89*Титул.лист!$P$2 -> 9702 | AN89: 9700 | AO89: 10789.648 | AP89: =AO89+AO89*Титул.лист!$A$1 -> 11868.6128 | AQ89: =AP89+AP89*Титул.лист!$P$2 -> 11868.6128 | AR89: 11870 | AS89: 11419.728 | AT89: =AS89+AS89*Титул.лист!$A$1 -> 12561.7008 | AU89: =AT89+AT89*Титул.лист!$P$2 -> 12561.7008 | AV89: 12560 | AW89: 10342.864 | AX89: =AW89+AW89*Титул.лист!$A$1 -> 11377.1504 | AY89: =AX89+AX89*Титул.лист!$P$2 -> 11377.1504 | AZ89: 11380 | BA89: 11493.36 | BB89: =BA89+BA89*Титул.лист!$A$1 -> 12642.696 | BC89: =BB89+BB89*Титул.лист!$P$2 -> 12642.696 | BD89: 12640 | BE89: 13682.16 | BF89: =BE89+BE89*Титул.лист!$A$1 -> 15050.376 | BG89: =BF89+BF89*Титул.лист!$P$2 -> 15050.376 | BH89: 15050
C90: 600 | D90: 1005-60 | E90: 2670 | F90: =E90+E90*Титул.лист!$A$1 -> 2937 | G90: =F90+F90*Титул.лист!$P$2 -> 2937 | H90: 2940 | I90: 2790 | J90: =I90+I90*Титул.лист!$A$1 -> 3069 | K90: =J90+J90*Титул.лист!$P$2 -> 3069 | L90: 3070 | M90: 3120 | N90: =M90+M90*Титул.лист!$A$1 -> 3432 | O90: =N90+N90*Титул.лист!$P$2 -> 3432 | P90: 3430 | Q90: 3240 | R90: =Q90+Q90*Титул.лист!$A$1 -> 3564 | S90: =R90+R90*Титул.лист!$P$2 -> 3564 | T90: 3560 | U90: 3480 | V90: =U90+U90*Титул.лист!$A$1 -> 3828 | W90: =V90+V90*Титул.лист!$P$2 -> 3828 | X90: 3830 | Y90: 3600 | Z90: =Y90+Y90*Титул.лист!$A$1 -> 3960 | AA90: =Z90+Z90*Титул.лист!$P$2 -> 3960 | AB90: 3960 | AC90: 3120 | AD90: =AC90+AC90*Титул.лист!$A$1 -> 3432 | AE90: =AD90+AD90*Титул.лист!$P$2 -> 3432 | AF90: 3430 | AG90: 3270 | AH90: =AG90+AG90*Титул.лист!$A$1 -> 3597 | AI90: =AH90+AH90*Титул.лист!$P$2 -> 3597 | AJ90: 3600 | AK90: 3330 | AL90: =AK90+AK90*Титул.лист!$A$1 -> 3663 | AM90: =AL90+AL90*Титул.лист!$P$2 -> 3663 | AN90: 3660 | AO90: 4799.736 | AP90: =AO90+AO90*Титул.лист!$A$1 -> 5279.7096 | AQ90: =AP90+AP90*Титул.лист!$P$2 -> 5279.7096 | AR90: 5280 | AS90: 5272.296 | AT90: =AS90+AS90*Титул.лист!$A$1 -> 5799.5256 | AU90: =AT90+AT90*Титул.лист!$P$2 -> 5799.5256 | AV90: 5800 | AW90: 4464.648 | AX90: =AW90+AW90*Титул.лист!$A$1 -> 4911.1128 | AY90: =AX90+AX90*Титул.лист!$P$2 -> 4911.1128 | AZ90: 4910 | BA90: 5327.52 | BB90: =BA90+BA90*Титул.лист!$A$1 -> 5860.272 | BC90: =BB90+BB90*Титул.лист!$P$2 -> 5860.272 | BD90: 5860 | BE90: 6969.12 | BF90: =BE90+BE90*Титул.лист!$A$1 -> 7666.032 | BG90: =BF90+BF90*Титул.лист!$P$2 -> 7666.032 | BH90: 7670
B91: Стол 2ящ 2дв | C91: 700 | D91: 1005-70 | E91: 2930 | F91: =E91+E91*Титул.лист!$A$1 -> 3223 | G91: =F91+F91*Титул.лист!$P$2 -> 3223 | H91: 3220 | I91: 3070 | J91: =I91+I91*Титул.лист!$A$1 -> 3377 | K91: =J91+J91*Титул.лист!$P$2 -> 3377 | L91: 3380 | M91: 3450 | N91: =M91+M91*Титул.лист!$A$1 -> 3795 | O91: =N91+N91*Титул.лист!$P$2 -> 3795 | P91: 3800 | Q91: 3600 | R91: =Q91+Q91*Титул.лист!$A$1 -> 3960 | S91: =R91+R91*Титул.лист!$P$2 -> 3960 | T91: 3960 | U91: 3860 | V91: =U91+U91*Титул.лист!$A$1 -> 4246 | W91: =V91+V91*Титул.лист!$P$2 -> 4246 | X91: 4250 | Y91: 4000 | Z91: =Y91+Y91*Титул.лист!$A$1 -> 4400 | AA91: =Z91+Z91*Титул.лист!$P$2 -> 4400 | AB91: 4400 | AC91: 3500 | AD91: =AC91+AC91*Титул.лист!$A$1 -> 3850 | AE91: =AD91+AD91*Титул.лист!$P$2 -> 3850 | AF91: 3850 | AG91: 3660 | AH91: =AG91+AG91*Титул.лист!$A$1 -> 4026 | AI91: =AH91+AH91*Титул.лист!$P$2 -> 4026 | AJ91: 4030 | AK91: 3740 | AL91: =AK91+AK91*Титул.лист!$A$1 -> 4114 | AM91: =AL91+AL91*Титул.лист!$P$2 -> 4114 | AN91: 4110 | AO91: 5459.692 | AP91: =AO91+AO91*Титул.лист!$A$1 -> 6005.6612 | AQ91: =AP91+AP91*Титул.лист!$P$2 -> 6005.6612 | AR91: 6010 | AS91: 6011.012 | AT91: =AS91+AS91*Титул.лист!$A$1 -> 6612.1132 | AU91: =AT91+AT91*Титул.лист!$P$2 -> 6612.1132 | AV91: 6610 | AW91: 5068.756 | AX91: =AW91+AW91*Титул.лист!$A$1 -> 5575.6316 | AY91: =AX91+AX91*Титул.лист!$P$2 -> 5575.6316 | AZ91: 5580 | BA91: 6075.44 | BB91: =BA91+BA91*Титул.лист!$A$1 -> 6682.984 | BC91: =BB91+BB91*Титул.лист!$P$2 -> 6682.984 | BD91: 6680 | BE91: 7990.64 | BF91: =BE91+BE91*Титул.лист!$A$1 -> 8789.704 | BG91: =BF91+BF91*Титул.лист!$P$2 -> 8789.704 | BH91: 8790
C92: 800 | D92: 1005-80 | E92: 3180 | F92: =E92+E92*Титул.лист!$A$1 -> 3498 | G92: =F92+F92*Титул.лист!$P$2 -> 3498 | H92: 3500 | I92: 3330 | J92: =I92+I92*Титул.лист!$A$1 -> 3663 | K92: =J92+J92*Титул.лист!$P$2 -> 3663 | L92: 3660 | M92: 3790 | N92: =M92+M92*Титул.лист!$A$1 -> 4169 | O92: =N92+N92*Титул.лист!$P$2 -> 4169 | P92: 4170 | Q92: 3950 | R92: =Q92+Q92*Титул.лист!$A$1 -> 4345 | S92: =R92+R92*Титул.лист!$P$2 -> 4345 | T92: 4350 | U92: 4260 | V92: =U92+U92*Титул.лист!$A$1 -> 4686 | W92: =V92+V92*Титул.лист!$P$2 -> 4686 | X92: 4690 | Y92: 4410 | Z92: =Y92+Y92*Титул.лист!$A$1 -> 4851 | AA92: =Z92+Z92*Титул.лист!$P$2 -> 4851 | AB92: 4850 | AC92: 3830 | AD92: =AC92+AC92*Титул.лист!$A$1 -> 4213 | AE92: =AD92+AD92*Титул.лист!$P$2 -> 4213 | AF92: 4210 | AG92: 4030 | AH92: =AG92+AG92*Титул.лист!$A$1 -> 4433 | AI92: =AH92+AH92*Титул.лист!$P$2 -> 4433 | AJ92: 4430 | AK92: 4100 | AL92: =AK92+AK92*Титул.лист!$A$1 -> 4510 | AM92: =AL92+AL92*Титул.лист!$P$2 -> 4510 | AN92: 4510 | AO92: 6069.648 | AP92: =AO92+AO92*Титул.лист!$A$1 -> 6676.6128 | AQ92: =AP92+AP92*Титул.лист!$P$2 -> 6676.6128 | AR92: 6680 | AS92: 6699.728 | AT92: =AS92+AS92*Титул.лист!$A$1 -> 7369.7008 | AU92: =AT92+AT92*Титул.лист!$P$2 -> 7369.7008 | AV92: 7370 | AW92: 5622.864 | AX92: =AW92+AW92*Титул.лист!$A$1 -> 6185.1504 | AY92: =AX92+AX92*Титул.лист!$P$2 -> 6185.1504 | AZ92: 6190 | BA92: 6773.36 | BB92: =BA92+BA92*Титул.лист!$A$1 -> 7450.696 | BC92: =BB92+BB92*Титул.лист!$P$2 -> 7450.696 | BD92: 7450 | BE92: 8962.16 | BF92: =BE92+BE92*Титул.лист!$A$1 -> 9858.376 | BG92: =BF92+BF92*Титул.лист!$P$2 -> 9858.376 | BH92: 9860
B93: Стол 2 ящ.2 дв. метабокс | C93: 600 | D93: 1005-60м | E93: =E90+500 -> 3170 | F93: =E93+E93*Титул.лист!$A$1 -> 3487 | G93: =F93+F93*Титул.лист!$P$2 -> 3487 | H93: 3490 | I93: =I90+500 -> 3290 | J93: =I93+I93*Титул.лист!$A$1 -> 3619 | K93: =J93+J93*Титул.лист!$P$2 -> 3619 | L93: 3620 | M93: =M90+500 -> 3620 | N93: =M93+M93*Титул.лист!$A$1 -> 3982 | O93: =N93+N93*Титул.лист!$P$2 -> 3982 | P93: 3980 | Q93: =Q90+500 -> 3740 | R93: =Q93+Q93*Титул.лист!$A$1 -> 4114 | S93: =R93+R93*Титул.лист!$P$2 -> 4114 | T93: 4110 | U93: =U90+500 -> 3980 | V93: =U93+U93*Титул.лист!$A$1 -> 4378 | W93: =V93+V93*Титул.лист!$P$2 -> 4378 | X93: 4380 | Y93: =Y90+500 -> 4100 | Z93: =Y93+Y93*Титул.лист!$A$1 -> 4510 | AA93: =Z93+Z93*Титул.лист!$P$2 -> 4510 | AB93: 4510 | AC93: =AC90+500 -> 3620 | AD93: =AC93+AC93*Титул.лист!$A$1 -> 3982 | AE93: =AD93+AD93*Титул.лист!$P$2 -> 3982 | AF93: 3980 | AG93: =AG90+500 -> 3770 | AH93: =AG93+AG93*Титул.лист!$A$1 -> 4147 | AI93: =AH93+AH93*Титул.лист!$P$2 -> 4147 | AJ93: 4150 | AK93: =AK90+500 -> 3830 | AL93: =AK93+AK93*Титул.лист!$A$1 -> 4213 | AM93: =AL93+AL93*Титул.лист!$P$2 -> 4213 | AN93: 4210 | AO93: 5299.736 | AP93: =AO93+AO93*Титул.лист!$A$1 -> 5829.7096 | AQ93: =AP93+AP93*Титул.лист!$P$2 -> 5829.7096 | AR93: 5830 | AS93: 5772.296 | AT93: =AS93+AS93*Титул.лист!$A$1 -> 6349.5256 | AU93: =AT93+AT93*Титул.лист!$P$2 -> 6349.5256 | AV93: 6350 | AW93: 4964.648 | AX93: =AW93+AW93*Титул.лист!$A$1 -> 5461.1128 | AY93: =AX93+AX93*Титул.лист!$P$2 -> 5461.1128 | AZ93: 5460 | BA93: 5827.52 | BB93: =BA93+BA93*Титул.лист!$A$1 -> 6410.272 | BC93: =BB93+BB93*Титул.лист!$P$2 -> 6410.272 | BD93: 6410 | BE93: 7469.12 | BF93: =BE93+BE93*Титул.лист!$A$1 -> 8216.032 | BG93: =BF93+BF93*Титул.лист!$P$2 -> 8216.032 | BH93: 8220
C94: 700 | D94: 1005-70м | E94: =E91+500 -> 3430 | F94: =E94+E94*Титул.лист!$A$1 -> 3773 | G94: =F94+F94*Титул.лист!$P$2 -> 3773 | H94: 3770 | I94: =I91+500 -> 3570 | J94: =I94+I94*Титул.лист!$A$1 -> 3927 | K94: =J94+J94*Титул.лист!$P$2 -> 3927 | L94: 3930 | M94: =M91+500 -> 3950 | N94: =M94+M94*Титул.лист!$A$1 -> 4345 | O94: =N94+N94*Титул.лист!$P$2 -> 4345 | P94: 4350 | Q94: =Q91+500 -> 4100 | R94: =Q94+Q94*Титул.лист!$A$1 -> 4510 | S94: =R94+R94*Титул.лист!$P$2 -> 4510 | T94: 4510 | U94: =U91+500 -> 4360 | V94: =U94+U94*Титул.лист!$A$1 -> 4796 | W94: =V94+V94*Титул.лист!$P$2 -> 4796 | X94: 4800 | Y94: =Y91+500 -> 4500 | Z94: =Y94+Y94*Титул.лист!$A$1 -> 4950 | AA94: =Z94+Z94*Титул.лист!$P$2 -> 4950 | AB94: 4950 | AC94: =AC91+500 -> 4000 | AD94: =AC94+AC94*Титул.лист!$A$1 -> 4400 | AE94: =AD94+AD94*Титул.лист!$P$2 -> 4400 | AF94: 4400 | AG94: =AG91+500 -> 4160 | AH94: =AG94+AG94*Титул.лист!$A$1 -> 4576 | AI94: =AH94+AH94*Титул.лист!$P$2 -> 4576 | AJ94: 4580 | AK94: =AK91+500 -> 4240 | AL94: =AK94+AK94*Титул.лист!$A$1 -> 4664 | AM94: =AL94+AL94*Титул.лист!$P$2 -> 4664 | AN94: 4660 | AO94: 5959.692 | AP94: =AO94+AO94*Титул.лист!$A$1 -> 6555.6612 | AQ94: =AP94+AP94*Титул.лист!$P$2 -> 6555.6612 | AR94: 6560 | AS94: 6511.012 | AT94: =AS94+AS94*Титул.лист!$A$1 -> 7162.1132 | AU94: =AT94+AT94*Титул.лист!$P$2 -> 7162.1132 | AV94: 7160 | AW94: 5568.756 | AX94: =AW94+AW94*Титул.лист!$A$1 -> 6125.6316 | AY94: =AX94+AX94*Титул.лист!$P$2 -> 6125.6316 | AZ94: 6130 | BA94: 6575.44 | BB94: =BA94+BA94*Титул.лист!$A$1 -> 7232.984 | BC94: =BB94+BB94*Титул.лист!$P$2 -> 7232.984 | BD94: 7230 | BE94: 8490.64 | BF94: =BE94+BE94*Титул.лист!$A$1 -> 9339.704 | BG94: =BF94+BF94*Титул.лист!$P$2 -> 9339.704 | BH94: 9340
C95: 800 | D95: 1005-80м | E95: =E92+500 -> 3680 | F95: =E95+E95*Титул.лист!$A$1 -> 4048 | G95: =F95+F95*Титул.лист!$P$2 -> 4048 | H95: 4050 | I95: =I92+500 -> 3830 | J95: =I95+I95*Титул.лист!$A$1 -> 4213 | K95: =J95+J95*Титул.лист!$P$2 -> 4213 | L95: 4210 | M95: =M92+500 -> 4290 | N95: =M95+M95*Титул.лист!$A$1 -> 4719 | O95: =N95+N95*Титул.лист!$P$2 -> 4719 | P95: 4720 | Q95: =Q92+500 -> 4450 | R95: =Q95+Q95*Титул.лист!$A$1 -> 4895 | S95: =R95+R95*Титул.лист!$P$2 -> 4895 | T95: 4900 | U95: =U92+500 -> 4760 | V95: =U95+U95*Титул.лист!$A$1 -> 5236 | W95: =V95+V95*Титул.лист!$P$2 -> 5236 | X95: 5240 | Y95: =Y92+500 -> 4910 | Z95: =Y95+Y95*Титул.лист!$A$1 -> 5401 | AA95: =Z95+Z95*Титул.лист!$P$2 -> 5401 | AB95: 5400 | AC95: =AC92+500 -> 4330 | AD95: =AC95+AC95*Титул.лист!$A$1 -> 4763 | AE95: =AD95+AD95*Титул.лист!$P$2 -> 4763 | AF95: 4760 | AG95: =AG92+500 -> 4530 | AH95: =AG95+AG95*Титул.лист!$A$1 -> 4983 | AI95: =AH95+AH95*Титул.лист!$P$2 -> 4983 | AJ95: 4980 | AK95: =AK92+500 -> 4600 | AL95: =AK95+AK95*Титул.лист!$A$1 -> 5060 | AM95: =AL95+AL95*Титул.лист!$P$2 -> 5060 | AN95: 5060 | AO95: 6569.648 | AP95: =AO95+AO95*Титул.лист!$A$1 -> 7226.6128 | AQ95: =AP95+AP95*Титул.лист!$P$2 -> 7226.6128 | AR95: 7230 | AS95: 7199.728 | AT95: =AS95+AS95*Титул.лист!$A$1 -> 7919.7008 | AU95: =AT95+AT95*Титул.лист!$P$2 -> 7919.7008 | AV95: 7920 | AW95: 6122.864 | AX95: =AW95+AW95*Титул.лист!$A$1 -> 6735.1504 | AY95: =AX95+AX95*Титул.лист!$P$2 -> 6735.1504 | AZ95: 6740 | BA95: 7273.36 | BB95: =BA95+BA95*Титул.лист!$A$1 -> 8000.696 | BC95: =BB95+BB95*Титул.лист!$P$2 -> 8000.696 | BD95: 8000 | BE95: 9462.16 | BF95: =BE95+BE95*Титул.лист!$A$1 -> 10408.376 | BG95: =BF95+BF95*Титул.лист!$P$2 -> 10408.376 | BH95: 10410
B96: Стол 2 ящ.2 дв. тандембокс | C96: 600 | D96: 1005-60т | E96: 7270 | F96: =E96+E96*Титул.лист!$A$1 -> 7997 | G96: =F96+F96*Титул.лист!$P$2 -> 7997 | H96: 8000 | I96: 7390 | J96: =I96+I96*Титул.лист!$A$1 -> 8129 | K96: =J96+J96*Титул.лист!$P$2 -> 8129 | L96: 8130 | M96: 7720 | N96: =M96+M96*Титул.лист!$A$1 -> 8492 | O96: =N96+N96*Титул.лист!$P$2 -> 8492 | P96: 8490 | Q96: 7840 | R96: =Q96+Q96*Титул.лист!$A$1 -> 8624 | S96: =R96+R96*Титул.лист!$P$2 -> 8624 | T96: 8620 | U96: 8080 | V96: =U96+U96*Титул.лист!$A$1 -> 8888 | W96: =V96+V96*Титул.лист!$P$2 -> 8888 | X96: 8890 | Y96: 8200 | Z96: =Y96+Y96*Титул.лист!$A$1 -> 9020 | AA96: =Z96+Z96*Титул.лист!$P$2 -> 9020 | AB96: 9020 | AC96: 7720 | AD96: =AC96+AC96*Титул.лист!$A$1 -> 8492 | AE96: =AD96+AD96*Титул.лист!$P$2 -> 8492 | AF96: 8490 | AG96: 7870 | AH96: =AG96+AG96*Титул.лист!$A$1 -> 8657 | AI96: =AH96+AH96*Титул.лист!$P$2 -> 8657 | AJ96: 8660 | AK96: 7930 | AL96: =AK96+AK96*Титул.лист!$A$1 -> 8723 | AM96: =AL96+AL96*Титул.лист!$P$2 -> 8723 | AN96: 8720 | AO96: 9399.736 | AP96: =AO96+AO96*Титул.лист!$A$1 -> 10339.7096 | AQ96: =AP96+AP96*Титул.лист!$P$2 -> 10339.7096 | AR96: 10340 | AS96: 9872.296 | AT96: =AS96+AS96*Титул.лист!$A$1 -> 10859.5256 | AU96: =AT96+AT96*Титул.лист!$P$2 -> 10859.5256 | AV96: 10860 | AW96: 9064.648 | AX96: =AW96+AW96*Титул.лист!$A$1 -> 9971.1128 | AY96: =AX96+AX96*Титул.лист!$P$2 -> 9971.1128 | AZ96: 9970 | BA96: 9927.52 | BB96: =BA96+BA96*Титул.лист!$A$1 -> 10920.272 | BC96: =BB96+BB96*Титул.лист!$P$2 -> 10920.272 | BD96: 10920 | BE96: 11569.12 | BF96: =BE96+BE96*Титул.лист!$A$1 -> 12726.032 | BG96: =BF96+BF96*Титул.лист!$P$2 -> 12726.032 | BH96: 12730
C97: 700 | D97: 1005-70т | E97: 7530 | F97: =E97+E97*Титул.лист!$A$1 -> 8283 | G97: =F97+F97*Титул.лист!$P$2 -> 8283 | H97: 8280 | I97: 7670 | J97: =I97+I97*Титул.лист!$A$1 -> 8437 | K97: =J97+J97*Титул.лист!$P$2 -> 8437 | L97: 8440 | M97: 8050 | N97: =M97+M97*Титул.лист!$A$1 -> 8855 | O97: =N97+N97*Титул.лист!$P$2 -> 8855 | P97: 8860 | Q97: 8200 | R97: =Q97+Q97*Титул.лист!$A$1 -> 9020 | S97: =R97+R97*Титул.лист!$P$2 -> 9020 | T97: 9020 | U97: 8460 | V97: =U97+U97*Титул.лист!$A$1 -> 9306 | W97: =V97+V97*Титул.лист!$P$2 -> 9306 | X97: 9310 | Y97: 8600 | Z97: =Y97+Y97*Титул.лист!$A$1 -> 9460 | AA97: =Z97+Z97*Титул.лист!$P$2 -> 9460 | AB97: 9460 | AC97: 8100 | AD97: =AC97+AC97*Титул.лист!$A$1 -> 8910 | AE97: =AD97+AD97*Титул.лист!$P$2 -> 8910 | AF97: 8910 | AG97: 8260 | AH97: =AG97+AG97*Титул.лист!$A$1 -> 9086 | AI97: =AH97+AH97*Титул.лист!$P$2 -> 9086 | AJ97: 9090 | AK97: 8340 | AL97: =AK97+AK97*Титул.лист!$A$1 -> 9174 | AM97: =AL97+AL97*Титул.лист!$P$2 -> 9174 | AN97: 9170 | AO97: 10059.692 | AP97: =AO97+AO97*Титул.лист!$A$1 -> 11065.6612 | AQ97: =AP97+AP97*Титул.лист!$P$2 -> 11065.6612 | AR97: 11070 | AS97: 10611.012 | AT97: =AS97+AS97*Титул.лист!$A$1 -> 11672.1132 | AU97: =AT97+AT97*Титул.лист!$P$2 -> 11672.1132 | AV97: 11670 | AW97: 9668.756 | AX97: =AW97+AW97*Титул.лист!$A$1 -> 10635.6316 | AY97: =AX97+AX97*Титул.лист!$P$2 -> 10635.6316 | AZ97: 10640 | BA97: 10675.44 | BB97: =BA97+BA97*Титул.лист!$A$1 -> 11742.984 | BC97: =BB97+BB97*Титул.лист!$P$2 -> 11742.984 | BD97: 11740 | BE97: 12590.64 | BF97: =BE97+BE97*Титул.лист!$A$1 -> 13849.704 | BG97: =BF97+BF97*Титул.лист!$P$2 -> 13849.704 | BH97: 13850
C98: 800 | D98: 1005-80т | E98: 7780 | F98: =E98+E98*Титул.лист!$A$1 -> 8558 | G98: =F98+F98*Титул.лист!$P$2 -> 8558 | H98: 8560 | I98: 7930 | J98: =I98+I98*Титул.лист!$A$1 -> 8723 | K98: =J98+J98*Титул.лист!$P$2 -> 8723 | L98: 8720 | M98: 8390 | N98: =M98+M98*Титул.лист!$A$1 -> 9229 | O98: =N98+N98*Титул.лист!$P$2 -> 9229 | P98: 9230 | Q98: 8550 | R98: =Q98+Q98*Титул.лист!$A$1 -> 9405 | S98: =R98+R98*Титул.лист!$P$2 -> 9405 | T98: 9410 | U98: 8860 | V98: =U98+U98*Титул.лист!$A$1 -> 9746 | W98: =V98+V98*Титул.лист!$P$2 -> 9746 | X98: 9750 | Y98: 9010 | Z98: =Y98+Y98*Титул.лист!$A$1 -> 9911 | AA98: =Z98+Z98*Титул.лист!$P$2 -> 9911 | AB98: 9910 | AC98: 8430 | AD98: =AC98+AC98*Титул.лист!$A$1 -> 9273 | AE98: =AD98+AD98*Титул.лист!$P$2 -> 9273 | AF98: 9270 | AG98: 8630 | AH98: =AG98+AG98*Титул.лист!$A$1 -> 9493 | AI98: =AH98+AH98*Титул.лист!$P$2 -> 9493 | AJ98: 9490 | AK98: 8700 | AL98: =AK98+AK98*Титул.лист!$A$1 -> 9570 | AM98: =AL98+AL98*Титул.лист!$P$2 -> 9570 | AN98: 9570 | AO98: 10669.648 | AP98: =AO98+AO98*Титул.лист!$A$1 -> 11736.6128 | AQ98: =AP98+AP98*Титул.лист!$P$2 -> 11736.6128 | AR98: 11740 | AS98: 11299.728 | AT98: =AS98+AS98*Титул.лист!$A$1 -> 12429.7008 | AU98: =AT98+AT98*Титул.лист!$P$2 -> 12429.7008 | AV98: 12430 | AW98: 10222.864 | AX98: =AW98+AW98*Титул.лист!$A$1 -> 11245.1504 | AY98: =AX98+AX98*Титул.лист!$P$2 -> 11245.1504 | AZ98: 11250 | BA98: 11373.36 | BB98: =BA98+BA98*Титул.лист!$A$1 -> 12510.696 | BC98: =BB98+BB98*Титул.лист!$P$2 -> 12510.696 | BD98: 12510 | BE98: 13562.16 | BF98: =BE98+BE98*Титул.лист!$A$1 -> 14918.376 | BG98: =BF98+BF98*Титул.лист!$P$2 -> 14918.376 | BH98: 14920
B99: Стол 3ящ. 2 мал, 1 бол. | C99: 300 | D99: 1007-30 | E99: 1970 | F99: =E99+E99*Титул.лист!$A$1 -> 2167 | G99: =F99+F99*Титул.лист!$P$2 -> 2167 | H99: 2170 | I99: 2030 | J99: =I99+I99*Титул.лист!$A$1 -> 2233 | K99: =J99+J99*Титул.лист!$P$2 -> 2233 | L99: 2230 | M99: 2190 | N99: =M99+M99*Титул.лист!$A$1 -> 2409 | O99: =N99+N99*Титул.лист!$P$2 -> 2409 | P99: 2410 | Q99: 2250 | R99: =Q99+Q99*Титул.лист!$A$1 -> 2475 | S99: =R99+R99*Титул.лист!$P$2 -> 2475 | T99: 2480 | U99: 2360 | V99: =U99+U99*Титул.лист!$A$1 -> 2596 | W99: =V99+V99*Титул.лист!$P$2 -> 2596 | X99: 2600 | Y99: 2430 | Z99: =Y99+Y99*Титул.лист!$A$1 -> 2673 | AA99: =Z99+Z99*Титул.лист!$P$2 -> 2673 | AB99: 2670 | AC99: 2190 | AD99: =AC99+AC99*Титул.лист!$A$1 -> 2409 | AE99: =AD99+AD99*Титул.лист!$P$2 -> 2409 | AF99: 2410 | AG99: 2250 | AH99: =AG99+AG99*Титул.лист!$A$1 -> 2475 | AI99: =AH99+AH99*Титул.лист!$P$2 -> 2475 | AJ99: 2480 | AK99: 2290 | AL99: =AK99+AK99*Титул.лист!$A$1 -> 2519 | AM99: =AL99+AL99*Титул.лист!$P$2 -> 2519 | AN99: 2520 | AO99: 3029.868 | AP99: =AO99+AO99*Титул.лист!$A$1 -> 3332.8548 | AQ99: =AP99+AP99*Титул.лист!$P$2 -> 3332.8548 | AR99: 3330 | AS99: 3266.148 | AT99: =AS99+AS99*Титул.лист!$A$1 -> 3592.7628 | AU99: =AT99+AT99*Титул.лист!$P$2 -> 3592.7628 | AV99: 3590 | AW99: 2862.324 | AX99: =AW99+AW99*Титул.лист!$A$1 -> 3148.5564 | AY99: =AX99+AX99*Титул.лист!$P$2 -> 3148.5564 | AZ99: 3150 | BA99: 3293.76 | BB99: =BA99+BA99*Титул.лист!$A$1 -> 3623.136 | BC99: =BB99+BB99*Титул.лист!$P$2 -> 3623.136 | BD99: 3620 | BE99: 4114.56 | BF99: =BE99+BE99*Титул.лист!$A$1 -> 4526.016 | BG99: =BF99+BF99*Титул.лист!$P$2 -> 4526.016 | BH99: 4530
C100: 400 | D100: 1007-40 | E100: 2250 | F100: =E100+E100*Титул.лист!$A$1 -> 2475 | G100: =F100+F100*Титул.лист!$P$2 -> 2475 | H100: 2480 | I100: 2240 | J100: =I100+I100*Титул.лист!$A$1 -> 2464 | K100: =J100+J100*Титул.лист!$P$2 -> 2464 | L100: 2460 | M100: 2550 | N100: =M100+M100*Титул.лист!$A$1 -> 2805 | O100: =N100+N100*Титул.лист!$P$2 -> 2805 | P100: 2810 | Q100: 2540 | R100: =Q100+Q100*Титул.лист!$A$1 -> 2794 | S100: =R100+R100*Титул.лист!$P$2 -> 2794 | T100: 2790 | U100: 2770 | V100: =U100+U100*Титул.лист!$A$1 -> 3047 | W100: =V100+V100*Титул.лист!$P$2 -> 3047 | X100: 3050 | Y100: 2960 | Z100: =Y100+Y100*Титул.лист!$A$1 -> 3256 | AA100: =Z100+Z100*Титул.лист!$P$2 -> 3256 | AB100: 3260 | AC100: 2480 | AD100: =AC100+AC100*Титул.лист!$A$1 -> 2728 | AE100: =AD100+AD100*Титул.лист!$P$2 -> 2728 | AF100: 2730 | AG100: 2560 | AH100: =AG100+AG100*Титул.лист!$A$1 -> 2816 | AI100: =AH100+AH100*Титул.лист!$P$2 -> 2816 | AJ100: 2820 | AK100: 2610 | AL100: =AK100+AK100*Титул.лист!$A$1 -> 2871 | AM100: =AL100+AL100*Титул.лист!$P$2 -> 2871 | AN100: 2870 | AO100: 3599.824 | AP100: =AO100+AO100*Титул.лист!$A$1 -> 3959.8064 | AQ100: =AP100+AP100*Титул.лист!$P$2 -> 3959.8064 | AR100: 3960 | AS100: 3914.864 | AT100: =AS100+AS100*Титул.лист!$A$1 -> 4306.3504 | AU100: =AT100+AT100*Титул.лист!$P$2 -> 4306.3504 | AV100: 4310 | AW100: 3376.432 | AX100: =AW100+AW100*Титул.лист!$A$1 -> 3714.0752 | AY100: =AX100+AX100*Титул.лист!$P$2 -> 3714.0752 | AZ100: 3710 | BA100: 3951.68 | BB100: =BA100+BA100*Титул.лист!$A$1 -> 4346.848 | BC100: =BB100+BB100*Титул.лист!$P$2 -> 4346.848 | BD100: 4350 | BE100: 5046.08 | BF100: =BE100+BE100*Титул.лист!$A$1 -> 5550.688 | BG100: =BF100+BF100*Титул.лист!$P$2 -> 5550.688 | BH100: 5550
C101: 450 | D101: 1007-45 | E101: 2400 | F101: =E101+E101*Титул.лист!$A$1 -> 2640 | G101: =F101+F101*Титул.лист!$P$2 -> 2640 | H101: 2640 | I101: 2500 | J101: =I101+I101*Титул.лист!$A$1 -> 2750 | K101: =J101+J101*Титул.лист!$P$2 -> 2750 | L101: 2750 | M101: 2800 | N101: =M101+M101*Титул.лист!$A$1 -> 3080 | O101: =N101+N101*Титул.лист!$P$2 -> 3080 | P101: 3080 | Q101: 2950 | R101: =Q101+Q101*Титул.лист!$A$1 -> 3245 | S101: =R101+R101*Титул.лист!$P$2 -> 3245 | T101: 3250 | U101: 3100 | V101: =U101+U101*Титул.лист!$A$1 -> 3410 | W101: =V101+V101*Титул.лист!$P$2 -> 3410 | X101: 3410 | Y101: 3200 | Z101: =Y101+Y101*Титул.лист!$A$1 -> 3520 | AA101: =Z101+Z101*Титул.лист!$P$2 -> 3520 | AB101: 3520 | AC101: 2800 | AD101: =AC101+AC101*Титул.лист!$A$1 -> 3080 | AE101: =AD101+AD101*Титул.лист!$P$2 -> 3080 | AF101: 3080 | AG101: 2900 | AH101: =AG101+AG101*Титул.лист!$A$1 -> 3190 | AI101: =AH101+AH101*Титул.лист!$P$2 -> 3190 | AJ101: 3190 | AK101: 3020 | AL101: =AK101+AK101*Титул.лист!$A$1 -> 3322 | AM101: =AL101+AL101*Титул.лист!$P$2 -> 3322 | AN101: 3320 | AO101: 4059.802 | AP101: =AO101+AO101*Титул.лист!$A$1 -> 4465.7822 | AQ101: =AP101+AP101*Титул.лист!$P$2 -> 4465.7822 | AR101: 4470 | AS101: 4414.222 | AT101: =AS101+AS101*Титул.лист!$A$1 -> 4855.6442 | AU101: =AT101+AT101*Титул.лист!$P$2 -> 4855.6442 | AV101: 4860 | AW101: 3808.486 | AX101: =AW101+AW101*Титул.лист!$A$1 -> 4189.3346 | AY101: =AX101+AX101*Титул.лист!$P$2 -> 4189.3346 | AZ101: 4190 | BA101: 4455.64 | BB101: =BA101+BA101*Титул.лист!$A$1 -> 4901.204 | BC101: =BB101+BB101*Титул.лист!$P$2 -> 4901.204 | BD101: 4900 | BE101: 5686.84 | BF101: =BE101+BE101*Титул.лист!$A$1 -> 6255.524 | BG101: =BF101+BF101*Титул.лист!$P$2 -> 6255.524 | BH101: 6260
C102: 500 | D102: 1007-50 | E102: 2560 | F102: =E102+E102*Титул.лист!$A$1 -> 2816 | G102: =F102+F102*Титул.лист!$P$2 -> 2816 | H102: 2820 | I102: 2660 | J102: =I102+I102*Титул.лист!$A$1 -> 2926 | K102: =J102+J102*Титул.лист!$P$2 -> 2926 | L102: 2930 | M102: 2950 | N102: =M102+M102*Титул.лист!$A$1 -> 3245 | O102: =N102+N102*Титул.лист!$P$2 -> 3245 | P102: 3250 | Q102: 3050 | R102: =Q102+Q102*Титул.лист!$A$1 -> 3355 | S102: =R102+R102*Титул.лист!$P$2 -> 3355 | T102: 3360 | U102: 3230 | V102: =U102+U102*Титул.лист!$A$1 -> 3553 | W102: =V102+V102*Титул.лист!$P$2 -> 3553 | X102: 3550 | Y102: 3330 | Z102: =Y102+Y102*Титул.лист!$A$1 -> 3663 | AA102: =Z102+Z102*Титул.лист!$P$2 -> 3663 | AB102: 3660 | AC102: 2950 | AD102: =AC102+AC102*Титул.лист!$A$1 -> 3245 | AE102: =AD102+AD102*Титул.лист!$P$2 -> 3245 | AF102: 3250 | AG102: 3070 | AH102: =AG102+AG102*Титул.лист!$A$1 -> 3377 | AI102: =AH102+AH102*Титул.лист!$P$2 -> 3377 | AJ102: 3380 | AK102: 3120 | AL102: =AK102+AK102*Титул.лист!$A$1 -> 3432 | AM102: =AL102+AL102*Титул.лист!$P$2 -> 3432 | AN102: 3430 | AO102: 4349.78 | AP102: =AO102+AO102*Титул.лист!$A$1 -> 4784.758 | AQ102: =AP102+AP102*Титул.лист!$P$2 -> 4784.758 | AR102: 4780 | AS102: 4743.58 | AT102: =AS102+AS102*Титул.лист!$A$1 -> 5217.938 | AU102: =AT102+AT102*Титул.лист!$P$2 -> 5217.938 | AV102: 5220 | AW102: 4070.54 | AX102: =AW102+AW102*Титул.лист!$A$1 -> 4477.594 | AY102: =AX102+AX102*Титул.лист!$P$2 -> 4477.594 | AZ102: 4480 | BA102: 4789.6 | BB102: =BA102+BA102*Титул.лист!$A$1 -> 5268.56 | BC102: =BB102+BB102*Титул.лист!$P$2 -> 5268.56 | BD102: 5270 | BE102: 6157.6 | BF102: =BE102+BE102*Титул.лист!$A$1 -> 6773.36 | BG102: =BF102+BF102*Титул.лист!$P$2 -> 6773.36 | BH102: 6770
C103: 600 | D103: 1007-60 | E103: 2840 | F103: =E103+E103*Титул.лист!$A$1 -> 3124 | G103: =F103+F103*Титул.лист!$P$2 -> 3124 | H103: 3120 | I103: 2960 | J103: =I103+I103*Титул.лист!$A$1 -> 3256 | K103: =J103+J103*Титул.лист!$P$2 -> 3256 | L103: 3260 | M103: 3290 | N103: =M103+M103*Титул.лист!$A$1 -> 3619 | O103: =N103+N103*Титул.лист!$P$2 -> 3619 | P103: 3620 | Q103: 3410 | R103: =Q103+Q103*Титул.лист!$A$1 -> 3751 | S103: =R103+R103*Титул.лист!$P$2 -> 3751 | T103: 3750 | U103: 3640 | V103: =U103+U103*Титул.лист!$A$1 -> 4004 | W103: =V103+V103*Титул.лист!$P$2 -> 4004 | X103: 4000 | Y103: 3760 | Z103: =Y103+Y103*Титул.лист!$A$1 -> 4136 | AA103: =Z103+Z103*Титул.лист!$P$2 -> 4136 | AB103: 4140 | AC103: 3310 | AD103: =AC103+AC103*Титул.лист!$A$1 -> 3641 | AE103: =AD103+AD103*Титул.лист!$P$2 -> 3641 | AF103: 3640 | AG103: 3450 | AH103: =AG103+AG103*Титул.лист!$A$1 -> 3795 | AI103: =AH103+AH103*Титул.лист!$P$2 -> 3795 | AJ103: 3800 | AK103: 3520 | AL103: =AK103+AK103*Титул.лист!$A$1 -> 3872 | AM103: =AL103+AL103*Титул.лист!$P$2 -> 3872 | AN103: 3870 | AO103: 4989.736 | AP103: =AO103+AO103*Титул.лист!$A$1 -> 5488.7096 | AQ103: =AP103+AP103*Титул.лист!$P$2 -> 5488.7096 | AR103: 5490 | AS103: 5462.296 | AT103: =AS103+AS103*Титул.лист!$A$1 -> 6008.5256 | AU103: =AT103+AT103*Титул.лист!$P$2 -> 6008.5256 | AV103: 6010 | AW103: 4654.648 | AX103: =AW103+AW103*Титул.лист!$A$1 -> 5120.1128 | AY103: =AX103+AX103*Титул.лист!$P$2 -> 5120.1128 | AZ103: 5120 | BA103: 5517.52 | BB103: =BA103+BA103*Титул.лист!$A$1 -> 6069.272 | BC103: =BB103+BB103*Титул.лист!$P$2 -> 6069.272 | BD103: 6070 | BE103: 7159.12 | BF103: =BE103+BE103*Титул.лист!$A$1 -> 7875.032 | BG103: =BF103+BF103*Титул.лист!$P$2 -> 7875.032 | BH103: 7880
C104: 700 | D104: 1007-70 | E104: 3130 | F104: =E104+E104*Титул.лист!$A$1 -> 3443 | G104: =F104+F104*Титул.лист!$P$2 -> 3443 | H104: 3440 | I104: 3270 | J104: =I104+I104*Титул.лист!$A$1 -> 3597 | K104: =J104+J104*Титул.лист!$P$2 -> 3597 | L104: 3600 | M104: 3660 | N104: =M104+M104*Титул.лист!$A$1 -> 4026 | O104: =N104+N104*Титул.лист!$P$2 -> 4026 | P104: 4030 | Q104: 3790 | R104: =Q104+Q104*Титул.лист!$A$1 -> 4169 | S104: =R104+R104*Титул.лист!$P$2 -> 4169 | T104: 4170 | U104: 4070 | V104: =U104+U104*Титул.лист!$A$1 -> 4477 | W104: =V104+V104*Титул.лист!$P$2 -> 4477 | X104: 4480 | Y104: 4200 | Z104: =Y104+Y104*Титул.лист!$A$1 -> 4620 | AA104: =Z104+Z104*Титул.лист!$P$2 -> 4620 | AB104: 4620 | AC104: 3700 | AD104: =AC104+AC104*Титул.лист!$A$1 -> 4070 | AE104: =AD104+AD104*Титул.лист!$P$2 -> 4070 | AF104: 4070 | AG104: 3860 | AH104: =AG104+AG104*Титул.лист!$A$1 -> 4246 | AI104: =AH104+AH104*Титул.лист!$P$2 -> 4246 | AJ104: 4250 | AK104: 3940 | AL104: =AK104+AK104*Титул.лист!$A$1 -> 4334 | AM104: =AL104+AL104*Титул.лист!$P$2 -> 4334 | AN104: 4330 | AO104: 5659.692 | AP104: =AO104+AO104*Титул.лист!$A$1 -> 6225.6612 | AQ104: =AP104+AP104*Титул.лист!$P$2 -> 6225.6612 | AR104: 6230 | AS104: 6211.012 | AT104: =AS104+AS104*Титул.лист!$A$1 -> 6832.1132 | AU104: =AT104+AT104*Титул.лист!$P$2 -> 6832.1132 | AV104: 6830 | AW104: 5268.756 | AX104: =AW104+AW104*Титул.лист!$A$1 -> 5795.6316 | AY104: =AX104+AX104*Титул.лист!$P$2 -> 5795.6316 | AZ104: 5800 | BA104: 6275.44 | BB104: =BA104+BA104*Титул.лист!$A$1 -> 6902.984 | BC104: =BB104+BB104*Титул.лист!$P$2 -> 6902.984 | BD104: 6900 | BE104: 8190.64 | BF104: =BE104+BE104*Титул.лист!$A$1 -> 9009.704 | BG104: =BF104+BF104*Титул.лист!$P$2 -> 9009.704 | BH104: 9010
C105: 800 | D105: 1007-80 | E105: 3420 | F105: =E105+E105*Титул.лист!$A$1 -> 3762 | G105: =F105+F105*Титул.лист!$P$2 -> 3762 | H105: 3760 | I105: 3560 | J105: =I105+I105*Титул.лист!$A$1 -> 3916 | K105: =J105+J105*Титул.лист!$P$2 -> 3916 | L105: 3920 | M105: 4040 | N105: =M105+M105*Титул.лист!$A$1 -> 4444 | O105: =N105+N105*Титул.лист!$P$2 -> 4444 | P105: 4440 | Q105: 4180 | R105: =Q105+Q105*Титул.лист!$A$1 -> 4598 | S105: =R105+R105*Титул.лист!$P$2 -> 4598 | T105: 4600 | U105: 4500 | V105: =U105+U105*Титул.лист!$A$1 -> 4950 | W105: =V105+V105*Титул.лист!$P$2 -> 4950 | X105: 4950 | Y105: 4640 | Z105: =Y105+Y105*Титул.лист!$A$1 -> 5104 | AA105: =Z105+Z105*Титул.лист!$P$2 -> 5104 | AB105: 5100 | AC105: 4060 | AD105: =AC105+AC105*Титул.лист!$A$1 -> 4466 | AE105: =AD105+AD105*Титул.лист!$P$2 -> 4466 | AF105: 4470 | AG105: 4260 | AH105: =AG105+AG105*Титул.лист!$A$1 -> 4686 | AI105: =AH105+AH105*Титул.лист!$P$2 -> 4686 | AJ105: 4690 | AK105: 4330 | AL105: =AK105+AK105*Титул.лист!$A$1 -> 4763 | AM105: =AL105+AL105*Титул.лист!$P$2 -> 4763 | AN105: 4760 | AO105: 6299.648 | AP105: =AO105+AO105*Титул.лист!$A$1 -> 6929.6128 | AQ105: =AP105+AP105*Титул.лист!$P$2 -> 6929.6128 | AR105: 6930 | AS105: 6929.728 | AT105: =AS105+AS105*Титул.лист!$A$1 -> 7622.7008 | AU105: =AT105+AT105*Титул.лист!$P$2 -> 7622.7008 | AV105: 7620 | AW105: 5852.864 | AX105: =AW105+AW105*Титул.лист!$A$1 -> 6438.1504 | AY105: =AX105+AX105*Титул.лист!$P$2 -> 6438.1504 | AZ105: 6440 | BA105: 7003.36 | BB105: =BA105+BA105*Титул.лист!$A$1 -> 7703.696 | BC105: =BB105+BB105*Титул.лист!$P$2 -> 7703.696 | BD105: 7700 | BE105: 9192.16 | BF105: =BE105+BE105*Титул.лист!$A$1 -> 10111.376 | BG105: =BF105+BF105*Титул.лист!$P$2 -> 10111.376 | BH105: 10110
B106: Стол 3ящ. Метабокс | C106: 300 | D106: 1007-30м | E106: =E99+850 -> 2820 | F106: =E106+E106*Титул.лист!$A$1 -> 3102 | G106: =F106+F106*Титул.лист!$P$2 -> 3102 | H106: 3100 | I106: =I99+850 -> 2880 | J106: =I106+I106*Титул.лист!$A$1 -> 3168 | K106: =J106+J106*Титул.лист!$P$2 -> 3168 | L106: 3170 | M106: =M99+850 -> 3040 | N106: =M106+M106*Титул.лист!$A$1 -> 3344 | O106: =N106+N106*Титул.лист!$P$2 -> 3344 | P106: 3340 | Q106: =Q99+850 -> 3100 | R106: =Q106+Q106*Титул.лист!$A$1 -> 3410 | S106: =R106+R106*Титул.лист!$P$2 -> 3410 | T106: 3410 | U106: =U99+850 -> 3210 | V106: =U106+U106*Титул.лист!$A$1 -> 3531 | W106: =V106+V106*Титул.лист!$P$2 -> 3531 | X106: 3530 | Y106: =Y99+850 -> 3280 | Z106: =Y106+Y106*Титул.лист!$A$1 -> 3608 | AA106: =Z106+Z106*Титул.лист!$P$2 -> 3608 | AB106: 3610 | AC106: =AC99+850 -> 3040 | AD106: =AC106+AC106*Титул.лист!$A$1 -> 3344 | AE106: =AD106+AD106*Титул.лист!$P$2 -> 3344 | AF106: 3340 | AG106: =AG99+850 -> 3100 | AH106: =AG106+AG106*Титул.лист!$A$1 -> 3410 | AI106: =AH106+AH106*Титул.лист!$P$2 -> 3410 | AJ106: 3410 | AK106: =AK99+850 -> 3140 | AL106: =AK106+AK106*Титул.лист!$A$1 -> 3454 | AM106: =AL106+AL106*Титул.лист!$P$2 -> 3454 | AN106: 3450 | AO106: 3879.868 | AP106: =AO106+AO106*Титул.лист!$A$1 -> 4267.8548 | AQ106: =AP106+AP106*Титул.лист!$P$2 -> 4267.8548 | AR106: 4270 | AS106: 4116.148 | AT106: =AS106+AS106*Титул.лист!$A$1 -> 4527.7628 | AU106: =AT106+AT106*Титул.лист!$P$2 -> 4527.7628 | AV106: 4530 | AW106: 3712.324 | AX106: =AW106+AW106*Титул.лист!$A$1 -> 4083.5564 | AY106: =AX106+AX106*Титул.лист!$P$2 -> 4083.5564 | AZ106: 4080 | BA106: 4143.76 | BB106: =BA106+BA106*Титул.лист!$A$1 -> 4558.136 | BC106: =BB106+BB106*Титул.лист!$P$2 -> 4558.136 | BD106: 4560 | BE106: 4964.56 | BF106: =BE106+BE106*Титул.лист!$A$1 -> 5461.016 | BG106: =BF106+BF106*Титул.лист!$P$2 -> 5461.016 | BH106: 5460
C107: 400 | D107: 1007-40м | E107: 3100 | F107: =E107+E107*Титул.лист!$A$1 -> 3410 | G107: =F107+F107*Титул.лист!$P$2 -> 3410 | H107: 3410 | I107: 3090 | J107: =I107+I107*Титул.лист!$A$1 -> 3399 | K107: =J107+J107*Титул.лист!$P$2 -> 3399 | L107: 3400 | M107: 3400 | N107: =M107+M107*Титул.лист!$A$1 -> 3740 | O107: =N107+N107*Титул.лист!$P$2 -> 3740 | P107: 3740 | Q107: 3390 | R107: =Q107+Q107*Титул.лист!$A$1 -> 3729 | S107: =R107+R107*Титул.лист!$P$2 -> 3729 | T107: 3730 | U107: 3620 | V107: =U107+U107*Титул.лист!$A$1 -> 3982 | W107: =V107+V107*Титул.лист!$P$2 -> 3982 | X107: 3980 | Y107: 3810 | Z107: =Y107+Y107*Титул.лист!$A$1 -> 4191 | AA107: =Z107+Z107*Титул.лист!$P$2 -> 4191 | AB107: 4190 | AC107: 3330 | AD107: =AC107+AC107*Титул.лист!$A$1 -> 3663 | AE107: =AD107+AD107*Титул.лист!$P$2 -> 3663 | AF107: 3660 | AG107: 3410 | AH107: =AG107+AG107*Титул.лист!$A$1 -> 3751 | AI107: =AH107+AH107*Титул.лист!$P$2 -> 3751 | AJ107: 3750 | AK107: 3460 | AL107: =AK107+AK107*Титул.лист!$A$1 -> 3806 | AM107: =AL107+AL107*Титул.лист!$P$2 -> 3806 | AN107: 3810 | AO107: 4449.824 | AP107: =AO107+AO107*Титул.лист!$A$1 -> 4894.8064 | AQ107: =AP107+AP107*Титул.лист!$P$2 -> 4894.8064 | AR107: 4890 | AS107: 4764.864 | AT107: =AS107+AS107*Титул.лист!$A$1 -> 5241.3504 | AU107: =AT107+AT107*Титул.лист!$P$2 -> 5241.3504 | AV107: 5240 | AW107: 4226.432 | AX107: =AW107+AW107*Титул.лист!$A$1 -> 4649.0752 | AY107: =AX107+AX107*Титул.лист!$P$2 -> 4649.0752 | AZ107: 4650 | BA107: 4801.68 | BB107: =BA107+BA107*Титул.лист!$A$1 -> 5281.848 | BC107: =BB107+BB107*Титул.лист!$P$2 -> 5281.848 | BD107: 5280 | BE107: 5896.08 | BF107: =BE107+BE107*Титул.лист!$A$1 -> 6485.688 | BG107: =BF107+BF107*Титул.лист!$P$2 -> 6485.688 | BH107: 6490
C108: 450 | D108: 1007-45м | E108: 3250 | F108: =E108+E108*Титул.лист!$A$1 -> 3575 | G108: =F108+F108*Титул.лист!$P$2 -> 3575 | H108: 3580 | I108: 3350 | J108: =I108+I108*Титул.лист!$A$1 -> 3685 | K108: =J108+J108*Титул.лист!$P$2 -> 3685 | L108: 3690 | M108: 3650 | N108: =M108+M108*Титул.лист!$A$1 -> 4015 | O108: =N108+N108*Титул.лист!$P$2 -> 4015 | P108: 4020 | Q108: 3800 | R108: =Q108+Q108*Титул.лист!$A$1 -> 4180 | S108: =R108+R108*Титул.лист!$P$2 -> 4180 | T108: 4180 | U108: 3950 | V108: =U108+U108*Титул.лист!$A$1 -> 4345 | W108: =V108+V108*Титул.лист!$P$2 -> 4345 | X108: 4350 | Y108: 4050 | Z108: =Y108+Y108*Титул.лист!$A$1 -> 4455 | AA108: =Z108+Z108*Титул.лист!$P$2 -> 4455 | AB108: 4460 | AC108: 3650 | AD108: =AC108+AC108*Титул.лист!$A$1 -> 4015 | AE108: =AD108+AD108*Титул.лист!$P$2 -> 4015 | AF108: 4020 | AG108: 3750 | AH108: =AG108+AG108*Титул.лист!$A$1 -> 4125 | AI108: =AH108+AH108*Титул.лист!$P$2 -> 4125 | AJ108: 4130 | AK108: 3870 | AL108: =AK108+AK108*Титул.лист!$A$1 -> 4257 | AM108: =AL108+AL108*Титул.лист!$P$2 -> 4257 | AN108: 4260 | AO108: 4909.802 | AP108: =AO108+AO108*Титул.лист!$A$1 -> 5400.7822 | AQ108: =AP108+AP108*Титул.лист!$P$2 -> 5400.7822 | AR108: 5400 | AS108: 5264.222 | AT108: =AS108+AS108*Титул.лист!$A$1 -> 5790.6442 | AU108: =AT108+AT108*Титул.лист!$P$2 -> 5790.6442 | AV108: 5790 | AW108: 4658.486 | AX108: =AW108+AW108*Титул.лист!$A$1 -> 5124.3346 | AY108: =AX108+AX108*Титул.лист!$P$2 -> 5124.3346 | AZ108: 5120 | BA108: 5305.64 | BB108: =BA108+BA108*Титул.лист!$A$1 -> 5836.204 | BC108: =BB108+BB108*Титул.лист!$P$2 -> 5836.204 | BD108: 5840 | BE108: 6536.84 | BF108: =BE108+BE108*Титул.лист!$A$1 -> 7190.524 | BG108: =BF108+BF108*Титул.лист!$P$2 -> 7190.524 | BH108: 7190
C109: 500 | D109: 1007-50м | E109: 3410 | F109: =E109+E109*Титул.лист!$A$1 -> 3751 | G109: =F109+F109*Титул.лист!$P$2 -> 3751 | H109: 3750 | I109: 3510 | J109: =I109+I109*Титул.лист!$A$1 -> 3861 | K109: =J109+J109*Титул.лист!$P$2 -> 3861 | L109: 3860 | M109: 3800 | N109: =M109+M109*Титул.лист!$A$1 -> 4180 | O109: =N109+N109*Титул.лист!$P$2 -> 4180 | P109: 4180 | Q109: 3900 | R109: =Q109+Q109*Титул.лист!$A$1 -> 4290 | S109: =R109+R109*Титул.лист!$P$2 -> 4290 | T109: 4290 | U109: 4080 | V109: =U109+U109*Титул.лист!$A$1 -> 4488 | W109: =V109+V109*Титул.лист!$P$2 -> 4488 | X109: 4490 | Y109: 4180 | Z109: =Y109+Y109*Титул.лист!$A$1 -> 4598 | AA109: =Z109+Z109*Титул.лист!$P$2 -> 4598 | AB109: 4600 | AC109: 3800 | AD109: =AC109+AC109*Титул.лист!$A$1 -> 4180 | AE109: =AD109+AD109*Титул.лист!$P$2 -> 4180 | AF109: 4180 | AG109: 3920 | AH109: =AG109+AG109*Титул.лист!$A$1 -> 4312 | AI109: =AH109+AH109*Титул.лист!$P$2 -> 4312 | AJ109: 4310 | AK109: 3970 | AL109: =AK109+AK109*Титул.лист!$A$1 -> 4367 | AM109: =AL109+AL109*Титул.лист!$P$2 -> 4367 | AN109: 4370 | AO109: 5199.78 | AP109: =AO109+AO109*Титул.лист!$A$1 -> 5719.758 | AQ109: =AP109+AP109*Титул.лист!$P$2 -> 5719.758 | AR109: 5720 | AS109: 5593.58 | AT109: =AS109+AS109*Титул.лист!$A$1 -> 6152.938 | AU109: =AT109+AT109*Титул.лист!$P$2 -> 6152.938 | AV109: 6150 | AW109: 4920.54 | AX109: =AW109+AW109*Титул.лист!$A$1 -> 5412.594 | AY109: =AX109+AX109*Титул.лист!$P$2 -> 5412.594 | AZ109: 5410 | BA109: 5639.6 | BB109: =BA109+BA109*Титул.лист!$A$1 -> 6203.56 | BC109: =BB109+BB109*Титул.лист!$P$2 -> 6203.56 | BD109: 6200 | BE109: 7007.6 | BF109: =BE109+BE109*Титул.лист!$A$1 -> 7708.36 | BG109: =BF109+BF109*Титул.лист!$P$2 -> 7708.36 | BH109: 7710
C110: 600 | D110: 1007-60м | E110: 3690 | F110: =E110+E110*Титул.лист!$A$1 -> 4059 | G110: =F110+F110*Титул.лист!$P$2 -> 4059 | H110: 4060 | I110: 3810 | J110: =I110+I110*Титул.лист!$A$1 -> 4191 | K110: =J110+J110*Титул.лист!$P$2 -> 4191 | L110: 4190 | M110: 4140 | N110: =M110+M110*Титул.лист!$A$1 -> 4554 | O110: =N110+N110*Титул.лист!$P$2 -> 4554 | P110: 4550 | Q110: 4260 | R110: =Q110+Q110*Титул.лист!$A$1 -> 4686 | S110: =R110+R110*Титул.лист!$P$2 -> 4686 | T110: 4690 | U110: 4490 | V110: =U110+U110*Титул.лист!$A$1 -> 4939 | W110: =V110+V110*Титул.лист!$P$2 -> 4939 | X110: 4940 | Y110: 4610 | Z110: =Y110+Y110*Титул.лист!$A$1 -> 5071 | AA110: =Z110+Z110*Титул.лист!$P$2 -> 5071 | AB110: 5070 | AC110: 4160 | AD110: =AC110+AC110*Титул.лист!$A$1 -> 4576 | AE110: =AD110+AD110*Титул.лист!$P$2 -> 4576 | AF110: 4580 | AG110: 4300 | AH110: =AG110+AG110*Титул.лист!$A$1 -> 4730 | AI110: =AH110+AH110*Титул.лист!$P$2 -> 4730 | AJ110: 4730 | AK110: 4370 | AL110: =AK110+AK110*Титул.лист!$A$1 -> 4807 | AM110: =AL110+AL110*Титул.лист!$P$2 -> 4807 | AN110: 4810 | AO110: 5839.736 | AP110: =AO110+AO110*Титул.лист!$A$1 -> 6423.7096 | AQ110: =AP110+AP110*Титул.лист!$P$2 -> 6423.7096 | AR110: 6420 | AS110: 6312.296 | AT110: =AS110+AS110*Титул.лист!$A$1 -> 6943.5256 | AU110: =AT110+AT110*Титул.лист!$P$2 -> 6943.5256 | AV110: 6940 | AW110: 5504.648 | AX110: =AW110+AW110*Титул.лист!$A$1 -> 6055.1128 | AY110: =AX110+AX110*Титул.лист!$P$2 -> 6055.1128 | AZ110: 6060 | BA110: 6367.52 | BB110: =BA110+BA110*Титул.лист!$A$1 -> 7004.272 | BC110: =BB110+BB110*Титул.лист!$P$2 -> 7004.272 | BD110: 7000 | BE110: 8009.12 | BF110: =BE110+BE110*Титул.лист!$A$1 -> 8810.032 | BG110: =BF110+BF110*Титул.лист!$P$2 -> 8810.032 | BH110: 8810
C111: 700 | D111: 1007-70м | E111: 3980 | F111: =E111+E111*Титул.лист!$A$1 -> 4378 | G111: =F111+F111*Титул.лист!$P$2 -> 4378 | H111: 4380 | I111: 4120 | J111: =I111+I111*Титул.лист!$A$1 -> 4532 | K111: =J111+J111*Титул.лист!$P$2 -> 4532 | L111: 4530 | M111: 4510 | N111: =M111+M111*Титул.лист!$A$1 -> 4961 | O111: =N111+N111*Титул.лист!$P$2 -> 4961 | P111: 4960 | Q111: 4640 | R111: =Q111+Q111*Титул.лист!$A$1 -> 5104 | S111: =R111+R111*Титул.лист!$P$2 -> 5104 | T111: 5100 | U111: 4920 | V111: =U111+U111*Титул.лист!$A$1 -> 5412 | W111: =V111+V111*Титул.лист!$P$2 -> 5412 | X111: 5410 | Y111: 5050 | Z111: =Y111+Y111*Титул.лист!$A$1 -> 5555 | AA111: =Z111+Z111*Титул.лист!$P$2 -> 5555 | AB111: 5560 | AC111: 4550 | AD111: =AC111+AC111*Титул.лист!$A$1 -> 5005 | AE111: =AD111+AD111*Титул.лист!$P$2 -> 5005 | AF111: 5010 | AG111: 4710 | AH111: =AG111+AG111*Титул.лист!$A$1 -> 5181 | AI111: =AH111+AH111*Титул.лист!$P$2 -> 5181 | AJ111: 5180 | AK111: 4790 | AL111: =AK111+AK111*Титул.лист!$A$1 -> 5269 | AM111: =AL111+AL111*Титул.лист!$P$2 -> 5269 | AN111: 5270 | AO111: 6509.692 | AP111: =AO111+AO111*Титул.лист!$A$1 -> 7160.6612 | AQ111: =AP111+AP111*Титул.лист!$P$2 -> 7160.6612 | AR111: 7160 | AS111: 7061.012 | AT111: =AS111+AS111*Титул.лист!$A$1 -> 7767.1132 | AU111: =AT111+AT111*Титул.лист!$P$2 -> 7767.1132 | AV111: 7770 | AW111: 6118.756 | AX111: =AW111+AW111*Титул.лист!$A$1 -> 6730.6316 | AY111: =AX111+AX111*Титул.лист!$P$2 -> 6730.6316 | AZ111: 6730 | BA111: 7125.44 | BB111: =BA111+BA111*Титул.лист!$A$1 -> 7837.984 | BC111: =BB111+BB111*Титул.лист!$P$2 -> 7837.984 | BD111: 7840 | BE111: 9040.64 | BF111: =BE111+BE111*Титул.лист!$A$1 -> 9944.704 | BG111: =BF111+BF111*Титул.лист!$P$2 -> 9944.704 | BH111: 9940
C112: 800 | D112: 1007-80м | E112: 4270 | F112: =E112+E112*Титул.лист!$A$1 -> 4697 | G112: =F112+F112*Титул.лист!$P$2 -> 4697 | H112: 4700 | I112: 4410 | J112: =I112+I112*Титул.лист!$A$1 -> 4851 | K112: =J112+J112*Титул.лист!$P$2 -> 4851 | L112: 4850 | M112: 4890 | N112: =M112+M112*Титул.лист!$A$1 -> 5379 | O112: =N112+N112*Титул.лист!$P$2 -> 5379 | P112: 5380 | Q112: 5030 | R112: =Q112+Q112*Титул.лист!$A$1 -> 5533 | S112: =R112+R112*Титул.лист!$P$2 -> 5533 | T112: 5530 | U112: 5350 | V112: =U112+U112*Титул.лист!$A$1 -> 5885 | W112: =V112+V112*Титул.лист!$P$2 -> 5885 | X112: 5890 | Y112: 5490 | Z112: =Y112+Y112*Титул.лист!$A$1 -> 6039 | AA112: =Z112+Z112*Титул.лист!$P$2 -> 6039 | AB112: 6040 | AC112: 4910 | AD112: =AC112+AC112*Титул.лист!$A$1 -> 5401 | AE112: =AD112+AD112*Титул.лист!$P$2 -> 5401 | AF112: 5400 | AG112: 5110 | AH112: =AG112+AG112*Титул.лист!$A$1 -> 5621 | AI112: =AH112+AH112*Титул.лист!$P$2 -> 5621 | AJ112: 5620 | AK112: 5180 | AL112: =AK112+AK112*Титул.лист!$A$1 -> 5698 | AM112: =AL112+AL112*Титул.лист!$P$2 -> 5698 | AN112: 5700 | AO112: 7149.648 | AP112: =AO112+AO112*Титул.лист!$A$1 -> 7864.6128 | AQ112: =AP112+AP112*Титул.лист!$P$2 -> 7864.6128 | AR112: 7860 | AS112: 7779.728 | AT112: =AS112+AS112*Титул.лист!$A$1 -> 8557.7008 | AU112: =AT112+AT112*Титул.лист!$P$2 -> 8557.7008 | AV112: 8560 | AW112: 6702.864 | AX112: =AW112+AW112*Титул.лист!$A$1 -> 7373.1504 | AY112: =AX112+AX112*Титул.лист!$P$2 -> 7373.1504 | AZ112: 7370 | BA112: 7853.36 | BB112: =BA112+BA112*Титул.лист!$A$1 -> 8638.696 | BC112: =BB112+BB112*Титул.лист!$P$2 -> 8638.696 | BD112: 8640 | BE112: 10042.16 | BF112: =BE112+BE112*Титул.лист!$A$1 -> 11046.376 | BG112: =BF112+BF112*Титул.лист!$P$2 -> 11046.376 | BH112: 11050
B113: Стол 3ящ. Тандембокс | C113: 300 | D113: 1007-30т | E113: =E99+2000*2+2300 -> 8270 | F113: =E113+E113*Титул.лист!$A$1 -> 9097 | G113: =F113+F113*Титул.лист!$P$2 -> 9097 | H113: 9100 | I113: =I99+2000*2+2300 -> 8330 | J113: =I113+I113*Титул.лист!$A$1 -> 9163 | K113: =J113+J113*Титул.лист!$P$2 -> 9163 | L113: 9160 | M113: =M99+2000*2+2300 -> 8490 | N113: =M113+M113*Титул.лист!$A$1 -> 9339 | O113: =N113+N113*Титул.лист!$P$2 -> 9339 | P113: 9340 | Q113: =Q99+2000*2+2300 -> 8550 | R113: =Q113+Q113*Титул.лист!$A$1 -> 9405 | S113: =R113+R113*Титул.лист!$P$2 -> 9405 | T113: 9410 | U113: =U99+2000*2+2300 -> 8660 | V113: =U113+U113*Титул.лист!$A$1 -> 9526 | W113: =V113+V113*Титул.лист!$P$2 -> 9526 | X113: 9530 | Y113: =Y99+2000*2+2300 -> 8730 | Z113: =Y113+Y113*Титул.лист!$A$1 -> 9603 | AA113: =Z113+Z113*Титул.лист!$P$2 -> 9603 | AB113: 9600 | AC113: =AC99+2000*2+2300 -> 8490 | AD113: =AC113+AC113*Титул.лист!$A$1 -> 9339 | AE113: =AD113+AD113*Титул.лист!$P$2 -> 9339 | AF113: 9340 | AG113: =AG99+2000*2+2300 -> 8550 | AH113: =AG113+AG113*Титул.лист!$A$1 -> 9405 | AI113: =AH113+AH113*Титул.лист!$P$2 -> 9405 | AJ113: 9410 | AK113: =AK99+2000*2+2300 -> 8590 | AL113: =AK113+AK113*Титул.лист!$A$1 -> 9449 | AM113: =AL113+AL113*Титул.лист!$P$2 -> 9449 | AN113: 9450 | AO113: 9329.868 | AP113: =AO113+AO113*Титул.лист!$A$1 -> 10262.8548 | AQ113: =AP113+AP113*Титул.лист!$P$2 -> 10262.8548 | AR113: 10260 | AS113: 9566.148 | AT113: =AS113+AS113*Титул.лист!$A$1 -> 10522.7628 | AU113: =AT113+AT113*Титул.лист!$P$2 -> 10522.7628 | AV113: 10520 | AW113: 9162.324 | AX113: =AW113+AW113*Титул.лист!$A$1 -> 10078.5564 | AY113: =AX113+AX113*Титул.лист!$P$2 -> 10078.5564 | AZ113: 10080 | BA113: 9593.76 | BB113: =BA113+BA113*Титул.лист!$A$1 -> 10553.136 | BC113: =BB113+BB113*Титул.лист!$P$2 -> 10553.136 | BD113: 10550 | BE113: 10414.56 | BF113: =BE113+BE113*Титул.лист!$A$1 -> 11456.016 | BG113: =BF113+BF113*Титул.лист!$P$2 -> 11456.016 | BH113: 11460
C114: 400 | D114: 1007-40т | E114: 8550 | F114: =E114+E114*Титул.лист!$A$1 -> 9405 | G114: =F114+F114*Титул.лист!$P$2 -> 9405 | H114: 9410 | I114: 8540 | J114: =I114+I114*Титул.лист!$A$1 -> 9394 | K114: =J114+J114*Титул.лист!$P$2 -> 9394 | L114: 9390 | M114: 8850 | N114: =M114+M114*Титул.лист!$A$1 -> 9735 | O114: =N114+N114*Титул.лист!$P$2 -> 9735 | P114: 9740 | Q114: 8840 | R114: =Q114+Q114*Титул.лист!$A$1 -> 9724 | S114: =R114+R114*Титул.лист!$P$2 -> 9724 | T114: 9720 | U114: 9070 | V114: =U114+U114*Титул.лист!$A$1 -> 9977 | W114: =V114+V114*Титул.лист!$P$2 -> 9977 | X114: 9980 | Y114: 9260 | Z114: =Y114+Y114*Титул.лист!$A$1 -> 10186 | AA114: =Z114+Z114*Титул.лист!$P$2 -> 10186 | AB114: 10190 | AC114: 8780 | AD114: =AC114+AC114*Титул.лист!$A$1 -> 9658 | AE114: =AD114+AD114*Титул.лист!$P$2 -> 9658 | AF114: 9660 | AG114: 8860 | AH114: =AG114+AG114*Титул.лист!$A$1 -> 9746 | AI114: =AH114+AH114*Титул.лист!$P$2 -> 9746 | AJ114: 9750 | AK114: 8910 | AL114: =AK114+AK114*Титул.лист!$A$1 -> 9801 | AM114: =AL114+AL114*Титул.лист!$P$2 -> 9801 | AN114: 9800 | AO114: 9899.824 | AP114: =AO114+AO114*Титул.лист!$A$1 -> 10889.8064 | AQ114: =AP114+AP114*Титул.лист!$P$2 -> 10889.8064 | AR114: 10890 | AS114: 10214.864 | AT114: =AS114+AS114*Титул.лист!$A$1 -> 11236.3504 | AU114: =AT114+AT114*Титул.лист!$P$2 -> 11236.3504 | AV114: 11240 | AW114: 9676.432 | AX114: =AW114+AW114*Титул.лист!$A$1 -> 10644.0752 | AY114: =AX114+AX114*Титул.лист!$P$2 -> 10644.0752 | AZ114: 10640 | BA114: 10251.68 | BB114: =BA114+BA114*Титул.лист!$A$1 -> 11276.848 | BC114: =BB114+BB114*Титул.лист!$P$2 -> 11276.848 | BD114: 11280 | BE114: 11346.08 | BF114: =BE114+BE114*Титул.лист!$A$1 -> 12480.688 | BG114: =BF114+BF114*Титул.лист!$P$2 -> 12480.688 | BH114: 12480
C115: 450 | D115: 1007-45т | E115: 8700 | F115: =E115+E115*Титул.лист!$A$1 -> 9570 | G115: =F115+F115*Титул.лист!$P$2 -> 9570 | H115: 9570 | I115: 8800 | J115: =I115+I115*Титул.лист!$A$1 -> 9680 | K115: =J115+J115*Титул.лист!$P$2 -> 9680 | L115: 9680 | M115: 9100 | N115: =M115+M115*Титул.лист!$A$1 -> 10010 | O115: =N115+N115*Титул.лист!$P$2 -> 10010 | P115: 10010 | Q115: 9250 | R115: =Q115+Q115*Титул.лист!$A$1 -> 10175 | S115: =R115+R115*Титул.лист!$P$2 -> 10175 | T115: 10180 | U115: 9400 | V115: =U115+U115*Титул.лист!$A$1 -> 10340 | W115: =V115+V115*Титул.лист!$P$2 -> 10340 | X115: 10340 | Y115: 9500 | Z115: =Y115+Y115*Титул.лист!$A$1 -> 10450 | AA115: =Z115+Z115*Титул.лист!$P$2 -> 10450 | AB115: 10450 | AC115: 9100 | AD115: =AC115+AC115*Титул.лист!$A$1 -> 10010 | AE115: =AD115+AD115*Титул.лист!$P$2 -> 10010 | AF115: 10010 | AG115: 9200 | AH115: =AG115+AG115*Титул.лист!$A$1 -> 10120 | AI115: =AH115+AH115*Титул.лист!$P$2 -> 10120 | AJ115: 10120 | AK115: 9320 | AL115: =AK115+AK115*Титул.лист!$A$1 -> 10252 | AM115: =AL115+AL115*Титул.лист!$P$2 -> 10252 | AN115: 10250 | AO115: 10359.802 | AP115: =AO115+AO115*Титул.лист!$A$1 -> 11395.7822 | AQ115: =AP115+AP115*Титул.лист!$P$2 -> 11395.7822 | AR115: 11400 | AS115: 10714.222 | AT115: =AS115+AS115*Титул.лист!$A$1 -> 11785.6442 | AU115: =AT115+AT115*Титул.лист!$P$2 -> 11785.6442 | AV115: 11790 | AW115: 10108.486 | AX115: =AW115+AW115*Титул.лист!$A$1 -> 11119.3346 | AY115: =AX115+AX115*Титул.лист!$P$2 -> 11119.3346 | AZ115: 11120 | BA115: 10755.64 | BB115: =BA115+BA115*Титул.лист!$A$1 -> 11831.204 | BC115: =BB115+BB115*Титул.лист!$P$2 -> 11831.204 | BD115: 11830 | BE115: 11986.84 | BF115: =BE115+BE115*Титул.лист!$A$1 -> 13185.524 | BG115: =BF115+BF115*Титул.лист!$P$2 -> 13185.524 | BH115: 13190
C116: 500 | D116: 1007-50т | E116: 8860 | F116: =E116+E116*Титул.лист!$A$1 -> 9746 | G116: =F116+F116*Титул.лист!$P$2 -> 9746 | H116: 9750 | I116: 8960 | J116: =I116+I116*Титул.лист!$A$1 -> 9856 | K116: =J116+J116*Титул.лист!$P$2 -> 9856 | L116: 9860 | M116: 9250 | N116: =M116+M116*Титул.лист!$A$1 -> 10175 | O116: =N116+N116*Титул.лист!$P$2 -> 10175 | P116: 10180 | Q116: 9350 | R116: =Q116+Q116*Титул.лист!$A$1 -> 10285 | S116: =R116+R116*Титул.лист!$P$2 -> 10285 | T116: 10290 | U116: 9530 | V116: =U116+U116*Титул.лист!$A$1 -> 10483 | W116: =V116+V116*Титул.лист!$P$2 -> 10483 | X116: 10480 | Y116: 9630 | Z116: =Y116+Y116*Титул.лист!$A$1 -> 10593 | AA116: =Z116+Z116*Титул.лист!$P$2 -> 10593 | AB116: 10590 | AC116: 9250 | AD116: =AC116+AC116*Титул.лист!$A$1 -> 10175 | AE116: =AD116+AD116*Титул.лист!$P$2 -> 10175 | AF116: 10180 | AG116: 9370 | AH116: =AG116+AG116*Титул.лист!$A$1 -> 10307 | AI116: =AH116+AH116*Титул.лист!$P$2 -> 10307 | AJ116: 10310 | AK116: 9420 | AL116: =AK116+AK116*Титул.лист!$A$1 -> 10362 | AM116: =AL116+AL116*Титул.лист!$P$2 -> 10362 | AN116: 10360 | AO116: 10649.78 | AP116: =AO116+AO116*Титул.лист!$A$1 -> 11714.758 | AQ116: =AP116+AP116*Титул.лист!$P$2 -> 11714.758 | AR116: 11710 | AS116: 11043.58 | AT116: =AS116+AS116*Титул.лист!$A$1 -> 12147.938 | AU116: =AT116+AT116*Титул.лист!$P$2 -> 12147.938 | AV116: 12150 | AW116: 10370.54 | AX116: =AW116+AW116*Титул.лист!$A$1 -> 11407.594 | AY116: =AX116+AX116*Титул.лист!$P$2 -> 11407.594 | AZ116: 11410 | BA116: 11089.6 | BB116: =BA116+BA116*Титул.лист!$A$1 -> 12198.56 | BC116: =BB116+BB116*Титул.лист!$P$2 -> 12198.56 | BD116: 12200 | BE116: 12457.6 | BF116: =BE116+BE116*Титул.лист!$A$1 -> 13703.36 | BG116: =BF116+BF116*Титул.лист!$P$2 -> 13703.36 | BH116: 13700
C117: 600 | D117: 1007-60т | E117: 9140 | F117: =E117+E117*Титул.лист!$A$1 -> 10054 | G117: =F117+F117*Титул.лист!$P$2 -> 10054 | H117: 10050 | I117: 9260 | J117: =I117+I117*Титул.лист!$A$1 -> 10186 | K117: =J117+J117*Титул.лист!$P$2 -> 10186 | L117: 10190 | M117: 9590 | N117: =M117+M117*Титул.лист!$A$1 -> 10549 | O117: =N117+N117*Титул.лист!$P$2 -> 10549 | P117: 10550 | Q117: 9710 | R117: =Q117+Q117*Титул.лист!$A$1 -> 10681 | S117: =R117+R117*Титул.лист!$P$2 -> 10681 | T117: 10680 | U117: 9940 | V117: =U117+U117*Титул.лист!$A$1 -> 10934 | W117: =V117+V117*Титул.лист!$P$2 -> 10934 | X117: 10930 | Y117: 10060 | Z117: =Y117+Y117*Титул.лист!$A$1 -> 11066 | AA117: =Z117+Z117*Титул.лист!$P$2 -> 11066 | AB117: 11070 | AC117: 9610 | AD117: =AC117+AC117*Титул.лист!$A$1 -> 10571 | AE117: =AD117+AD117*Титул.лист!$P$2 -> 10571 | AF117: 10570 | AG117: 9750 | AH117: =AG117+AG117*Титул.лист!$A$1 -> 10725 | AI117: =AH117+AH117*Титул.лист!$P$2 -> 10725 | AJ117: 10730 | AK117: 9820 | AL117: =AK117+AK117*Титул.лист!$A$1 -> 10802 | AM117: =AL117+AL117*Титул.лист!$P$2 -> 10802 | AN117: 10800 | AO117: 11289.736 | AP117: =AO117+AO117*Титул.лист!$A$1 -> 12418.7096 | AQ117: =AP117+AP117*Титул.лист!$P$2 -> 12418.7096 | AR117: 12420 | AS117: 11762.296 | AT117: =AS117+AS117*Титул.лист!$A$1 -> 12938.5256 | AU117: =AT117+AT117*Титул.лист!$P$2 -> 12938.5256 | AV117: 12940 | AW117: 10954.648 | AX117: =AW117+AW117*Титул.лист!$A$1 -> 12050.1128 | AY117: =AX117+AX117*Титул.лист!$P$2 -> 12050.1128 | AZ117: 12050 | BA117: 11817.52 | BB117: =BA117+BA117*Титул.лист!$A$1 -> 12999.272 | BC117: =BB117+BB117*Титул.лист!$P$2 -> 12999.272 | BD117: 13000 | BE117: 13459.12 | BF117: =BE117+BE117*Титул.лист!$A$1 -> 14805.032 | BG117: =BF117+BF117*Титул.лист!$P$2 -> 14805.032 | BH117: 14810
C118: 700 | D118: 1007-70т | E118: 9430 | F118: =E118+E118*Титул.лист!$A$1 -> 10373 | G118: =F118+F118*Титул.лист!$P$2 -> 10373 | H118: 10370 | I118: 9570 | J118: =I118+I118*Титул.лист!$A$1 -> 10527 | K118: =J118+J118*Титул.лист!$P$2 -> 10527 | L118: 10530 | M118: 9960 | N118: =M118+M118*Титул.лист!$A$1 -> 10956 | O118: =N118+N118*Титул.лист!$P$2 -> 10956 | P118: 10960 | Q118: 10090 | R118: =Q118+Q118*Титул.лист!$A$1 -> 11099 | S118: =R118+R118*Титул.лист!$P$2 -> 11099 | T118: 11100 | U118: 10370 | V118: =U118+U118*Титул.лист!$A$1 -> 11407 | W118: =V118+V118*Титул.лист!$P$2 -> 11407 | X118: 11410 | Y118: 10500 | Z118: =Y118+Y118*Титул.лист!$A$1 -> 11550 | AA118: =Z118+Z118*Титул.лист!$P$2 -> 11550 | AB118: 11550 | AC118: 10000 | AD118: =AC118+AC118*Титул.лист!$A$1 -> 11000 | AE118: =AD118+AD118*Титул.лист!$P$2 -> 11000 | AF118: 11000 | AG118: 10160 | AH118: =AG118+AG118*Титул.лист!$A$1 -> 11176 | AI118: =AH118+AH118*Титул.лист!$P$2 -> 11176 | AJ118: 11180 | AK118: 10240 | AL118: =AK118+AK118*Титул.лист!$A$1 -> 11264 | AM118: =AL118+AL118*Титул.лист!$P$2 -> 11264 | AN118: 11260 | AO118: 11959.692 | AP118: =AO118+AO118*Титул.лист!$A$1 -> 13155.6612 | AQ118: =AP118+AP118*Титул.лист!$P$2 -> 13155.6612 | AR118: 13160 | AS118: 12511.012 | AT118: =AS118+AS118*Титул.лист!$A$1 -> 13762.1132 | AU118: =AT118+AT118*Титул.лист!$P$2 -> 13762.1132 | AV118: 13760 | AW118: 11568.756 | AX118: =AW118+AW118*Титул.лист!$A$1 -> 12725.6316 | AY118: =AX118+AX118*Титул.лист!$P$2 -> 12725.6316 | AZ118: 12730 | BA118: 12575.44 | BB118: =BA118+BA118*Титул.лист!$A$1 -> 13832.984 | BC118: =BB118+BB118*Титул.лист!$P$2 -> 13832.984 | BD118: 13830 | BE118: 14490.64 | BF118: =BE118+BE118*Титул.лист!$A$1 -> 15939.704 | BG118: =BF118+BF118*Титул.лист!$P$2 -> 15939.704 | BH118: 15940
C119: 800 | D119: 1007-80т | E119: 9720 | F119: =E119+E119*Титул.лист!$A$1 -> 10692 | G119: =F119+F119*Титул.лист!$P$2 -> 10692 | H119: 10690 | I119: 9860 | J119: =I119+I119*Титул.лист!$A$1 -> 10846 | K119: =J119+J119*Титул.лист!$P$2 -> 10846 | L119: 10850 | M119: 10340 | N119: =M119+M119*Титул.лист!$A$1 -> 11374 | O119: =N119+N119*Титул.лист!$P$2 -> 11374 | P119: 11370 | Q119: 10480 | R119: =Q119+Q119*Титул.лист!$A$1 -> 11528 | S119: =R119+R119*Титул.лист!$P$2 -> 11528 | T119: 11530 | U119: 10800 | V119: =U119+U119*Титул.лист!$A$1 -> 11880 | W119: =V119+V119*Титул.лист!$P$2 -> 11880 | X119: 11880 | Y119: 10940 | Z119: =Y119+Y119*Титул.лист!$A$1 -> 12034 | AA119: =Z119+Z119*Титул.лист!$P$2 -> 12034 | AB119: 12030 | AC119: 10360 | AD119: =AC119+AC119*Титул.лист!$A$1 -> 11396 | AE119: =AD119+AD119*Титул.лист!$P$2 -> 11396 | AF119: 11400 | AG119: 10560 | AH119: =AG119+AG119*Титул.лист!$A$1 -> 11616 | AI119: =AH119+AH119*Титул.лист!$P$2 -> 11616 | AJ119: 11620 | AK119: 10630 | AL119: =AK119+AK119*Титул.лист!$A$1 -> 11693 | AM119: =AL119+AL119*Титул.лист!$P$2 -> 11693 | AN119: 11690 | AO119: 12599.648 | AP119: =AO119+AO119*Титул.лист!$A$1 -> 13859.6128 | AQ119: =AP119+AP119*Титул.лист!$P$2 -> 13859.6128 | AR119: 13860 | AS119: 13229.728 | AT119: =AS119+AS119*Титул.лист!$A$1 -> 14552.7008 | AU119: =AT119+AT119*Титул.лист!$P$2 -> 14552.7008 | AV119: 14550 | AW119: 12152.864 | AX119: =AW119+AW119*Титул.лист!$A$1 -> 13368.1504 | AY119: =AX119+AX119*Титул.лист!$P$2 -> 13368.1504 | AZ119: 13370 | BA119: 13303.36 | BB119: =BA119+BA119*Титул.лист!$A$1 -> 14633.696 | BC119: =BB119+BB119*Титул.лист!$P$2 -> 14633.696 | BD119: 14630 | BE119: 15492.16 | BF119: =BE119+BE119*Титул.лист!$A$1 -> 17041.376 | BG119: =BF119+BF119*Титул.лист!$P$2 -> 17041.376 | BH119: 17040
B120: Стол 4ящ | C120: 300 | D120: 1009-30 | E120: 2080 | F120: =E120+E120*Титул.лист!$A$1 -> 2288 | G120: =F120+F120*Титул.лист!$P$2 -> 2288 | H120: 2290 | I120: 2170 | J120: =I120+I120*Титул.лист!$A$1 -> 2387 | K120: =J120+J120*Титул.лист!$P$2 -> 2387 | L120: 2390 | M120: 2300 | N120: =M120+M120*Титул.лист!$A$1 -> 2530 | O120: =N120+N120*Титул.лист!$P$2 -> 2530 | P120: 2530 | Q120: 2390 | R120: =Q120+Q120*Титул.лист!$A$1 -> 2629 | S120: =R120+R120*Титул.лист!$P$2 -> 2629 | T120: 2630 | U120: 2470 | V120: =U120+U120*Титул.лист!$A$1 -> 2717 | W120: =V120+V120*Титул.лист!$P$2 -> 2717 | X120: 2720 | Y120: 2560 | Z120: =Y120+Y120*Титул.лист!$A$1 -> 2816 | AA120: =Z120+Z120*Титул.лист!$P$2 -> 2816 | AB120: 2820 | AC120: 2300 | AD120: =AC120+AC120*Титул.лист!$A$1 -> 2530 | AE120: =AD120+AD120*Титул.лист!$P$2 -> 2530 | AF120: 2530 | AG120: 2360 | AH120: =AG120+AG120*Титул.лист!$A$1 -> 2596 | AI120: =AH120+AH120*Титул.лист!$P$2 -> 2596 | AJ120: 2600 | AK120: 2400 | AL120: =AK120+AK120*Титул.лист!$A$1 -> 2640 | AM120: =AL120+AL120*Титул.лист!$P$2 -> 2640 | AN120: 2640 | AO120: 3139.868 | AP120: =AO120+AO120*Титул.лист!$A$1 -> 3453.8548 | AQ120: =AP120+AP120*Титул.лист!$P$2 -> 3453.8548 | AR120: 3450 | AS120: 3376.148 | AT120: =AS120+AS120*Титул.лист!$A$1 -> 3713.7628 | AU120: =AT120+AT120*Титул.лист!$P$2 -> 3713.7628 | AV120: 3710 | AW120: 2972.324 | AX120: =AW120+AW120*Титул.лист!$A$1 -> 3269.5564 | AY120: =AX120+AX120*Титул.лист!$P$2 -> 3269.5564 | AZ120: 3270 | BA120: 3403.76 | BB120: =BA120+BA120*Титул.лист!$A$1 -> 3744.136 | BC120: =BB120+BB120*Титул.лист!$P$2 -> 3744.136 | BD120: 3740 | BE120: 4224.56 | BF120: =BE120+BE120*Титул.лист!$A$1 -> 4647.016 | BG120: =BF120+BF120*Титул.лист!$P$2 -> 4647.016 | BH120: 4650
C121: 350 | D121: 1009-35 | E121: 2240 | F121: =E121+E121*Титул.лист!$A$1 -> 2464 | G121: =F121+F121*Титул.лист!$P$2 -> 2464 | H121: 2460 | I121: 2340 | J121: =I121+I121*Титул.лист!$A$1 -> 2574 | K121: =J121+J121*Титул.лист!$P$2 -> 2574 | L121: 2570 | M121: 2510 | N121: =M121+M121*Титул.лист!$A$1 -> 2761 | O121: =N121+N121*Титул.лист!$P$2 -> 2761 | P121: 2760 | Q121: 2610 | R121: =Q121+Q121*Титул.лист!$A$1 -> 2871 | S121: =R121+R121*Титул.лист!$P$2 -> 2871 | T121: 2870 | U121: 2710 | V121: =U121+U121*Титул.лист!$A$1 -> 2981 | W121: =V121+V121*Титул.лист!$P$2 -> 2981 | X121: 2980 | Y121: 2800 | Z121: =Y121+Y121*Титул.лист!$A$1 -> 3080 | AA121: =Z121+Z121*Титул.лист!$P$2 -> 3080 | AB121: 3080 | AC121: 2510 | AD121: =AC121+AC121*Титул.лист!$A$1 -> 2761 | AE121: =AD121+AD121*Титул.лист!$P$2 -> 2761 | AF121: 2760 | AG121: 2600 | AH121: =AG121+AG121*Титул.лист!$A$1 -> 2860 | AI121: =AH121+AH121*Титул.лист!$P$2 -> 2860 | AJ121: 2860 | AK121: 2630 | AL121: =AK121+AK121*Титул.лист!$A$1 -> 2893 | AM121: =AL121+AL121*Титул.лист!$P$2 -> 2893 | AN121: 2890 | AO121: 3489.846 | AP121: =AO121+AO121*Титул.лист!$A$1 -> 3838.8306 | AQ121: =AP121+AP121*Титул.лист!$P$2 -> 3838.8306 | AR121: 3840 | AS121: 3765.506 | AT121: =AS121+AS121*Титул.лист!$A$1 -> 4142.0566 | AU121: =AT121+AT121*Титул.лист!$P$2 -> 4142.0566 | AV121: 4140 | AW121: 3294.378 | AX121: =AW121+AW121*Титул.лист!$A$1 -> 3623.8158 | AY121: =AX121+AX121*Титул.лист!$P$2 -> 3623.8158 | AZ121: 3620 | BA121: 3797.72 | BB121: =BA121+BA121*Титул.лист!$A$1 -> 4177.492 | BC121: =BB121+BB121*Титул.лист!$P$2 -> 4177.492 | BD121: 4180 | BE121: 4755.32 | BF121: =BE121+BE121*Титул.лист!$A$1 -> 5230.852 | BG121: =BF121+BF121*Титул.лист!$P$2 -> 5230.852 | BH121: 5230
C122: 400 | D122: 1009-40 | E122: 2400 | F122: =E122+E122*Титул.лист!$A$1 -> 2640 | G122: =F122+F122*Титул.лист!$P$2 -> 2640 | H122: 2640 | I122: 2510 | J122: =I122+I122*Титул.лист!$A$1 -> 2761 | K122: =J122+J122*Титул.лист!$P$2 -> 2761 | L122: 2760 | M122: 2700 | N122: =M122+M122*Титул.лист!$A$1 -> 2970 | O122: =N122+N122*Титул.лист!$P$2 -> 2970 | P122: 2970 | Q122: 2800 | R122: =Q122+Q122*Титул.лист!$A$1 -> 3080 | S122: =R122+R122*Титул.лист!$P$2 -> 3080 | T122: 3080 | U122: 2910 | V122: =U122+U122*Титул.лист!$A$1 -> 3201 | W122: =V122+V122*Титул.лист!$P$2 -> 3201 | X122: 3200 | Y122: 3020 | Z122: =Y122+Y122*Титул.лист!$A$1 -> 3322 | AA122: =Z122+Z122*Титул.лист!$P$2 -> 3322 | AB122: 3320 | AC122: 2690 | AD122: =AC122+AC122*Титул.лист!$A$1 -> 2959 | AE122: =AD122+AD122*Титул.лист!$P$2 -> 2959 | AF122: 2960 | AG122: 2780 | AH122: =AG122+AG122*Титул.лист!$A$1 -> 3058 | AI122: =AH122+AH122*Титул.лист!$P$2 -> 3058 | AJ122: 3060 | AK122: 2830 | AL122: =AK122+AK122*Титул.лист!$A$1 -> 3113 | AM122: =AL122+AL122*Титул.лист!$P$2 -> 3113 | AN122: 3110 | AO122: 3809.824 | AP122: =AO122+AO122*Титул.лист!$A$1 -> 4190.8064 | AQ122: =AP122+AP122*Титул.лист!$P$2 -> 4190.8064 | AR122: 4190 | AS122: 4124.864 | AT122: =AS122+AS122*Титул.лист!$A$1 -> 4537.3504 | AU122: =AT122+AT122*Титул.лист!$P$2 -> 4537.3504 | AV122: 4540 | AW122: 3586.432 | AX122: =AW122+AW122*Титул.лист!$A$1 -> 3945.0752 | AY122: =AX122+AX122*Титул.лист!$P$2 -> 3945.0752 | AZ122: 3950 | BA122: 4161.68 | BB122: =BA122+BA122*Титул.лист!$A$1 -> 4577.848 | BC122: =BB122+BB122*Титул.лист!$P$2 -> 4577.848 | BD122: 4580 | BE122: 5256.08 | BF122: =BE122+BE122*Титул.лист!$A$1 -> 5781.688 | BG122: =BF122+BF122*Титул.лист!$P$2 -> 5781.688 | BH122: 5780
C123: 450 | D123: 1009-45 | E123: 2540 | F123: =E123+E123*Титул.лист!$A$1 -> 2794 | G123: =F123+F123*Титул.лист!$P$2 -> 2794 | H123: 2790 | I123: 2660 | J123: =I123+I123*Титул.лист!$A$1 -> 2926 | K123: =J123+J123*Титул.лист!$P$2 -> 2926 | L123: 2930 | M123: 2870 | N123: =M123+M123*Титул.лист!$A$1 -> 3157 | O123: =N123+N123*Титул.лист!$P$2 -> 3157 | P123: 3160 | Q123: 2990 | R123: =Q123+Q123*Титул.лист!$A$1 -> 3289 | S123: =R123+R123*Титул.лист!$P$2 -> 3289 | T123: 3290 | U123: 3130 | V123: =U123+U123*Титул.лист!$A$1 -> 3443 | W123: =V123+V123*Титул.лист!$P$2 -> 3443 | X123: 3440 | Y123: 3260 | Z123: =Y123+Y123*Титул.лист!$A$1 -> 3586 | AA123: =Z123+Z123*Титул.лист!$P$2 -> 3586 | AB123: 3590 | AC123: 2890 | AD123: =AC123+AC123*Титул.лист!$A$1 -> 3179 | AE123: =AD123+AD123*Титул.лист!$P$2 -> 3179 | AF123: 3180 | AG123: 3000 | AH123: =AG123+AG123*Титул.лист!$A$1 -> 3300 | AI123: =AH123+AH123*Титул.лист!$P$2 -> 3300 | AJ123: 3300 | AK123: 3050 | AL123: =AK123+AK123*Титул.лист!$A$1 -> 3355 | AM123: =AL123+AL123*Титул.лист!$P$2 -> 3355 | AN123: 3360 | AO123: 4149.802 | AP123: =AO123+AO123*Титул.лист!$A$1 -> 4564.7822 | AQ123: =AP123+AP123*Титул.лист!$P$2 -> 4564.7822 | AR123: 4560 | AS123: 4504.222 | AT123: =AS123+AS123*Титул.лист!$A$1 -> 4954.6442 | AU123: =AT123+AT123*Титул.лист!$P$2 -> 4954.6442 | AV123: 4950 | AW123: 3898.486 | AX123: =AW123+AW123*Титул.лист!$A$1 -> 4288.3346 | AY123: =AX123+AX123*Титул.лист!$P$2 -> 4288.3346 | AZ123: 4290 | BA123: 4545.64 | BB123: =BA123+BA123*Титул.лист!$A$1 -> 5000.204 | BC123: =BB123+BB123*Титул.лист!$P$2 -> 5000.204 | BD123: 5000 | BE123: 5776.84 | BF123: =BE123+BE123*Титул.лист!$A$1 -> 6354.524 | BG123: =BF123+BF123*Титул.лист!$P$2 -> 6354.524 | BH123: 6350
C124: 500 | D124: 1009-50 | E124: 2690 | F124: =E124+E124*Титул.лист!$A$1 -> 2959 | G124: =F124+F124*Титул.лист!$P$2 -> 2959 | H124: 2960 | I124: 2820 | J124: =I124+I124*Титул.лист!$A$1 -> 3102 | K124: =J124+J124*Титул.лист!$P$2 -> 3102 | L124: 3100 | M124: 3080 | N124: =M124+M124*Титул.лист!$A$1 -> 3388 | O124: =N124+N124*Титул.лист!$P$2 -> 3388 | P124: 3390 | Q124: 3200 | R124: =Q124+Q124*Титул.лист!$A$1 -> 3520 | S124: =R124+R124*Титул.лист!$P$2 -> 3520 | T124: 3520 | U124: 3370 | V124: =U124+U124*Титул.лист!$A$1 -> 3707 | W124: =V124+V124*Титул.лист!$P$2 -> 3707 | X124: 3710 | Y124: 3490 | Z124: =Y124+Y124*Титул.лист!$A$1 -> 3839 | AA124: =Z124+Z124*Титул.лист!$P$2 -> 3839 | AB124: 3840 | AC124: 3070 | AD124: =AC124+AC124*Титул.лист!$A$1 -> 3377 | AE124: =AD124+AD124*Титул.лист!$P$2 -> 3377 | AF124: 3380 | AG124: 3190 | AH124: =AG124+AG124*Титул.лист!$A$1 -> 3509 | AI124: =AH124+AH124*Титул.лист!$P$2 -> 3509 | AJ124: 3510 | AK124: 3240 | AL124: =AK124+AK124*Титул.лист!$A$1 -> 3564 | AM124: =AL124+AL124*Титул.лист!$P$2 -> 3564 | AN124: 3560 | AO124: 4469.78 | AP124: =AO124+AO124*Титул.лист!$A$1 -> 4916.758 | AQ124: =AP124+AP124*Титул.лист!$P$2 -> 4916.758 | AR124: 4920 | AS124: 4863.58 | AT124: =AS124+AS124*Титул.лист!$A$1 -> 5349.938 | AU124: =AT124+AT124*Титул.лист!$P$2 -> 5349.938 | AV124: 5350 | AW124: 4190.54 | AX124: =AW124+AW124*Титул.лист!$A$1 -> 4609.594 | AY124: =AX124+AX124*Титул.лист!$P$2 -> 4609.594 | AZ124: 4610 | BA124: 4909.6 | BB124: =BA124+BA124*Титул.лист!$A$1 -> 5400.56 | BC124: =BB124+BB124*Титул.лист!$P$2 -> 5400.56 | BD124: 5400 | BE124: 6277.6 | BF124: =BE124+BE124*Титул.лист!$A$1 -> 6905.36 | BG124: =BF124+BF124*Титул.лист!$P$2 -> 6905.36 | BH124: 6910
C125: 600 | D125: 1009-60 | E125: 2990 | F125: =E125+E125*Титул.лист!$A$1 -> 3289 | G125: =F125+F125*Титул.лист!$P$2 -> 3289 | H125: 3290 | I125: 3150 | J125: =I125+I125*Титул.лист!$A$1 -> 3465 | K125: =J125+J125*Титул.лист!$P$2 -> 3465 | L125: 3470 | M125: 3440 | N125: =M125+M125*Титул.лист!$A$1 -> 3784 | O125: =N125+N125*Титул.лист!$P$2 -> 3784 | P125: 3780 | Q125: 3600 | R125: =Q125+Q125*Титул.лист!$A$1 -> 3960 | S125: =R125+R125*Титул.лист!$P$2 -> 3960 | T125: 3960 | U125: 3790 | V125: =U125+U125*Титул.лист!$A$1 -> 4169 | W125: =V125+V125*Титул.лист!$P$2 -> 4169 | X125: 4170 | Y125: 3950 | Z125: =Y125+Y125*Титул.лист!$A$1 -> 4345 | AA125: =Z125+Z125*Титул.лист!$P$2 -> 4345 | AB125: 4350 | AC125: 3460 | AD125: =AC125+AC125*Титул.лист!$A$1 -> 3806 | AE125: =AD125+AD125*Титул.лист!$P$2 -> 3806 | AF125: 3810 | AG125: 3610 | AH125: =AG125+AG125*Титул.лист!$A$1 -> 3971 | AI125: =AH125+AH125*Титул.лист!$P$2 -> 3971 | AJ125: 3970 | AK125: 3670 | AL125: =AK125+AK125*Титул.лист!$A$1 -> 4037 | AM125: =AL125+AL125*Титул.лист!$P$2 -> 4037 | AN125: 4040 | AO125: 5139.736 | AP125: =AO125+AO125*Титул.лист!$A$1 -> 5653.7096 | AQ125: =AP125+AP125*Титул.лист!$P$2 -> 5653.7096 | AR125: 5650 | AS125: 5612.296 | AT125: =AS125+AS125*Титул.лист!$A$1 -> 6173.5256 | AU125: =AT125+AT125*Титул.лист!$P$2 -> 6173.5256 | AV125: 6170 | AW125: 4804.648 | AX125: =AW125+AW125*Титул.лист!$A$1 -> 5285.1128 | AY125: =AX125+AX125*Титул.лист!$P$2 -> 5285.1128 | AZ125: 5290 | BA125: 5667.52 | BB125: =BA125+BA125*Титул.лист!$A$1 -> 6234.272 | BC125: =BB125+BB125*Титул.лист!$P$2 -> 6234.272 | BD125: 6230 | BE125: 7309.12 | BF125: =BE125+BE125*Титул.лист!$A$1 -> 8040.032 | BG125: =BF125+BF125*Титул.лист!$P$2 -> 8040.032 | BH125: 8040
C126: 700 | D126: 1009-70 | E126: =E125*0.027+E125 -> 3070.73 | F126: =E126+E126*Титул.лист!$A$1 -> 3377.803 | G126: =F126+F126*Титул.лист!$P$2 -> 3377.803 | H126: 3380 | I126: =I125*0.027+I125 -> 3235.05 | J126: =I126+I126*Титул.лист!$A$1 -> 3558.555 | K126: =J126+J126*Титул.лист!$P$2 -> 3558.555 | L126: 3560 | M126: =M125*0.027+M125 -> 3532.88 | N126: =M126+M126*Титул.лист!$A$1 -> 3886.168 | O126: =N126+N126*Титул.лист!$P$2 -> 3886.168 | P126: 3890 | Q126: =Q125*0.027+Q125 -> 3697.2 | R126: =Q126+Q126*Титул.лист!$A$1 -> 4066.92 | S126: =R126+R126*Титул.лист!$P$2 -> 4066.92 | T126: 4070 | U126: =U125*0.027+U125 -> 3892.33 | V126: =U126+U126*Титул.лист!$A$1 -> 4281.563 | W126: =V126+V126*Титул.лист!$P$2 -> 4281.563 | X126: 4280 | Y126: =Y125*0.027+Y125 -> 4056.65 | Z126: =Y126+Y126*Титул.лист!$A$1 -> 4462.315 | AA126: =Z126+Z126*Титул.лист!$P$2 -> 4462.315 | AB126: 4460 | AC126: =AC125*0.027+AC125 -> 3553.42 | AD126: =AC126+AC126*Титул.лист!$A$1 -> 3908.762 | AE126: =AD126+AD126*Титул.лист!$P$2 -> 3908.762 | AF126: 3910 | AG126: =AG125*0.027+AG125 -> 3707.47 | AH126: =AG126+AG126*Титул.лист!$A$1 -> 4078.217 | AI126: =AH126+AH126*Титул.лист!$P$2 -> 4078.217 | AJ126: 4080 | AK126: =AK125*0.027+AK125 -> 3769.09 | AL126: =AK126+AK126*Титул.лист!$A$1 -> 4145.999 | AM126: =AL126+AL126*Титул.лист!$P$2 -> 4145.999 | AN126: 4150 | AO126: 5513.112 | AP126: =AO126+AO126*Титул.лист!$A$1 -> 6064.4232 | AQ126: =AP126+AP126*Титул.лист!$P$2 -> 6064.4232 | AR126: 6060 | AS126: 6064.432 | AT126: =AS126+AS126*Титул.лист!$A$1 -> 6670.8752 | AU126: =AT126+AT126*Титул.лист!$P$2 -> 6670.8752 | AV126: 6670 | AW126: 5122.176 | AX126: =AW126+AW126*Титул.лист!$A$1 -> 5634.3936 | AY126: =AX126+AX126*Титул.лист!$P$2 -> 5634.3936 | AZ126: 5630 | BA126: 6128.86 | BB126: =BA126+BA126*Титул.лист!$A$1 -> 6741.746 | BC126: =BB126+BB126*Титул.лист!$P$2 -> 6741.746 | BD126: 6740 | BE126: 8044.06 | BF126: =BE126+BE126*Титул.лист!$A$1 -> 8848.466 | BG126: =BF126+BF126*Титул.лист!$P$2 -> 8848.466 | BH126: 8850
C127: 800 | D127: 1009-80 | E127: =E126*0.27+E126 -> 3899.8271 | F127: =E127+E127*Титул.лист!$A$1 -> 4289.80981 | G127: =F127+F127*Титул.лист!$P$2 -> 4289.80981 | H127: 4290 | I127: =I126*0.27+I126 -> 4108.5135 | J127: =I127+I127*Титул.лист!$A$1 -> 4519.36485 | K127: =J127+J127*Титул.лист!$P$2 -> 4519.36485 | L127: 4520 | M127: =M126*0.27+M126 -> 4486.7576 | N127: =M127+M127*Титул.лист!$A$1 -> 4935.43336 | O127: =N127+N127*Титул.лист!$P$2 -> 4935.43336 | P127: 4940 | Q127: =Q126*0.27+Q126 -> 4695.444 | R127: =Q127+Q127*Титул.лист!$A$1 -> 5164.9884 | S127: =R127+R127*Титул.лист!$P$2 -> 5164.9884 | T127: 5160 | U127: =U126*0.27+U126 -> 4943.2591 | V127: =U127+U127*Титул.лист!$A$1 -> 5437.58501 | W127: =V127+V127*Титул.лист!$P$2 -> 5437.58501 | X127: 5440 | Y127: =Y126*0.27+Y126 -> 5151.9455 | Z127: =Y127+Y127*Титул.лист!$A$1 -> 5667.14005 | AA127: =Z127+Z127*Титул.лист!$P$2 -> 5667.14005 | AB127: 5670 | AC127: =AC126*0.27+AC126 -> 4512.8434 | AD127: =AC127+AC127*Титул.лист!$A$1 -> 4964.12774 | AE127: =AD127+AD127*Титул.лист!$P$2 -> 4964.12774 | AF127: 4960 | AG127: =AG126*0.27+AG126 -> 4708.4869 | AH127: =AG127+AG127*Титул.лист!$A$1 -> 5179.33559 | AI127: =AH127+AH127*Титул.лист!$P$2 -> 5179.33559 | AJ127: 5180 | AK127: =AK126*0.27+AK126 -> 4786.7443 | AL127: =AK127+AK127*Титул.лист!$A$1 -> 5265.41873 | AM127: =AL127+AL127*Титул.лист!$P$2 -> 5265.41873 | AN127: 5270 | AO127: 6752.4914 | AP127: =AO127+AO127*Титул.лист!$A$1 -> 7427.74054 | AQ127: =AP127+AP127*Титул.лист!$P$2 -> 7427.74054 | AR127: 7430 | AS127: 7382.5714 | AT127: =AS127+AS127*Титул.лист!$A$1 -> 8120.82854 | AU127: =AT127+AT127*Титул.лист!$P$2 -> 8120.82854 | AV127: 8120 | AW127: 6305.7074 | AX127: =AW127+AW127*Титул.лист!$A$1 -> 6936.27814 | AY127: =AX127+AX127*Титул.лист!$P$2 -> 6936.27814 | AZ127: 6940 | BA127: 7456.2034 | BB127: =BA127+BA127*Титул.лист!$A$1 -> 8201.82374 | BC127: =BB127+BB127*Титул.лист!$P$2 -> 8201.82374 | BD127: 8200 | BE127: 9645.0034 | BF127: =BE127+BE127*Титул.лист!$A$1 -> 10609.50374 | BG127: =BF127+BF127*Титул.лист!$P$2 -> 10609.50374 | BH127: 10610
B128: Стол 4ящ метабокс | C128: 300 | D128: 1009-30м | E128: 3080 | F128: =E128+E128*Титул.лист!$A$1 -> 3388 | G128: =F128+F128*Титул.лист!$P$2 -> 3388 | H128: 3390 | I128: 3170 | J128: =I128+I128*Титул.лист!$A$1 -> 3487 | K128: =J128+J128*Титул.лист!$P$2 -> 3487 | L128: 3490 | M128: 3300 | N128: =M128+M128*Титул.лист!$A$1 -> 3630 | O128: =N128+N128*Титул.лист!$P$2 -> 3630 | P128: 3630 | Q128: 3390 | R128: =Q128+Q128*Титул.лист!$A$1 -> 3729 | S128: =R128+R128*Титул.лист!$P$2 -> 3729 | T128: 3730 | U128: 3470 | V128: =U128+U128*Титул.лист!$A$1 -> 3817 | W128: =V128+V128*Титул.лист!$P$2 -> 3817 | X128: 3820 | Y128: 3560 | Z128: =Y128+Y128*Титул.лист!$A$1 -> 3916 | AA128: =Z128+Z128*Титул.лист!$P$2 -> 3916 | AB128: 3920 | AC128: 3300 | AD128: =AC128+AC128*Титул.лист!$A$1 -> 3630 | AE128: =AD128+AD128*Титул.лист!$P$2 -> 3630 | AF128: 3630 | AG128: 3360 | AH128: =AG128+AG128*Титул.лист!$A$1 -> 3696 | AI128: =AH128+AH128*Титул.лист!$P$2 -> 3696 | AJ128: 3700 | AK128: 3400 | AL128: =AK128+AK128*Титул.лист!$A$1 -> 3740 | AM128: =AL128+AL128*Титул.лист!$P$2 -> 3740 | AN128: 3740 | AO128: 4139.868 | AP128: =AO128+AO128*Титул.лист!$A$1 -> 4553.8548 | AQ128: =AP128+AP128*Титул.лист!$P$2 -> 4553.8548 | AR128: 4550 | AS128: 4376.148 | AT128: =AS128+AS128*Титул.лист!$A$1 -> 4813.7628 | AU128: =AT128+AT128*Титул.лист!$P$2 -> 4813.7628 | AV128: 4810 | AW128: 3972.324 | AX128: =AW128+AW128*Титул.лист!$A$1 -> 4369.5564 | AY128: =AX128+AX128*Титул.лист!$P$2 -> 4369.5564 | AZ128: 4370 | BA128: 4403.76 | BB128: =BA128+BA128*Титул.лист!$A$1 -> 4844.136 | BC128: =BB128+BB128*Титул.лист!$P$2 -> 4844.136 | BD128: 4840 | BE128: 5224.56 | BF128: =BE128+BE128*Титул.лист!$A$1 -> 5747.016 | BG128: =BF128+BF128*Титул.лист!$P$2 -> 5747.016 | BH128: 5750
C129: 350 | D129: 1009-35м | E129: 3240 | F129: =E129+E129*Титул.лист!$A$1 -> 3564 | G129: =F129+F129*Титул.лист!$P$2 -> 3564 | H129: 3560 | I129: 3340 | J129: =I129+I129*Титул.лист!$A$1 -> 3674 | K129: =J129+J129*Титул.лист!$P$2 -> 3674 | L129: 3670 | M129: 3510 | N129: =M129+M129*Титул.лист!$A$1 -> 3861 | O129: =N129+N129*Титул.лист!$P$2 -> 3861 | P129: 3860 | Q129: 3610 | R129: =Q129+Q129*Титул.лист!$A$1 -> 3971 | S129: =R129+R129*Титул.лист!$P$2 -> 3971 | T129: 3970 | U129: 3710 | V129: =U129+U129*Титул.лист!$A$1 -> 4081 | W129: =V129+V129*Титул.лист!$P$2 -> 4081 | X129: 4080 | Y129: 3800 | Z129: =Y129+Y129*Титул.лист!$A$1 -> 4180 | AA129: =Z129+Z129*Титул.лист!$P$2 -> 4180 | AB129: 4180 | AC129: 3510 | AD129: =AC129+AC129*Титул.лист!$A$1 -> 3861 | AE129: =AD129+AD129*Титул.лист!$P$2 -> 3861 | AF129: 3860 | AG129: 3600 | AH129: =AG129+AG129*Титул.лист!$A$1 -> 3960 | AI129: =AH129+AH129*Титул.лист!$P$2 -> 3960 | AJ129: 3960 | AK129: 3630 | AL129: =AK129+AK129*Титул.лист!$A$1 -> 3993 | AM129: =AL129+AL129*Титул.лист!$P$2 -> 3993 | AN129: 3990 | AO129: 4489.846 | AP129: =AO129+AO129*Титул.лист!$A$1 -> 4938.8306 | AQ129: =AP129+AP129*Титул.лист!$P$2 -> 4938.8306 | AR129: 4940 | AS129: 4765.506 | AT129: =AS129+AS129*Титул.лист!$A$1 -> 5242.0566 | AU129: =AT129+AT129*Титул.лист!$P$2 -> 5242.0566 | AV129: 5240 | AW129: 4294.378 | AX129: =AW129+AW129*Титул.лист!$A$1 -> 4723.8158 | AY129: =AX129+AX129*Титул.лист!$P$2 -> 4723.8158 | AZ129: 4720 | BA129: 4797.72 | BB129: =BA129+BA129*Титул.лист!$A$1 -> 5277.492 | BC129: =BB129+BB129*Титул.лист!$P$2 -> 5277.492 | BD129: 5280 | BE129: 5755.32 | BF129: =BE129+BE129*Титул.лист!$A$1 -> 6330.852 | BG129: =BF129+BF129*Титул.лист!$P$2 -> 6330.852 | BH129: 6330
C130: 400 | D130: 1009-40м | E130: 3400 | F130: =E130+E130*Титул.лист!$A$1 -> 3740 | G130: =F130+F130*Титул.лист!$P$2 -> 3740 | H130: 3740 | I130: 3510 | J130: =I130+I130*Титул.лист!$A$1 -> 3861 | K130: =J130+J130*Титул.лист!$P$2 -> 3861 | L130: 3860 | M130: 3700 | N130: =M130+M130*Титул.лист!$A$1 -> 4070 | O130: =N130+N130*Титул.лист!$P$2 -> 4070 | P130: 4070 | Q130: 3800 | R130: =Q130+Q130*Титул.лист!$A$1 -> 4180 | S130: =R130+R130*Титул.лист!$P$2 -> 4180 | T130: 4180 | U130: 3910 | V130: =U130+U130*Титул.лист!$A$1 -> 4301 | W130: =V130+V130*Титул.лист!$P$2 -> 4301 | X130: 4300 | Y130: 4020 | Z130: =Y130+Y130*Титул.лист!$A$1 -> 4422 | AA130: =Z130+Z130*Титул.лист!$P$2 -> 4422 | AB130: 4420 | AC130: 3690 | AD130: =AC130+AC130*Титул.лист!$A$1 -> 4059 | AE130: =AD130+AD130*Титул.лист!$P$2 -> 4059 | AF130: 4060 | AG130: 3780 | AH130: =AG130+AG130*Титул.лист!$A$1 -> 4158 | AI130: =AH130+AH130*Титул.лист!$P$2 -> 4158 | AJ130: 4160 | AK130: 3830 | AL130: =AK130+AK130*Титул.лист!$A$1 -> 4213 | AM130: =AL130+AL130*Титул.лист!$P$2 -> 4213 | AN130: 4210 | AO130: 4809.824 | AP130: =AO130+AO130*Титул.лист!$A$1 -> 5290.8064 | AQ130: =AP130+AP130*Титул.лист!$P$2 -> 5290.8064 | AR130: 5290 | AS130: 5124.864 | AT130: =AS130+AS130*Титул.лист!$A$1 -> 5637.3504 | AU130: =AT130+AT130*Титул.лист!$P$2 -> 5637.3504 | AV130: 5640 | AW130: 4586.432 | AX130: =AW130+AW130*Титул.лист!$A$1 -> 5045.0752 | AY130: =AX130+AX130*Титул.лист!$P$2 -> 5045.0752 | AZ130: 5050 | BA130: 5161.68 | BB130: =BA130+BA130*Титул.лист!$A$1 -> 5677.848 | BC130: =BB130+BB130*Титул.лист!$P$2 -> 5677.848 | BD130: 5680 | BE130: 6256.08 | BF130: =BE130+BE130*Титул.лист!$A$1 -> 6881.688 | BG130: =BF130+BF130*Титул.лист!$P$2 -> 6881.688 | BH130: 6880
C131: 450 | D131: 1009-45м | E131: 3540 | F131: =E131+E131*Титул.лист!$A$1 -> 3894 | G131: =F131+F131*Титул.лист!$P$2 -> 3894 | H131: 3890 | I131: 3660 | J131: =I131+I131*Титул.лист!$A$1 -> 4026 | K131: =J131+J131*Титул.лист!$P$2 -> 4026 | L131: 4030 | M131: 3870 | N131: =M131+M131*Титул.лист!$A$1 -> 4257 | O131: =N131+N131*Титул.лист!$P$2 -> 4257 | P131: 4260 | Q131: 3990 | R131: =Q131+Q131*Титул.лист!$A$1 -> 4389 | S131: =R131+R131*Титул.лист!$P$2 -> 4389 | T131: 4390 | U131: 4130 | V131: =U131+U131*Титул.лист!$A$1 -> 4543 | W131: =V131+V131*Титул.лист!$P$2 -> 4543 | X131: 4540 | Y131: 4260 | Z131: =Y131+Y131*Титул.лист!$A$1 -> 4686 | AA131: =Z131+Z131*Титул.лист!$P$2 -> 4686 | AB131: 4690 | AC131: 3890 | AD131: =AC131+AC131*Титул.лист!$A$1 -> 4279 | AE131: =AD131+AD131*Титул.лист!$P$2 -> 4279 | AF131: 4280 | AG131: 4000 | AH131: =AG131+AG131*Титул.лист!$A$1 -> 4400 | AI131: =AH131+AH131*Титул.лист!$P$2 -> 4400 | AJ131: 4400 | AK131: 4050 | AL131: =AK131+AK131*Титул.лист!$A$1 -> 4455 | AM131: =AL131+AL131*Титул.лист!$P$2 -> 4455 | AN131: 4460 | AO131: 5149.802 | AP131: =AO131+AO131*Титул.лист!$A$1 -> 5664.7822 | AQ131: =AP131+AP131*Титул.лист!$P$2 -> 5664.7822 | AR131: 5660 | AS131: 5504.222 | AT131: =AS131+AS131*Титул.лист!$A$1 -> 6054.6442 | AU131: =AT131+AT131*Титул.лист!$P$2 -> 6054.6442 | AV131: 6050 | AW131: 4898.486 | AX131: =AW131+AW131*Титул.лист!$A$1 -> 5388.3346 | AY131: =AX131+AX131*Титул.лист!$P$2 -> 5388.3346 | AZ131: 5390 | BA131: 5545.64 | BB131: =BA131+BA131*Титул.лист!$A$1 -> 6100.204 | BC131: =BB131+BB131*Титул.лист!$P$2 -> 6100.204 | BD131: 6100 | BE131: 6776.84 | BF131: =BE131+BE131*Титул.лист!$A$1 -> 7454.524 | BG131: =BF131+BF131*Титул.лист!$P$2 -> 7454.524 | BH131: 7450
C132: 500 | D132: 1009-50м | E132: 3690 | F132: =E132+E132*Титул.лист!$A$1 -> 4059 | G132: =F132+F132*Титул.лист!$P$2 -> 4059 | H132: =ROUND(G132,-1) -> 4060 | I132: 3820 | J132: =I132+I132*Титул.лист!$A$1 -> 4202 | K132: =J132+J132*Титул.лист!$P$2 -> 4202 | L132: =ROUND(K132,-1) -> 4200 | M132: 4080 | N132: =M132+M132*Титул.лист!$A$1 -> 4488 | O132: =N132+N132*Титул.лист!$P$2 -> 4488 | P132: =ROUND(O132,-1) -> 4490 | Q132: 4200 | R132: =Q132+Q132*Титул.лист!$A$1 -> 4620 | S132: =R132+R132*Титул.лист!$P$2 -> 4620 | T132: =ROUND(S132,-1) -> 4620 | U132: 4370 | V132: =U132+U132*Титул.лист!$A$1 -> 4807 | W132: =V132+V132*Титул.лист!$P$2 -> 4807 | X132: =ROUND(W132,-1) -> 4810 | Y132: 4490 | Z132: =Y132+Y132*Титул.лист!$A$1 -> 4939 | AA132: =Z132+Z132*Титул.лист!$P$2 -> 4939 | AB132: =ROUND(AA132,-1) -> 4940 | AC132: 4070 | AD132: =AC132+AC132*Титул.лист!$A$1 -> 4477 | AE132: =AD132+AD132*Титул.лист!$P$2 -> 4477 | AF132: =ROUND(AE132,-1) -> 4480 | AG132: 4190 | AH132: =AG132+AG132*Титул.лист!$A$1 -> 4609 | AI132: =AH132+AH132*Титул.лист!$P$2 -> 4609 | AJ132: =ROUND(AI132,-1) -> 4610 | AK132: 4240 | AL132: =AK132+AK132*Титул.лист!$A$1 -> 4664 | AM132: =AL132+AL132*Титул.лист!$P$2 -> 4664 | AN132: =ROUND(AM132,-1) -> 4660 | AO132: 5469.78 | AP132: =AO132+AO132*Титул.лист!$A$1 -> 6016.758 | AQ132: =AP132+AP132*Титул.лист!$P$2 -> 6016.758 | AR132: =ROUND(AQ132,-1) -> 6020 | AS132: 5863.58 | AT132: =AS132+AS132*Титул.лист!$A$1 -> 6449.938 | AU132: =AT132+AT132*Титул.лист!$P$2 -> 6449.938 | AV132: =ROUND(AU132,-1) -> 6450 | AW132: 5190.54 | AX132: =AW132+AW132*Титул.лист!$A$1 -> 5709.594 | AY132: =AX132+AX132*Титул.лист!$P$2 -> 5709.594 | AZ132: =ROUND(AY132,-1) -> 5710 | BA132: 5909.6 | BB132: =BA132+BA132*Титул.лист!$A$1 -> 6500.56 | BC132: =BB132+BB132*Титул.лист!$P$2 -> 6500.56 | BD132: =ROUND(BC132,-1) -> 6500 | BE132: 7277.6 | BF132: =BE132+BE132*Титул.лист!$A$1 -> 8005.36 | BG132: =BF132+BF132*Титул.лист!$P$2 -> 8005.36 | BH132: =ROUND(BG132,-1) -> 8010
C133: 600 | D133: 1009-60м | E133: =E125+1000 -> 3990 | F133: =E133+E133*Титул.лист!$A$1 -> 4389 | G133: =F133+F133*Титул.лист!$P$2 -> 4389 | H133: 4390 | I133: 4150 | J133: =I133+I133*Титул.лист!$A$1 -> 4565 | K133: =J133+J133*Титул.лист!$P$2 -> 4565 | L133: 4570 | M133: 4440 | N133: =M133+M133*Титул.лист!$A$1 -> 4884 | O133: =N133+N133*Титул.лист!$P$2 -> 4884 | P133: 4880 | Q133: 4600 | R133: =Q133+Q133*Титул.лист!$A$1 -> 5060 | S133: =R133+R133*Титул.лист!$P$2 -> 5060 | T133: 5060 | U133: 4790 | V133: =U133+U133*Титул.лист!$A$1 -> 5269 | W133: =V133+V133*Титул.лист!$P$2 -> 5269 | X133: 5270 | Y133: 4950 | Z133: =Y133+Y133*Титул.лист!$A$1 -> 5445 | AA133: =Z133+Z133*Титул.лист!$P$2 -> 5445 | AB133: 5450 | AC133: 4460 | AD133: =AC133+AC133*Титул.лист!$A$1 -> 4906 | AE133: =AD133+AD133*Титул.лист!$P$2 -> 4906 | AF133: 4910 | AG133: 4610 | AH133: =AG133+AG133*Титул.лист!$A$1 -> 5071 | AI133: =AH133+AH133*Титул.лист!$P$2 -> 5071 | AJ133: 5070 | AK133: 4670 | AL133: =AK133+AK133*Титул.лист!$A$1 -> 5137 | AM133: =AL133+AL133*Титул.лист!$P$2 -> 5137 | AN133: 5140 | AO133: 6139.736 | AP133: =AO133+AO133*Титул.лист!$A$1 -> 6753.7096 | AQ133: =AP133+AP133*Титул.лист!$P$2 -> 6753.7096 | AR133: 6750 | AS133: 6612.296 | AT133: =AS133+AS133*Титул.лист!$A$1 -> 7273.5256 | AU133: =AT133+AT133*Титул.лист!$P$2 -> 7273.5256 | AV133: 7270 | AW133: 5804.648 | AX133: =AW133+AW133*Титул.лист!$A$1 -> 6385.1128 | AY133: =AX133+AX133*Титул.лист!$P$2 -> 6385.1128 | AZ133: 6390 | BA133: 6667.52 | BB133: =BA133+BA133*Титул.лист!$A$1 -> 7334.272 | BC133: =BB133+BB133*Титул.лист!$P$2 -> 7334.272 | BD133: 7330 | BE133: 8309.12 | BF133: =BE133+BE133*Титул.лист!$A$1 -> 9140.032 | BG133: =BF133+BF133*Титул.лист!$P$2 -> 9140.032 | BH133: 9140
C134: 700 | D134: 1009-70м | E134: 4070 | F134: =E134+E134*Титул.лист!$A$1 -> 4477 | G134: =F134+F134*Титул.лист!$P$2 -> 4477 | H134: 4480 | I134: 4235 | J134: =I134+I134*Титул.лист!$A$1 -> 4658.5 | K134: =J134+J134*Титул.лист!$P$2 -> 4658.5 | L134: 4660 | M134: 4530 | N134: =M134+M134*Титул.лист!$A$1 -> 4983 | O134: =N134+N134*Титул.лист!$P$2 -> 4983 | P134: 4980 | Q134: 4700 | R134: =Q134+Q134*Титул.лист!$A$1 -> 5170 | S134: =R134+R134*Титул.лист!$P$2 -> 5170 | T134: 5170 | U134: 4890 | V134: =U134+U134*Титул.лист!$A$1 -> 5379 | W134: =V134+V134*Титул.лист!$P$2 -> 5379 | X134: 5380 | Y134: 5060 | Z134: =Y134+Y134*Титул.лист!$A$1 -> 5566 | AA134: =Z134+Z134*Титул.лист!$P$2 -> 5566 | AB134: 5570 | AC134: 4550 | AD134: =AC134+AC134*Титул.лист!$A$1 -> 5005 | AE134: =AD134+AD134*Титул.лист!$P$2 -> 5005 | AF134: 5010 | AG134: 4700 | AH134: =AG134+AG134*Титул.лист!$A$1 -> 5170 | AI134: =AH134+AH134*Титул.лист!$P$2 -> 5170 | AJ134: 5170 | AK134: 4770 | AL134: =AK134+AK134*Титул.лист!$A$1 -> 5247 | AM134: =AL134+AL134*Титул.лист!$P$2 -> 5247 | AN134: 5250 | AO134: 6419.692 | AP134: =AO134+AO134*Титул.лист!$A$1 -> 7061.6612 | AQ134: =AP134+AP134*Титул.лист!$P$2 -> 7061.6612 | AR134: 7060 | AS134: 6971.012 | AT134: =AS134+AS134*Титул.лист!$A$1 -> 7668.1132 | AU134: =AT134+AT134*Титул.лист!$P$2 -> 7668.1132 | AV134: 7670 | AW134: 6028.756 | AX134: =AW134+AW134*Титул.лист!$A$1 -> 6631.6316 | AY134: =AX134+AX134*Титул.лист!$P$2 -> 6631.6316 | AZ134: 6630 | BA134: 7035.44 | BB134: =BA134+BA134*Титул.лист!$A$1 -> 7738.984 | BC134: =BB134+BB134*Титул.лист!$P$2 -> 7738.984 | BD134: 7740 | BE134: 8950.64 | BF134: =BE134+BE134*Титул.лист!$A$1 -> 9845.704 | BG134: =BF134+BF134*Титул.лист!$P$2 -> 9845.704 | BH134: 9850
C135: 800 | D135: 1009-80м | E135: =E127+1000 -> 4899.8271 | F135: =E135+E135*Титул.лист!$A$1 -> 5389.80981 | G135: =F135+F135*Титул.лист!$P$2 -> 5389.80981 | H135: 5390 | I135: =I127+1000 -> 5108.5135 | J135: =I135+I135*Титул.лист!$A$1 -> 5619.36485 | K135: =J135+J135*Титул.лист!$P$2 -> 5619.36485 | L135: 5620 | M135: =M127+1000 -> 5486.7576 | N135: =M135+M135*Титул.лист!$A$1 -> 6035.43336 | O135: =N135+N135*Титул.лист!$P$2 -> 6035.43336 | P135: 6040 | Q135: =Q127+1000 -> 5695.444 | R135: =Q135+Q135*Титул.лист!$A$1 -> 6264.9884 | S135: =R135+R135*Титул.лист!$P$2 -> 6264.9884 | T135: 6260 | U135: =U127+1000 -> 5943.2591 | V135: =U135+U135*Титул.лист!$A$1 -> 6537.58501 | W135: =V135+V135*Титул.лист!$P$2 -> 6537.58501 | X135: 6540 | Y135: =Y127+1000 -> 6151.9455 | Z135: =Y135+Y135*Титул.лист!$A$1 -> 6767.14005 | AA135: =Z135+Z135*Титул.лист!$P$2 -> 6767.14005 | AB135: 6770 | AC135: =AC127+1000 -> 5512.8434 | AD135: =AC135+AC135*Титул.лист!$A$1 -> 6064.12774 | AE135: =AD135+AD135*Титул.лист!$P$2 -> 6064.12774 | AF135: 6060 | AG135: =AG127+1000 -> 5708.4869 | AH135: =AG135+AG135*Титул.лист!$A$1 -> 6279.33559 | AI135: =AH135+AH135*Титул.лист!$P$2 -> 6279.33559 | AJ135: 6280 | AK135: =AK127+1000 -> 5786.7443 | AL135: =AK135+AK135*Титул.лист!$A$1 -> 6365.41873 | AM135: =AL135+AL135*Титул.лист!$P$2 -> 6365.41873 | AN135: 6370 | AO135: 6793.068 | AP135: =AO135+AO135*Титул.лист!$A$1 -> 7472.3748 | AQ135: =AP135+AP135*Титул.лист!$P$2 -> 7472.3748 | AR135: 7470 | AS135: 7423.148 | AT135: =AS135+AS135*Титул.лист!$A$1 -> 8165.4628 | AU135: =AT135+AT135*Титул.лист!$P$2 -> 8165.4628 | AV135: 8170 | AW135: 6346.284 | AX135: =AW135+AW135*Титул.лист!$A$1 -> 6980.9124 | AY135: =AX135+AX135*Титул.лист!$P$2 -> 6980.9124 | AZ135: 6980 | BA135: 7496.78 | BB135: =BA135+BA135*Титул.лист!$A$1 -> 8246.458 | BC135: =BB135+BB135*Титул.лист!$P$2 -> 8246.458 | BD135: 8250 | BE135: 9685.58 | BF135: =BE135+BE135*Титул.лист!$A$1 -> 10654.138 | BG135: =BF135+BF135*Титул.лист!$P$2 -> 10654.138 | BH135: 10650
B136: Стол 4ящ тандембокс | C136: 300 | D136: 1009-30т | E136: =E120+2000*4 -> 10080 | F136: =E136+E136*Титул.лист!$A$1 -> 11088 | G136: =F136+F136*Титул.лист!$P$2 -> 11088 | H136: 11090 | I136: =I120+2000*4 -> 10170 | J136: =I136+I136*Титул.лист!$A$1 -> 11187 | K136: =J136+J136*Титул.лист!$P$2 -> 11187 | L136: 11190 | M136: =M120+2000*4 -> 10300 | N136: =M136+M136*Титул.лист!$A$1 -> 11330 | O136: =N136+N136*Титул.лист!$P$2 -> 11330 | P136: 11330 | Q136: =Q120+2000*4 -> 10390 | R136: =Q136+Q136*Титул.лист!$A$1 -> 11429 | S136: =R136+R136*Титул.лист!$P$2 -> 11429 | T136: 11430 | U136: =U120+2000*4 -> 10470 | V136: =U136+U136*Титул.лист!$A$1 -> 11517 | W136: =V136+V136*Титул.лист!$P$2 -> 11517 | X136: 11520 | Y136: =Y120+2000*4 -> 10560 | Z136: =Y136+Y136*Титул.лист!$A$1 -> 11616 | AA136: =Z136+Z136*Титул.лист!$P$2 -> 11616 | AB136: 11620 | AC136: =AC120+2000*4 -> 10300 | AD136: =AC136+AC136*Титул.лист!$A$1 -> 11330 | AE136: =AD136+AD136*Титул.лист!$P$2 -> 11330 | AF136: 11330 | AG136: =AG120+2000*4 -> 10360 | AH136: =AG136+AG136*Титул.лист!$A$1 -> 11396 | AI136: =AH136+AH136*Титул.лист!$P$2 -> 11396 | AJ136: 11400 | AK136: =AK120+2000*4 -> 10400 | AL136: =AK136+AK136*Титул.лист!$A$1 -> 11440 | AM136: =AL136+AL136*Титул.лист!$P$2 -> 11440 | AN136: 11440 | AO136: 11139.868 | AP136: =AO136+AO136*Титул.лист!$A$1 -> 12253.8548 | AQ136: =AP136+AP136*Титул.лист!$P$2 -> 12253.8548 | AR136: 12250 | AS136: 11376.148 | AT136: =AS136+AS136*Титул.лист!$A$1 -> 12513.7628 | AU136: =AT136+AT136*Титул.лист!$P$2 -> 12513.7628 | AV136: 12510 | AW136: 10972.324 | AX136: =AW136+AW136*Титул.лист!$A$1 -> 12069.5564 | AY136: =AX136+AX136*Титул.лист!$P$2 -> 12069.5564 | AZ136: 12070 | BA136: 11403.76 | BB136: =BA136+BA136*Титул.лист!$A$1 -> 12544.136 | BC136: =BB136+BB136*Титул.лист!$P$2 -> 12544.136 | BD136: 12540 | BE136: 12224.56 | BF136: =BE136+BE136*Титул.лист!$A$1 -> 13447.016 | BG136: =BF136+BF136*Титул.лист!$P$2 -> 13447.016 | BH136: 13450
C137: 350 | D137: 1009-35т | E137: 10240 | F137: =E137+E137*Титул.лист!$A$1 -> 11264 | G137: =F137+F137*Титул.лист!$P$2 -> 11264 | H137: 11260 | I137: 10340 | J137: =I137+I137*Титул.лист!$A$1 -> 11374 | K137: =J137+J137*Титул.лист!$P$2 -> 11374 | L137: 11370 | M137: 10510 | N137: =M137+M137*Титул.лист!$A$1 -> 11561 | O137: =N137+N137*Титул.лист!$P$2 -> 11561 | P137: 11560 | Q137: 10610 | R137: =Q137+Q137*Титул.лист!$A$1 -> 11671 | S137: =R137+R137*Титул.лист!$P$2 -> 11671 | T137: 11670 | U137: 10710 | V137: =U137+U137*Титул.лист!$A$1 -> 11781 | W137: =V137+V137*Титул.лист!$P$2 -> 11781 | X137: 11780 | Y137: 10800 | Z137: =Y137+Y137*Титул.лист!$A$1 -> 11880 | AA137: =Z137+Z137*Титул.лист!$P$2 -> 11880 | AB137: 11880 | AC137: 10510 | AD137: =AC137+AC137*Титул.лист!$A$1 -> 11561 | AE137: =AD137+AD137*Титул.лист!$P$2 -> 11561 | AF137: 11560 | AG137: 10600 | AH137: =AG137+AG137*Титул.лист!$A$1 -> 11660 | AI137: =AH137+AH137*Титул.лист!$P$2 -> 11660 | AJ137: 11660 | AK137: 10630 | AL137: =AK137+AK137*Титул.лист!$A$1 -> 11693 | AM137: =AL137+AL137*Титул.лист!$P$2 -> 11693 | AN137: 11690 | AO137: 11489.846 | AP137: =AO137+AO137*Титул.лист!$A$1 -> 12638.8306 | AQ137: =AP137+AP137*Титул.лист!$P$2 -> 12638.8306 | AR137: 12640 | AS137: 11765.506 | AT137: =AS137+AS137*Титул.лист!$A$1 -> 12942.0566 | AU137: =AT137+AT137*Титул.лист!$P$2 -> 12942.0566 | AV137: 12940 | AW137: 11294.378 | AX137: =AW137+AW137*Титул.лист!$A$1 -> 12423.8158 | AY137: =AX137+AX137*Титул.лист!$P$2 -> 12423.8158 | AZ137: 12420 | BA137: 11797.72 | BB137: =BA137+BA137*Титул.лист!$A$1 -> 12977.492 | BC137: =BB137+BB137*Титул.лист!$P$2 -> 12977.492 | BD137: 12980 | BE137: 12755.32 | BF137: =BE137+BE137*Титул.лист!$A$1 -> 14030.852 | BG137: =BF137+BF137*Титул.лист!$P$2 -> 14030.852 | BH137: 14030
C138: 400 | D138: 1009-40т | E138: 10400 | F138: =E138+E138*Титул.лист!$A$1 -> 11440 | G138: =F138+F138*Титул.лист!$P$2 -> 11440 | H138: 11440 | I138: 10510 | J138: =I138+I138*Титул.лист!$A$1 -> 11561 | K138: =J138+J138*Титул.лист!$P$2 -> 11561 | L138: 11560 | M138: 10700 | N138: =M138+M138*Титул.лист!$A$1 -> 11770 | O138: =N138+N138*Титул.лист!$P$2 -> 11770 | P138: 11770 | Q138: 10800 | R138: =Q138+Q138*Титул.лист!$A$1 -> 11880 | S138: =R138+R138*Титул.лист!$P$2 -> 11880 | T138: 11880 | U138: 10910 | V138: =U138+U138*Титул.лист!$A$1 -> 12001 | W138: =V138+V138*Титул.лист!$P$2 -> 12001 | X138: 12000 | Y138: 11020 | Z138: =Y138+Y138*Титул.лист!$A$1 -> 12122 | AA138: =Z138+Z138*Титул.лист!$P$2 -> 12122 | AB138: 12120 | AC138: 10690 | AD138: =AC138+AC138*Титул.лист!$A$1 -> 11759 | AE138: =AD138+AD138*Титул.лист!$P$2 -> 11759 | AF138: 11760 | AG138: 10780 | AH138: =AG138+AG138*Титул.лист!$A$1 -> 11858 | AI138: =AH138+AH138*Титул.лист!$P$2 -> 11858 | AJ138: 11860 | AK138: 10830 | AL138: =AK138+AK138*Титул.лист!$A$1 -> 11913 | AM138: =AL138+AL138*Титул.лист!$P$2 -> 11913 | AN138: 11910 | AO138: 11809.824 | AP138: =AO138+AO138*Титул.лист!$A$1 -> 12990.8064 | AQ138: =AP138+AP138*Титул.лист!$P$2 -> 12990.8064 | AR138: 12990 | AS138: 12124.864 | AT138: =AS138+AS138*Титул.лист!$A$1 -> 13337.3504 | AU138: =AT138+AT138*Титул.лист!$P$2 -> 13337.3504 | AV138: 13340 | AW138: 11586.432 | AX138: =AW138+AW138*Титул.лист!$A$1 -> 12745.0752 | AY138: =AX138+AX138*Титул.лист!$P$2 -> 12745.0752 | AZ138: 12750 | BA138: 12161.68 | BB138: =BA138+BA138*Титул.лист!$A$1 -> 13377.848 | BC138: =BB138+BB138*Титул.лист!$P$2 -> 13377.848 | BD138: 13380 | BE138: 13256.08 | BF138: =BE138+BE138*Титул.лист!$A$1 -> 14581.688 | BG138: =BF138+BF138*Титул.лист!$P$2 -> 14581.688 | BH138: 14580
C139: 450 | D139: 1009-45т | E139: 10540 | F139: =E139+E139*Титул.лист!$A$1 -> 11594 | G139: =F139+F139*Титул.лист!$P$2 -> 11594 | H139: 11590 | I139: 10660 | J139: =I139+I139*Титул.лист!$A$1 -> 11726 | K139: =J139+J139*Титул.лист!$P$2 -> 11726 | L139: 11730 | M139: 10870 | N139: =M139+M139*Титул.лист!$A$1 -> 11957 | O139: =N139+N139*Титул.лист!$P$2 -> 11957 | P139: 11960 | Q139: 10990 | R139: =Q139+Q139*Титул.лист!$A$1 -> 12089 | S139: =R139+R139*Титул.лист!$P$2 -> 12089 | T139: 12090 | U139: 11130 | V139: =U139+U139*Титул.лист!$A$1 -> 12243 | W139: =V139+V139*Титул.лист!$P$2 -> 12243 | X139: 12240 | Y139: 11260 | Z139: =Y139+Y139*Титул.лист!$A$1 -> 12386 | AA139: =Z139+Z139*Титул.лист!$P$2 -> 12386 | AB139: 12390 | AC139: 10890 | AD139: =AC139+AC139*Титул.лист!$A$1 -> 11979 | AE139: =AD139+AD139*Титул.лист!$P$2 -> 11979 | AF139: 11980 | AG139: 11000 | AH139: =AG139+AG139*Титул.лист!$A$1 -> 12100 | AI139: =AH139+AH139*Титул.лист!$P$2 -> 12100 | AJ139: 12100 | AK139: 11050 | AL139: =AK139+AK139*Титул.лист!$A$1 -> 12155 | AM139: =AL139+AL139*Титул.лист!$P$2 -> 12155 | AN139: 12160 | AO139: 12149.802 | AP139: =AO139+AO139*Титул.лист!$A$1 -> 13364.7822 | AQ139: =AP139+AP139*Титул.лист!$P$2 -> 13364.7822 | AR139: 13360 | AS139: 12504.222 | AT139: =AS139+AS139*Титул.лист!$A$1 -> 13754.6442 | AU139: =AT139+AT139*Титул.лист!$P$2 -> 13754.6442 | AV139: 13750 | AW139: 11898.486 | AX139: =AW139+AW139*Титул.лист!$A$1 -> 13088.3346 | AY139: =AX139+AX139*Титул.лист!$P$2 -> 13088.3346 | AZ139: 13090 | BA139: 12545.64 | BB139: =BA139+BA139*Титул.лист!$A$1 -> 13800.204 | BC139: =BB139+BB139*Титул.лист!$P$2 -> 13800.204 | BD139: 13800 | BE139: 13776.84 | BF139: =BE139+BE139*Титул.лист!$A$1 -> 15154.524 | BG139: =BF139+BF139*Титул.лист!$P$2 -> 15154.524 | BH139: 15150
C140: 500 | D140: 1009-50т | E140: 10690 | F140: =E140+E140*Титул.лист!$A$1 -> 11759 | G140: =F140+F140*Титул.лист!$P$2 -> 11759 | H140: 11760 | I140: 10820 | J140: =I140+I140*Титул.лист!$A$1 -> 11902 | K140: =J140+J140*Титул.лист!$P$2 -> 11902 | L140: 11900 | M140: 11080 | N140: =M140+M140*Титул.лист!$A$1 -> 12188 | O140: =N140+N140*Титул.лист!$P$2 -> 12188 | P140: 12190 | Q140: 11200 | R140: =Q140+Q140*Титул.лист!$A$1 -> 12320 | S140: =R140+R140*Титул.лист!$P$2 -> 12320 | T140: 12320 | U140: 11370 | V140: =U140+U140*Титул.лист!$A$1 -> 12507 | W140: =V140+V140*Титул.лист!$P$2 -> 12507 | X140: 12510 | Y140: 11490 | Z140: =Y140+Y140*Титул.лист!$A$1 -> 12639 | AA140: =Z140+Z140*Титул.лист!$P$2 -> 12639 | AB140: 12640 | AC140: 11070 | AD140: =AC140+AC140*Титул.лист!$A$1 -> 12177 | AE140: =AD140+AD140*Титул.лист!$P$2 -> 12177 | AF140: 12180 | AG140: 11190 | AH140: =AG140+AG140*Титул.лист!$A$1 -> 12309 | AI140: =AH140+AH140*Титул.лист!$P$2 -> 12309 | AJ140: 12310 | AK140: 11240 | AL140: =AK140+AK140*Титул.лист!$A$1 -> 12364 | AM140: =AL140+AL140*Титул.лист!$P$2 -> 12364 | AN140: 12360 | AO140: 12469.78 | AP140: =AO140+AO140*Титул.лист!$A$1 -> 13716.758 | AQ140: =AP140+AP140*Титул.лист!$P$2 -> 13716.758 | AR140: 13720 | AS140: 12863.58 | AT140: =AS140+AS140*Титул.лист!$A$1 -> 14149.938 | AU140: =AT140+AT140*Титул.лист!$P$2 -> 14149.938 | AV140: 14150 | AW140: 12190.54 | AX140: =AW140+AW140*Титул.лист!$A$1 -> 13409.594 | AY140: =AX140+AX140*Титул.лист!$P$2 -> 13409.594 | AZ140: 13410 | BA140: 12909.6 | BB140: =BA140+BA140*Титул.лист!$A$1 -> 14200.56 | BC140: =BB140+BB140*Титул.лист!$P$2 -> 14200.56 | BD140: 14200 | BE140: 14277.6 | BF140: =BE140+BE140*Титул.лист!$A$1 -> 15705.36 | BG140: =BF140+BF140*Титул.лист!$P$2 -> 15705.36 | BH140: 15710
C141: 600 | D141: 1009-60т | E141: 10990 | F141: =E141+E141*Титул.лист!$A$1 -> 12089 | G141: =F141+F141*Титул.лист!$P$2 -> 12089 | H141: 12090 | I141: 11150 | J141: =I141+I141*Титул.лист!$A$1 -> 12265 | K141: =J141+J141*Титул.лист!$P$2 -> 12265 | L141: 12270 | M141: 11440 | N141: =M141+M141*Титул.лист!$A$1 -> 12584 | O141: =N141+N141*Титул.лист!$P$2 -> 12584 | P141: 12580 | Q141: 11600 | R141: =Q141+Q141*Титул.лист!$A$1 -> 12760 | S141: =R141+R141*Титул.лист!$P$2 -> 12760 | T141: 12760 | U141: 11790 | V141: =U141+U141*Титул.лист!$A$1 -> 12969 | W141: =V141+V141*Титул.лист!$P$2 -> 12969 | X141: 12970 | Y141: 11950 | Z141: =Y141+Y141*Титул.лист!$A$1 -> 13145 | AA141: =Z141+Z141*Титул.лист!$P$2 -> 13145 | AB141: 13150 | AC141: 11460 | AD141: =AC141+AC141*Титул.лист!$A$1 -> 12606 | AE141: =AD141+AD141*Титул.лист!$P$2 -> 12606 | AF141: 12610 | AG141: 11610 | AH141: =AG141+AG141*Титул.лист!$A$1 -> 12771 | AI141: =AH141+AH141*Титул.лист!$P$2 -> 12771 | AJ141: 12770 | AK141: 11670 | AL141: =AK141+AK141*Титул.лист!$A$1 -> 12837 | AM141: =AL141+AL141*Титул.лист!$P$2 -> 12837 | AN141: 12840 | AO141: 13139.736 | AP141: =AO141+AO141*Титул.лист!$A$1 -> 14453.7096 | AQ141: =AP141+AP141*Титул.лист!$P$2 -> 14453.7096 | AR141: 14450 | AS141: 13612.296 | AT141: =AS141+AS141*Титул.лист!$A$1 -> 14973.5256 | AU141: =AT141+AT141*Титул.лист!$P$2 -> 14973.5256 | AV141: 14970 | AW141: 12804.648 | AX141: =AW141+AW141*Титул.лист!$A$1 -> 14085.1128 | AY141: =AX141+AX141*Титул.лист!$P$2 -> 14085.1128 | AZ141: 14090 | BA141: 13667.52 | BB141: =BA141+BA141*Титул.лист!$A$1 -> 15034.272 | BC141: =BB141+BB141*Титул.лист!$P$2 -> 15034.272 | BD141: 15030 | BE141: 15309.12 | BF141: =BE141+BE141*Титул.лист!$A$1 -> 16840.032 | BG141: =BF141+BF141*Титул.лист!$P$2 -> 16840.032 | BH141: 16840
C142: 700 | D142: 1009-70т | E142: 11070.73 | F142: =E142+E142*Титул.лист!$A$1 -> 12177.803 | G142: =F142+F142*Титул.лист!$P$2 -> 12177.803 | H142: 12180 | I142: 11235.05 | J142: =I142+I142*Титул.лист!$A$1 -> 12358.555 | K142: =J142+J142*Титул.лист!$P$2 -> 12358.555 | L142: 12360 | M142: 11532.88 | N142: =M142+M142*Титул.лист!$A$1 -> 12686.168 | O142: =N142+N142*Титул.лист!$P$2 -> 12686.168 | P142: 12690 | Q142: 11697.2 | R142: =Q142+Q142*Титул.лист!$A$1 -> 12866.92 | S142: =R142+R142*Титул.лист!$P$2 -> 12866.92 | T142: 12870 | U142: 11892.33 | V142: =U142+U142*Титул.лист!$A$1 -> 13081.563 | W142: =V142+V142*Титул.лист!$P$2 -> 13081.563 | X142: 13080 | Y142: 12056.65 | Z142: =Y142+Y142*Титул.лист!$A$1 -> 13262.315 | AA142: =Z142+Z142*Титул.лист!$P$2 -> 13262.315 | AB142: 13260 | AC142: 11553.42 | AD142: =AC142+AC142*Титул.лист!$A$1 -> 12708.762 | AE142: =AD142+AD142*Титул.лист!$P$2 -> 12708.762 | AF142: 12710 | AG142: 11707.47 | AH142: =AG142+AG142*Титул.лист!$A$1 -> 12878.217 | AI142: =AH142+AH142*Титул.лист!$P$2 -> 12878.217 | AJ142: 12880 | AK142: 11769.09 | AL142: =AK142+AK142*Титул.лист!$A$1 -> 12945.999 | AM142: =AL142+AL142*Титул.лист!$P$2 -> 12945.999 | AN142: 12950 | AO142: 13513.112 | AP142: =AO142+AO142*Титул.лист!$A$1 -> 14864.4232 | AQ142: =AP142+AP142*Титул.лист!$P$2 -> 14864.4232 | AR142: 14860 | AS142: 14064.432 | AT142: =AS142+AS142*Титул.лист!$A$1 -> 15470.8752 | AU142: =AT142+AT142*Титул.лист!$P$2 -> 15470.8752 | AV142: 15470 | AW142: 13122.176 | AX142: =AW142+AW142*Титул.лист!$A$1 -> 14434.3936 | AY142: =AX142+AX142*Титул.лист!$P$2 -> 14434.3936 | AZ142: 14430 | BA142: 14128.86 | BB142: =BA142+BA142*Титул.лист!$A$1 -> 15541.746 | BC142: =BB142+BB142*Титул.лист!$P$2 -> 15541.746 | BD142: 15540 | BE142: 16044.06 | BF142: =BE142+BE142*Титул.лист!$A$1 -> 17648.466 | BG142: =BF142+BF142*Титул.лист!$P$2 -> 17648.466 | BH142: 17650
C143: 800 | D143: 1009-80т | E143: 11899.8271 | F143: =E143+E143*Титул.лист!$A$1 -> 13089.80981 | G143: =F143+F143*Титул.лист!$P$2 -> 13089.80981 | H143: 13090 | I143: 12108.5135 | J143: =I143+I143*Титул.лист!$A$1 -> 13319.36485 | K143: =J143+J143*Титул.лист!$P$2 -> 13319.36485 | L143: 13320 | M143: 12486.7576 | N143: =M143+M143*Титул.лист!$A$1 -> 13735.43336 | O143: =N143+N143*Титул.лист!$P$2 -> 13735.43336 | P143: 13740 | Q143: 12695.444 | R143: =Q143+Q143*Титул.лист!$A$1 -> 13964.9884 | S143: =R143+R143*Титул.лист!$P$2 -> 13964.9884 | T143: 13960 | U143: 12943.2591 | V143: =U143+U143*Титул.лист!$A$1 -> 14237.58501 | W143: =V143+V143*Титул.лист!$P$2 -> 14237.58501 | X143: 14240 | Y143: 13151.9455 | Z143: =Y143+Y143*Титул.лист!$A$1 -> 14467.14005 | AA143: =Z143+Z143*Титул.лист!$P$2 -> 14467.14005 | AB143: 14470 | AC143: 12512.8434 | AD143: =AC143+AC143*Титул.лист!$A$1 -> 13764.12774 | AE143: =AD143+AD143*Титул.лист!$P$2 -> 13764.12774 | AF143: 13760 | AG143: 12708.4869 | AH143: =AG143+AG143*Титул.лист!$A$1 -> 13979.33559 | AI143: =AH143+AH143*Титул.лист!$P$2 -> 13979.33559 | AJ143: 13980 | AK143: 12786.7443 | AL143: =AK143+AK143*Титул.лист!$A$1 -> 14065.41873 | AM143: =AL143+AL143*Титул.лист!$P$2 -> 14065.41873 | AN143: 14070 | AO143: 14752.4914 | AP143: =AO143+AO143*Титул.лист!$A$1 -> 16227.74054 | AQ143: =AP143+AP143*Титул.лист!$P$2 -> 16227.74054 | AR143: 16230 | AS143: 15382.5714 | AT143: =AS143+AS143*Титул.лист!$A$1 -> 16920.82854 | AU143: =AT143+AT143*Титул.лист!$P$2 -> 16920.82854 | AV143: 16920 | AW143: 14305.7074 | AX143: =AW143+AW143*Титул.лист!$A$1 -> 15736.27814 | AY143: =AX143+AX143*Титул.лист!$P$2 -> 15736.27814 | AZ143: 15740 | BA143: 15456.2034 | BB143: =BA143+BA143*Титул.лист!$A$1 -> 17001.82374 | BC143: =BB143+BB143*Титул.лист!$P$2 -> 17001.82374 | BD143: 17000 | BE143: 17645.0034 | BF143: =BE143+BE143*Титул.лист!$A$1 -> 19409.50374 | BG143: =BF143+BF143*Титул.лист!$P$2 -> 19409.50374 | BH143: 19410
A144: Столы торцевые
B145: Бутылочница | C145: 150 | D145: 1010-15 | E145: 2250 | F145: =E145+E145*Титул.лист!$A$1 -> 2475 | G145: =F145+F145*Титул.лист!$P$2 -> 2475 | H145: 2480 | I145: 2300 | J145: =I145+I145*Титул.лист!$A$1 -> 2530 | K145: =J145+J145*Титул.лист!$P$2 -> 2530 | L145: 2530 | M145: 2400 | N145: =M145+M145*Титул.лист!$A$1 -> 2640 | O145: =N145+N145*Титул.лист!$P$2 -> 2640 | P145: 2640 | Q145: 2450 | R145: =Q145+Q145*Титул.лист!$A$1 -> 2695 | S145: =R145+R145*Титул.лист!$P$2 -> 2695 | T145: 2700 | U145: 2500 | V145: =U145+U145*Титул.лист!$A$1 -> 2750 | W145: =V145+V145*Титул.лист!$P$2 -> 2750 | X145: 2750 | Y145: 2560 | Z145: =Y145+Y145*Титул.лист!$A$1 -> 2816 | AA145: =Z145+Z145*Титул.лист!$P$2 -> 2816 | AB145: 2820 | AC145: 2400 | AD145: =AC145+AC145*Титул.лист!$A$1 -> 2640 | AE145: =AD145+AD145*Титул.лист!$P$2 -> 2640 | AF145: 2640 | AG145: 2460 | AH145: =AG145+AG145*Титул.лист!$A$1 -> 2706 | AI145: =AH145+AH145*Титул.лист!$P$2 -> 2706 | AJ145: 2710 | AK145: 2490 | AL145: =AK145+AK145*Титул.лист!$A$1 -> 2739 | AM145: =AL145+AL145*Титул.лист!$P$2 -> 2739 | AN145: 2740 | AO145: 2819.934 | AP145: =AO145+AO145*Титул.лист!$A$1 -> 3101.9274 | AQ145: =AP145+AP145*Титул.лист!$P$2 -> 3101.9274 | AR145: 3100 | AS145: 2938.074 | AT145: =AS145+AS145*Титул.лист!$A$1 -> 3231.8814 | AU145: =AT145+AT145*Титул.лист!$P$2 -> 3231.8814 | AV145: 3230 | AW145: 2736.162 | AX145: =AW145+AW145*Титул.лист!$A$1 -> 3009.7782 | AY145: =AX145+AX145*Титул.лист!$P$2 -> 3009.7782 | AZ145: 3010 | BA145: 2951.88 | BB145: =BA145+BA145*Титул.лист!$A$1 -> 3247.068 | BC145: =BB145+BB145*Титул.лист!$P$2 -> 3247.068 | BD145: 3250 | BE145: 3362.28 | BF145: =BE145+BE145*Титул.лист!$A$1 -> 3698.508 | BG145: =BF145+BF145*Титул.лист!$P$2 -> 3698.508 | BH145: 3700
C146: 200 | D146: 1010-20 | E146: =E24+1200 -> 2290 | F146: =E146+E146*Титул.лист!$A$1 -> 2519 | G146: =F146+F146*Титул.лист!$P$2 -> 2519 | H146: 2520 | I146: =I24+1200 -> 2330 | J146: =I146+I146*Титул.лист!$A$1 -> 2563 | K146: =J146+J146*Титул.лист!$P$2 -> 2563 | L146: 2560 | M146: =M24+1200 -> 2450 | N146: =M146+M146*Титул.лист!$A$1 -> 2695 | O146: =N146+N146*Титул.лист!$P$2 -> 2695 | P146: 2700 | Q146: =Q24+1200 -> 2500 | R146: =Q146+Q146*Титул.лист!$A$1 -> 2750 | S146: =R146+R146*Титул.лист!$P$2 -> 2750 | T146: 2750 | U146: =U24+1200 -> 2560 | V146: =U146+U146*Титул.лист!$A$1 -> 2816 | W146: =V146+V146*Титул.лист!$P$2 -> 2816 | X146: 2820 | Y146: =Y24+1200 -> 2610 | Z146: =Y146+Y146*Титул.лист!$A$1 -> 2871 | AA146: =Z146+Z146*Титул.лист!$P$2 -> 2871 | AB146: 2870 | AC146: =AC24+1200 -> 2450 | AD146: =AC146+AC146*Титул.лист!$A$1 -> 2695 | AE146: =AD146+AD146*Титул.лист!$P$2 -> 2695 | AF146: 2700 | AG146: 2510 | AH146: =AG146+AG146*Титул.лист!$A$1 -> 2761 | AI146: =AH146+AH146*Титул.лист!$P$2 -> 2761 | AJ146: 2760 | AK146: 2530 | AL146: =AK146+AK146*Титул.лист!$A$1 -> 2783 | AM146: =AL146+AL146*Титул.лист!$P$2 -> 2783 | AN146: 2780 | AO146: 3009.912 | AP146: =AO146+AO146*Титул.лист!$A$1 -> 3310.9032 | AQ146: =AP146+AP146*Титул.лист!$P$2 -> 3310.9032 | AR146: 3310 | AS146: 3167.432 | AT146: =AS146+AS146*Титул.лист!$A$1 -> 3484.1752 | AU146: =AT146+AT146*Титул.лист!$P$2 -> 3484.1752 | AV146: 3480 | AW146: 2898.216 | AX146: =AW146+AW146*Титул.лист!$A$1 -> 3188.0376 | AY146: =AX146+AX146*Титул.лист!$P$2 -> 3188.0376 | AZ146: 3190 | BA146: 3185.84 | BB146: =BA146+BA146*Титул.лист!$A$1 -> 3504.424 | BC146: =BB146+BB146*Титул.лист!$P$2 -> 3504.424 | BD146: 3500 | BE146: 3733.04 | BF146: =BE146+BE146*Титул.лист!$A$1 -> 4106.344 | BG146: =BF146+BF146*Титул.лист!$P$2 -> 4106.344 | BH146: 4110
B147: Стол-колонна h=720 (рекомендованно испльзовать с духовым шкафом ) | C147: 50 | D147: 1021-5 | F147: =E147+E147*Титул.лист!$A$1 -> 0 | G147: =F147+F147*Титул.лист!$P$2 -> 0 | AO147: 370 | AP147: =AO147+AO147*Титул.лист!$A$1 -> 407 | AQ147: =AP147+AP147*Титул.лист!$P$2 -> 407 | AR147: 410 | AS147: 370 | AT147: =AS147+AS147*Титул.лист!$A$1 -> 407 | AU147: =AT147+AT147*Титул.лист!$P$2 -> 407 | AV147: 410 | AX147: =AW147+AW147*Титул.лист!$A$1 -> 0 | AY147: =AX147+AX147*Титул.лист!$P$2 -> 0
B148: Стол-колонна h=720 (рекомендованно испльзовать с духовым шкафом )БЕЗ ФАСАДА | C148: 100 | F148: =E148+E148*Титул.лист!$A$1 -> 0 | G148: =F148+F148*Титул.лист!$P$2 -> 0 | AO148: 500 | AP148: =AO148+AO148*Титул.лист!$A$1 -> 550 | AQ148: =AP148+AP148*Титул.лист!$P$2 -> 550 | AR148: 550 | AS148: 500 | AT148: =AS148+AS148*Титул.лист!$A$1 -> 550 | AU148: =AT148+AT148*Титул.лист!$P$2 -> 550 | AV148: 550 | AX148: =AW148+AW148*Титул.лист!$A$1 -> 0 | AY148: =AX148+AX148*Титул.лист!$P$2 -> 0
B149: Стол-колонна h=720 (рекомендованно испльзовать с духовым шкафом )БЕЗ ФАСАДА | C149: 150 | F149: =E149+E149*Титул.лист!$A$1 -> 0 | G149: =F149+F149*Титул.лист!$P$2 -> 0 | AO149: 750 | AP149: =AO149+AO149*Титул.лист!$A$1 -> 825 | AQ149: =AP149+AP149*Титул.лист!$P$2 -> 825 | AR149: 830 | AS149: 750 | AT149: =AS149+AS149*Титул.лист!$A$1 -> 825 | AU149: =AT149+AT149*Титул.лист!$P$2 -> 825 | AV149: 830 | AX149: =AW149+AW149*Титул.лист!$A$1 -> 0 | AY149: =AX149+AX149*Титул.лист!$P$2 -> 0
B150: Стол-колонна h=720 (рекомендованно испльзовать с духовым шкафом )БЕЗ ФАСАДА | C150: 150 | F150: =E150+E150*Титул.лист!$A$1 -> 0 | G150: =F150+F150*Титул.лист!$P$2 -> 0 | AO150: 2550 | AP150: =AO150+AO150*Титул.лист!$A$1 -> 2805 | AQ150: =AP150+AP150*Титул.лист!$P$2 -> 2805 | AR150: 2810 | AS150: 2550 | AT150: =AS150+AS150*Титул.лист!$A$1 -> 2805 | AU150: =AT150+AT150*Титул.лист!$P$2 -> 2805 | AV150: 2810 | AX150: =AW150+AW150*Титул.лист!$A$1 -> 0 | AY150: =AX150+AX150*Титул.лист!$P$2 -> 0
B151: Стол-колонна h=720 (рекомендованно испльзовать с духовым шкафом )БЕЗ ФАСАДА, с бутылочницей с доводчиком | C151: 600 | D151: 1020-60 | E151: =E71-E71*0.08 -> 2502.4 | F151: =E151+E151*Титул.лист!$A$1 -> 2752.64 | G151: =F151+F151*Титул.лист!$P$2 -> 2752.64 | H151: 2750 | I151: =I71-I71*0.08 -> 2576 | J151: =I151+I151*Титул.лист!$A$1 -> 2833.6 | K151: =J151+J151*Титул.лист!$P$2 -> 2833.6 | L151: 2830 | M151: =M71-M71*0.08 -> 2925.6 | N151: =M151+M151*Титул.лист!$A$1 -> 3218.16 | O151: =N151+N151*Титул.лист!$P$2 -> 3218.16 | P151: 3220 | Q151: =Q71-Q71*0.08 -> 3008.4 | R151: =Q151+Q151*Титул.лист!$A$1 -> 3309.24 | S151: =R151+R151*Титул.лист!$P$2 -> 3309.24 | T151: 3310 | U151: =U71-U71*0.08 -> 3238.4 | V151: =U151+U151*Титул.лист!$A$1 -> 3562.24 | W151: =V151+V151*Титул.лист!$P$2 -> 3562.24 | X151: 3560 | Y151: =Y71-Y71*0.08 -> 3321.2 | Z151: =Y151+Y151*Титул.лист!$A$1 -> 3653.32 | AA151: =Z151+Z151*Титул.лист!$P$2 -> 3653.32 | AB151: 3650 | AC151: =AC71-AC71*0.08 -> 2944 | AD151: =AC151+AC151*Титул.лист!$A$1 -> 3238.4 | AE151: =AD151+AD151*Титул.лист!$P$2 -> 3238.4 | AF151: 3240 | AG151: 3082 | AH151: =AG151+AG151*Титул.лист!$A$1 -> 3390.2 | AI151: =AH151+AH151*Титул.лист!$P$2 -> 3390.2 | AJ151: 3390 | AK151: 3137.2 | AL151: =AK151+AK151*Титул.лист!$A$1 -> 3450.92 | AM151: =AL151+AL151*Титул.лист!$P$2 -> 3450.92 | AN151: 3450 | AO151: 3779.176 | AP151: =AO151+AO151*Титул.лист!$A$1 -> 4157.0936 | AQ151: =AP151+AP151*Титул.лист!$P$2 -> 4157.0936 | AR151: 4160 | AS151: 4014.136 | AT151: =AS151+AS151*Титул.лист!$A$1 -> 4415.5496 | AU151: =AT151+AT151*Титул.лист!$P$2 -> 4415.5496 | AV151: 4420 | AW151: 3612.568 | AX151: =AW151+AW151*Титул.лист!$A$1 -> 3973.8248 | AY151: =AX151+AX151*Титул.лист!$P$2 -> 3973.8248 | AZ151: 3970 | BA151: 4035.496 | BB151: =BA151+BA151*Титул.лист!$A$1 -> 4439.0456 | BC151: =BB151+BB151*Титул.лист!$P$2 -> 4439.0456 | BD151: 4440 | BE151: 4847.176 | BF151: =BE151+BE151*Титул.лист!$A$1 -> 5331.8936 | BG151: =BF151+BF151*Титул.лист!$P$2 -> 5331.8936 | BH151: 5330
B152: Стол с открытой секцией для СВ-Печи. Метабокс | C152: 600 | D152: 1020-60м | E152: =E151+350 -> 2852.4 | F152: =E152+E152*Титул.лист!$A$1 -> 3137.64 | G152: =F152+F152*Титул.лист!$P$2 -> 3137.64 | H152: 3140 | I152: =I151+350 -> 2926 | J152: =I152+I152*Титул.лист!$A$1 -> 3218.6 | K152: =J152+J152*Титул.лист!$P$2 -> 3218.6 | L152: 3220 | M152: =M151+350 -> 3275.6 | N152: =M152+M152*Титул.лист!$A$1 -> 3603.16 | O152: =N152+N152*Титул.лист!$P$2 -> 3603.16 | P152: 3600 | Q152: =Q151+350 -> 3358.4 | R152: =Q152+Q152*Титул.лист!$A$1 -> 3694.24 | S152: =R152+R152*Титул.лист!$P$2 -> 3694.24 | T152: 3690 | U152: =U151+350 -> 3588.4 | V152: =U152+U152*Титул.лист!$A$1 -> 3947.24 | W152: =V152+V152*Титул.лист!$P$2 -> 3947.24 | X152: 3950 | Y152: =Y151+350 -> 3671.2 | Z152: =Y152+Y152*Титул.лист!$A$1 -> 4038.32 | AA152: =Z152+Z152*Титул.лист!$P$2 -> 4038.32 | AB152: 4040 | AC152: =AC151+350 -> 3294 | AD152: =AC152+AC152*Титул.лист!$A$1 -> 3623.4 | AE152: =AD152+AD152*Титул.лист!$P$2 -> 3623.4 | AF152: 3620 | AG152: =AG151+350 -> 3432 | AH152: =AG152+AG152*Титул.лист!$A$1 -> 3775.2 | AI152: =AH152+AH152*Титул.лист!$P$2 -> 3775.2 | AJ152: 3780 | AK152: =AK151+350 -> 3487.2 | AL152: =AK152+AK152*Титул.лист!$A$1 -> 3835.92 | AM152: =AL152+AL152*Титул.лист!$P$2 -> 3835.92 | AN152: 3840 | AO152: 4129.176 | AP152: =AO152+AO152*Титул.лист!$A$1 -> 4542.0936 | AQ152: =AP152+AP152*Титул.лист!$P$2 -> 4542.0936 | AR152: 4540 | AS152: 4364.136 | AT152: =AS152+AS152*Титул.лист!$A$1 -> 4800.5496 | AU152: =AT152+AT152*Титул.лист!$P$2 -> 4800.5496 | AV152: 4800 | AW152: 3962.568 | AX152: =AW152+AW152*Титул.лист!$A$1 -> 4358.8248 | AY152: =AX152+AX152*Титул.лист!$P$2 -> 4358.8248 | AZ152: 4360 | BA152: 4385.496 | BB152: =BA152+BA152*Титул.лист!$A$1 -> 4824.0456 | BC152: =BB152+BB152*Титул.лист!$P$2 -> 4824.0456 | BD152: 4820 | BE152: 5197.176 | BF152: =BE152+BE152*Титул.лист!$A$1 -> 5716.8936 | BG152: =BF152+BF152*Титул.лист!$P$2 -> 5716.8936 | BH152: 5720
A153: Столы торцевые
